Workbook

Sheet 20240331库存表
A1: 质物库存表
A2: 出质人： | C2: 山海新能（北京）能源科技有限公司河北分公司
A3: 质权人： | C3: 石家庄汇融农村合作银行
A4: 序号 | B4: 仓库名称 | C4: 物料组 | D4: 物料编号 | E4: 物料名称 | F4: 物料品牌 | G4: 物料单价 | H4: 库存数量 | I4: 货值
A5: 1 | B5: 江西余干库 | C5: 组件 | D5: 1004000067 | E5: 东方日升660双玻 | F5: 山海新能-东方日升 | G5: 1082.4 | H5: 896 | I5: =G5*H5 -> 969830.4
A6: 2 | B6: 江西余干库 | C6: 逆变器 | D6: 2001000015 | E6: 逆变器-15 | F6: 山海新能-锦浪 | G6: 3905 | H6: 9 | I6: 35145
A7: 3 | B7: 江西余干库 | C7: 逆变器 | D7: 2001000020 | E7: 逆变器-20 | F7: 山海新能-锦浪 | G7: 4510 | H7: 64 | I7: 288640
A8: 4 | B8: 江西余干库 | C8: 逆变器 | D8: 2001000025 | E8: 逆变器-25 | F8: 山海新能-锦浪 | G8: 5170 | H8: 107 | I8: 553190
A9: 5 | B9: 江西余干库 | C9: 逆变器 | D9: 2001000030 | E9: 逆变器-30 | F9: 山海新能-锦浪 | G9: 7700 | H9: 61 | I9: 469700
A10: 6 | B10: 江西余干库 | C10: 逆变器 | D10: 2001000036 | E10: 逆变器-36 | F10: 山海新能-锦浪 | G10: 8525 | H10: 2 | I10: 17050
A11: 7 | B11: 江西余干库 | C11: 逆变器 | D11: 2001000040 | E11: 逆变器-40 | F11: 山海新能-锦浪 | G11: 8690 | H11: 9 | I11: 78210
A12: 8 | B12: 江西余干库 | C12: 逆变器 | D12: 2001000050 | E12: 逆变器-50 | F12: 山海新能-锦浪 | G12: 11990 | H12: 0 | I12: 0
A13: 9 | B13: 庄河荣名库 | C13: 组件 | D13: 1004000060 | E13: 东方日升600 | F13: 山海新能-东方日升 | G13: 1108.8 | H13: 2592 | I13: 2874009.6
A14: 10 | B14: 庄河荣名库 | C14: 组件 | D14: 1001000054 | E14: 天合600 | F14: 山海智慧-天合 | G14: 1267 | H14: 0 | I14: 0
A15: 11 | B15: 庄河荣名库 | C15: 组件 | D15: 1004000047 | E15: 晶科475 | F15: 山海智慧-天合 | G15: 904 | H15: 403 | I15: 364312
A16: 12 | B16: 庄河荣名库 | C16: 逆变器 | D16: 2001000010 | E16: 逆变器-10 | F16: 山海新能-锦浪 | G16: 2560 | H16: 0 | I16: 0
A17: 13 | B17: 庄河荣名库 | C17: 逆变器 | D17: 2003000060 | E17: 逆变器-60 | F17: 山海新能-锦浪 | G17: 11300 | H17: 7 | I17: 79100
A18: 14 | B18: 庄河荣名库 | C18: 逆变器 | D18: 2003000040 | E18: 逆变器-40 | F18: 山海新能-固德威 | G18: 8171 | H18: 29 | I18: 236959
A19: 15 | B19: 庄河荣名库 | C19: 逆变器 | D19: 2003000036 | E19: 逆变器-36 | F19: 山海新能-固德威 | G19: 7660 | H19: 5 | I19: 38300
A20: 16 | B20: 庄河荣名库 | C20: 逆变器 | D20: 2003000030 | E20: 逆变器-30 | F20: 山海新能-固德威 | G20: 7100 | H20: 18 | I20: 127800
A21: 17 | B21: 庄河荣名库 | C21: 逆变器 | D21: 20010000110 | E21: 逆变器-110 | F21: 山海新能-锦浪 | G21: 19800 | H21: 6 | I21: 118800
A22: 18 | B22: 庄河荣名库 | C22: 逆变器 | D22: 2001000080 | E22: 逆变器-80 | F22: 山海新能-锦浪 | G22: 17300 | H22: 19 | I22: 328700
A23: 19 | B23: 庄河荣名库 | C23: 逆变器 | D23: 2001000008 | E23: 逆变器-8 | F23: 山海新能-锦浪 | G23: 2830 | H23: 50 | I23: 141500
A24: 20 | B24: 庄河荣名库 | C24: 逆变器 | D24: 2001000050 | E24: 逆变器-50 | F24: 山海新能-锦浪 | G24: 11990 | H24: 17 | I24: 203830
A25: 21 | B25: 庄河荣名库 | C25: 逆变器 | D25: 2001000013 | E25: 逆变器-13 | F25: 山海新能-锦浪 | G25: 3520 | H25: 20 | I25: 70400
A26: 22 | B26: 庄河荣名库 | C26: 逆变器 | D26: 2001000015 | E26: 逆变器-15 | F26: 山海新能-锦浪 | G26: 3905 | H26: 46 | I26: 179630
A27: 23 | B27: 庄河荣名库 | C27: 逆变器 | D27: 2001000036 | E27: 逆变器-36 | F27: 山海新能-锦浪 | G27: 8525 | H27: 21 | I27: 179025
A28: 24 | B28: 庄河荣名库 | C28: 逆变器 | D28: 2001000030 | E28: 逆变器-30 | F28: 山海新能-锦浪 | G28: 7700 | H28: 45 | I28: 346500
A29: 25 | B29: 庄河荣名库 | C29: 逆变器 | D29: 2001000040 | E29: 逆变器-40 | F29: 山海新能-锦浪 | G29: 8690 | H29: 0 | I29: 0
A30: 26 | B30: 庄河荣名库 | C30: 逆变器 | D30: 2001000033 | E30: 逆变器-33 | F30: 山海新能-锦浪 | G30: 8195 | H30: 34 | I30: 278630
A31: 27 | B31: 庄河荣名库 | C31: 逆变器 | D31: 2001000025 | E31: 逆变器-25 | F31: 山海新能-锦浪 | G31: 5170 | H31: 40 | I31: 206800
A32: 28 | B32: 庄河荣名库 | C32: 逆变器 | D32: 2001000020 | E32: 逆变器-20 | F32: 山海新能-锦浪 | G32: 4510 | H32: 70 | I32: 315700
A33: 29 | B33: 安阳荣名库 | C33: 组件 | D33: 1004000048 | E33: 晶科470 | F33: 山海新能 | G33: 904 | H33: 11036 | I33: 9976544
A34: 30 | B34: 安阳荣名库 | C34: 组件 | D34: 1004000067 | E34: 东方日升660双玻 | F34: 山海新能-东方日升 | G34: 1082.4 | H34: 13 | I34: 14071.2
A35: 31 | B35: 安阳荣名库 | C35: 组件 | D35: 1004000066 | E35: 东方日升660 | F35: 山海新能-东方日升 | G35: 1014 | H35: 2086 | I35: 2115204
A36: 32 | B36: 安阳荣名库 | C36: 组件 | D36: 1001000054 | E36: 天合600 | F36: 山海智慧-天合 | G36: 1267.00 | H36: 1 | I36: 1267
A37: 33 | B37: 安阳荣名库 | C37: 组件 | D37: 1004000047 | E37: 晶科475 | F37: 山海智慧-天合 | G37: 904 | H37: 18580 | I37: 16796320
A38: 34 | B38: 安阳荣名库 | C38: 逆变器 | D38: 2006000025 | E38: 逆变器-25 | F38: 山海新能-易嘉 | G38: 3170 | H38: 6 | I38: 19020
A39: 35 | B39: 安阳荣名库 | C39: 逆变器 | D39: 2002000040 | E39: 逆变器-40 | F39: 山海新能-古瑞瓦特 | G39: 7600 | H39: 12 | I39: 91200
A40: 36 | B40: 安阳荣名库 | C40: 逆变器 | D40: 2002000050 | E40: 逆变器-50 | F40: 山海新能-古瑞瓦特 | G40: 9000 | H40: 36 | I40: 324000
A41: 37 | B41: 安阳荣名库 | C41: 逆变器 | D41: 20010000110 | E41: 逆变器-110 | F41: 山海新能-锦浪 | G41: 19800 | H41: 1 | I41: 19800
A42: 38 | B42: 安阳荣名库 | C42: 逆变器 | D42: 2001000030 | E42: 逆变器-30 | F42: 山海新能-锦浪 | G42: 7700 | H42: 43 | I42: 331100
A43: 39 | B43: 安阳荣名库 | C43: 逆变器 | D43: 2001000060 | E43: 逆变器-60 | F43: 山海新能-锦浪 | G43: 11300 | H43: 31 | I43: 350300
A44: 40 | B44: 安阳荣名库 | C44: 逆变器 | D44: 2001000080 | E44: 逆变器-80 | F44: 山海新能-锦浪 | G44: 17300 | H44: 32 | I44: 553600
A45: 41 | B45: 安阳荣名库 | C45: 逆变器 | D45: 2001000036 | E45: 逆变器-36 | F45: 山海新能-锦浪 | G45: 8525 | H45: 58 | I45: 494450
A46: 42 | B46: 安阳荣名库 | C46: 逆变器 | D46: 2001000050 | E46: 逆变器-50 | F46: 山海新能-锦浪 | G46: 11990 | H46: 28 | I46: 335720
A47: 43 | B47: 安阳荣名库 | C47: 逆变器 | D47: 2001000040 | E47: 逆变器-40 | F47: 山海新能-锦浪 | G47: 8690 | H47: 38 | I47: 330220
A48: 44 | B48: 安阳荣名库 | C48: 逆变器 | D48: 2001000013 | E48: 逆变器-13 | F48: 山海新能-锦浪 | G48: 3520 | H48: 2 | I48: 7040
A49: 45 | B49: 安阳荣名库 | C49: 逆变器 | D49: 2001000015 | E49: 逆变器-15 | F49: 山海新能-锦浪 | G49: 3905 | H49: 12 | I49: 46860
A50: 46 | B50: 安阳荣名库 | C50: 逆变器 | D50: 2004000133 | E50: 逆变器-33 | F50: 禾望 | G50: 7260 | H50: 34 | I50: 246840
A51: 47 | B51: 安阳荣名库 | C51: 逆变器 | D51: 2001000020 | E51: 逆变器-20 | F51: 山海新能-锦浪 | G51: 4510 | H51: 36 | I51: 162360
A52: 48 | B52: 安阳荣名库 | C52: 逆变器 | D52: 2001000025 | E52: 逆变器-25 | F52: 山海新能-锦浪 | G52: 5170 | H52: 23 | I52: 118910
A53: 49 | B53: 安阳荣名库 | C53: 逆变器 | D53: 2004000130 | E53: 逆变器-30 | F53: 禾望 | G53: 7040 | H53: 33 | I53: 232320
A54: 50 | B54: 安阳荣名库 | C54: 逆变器 | D54: 2004000136 | E54: 逆变器-36 | F54: 禾望 | G54: 7920 | H54: 17 | I54: 134640
A55: 51 | B55: 曲阜荣名库 | C55: 组件 | D55: 1004000060 | E55: 东方日升600 | F55: 山海新能-东方日升 | G55: 1108.8 | H55: 4824 | I55: 5348851.2
A56: 52 | B56: 曲阜荣名库 | C56: 组件 | D56: 1004000047 | E56: 晶科475 | F56: 山海智慧-天合 | G56: 904 | H56: 6448 | I56: 5828992
A57: 53 | B57: 曲阜荣名库 | C57: 组件 | D57: 1001000054 | E57: 天合600 | F57: 山海智慧-天合 | G57: 1267 | H57: 785 | I57: 994595
A58: 54 | B58: 曲阜荣名库 | C58: 组件 | D58: 1004000048 | E58: 晶科470 | F58: 山海新能 | G58: 904 | H58: 0 | I58: 0
A59: 55 | B59: 曲阜荣名库 | C59: 逆变器 | D59: 2001000013 | E59: 逆变器-13 | F59: 山海新能-锦浪 | G59: 3520 | H59: 7 | I59: 24640
A60: 56 | B60: 曲阜荣名库 | C60: 逆变器 | D60: 2001000050 | E60: 逆变器-50 | F60: 山海新能-锦浪 | G60: 11990 | H60: 15 | I60: 179850
A61: 57 | B61: 曲阜荣名库 | C61: 逆变器 | D61: 2001000080 | E61: 逆变器-80 | F61: 山海新能-锦浪 | G61: 17300 | H61: 4 | I61: 69200
A62: 58 | B62: 曲阜荣名库 | C62: 逆变器 | D62: 20010000110 | E62: 逆变器-110 | F62: 山海新能-锦浪 | G62: 19800 | H62: 5 | I62: 99000
A63: 59 | B63: 曲阜荣名库 | C63: 逆变器 | D63: 2001000060 | E63: 逆变器-60 | F63: 山海新能-锦浪 | G63: 11300 | H63: 6 | I63: 67800
A64: 60 | B64: 曲阜荣名库 | C64: 逆变器 | D64: 2002000050 | E64: 逆变器-50 | F64: 山海新能-古瑞瓦特 | G64: 9000 | H64: 10 | I64: 90000
A65: 61 | B65: 曲阜荣名库 | C65: 逆变器 | D65: 2002000040 | E65: 逆变器-40 | F65: 山海新能-古瑞瓦特 | G65: 7600 | H65: 14 | I65: 106400
A66: 62 | B66: 曲阜荣名库 | C66: 逆变器 | D66: 2003000050 | E66: 逆变器-50 | F66: 山海新能-固德威 | G66: 9900 | H66: 2 | I66: 19800
A67: 63 | B67: 曲阜荣名库 | C67: 逆变器 | D67: 2001000040 | E67: 逆变器-40 | F67: 山海新能-锦浪 | G67: 8690 | H67: 10 | I67: 86900
A68: 64 | B68: 曲阜荣名库 | C68: 逆变器 | D68: 2001000033 | E68: 逆变器-33 | F68: 山海新能-锦浪 | G68: 8195 | H68: 41 | I68: 335995
A69: 65 | B69: 曲阜荣名库 | C69: 逆变器 | D69: 2001000036 | E69: 逆变器-36 | F69: 山海新能-锦浪 | G69: 8525 | H69: 15 | I69: =G69*H69 -> 127875
A70: 66 | B70: 曲阜荣名库 | C70: 逆变器 | D70: 2001000030 | E70: 逆变器-30 | F70: 山海新能-锦浪 | G70: 7700 | H70: 27 | I70: 207900
A71: 67 | B71: 曲阜荣名库 | C71: 逆变器 | D71: 2001000015 | E71: 逆变器-15 | F71: 山海新能-锦浪 | G71: 3905 | H71: 8 | I71: 31240
A72: 68 | B72: 曲阜荣名库 | C72: 逆变器 | D72: 2001000025 | E72: 逆变器-25 | F72: 山海新能-锦浪 | G72: 5170 | H72: 12 | I72: 62040
A73: 69 | B73: 曲阜荣名库 | C73: 逆变器 | D73: 2001000020 | E73: 逆变器-20 | F73: 山海新能-锦浪 | G73: 4510 | H73: 23 | I73: 103730
A74: 70 | B74: 合计： | H74: =SUM(H5:H73) -> 48984 | I74: =SUM(I5:I73) -> 54988355.4
A76: 以上内容截止到2024年3月31日
A78: 出质人： | C78: 山海新能（北京）能源科技有限公司河北分公司
A82: 监管人： | C82: 宇信通创新技术（河北）有限公司
A85: 备注：1、以最近日期的库存表为准，自动覆盖前期库存表。
A86: 2、上表中“数量”、“重量”指标的计量单位按照实际质物品种填写。
A87: 3、表中格式可根据具体品种进行相应调整。

Sheet 202403入库表
A1: 货物入库质押申请/批准单
A2: 制单日期：2024年3月31日
A3: 序号 | B3: 产品名称 | C3: 数量 | D3: 单价/元 | E3: 金额/元 | F3: 产品厂家 | G3: 仓库地点 | H3: 入库车牌号 | I3: 时间
A4: 1 | B4: 晶科475 | C4: 21 | D4: 904 | E4: =D4*C4 -> 18984 | F4: 山海新能 | G4: 庄河荣名库 | I4: 2024-03-11
A5: 2 | B5: 天合600 | C5: 1 | D5: 1267 | E5: 1267 | F5: 山海智慧-天合 | G5: 安阳荣名库 | I5: 2024-03-20
A6: 3 | B6: 晶科475 | C6: 620 | D6: 904 | E6: 560480 | F6: 山海新能 | G6: 安阳荣名库 | I6: 2024-03-25
A7: 4 | B7: 逆变器-13 | C7: 1 | D7: 3520 | E7: 3520 | F7: 山海新能-锦浪 | G7: 安阳荣名库 | I7: 2024-03-25
A8: 5 | B8: 逆变器-15 | C8: 2 | D8: 3905 | E8: 7810 | F8: 锦浪 | G8: 安阳荣名库 | I8: 2024-03-25
A9: 6 | B9: 逆变器-20 | C9: 2 | D9: 4510 | E9: 9020 | F9: 锦浪 | G9: 安阳荣名库 | I9: 2024-03-25
A10: 7 | B10: 逆变器-25 | C10: 2 | D10: 5170 | E10: 10340 | F10: 锦浪 | G10: 安阳荣名库 | I10: 2024-03-25
A11: 8 | B11: 逆变器-30 | C11: 2 | D11: 7700 | E11: 15400 | F11: 山海新能-锦浪 | G11: 安阳荣名库 | I11: 2024-03-25
A12: 9 | B12: 逆变器-36 | C12: 2 | D12: 8525 | E12: 17050 | F12: 山海新能-锦浪 | G12: 安阳荣名库 | I12: 2024-03-25
A13: 10 | B13: 逆变器-40 | C13: 1 | D13: 8690 | E13: 8690 | F13: 锦浪 | G13: 安阳荣名库 | I13: 2024-03-25
A14: 11 | B14: 逆变器-50 | C14: 1 | D14: 11990 | E14: 11990 | F14: 锦浪 | G14: 安阳荣名库 | I14: 2024-03-25
A15: 12 | B15: 东方日升660 | C15: 1252 | D15: 1014 | E15: 1269528 | F15: 东方日升 | G15: 安阳荣名库 | I15: 2024-03-26
A16: 13 | B16: 逆变器-30 | C16: 1 | D16: 7700 | E16: 7700 | F16: 山海新能-锦浪 | G16: 安阳荣名库 | I16: 2024-03-26
A17: 14 | B17: 东方日升600 | C17: 864 | D17: 1108.8 | E17: 958003.2 | F17: 山海新能 | G17: 庄河荣名库 | I17: 2024-03-31
A18: 15 | B18: 逆变器-20 | C18: 4 | D18: 4510 | E18: 18040 | F18: 锦浪 | G18: 庄河荣名库 | I18: 2024-03-31
A19: 16 | B19: 逆变器-15 | C19: 3 | D19: 3905 | E19: 11715 | F19: 锦浪 | G19: 庄河荣名库 | I19: 2024-03-31
A20: 17 | B20: 逆变器-50 | C20: 3 | D20: 11990 | E20: 35970 | F20: 山海新能-锦浪 | G20: 庄河荣名库 | I20: 2024-03-31
A21: 18 | B21: 东方日升600 | C21: 1728 | D21: 1108.8 | E21: 1916006.4 | F21: 东方日升 | G21: 庄河荣名库 | I21: 2024-03-31
A22: 19 | B22: 合计 | C22: =SUM(C4:C21) -> 4510 | E22: =SUM(E4:E21) -> 4881513.6
A27: 出质人： | C27: 山海新能（北京）能源科技有限公司河北分公司
A32: 监管人： | C32: 宇信通创新技术（河北）有限公司

Sheet 202403出库表
A1: 质物解除质押出库申请/批准单
A2: 制单日期：2024年3月31日
A3: 序号 | B3: 产品名称 | C3: 数量 | D3: 单价/元 | E3: 金额/元 | F3: 产品厂家 | G3: 仓库地点 | H3: 到达地点 | I3: 时间
A4: 1 | B4: 东方日升660双玻 | C4: 256 | D4: 1082.4 | E4: =D4*C4 -> 277094.4 | F4: 锦浪 | G4: 江西余干库 | H4: 江西大海光伏工程有限公司 | I4: 2024-03-04
A5: 2 | B5: 逆变器-36 | C5: 4 | D5: 8525 | E5: 34100 | F5: 锦浪 | G5: 江西余干库 | H5: 江西大海光伏工程有限公司 | I5: 2024-03-05
A6: 3 | B6: 东方日升660双玻 | C6: 224 | D6: 1082.4 | E6: 242457.6 | F6: 锦浪 | G6: 江西余干库 | H6: 海南万物生长新能源科技有限公司 | I6: 2024-03-05
A7: 4 | B7: 逆变器-30 | C7: 1 | D7: 7700 | E7: 7700 | F7: 锦浪 | G7: 江西余干库 | H7: 海南万物生长新能源科技有限公司 | I7: 2024-03-11
A8: 5 | B8: 逆变器-36 | C8: 1 | D8: 8525 | E8: 8525 | F8: 锦浪 | G8: 江西余干库 | H8: 海南万物生长新能源科技有限公司 | I8: 2024-03-12
A9: 6 | B9: 逆变器-30 | C9: 1 | D9: 7700 | E9: 7700 | F9: 锦浪 | G9: 江西余干库 | H9: 江西大海光伏工程有限公司 | I9: 2024-03-12
A10: 7 | B10: 东方日升660双玻 | C10: 32 | D10: 1082.4 | E10: 34636.8 | F10: 锦浪 | G10: 江西余干库 | H10: 江西大海光伏工程有限公司 | I10: 2024-03-12
A11: 8 | B11: 逆变器-36 | C11: 1 | D11: 8525 | E11: 8525 | F11: 锦浪 | G11: 江西余干库 | H11: 江西大海光伏工程有限公司 | I11: 2024-03-12
A12: 9 | B12: 晶科475 | C12: 21 | D12: 904 | E12: 18984 | F12: 山海智慧-天合 | G12: 庄河荣名库 | H12: 大连竣泰通信工程有限公司 | I12: 2024-03-12
A13: 10 | B13: 逆变器-40 | C13: 1 | D13: 8171 | E13: 8171 | F13: 固德威 | G13: 庄河荣名库 | H13: 大连竣泰通信工程有限公司 | I13: 2024-03-13
A14: 11 | B14: 逆变器-50 | C14: 2 | D14: 11990 | E14: 23980 | F14: 锦浪 | G14: 庄河荣名库 | H14: 大连竣泰通信工程有限公司 | I14: 2024-03-14
A15: 12 | B15: 逆变器-40 | C15: 1 | D15: 8171 | E15: 8171 | F15: 固德威 | G15: 庄河荣名库 | H15: 大连竣泰通信工程有限公司 | I15: 2024-03-14
A16: 13 | B16: 逆变器-60 | C16: 1 | D16: 11300 | E16: 11300 | F16: 山海新能-锦浪 | G16: 安阳荣名库 | H16: 邯郸一铭新能源科技有限公司 | I16: 2024-03-14
A17: 14 | B17: 晶科475 | C17: 620 | D17: 904 | E17: 560480 | F17: 山海新能-锦浪 | G17: 安阳荣名库 | H17: 河北顺公建筑工程有限公司 | I17: 2024-03-14
A18: 15 | B18: 逆变器-13 | C18: 1 | D18: 3520 | E18: 3520 | F18: 山海新能-锦浪 | G18: 安阳荣名库 | H18: 河北顺公建筑工程有限公司 | I18: 2024-03-14
A19: 16 | B19: 逆变器-15 | C19: 2 | D19: 3905 | E19: 7810 | F19: 山海新能-锦浪 | G19: 安阳荣名库 | H19: 河北顺公建筑工程有限公司 | I19: 2024-03-14
A20: 17 | B20: 逆变器-20 | C20: 2 | D20: 4510 | E20: 9020 | F20: 山海新能-锦浪 | G20: 安阳荣名库 | H20: 河北顺公建筑工程有限公司 | I20: 2024-03-14
A21: 18 | B21: 逆变器-25 | C21: 2 | D21: 5170 | E21: 10340 | F21: 山海新能-锦浪 | G21: 安阳荣名库 | H21: 河北顺公建筑工程有限公司 | I21: 2024-03-14
A22: 19 | B22: 逆变器-30 | C22: 2 | D22: 7700 | E22: 15400 | F22: 山海新能-锦浪 | G22: 安阳荣名库 | H22: 河北顺公建筑工程有限公司 | I22: 2024-03-14
A23: 20 | B23: 逆变器-36 | C23: 2 | D23: 8525 | E23: 17050 | F23: 山海新能-锦浪 | G23: 安阳荣名库 | H23: 河北顺公建筑工程有限公司 | I23: 2024-03-15
A24: 21 | B24: 逆变器-40 | C24: 1 | D24: 8690 | E24: 8690 | F24: 山海新能-锦浪 | G24: 安阳荣名库 | H24: 河北顺公建筑工程有限公司 | I24: 2024-03-18
A25: 22 | B25: 逆变器-50 | C25: 1 | D25: 11990 | E25: 11990 | F25: 山海新能-锦浪 | G25: 安阳荣名库 | H25: 河北顺公建筑工程有限公司 | I25: 2024-03-18
A26: 23 | B26: 逆变器-25 | C26: 1 | D26: 5170 | E26: 5170 | F26: 山海新能-锦浪 | G26: 安阳荣名库 | H26: 邯郸一铭新能源科技有限公司 | I26: 2024-03-18
A27: 24 | B27: 逆变器-50 | C27: 2 | D27: 11990 | E27: 23980 | F27: 山海新能-锦浪 | G27: 安阳荣名库 | H27: 邯郸一铭新能源科技有限公司 | I27: 2024-03-22
A28: 25 | B28: 逆变器-50 | C28: 2 | D28: 11990 | E28: 23980 | F28: 山海新能-锦浪 | G28: 安阳荣名库 | H28: 邯郸一铭新能源科技有限公司 | I28: 2024-03-25
A29: 26 | B29: 逆变器-20 | C29: 1 | D29: 4510 | E29: 4510 | F29: 山海新能-锦浪 | G29: 安阳荣名库 | H29: 河北顺公建筑工程有限公司 | I29: 2024-03-26
A30: 27 | B30: 逆变器-25 | C30: 1 | D30: 5170 | E30: 5170 | F30: 山海新能-锦浪 | G30: 安阳荣名库 | H30: 河北顺公建筑工程有限公司 | I30: 2024-03-26
A31: 28 | B31: 东方日升600 | C31: 864 | D31: 1108.8 | E31: 958003.2 | F31: 东方日升 | G31: 曲阜荣名库 | H31: 庄河荣名库 | I31: 2024-03-29
A32: 29 | B32: 逆变器-20 | C32: 4 | D32: 4510 | E32: 18040 | F32: 锦浪 | G32: 曲阜荣名库 | H32: 庄河荣名库 | I32: 2024-03-29
A33: 30 | B33: 逆变器-15 | C33: 3 | D33: 3905 | E33: 11715 | F33: 锦浪 | G33: 曲阜荣名库 | H33: 庄河荣名库 | I33: 2024-03-29
A34: 31 | B34: 逆变器-50 | C34: 3 | D34: 11990 | E34: 35970 | F34: 山海新能-锦浪 | G34: 曲阜荣名库 | H34: 庄河荣名库 | I34: 2024-03-29
A35: 32 | B35: 东方日升600 | C35: 1728 | D35: 1108.8 | E35: 1916006.4 | F35: 东方日升 | G35: 曲阜荣名库 | H35: 庄河荣名库 | I35: 2024-03-30
A36: 33 | B36: 东方日升600 | C36: 800 | D36: 1108.8 | E36: 887040 | F36: 东方日升 | G36: 曲阜荣名库 | H36: 庄河荣名库 | I36: 2024-03-31
A37: 34 | B37: 逆变器-30 | C37: 1 | D37: 7700 | E37: 7700 | F37: 锦浪 | G37: 曲阜荣名库 | H37: 庄河荣名库 | I37: 2024-03-31
A38: 35 | B38: 逆变器-50 | C38: 1 | D38: 11990 | E38: 11990 | F38: 山海新能-锦浪 | G38: 曲阜荣名库 | H38: 庄河荣名库 | I38: 2024-03-31
A39: 36 | B39: 逆变器-40 | C39: 1 | D39: 8690 | E39: 8690 | F39: 山海新能-锦浪 | G39: 曲阜荣名库 | H39: 庄河荣名库 | I39: 2024-03-31
A40: 37 | B40: 逆变器-33 | C40: 3 | D40: 8195 | E40: 24585 | F40: 山海新能-锦浪 | G40: 曲阜荣名库 | H40: 庄河荣名库 | I40: 2024-03-31
A41: 38 | B41: 合计 | C41: =SUM(C4:C40) -> 4594 | E41: =SUM(E4:E40) -> 5278194.4
A44: 出质人： | C44: 山海新能（北京）能源科技有限公司河北分公司
A49: 监管人： | C49: 宇信通创新技术（河北）有限公司

Sheet 20240229库存表
A1: 质物库存表
A2: 出质人： | C2: 山海新能（北京）能源科技有限公司河北分公司
A3: 质权人： | C3: 石家庄汇融农村合作银行
A4: 序号 | B4: 仓库名称 | C4: 物料组 | D4: 物料编号 | E4: 物料名称 | F4: 物料品牌 | G4: 物料单价 | H4: 库存数量 | I4: 货值
A5: 1 | B5: 江西余干库 | C5: 组件 | D5: 1004000067 | E5: 东方日升660双玻 | F5: 山海新能-东方日升 | G5: 1082.4 | H5: 1408 | I5: =G5*H5 -> 1524019.2
A6: 2 | B6: 江西余干库 | C6: 逆变器 | D6: 2001000015 | E6: 逆变器-15 | F6: 山海新能-锦浪 | G6: 3905 | H6: 9 | I6: 35145
A7: 3 | B7: 江西余干库 | C7: 逆变器 | D7: 2001000020 | E7: 逆变器-20 | F7: 山海新能-锦浪 | G7: 4510 | H7: 64 | I7: 288640
A8: 4 | B8: 江西余干库 | C8: 逆变器 | D8: 2001000025 | E8: 逆变器-25 | F8: 山海新能-锦浪 | G8: 5170 | H8: 107 | I8: 553190
A9: 5 | B9: 江西余干库 | C9: 逆变器 | D9: 2001000030 | E9: 逆变器-30 | F9: 山海新能-锦浪 | G9: 7700 | H9: 63 | I9: 485100
A10: 6 | B10: 江西余干库 | C10: 逆变器 | D10: 2001000036 | E10: 逆变器-36 | F10: 山海新能-锦浪 | G10: 8525 | H10: 8 | I10: 68200
A11: 7 | B11: 江西余干库 | C11: 逆变器 | D11: 2001000040 | E11: 逆变器-40 | F11: 山海新能-锦浪 | G11: 8690 | H11: 9 | I11: 78210
A12: 8 | B12: 江西余干库 | C12: 逆变器 | D12: 2001000050 | E12: 逆变器-50 | F12: 山海新能-锦浪 | G12: 11990 | H12: 0 | I12: 0
A13: 9 | B13: 庄河荣名库 | C13: 组件 | D13: 1004000060 | E13: 东方日升600 | F13: 山海新能-东方日升 | G13: 1108.8 | H13: 0 | I13: 0
A14: 10 | B14: 庄河荣名库 | C14: 组件 | D14: 1001000054 | E14: 天合600 | F14: 山海智慧-天合 | G14: 1267 | H14: 0 | I14: 0
A15: 11 | B15: 庄河荣名库 | C15: 组件 | D15: 1004000047 | E15: 晶科475 | F15: 山海智慧-天合 | G15: 904 | H15: 403 | I15: 364312
A16: 12 | B16: 庄河荣名库 | C16: 逆变器 | D16: 2001000010 | E16: 逆变器-10 | F16: 山海新能-锦浪 | G16: 2560 | H16: 0 | I16: 0
A17: 13 | B17: 庄河荣名库 | C17: 逆变器 | D17: 2003000060 | E17: 逆变器-60 | F17: 山海新能-锦浪 | G17: 11300 | H17: 7 | I17: 79100
A18: 14 | B18: 庄河荣名库 | C18: 逆变器 | D18: 2003000040 | E18: 逆变器-40 | F18: 山海新能-固德威 | G18: 8171 | H18: 31 | I18: 253301
A19: 15 | B19: 庄河荣名库 | C19: 逆变器 | D19: 2003000036 | E19: 逆变器-36 | F19: 山海新能-固德威 | G19: 7660 | H19: 5 | I19: 38300
A20: 16 | B20: 庄河荣名库 | C20: 逆变器 | D20: 2003000030 | E20: 逆变器-30 | F20: 山海新能-固德威 | G20: 7100 | H20: 18 | I20: 127800
A21: 17 | B21: 庄河荣名库 | C21: 逆变器 | D21: 20010000110 | E21: 逆变器-110 | F21: 山海新能-锦浪 | G21: 19800 | H21: 6 | I21: 118800
A22: 18 | B22: 庄河荣名库 | C22: 逆变器 | D22: 2001000080 | E22: 逆变器-80 | F22: 山海新能-锦浪 | G22: 17300 | H22: 19 | I22: 328700
A23: 19 | B23: 庄河荣名库 | C23: 逆变器 | D23: 2001000008 | E23: 逆变器-8 | F23: 山海新能-锦浪 | G23: 2830 | H23: 50 | I23: 141500
A24: 20 | B24: 庄河荣名库 | C24: 逆变器 | D24: 2001000050 | E24: 逆变器-50 | F24: 山海新能-锦浪 | G24: 11990 | H24: 16 | I24: 191840
A25: 21 | B25: 庄河荣名库 | C25: 逆变器 | D25: 2001000013 | E25: 逆变器-13 | F25: 山海新能-锦浪 | G25: 3520 | H25: 20 | I25: 70400
A26: 22 | B26: 庄河荣名库 | C26: 逆变器 | D26: 2001000015 | E26: 逆变器-15 | F26: 山海新能-锦浪 | G26: 3905 | H26: 43 | I26: 167915
A27: 23 | B27: 庄河荣名库 | C27: 逆变器 | D27: 2001000036 | E27: 逆变器-36 | F27: 山海新能-锦浪 | G27: 8525 | H27: 21 | I27: 179025
A28: 24 | B28: 庄河荣名库 | C28: 逆变器 | D28: 2001000030 | E28: 逆变器-30 | F28: 山海新能-锦浪 | G28: 7700 | H28: 45 | I28: 346500
A29: 25 | B29: 庄河荣名库 | C29: 逆变器 | D29: 2001000040 | E29: 逆变器-40 | F29: 山海新能-锦浪 | G29: 8690 | H29: 0 | I29: 0
A30: 26 | B30: 庄河荣名库 | C30: 逆变器 | D30: 2001000033 | E30: 逆变器-33 | F30: 山海新能-锦浪 | G30: 8195 | H30: 34 | I30: 278630
A31: 27 | B31: 庄河荣名库 | C31: 逆变器 | D31: 2001000025 | E31: 逆变器-25 | F31: 山海新能-锦浪 | G31: 5170 | H31: 40 | I31: 206800
A32: 28 | B32: 庄河荣名库 | C32: 逆变器 | D32: 2001000020 | E32: 逆变器-20 | F32: 山海新能-锦浪 | G32: 4510 | H32: 66 | I32: 297660
A33: 29 | B33: 安阳荣名库 | C33: 组件 | D33: 1004000048 | E33: 晶科470 | F33: 山海新能 | G33: 904 | H33: 11036 | I33: 9976544
A34: 30 | B34: 安阳荣名库 | C34: 组件 | D34: 1004000067 | E34: 东方日升660双玻 | F34: 山海新能-东方日升 | G34: 1082.4 | H34: 13 | I34: 14071.2
A35: 31 | B35: 安阳荣名库 | C35: 组件 | D35: 1004000066 | E35: 东方日升660 | F35: 山海新能-东方日升 | G35: 1014 | H35: 834 | I35: 845676
A36: 32 | B36: 安阳荣名库 | C36: 组件 | D36: 1004000047 | E36: 晶科475 | F36: 山海智慧-天合 | G36: 904 | H36: 18580 | I36: 16796320
A37: 33 | B37: 安阳荣名库 | C37: 逆变器 | D37: 2006000025 | E37: 逆变器-25 | F37: 山海新能-易嘉 | G37: 3170 | H37: 6 | I37: 19020
A38: 34 | B38: 安阳荣名库 | C38: 逆变器 | D38: 2002000040 | E38: 逆变器-40 | F38: 山海新能-古瑞瓦特 | G38: 7600 | H38: 12 | I38: 91200
A39: 35 | B39: 安阳荣名库 | C39: 逆变器 | D39: 2002000050 | E39: 逆变器-50 | F39: 山海新能-古瑞瓦特 | G39: 9000 | H39: 36 | I39: 324000
A40: 36 | B40: 安阳荣名库 | C40: 逆变器 | D40: 20010000110 | E40: 逆变器-110 | F40: 山海新能-锦浪 | G40: 19800 | H40: 1 | I40: 19800
A41: 37 | B41: 安阳荣名库 | C41: 逆变器 | D41: 2001000030 | E41: 逆变器-30 | F41: 山海新能-锦浪 | G41: 7700 | H41: 42 | I41: 323400
A42: 38 | B42: 安阳荣名库 | C42: 逆变器 | D42: 2001000060 | E42: 逆变器-60 | F42: 山海新能-锦浪 | G42: 11300 | H42: 32 | I42: 361600
A43: 39 | B43: 安阳荣名库 | C43: 逆变器 | D43: 2001000080 | E43: 逆变器-80 | F43: 山海新能-锦浪 | G43: 17300 | H43: 32 | I43: 553600
A44: 40 | B44: 安阳荣名库 | C44: 逆变器 | D44: 2001000036 | E44: 逆变器-36 | F44: 山海新能-锦浪 | G44: 8525 | H44: 58 | I44: 494450
A45: 41 | B45: 安阳荣名库 | C45: 逆变器 | D45: 2001000050 | E45: 逆变器-50 | F45: 山海新能-锦浪 | G45: 11990 | H45: 32 | I45: 383680
A46: 42 | B46: 安阳荣名库 | C46: 逆变器 | D46: 2001000040 | E46: 逆变器-40 | F46: 山海新能-锦浪 | G46: 8690 | H46: 38 | I46: 330220
A47: 43 | B47: 安阳荣名库 | C47: 逆变器 | D47: 2001000013 | E47: 逆变器-13 | F47: 山海新能-锦浪 | G47: 3520 | H47: 2 | I47: 7040
A48: 44 | B48: 安阳荣名库 | C48: 逆变器 | D48: 2001000015 | E48: 逆变器-15 | F48: 山海新能-锦浪 | G48: 3905 | H48: 12 | I48: 46860
A49: 45 | B49: 安阳荣名库 | C49: 逆变器 | D49: 2004000133 | E49: 逆变器-33 | F49: 禾望 | G49: 7260 | H49: 34 | I49: 246840
A50: 46 | B50: 安阳荣名库 | C50: 逆变器 | D50: 2001000020 | E50: 逆变器-20 | F50: 山海新能-锦浪 | G50: 4510 | H50: 37 | I50: 166870
A51: 47 | B51: 安阳荣名库 | C51: 逆变器 | D51: 2001000025 | E51: 逆变器-25 | F51: 山海新能-锦浪 | G51: 5170 | H51: 25 | I51: 129250
A52: 48 | B52: 安阳荣名库 | C52: 逆变器 | D52: 2004000130 | E52: 逆变器-30 | F52: 禾望 | G52: 7040 | H52: 33 | I52: 232320
A53: 49 | B53: 安阳荣名库 | C53: 逆变器 | D53: 2004000136 | E53: 逆变器-36 | F53: 禾望 | G53: 7920 | H53: 17 | I53: 134640
A54: 50 | B54: 曲阜荣名库 | C54: 组件 | D54: 1004000060 | E54: 东方日升600 | F54: 山海新能-东方日升 | G54: 1108.8 | H54: 8216 | I54: 9109900.8
A55: 51 | B55: 曲阜荣名库 | C55: 组件 | D55: 1004000047 | E55: 晶科475 | F55: 山海智慧-天合 | G55: 904 | H55: 6448 | I55: 5828992
A56: 52 | B56: 曲阜荣名库 | C56: 组件 | D56: 1001000054 | E56: 天合600 | F56: 山海智慧-天合 | G56: 1267 | H56: 785 | I56: 994595
A57: 53 | B57: 曲阜荣名库 | C57: 组件 | D57: 1004000048 | E57: 晶科470 | F57: 山海新能 | G57: 904 | H57: 0 | I57: 0
A58: 54 | B58: 曲阜荣名库 | C58: 逆变器 | D58: 2001000013 | E58: 逆变器-13 | F58: 山海新能-锦浪 | G58: 3520 | H58: 7 | I58: 24640
A59: 55 | B59: 曲阜荣名库 | C59: 逆变器 | D59: 2001000050 | E59: 逆变器-50 | F59: 山海新能-锦浪 | G59: 11990 | H59: 19 | I59: 227810
A60: 56 | B60: 曲阜荣名库 | C60: 逆变器 | D60: 2001000080 | E60: 逆变器-80 | F60: 山海新能-锦浪 | G60: 17300 | H60: 4 | I60: 69200
A61: 57 | B61: 曲阜荣名库 | C61: 逆变器 | D61: 20010000110 | E61: 逆变器-110 | F61: 山海新能-锦浪 | G61: 19800 | H61: 5 | I61: 99000
A62: 58 | B62: 曲阜荣名库 | C62: 逆变器 | D62: 2001000060 | E62: 逆变器-60 | F62: 山海新能-锦浪 | G62: 11300 | H62: 6 | I62: 67800
A63: 59 | B63: 曲阜荣名库 | C63: 逆变器 | D63: 2002000050 | E63: 逆变器-50 | F63: 山海新能-古瑞瓦特 | G63: 9000 | H63: 10 | I63: 90000
A64: 60 | B64: 曲阜荣名库 | C64: 逆变器 | D64: 2002000040 | E64: 逆变器-40 | F64: 山海新能-古瑞瓦特 | G64: 7600 | H64: 14 | I64: 106400
A65: 61 | B65: 曲阜荣名库 | C65: 逆变器 | D65: 2003000050 | E65: 逆变器-50 | F65: 山海新能-固德威 | G65: 9900 | H65: 2 | I65: 19800
A66: 62 | B66: 曲阜荣名库 | C66: 逆变器 | D66: 2001000040 | E66: 逆变器-40 | F66: 山海新能-锦浪 | G66: 8690 | H66: 11 | I66: 95590
A67: 63 | B67: 曲阜荣名库 | C67: 逆变器 | D67: 2001000033 | E67: 逆变器-33 | F67: 山海新能-锦浪 | G67: 8195 | H67: 44 | I67: 360580
A68: 64 | B68: 曲阜荣名库 | C68: 逆变器 | D68: 2001000036 | E68: 逆变器-36 | F68: 山海新能-锦浪 | G68: 8525 | H68: 15 | I68: 127875
A69: 65 | B69: 曲阜荣名库 | C69: 逆变器 | D69: 2001000030 | E69: 逆变器-30 | F69: 山海新能-锦浪 | G69: 7700 | H69: 28 | I69: =G69*H69 -> 215600
A70: 66 | B70: 曲阜荣名库 | C70: 逆变器 | D70: 2001000015 | E70: 逆变器-15 | F70: 山海新能-锦浪 | G70: 3905 | H70: 11 | I70: 42955
A71: 67 | B71: 曲阜荣名库 | C71: 逆变器 | D71: 2001000025 | E71: 逆变器-25 | F71: 山海新能-锦浪 | G71: 5170 | H71: 12 | I71: 62040
A72: 68 | B72: 曲阜荣名库 | C72: 逆变器 | D72: 2001000020 | E72: 逆变器-20 | F72: 山海新能-锦浪 | G72: 4510 | H72: 27 | I72: 121770
A73: 69 | B73: 合计： | H73: =SUM(H5:H72) -> 49068 | I73: =SUM(I5:I72) -> 55385036.2
A75: 以上内容截止到2024年2月29日
A77: 出质人： | C77: 山海新能（北京）能源科技有限公司河北分公司
A81: 监管人： | C81: 宇信通创新技术（河北）有限公司
A84: 备注：1、以最近日期的库存表为准，自动覆盖前期库存表。
A85: 2、上表中“数量”、“重量”指标的计量单位按照实际质物品种填写。
A86: 3、表中格式可根据具体品种进行相应调整。

Sheet 202402入库表
A1: 货物入库质押申请/批准单
A2: 制单日期：2024年2月29日
A3: 序号 | B3: 产品名称 | C3: 数量 | D3: 单价/元 | E3: 金额/元 | F3: 产品厂家 | G3: 仓库地点 | H3: 入库车牌号 | I3: 时间
A4: 1 | B4: 东方日升600 | C4: 5 | D4: 1108.8 | E4: =D4*C4 -> 5544 | F4: 山海新能-东方日升 | G4: 庄河荣名库 | I4: 2024-02-05
A5: 2 | B5: 合计 | C5: =SUM(C4:C4) -> 5 | E5: =SUM(E4:E4) -> 5544
A10: 出质人： | C10: 山海新能（北京）能源科技有限公司河北分公司
A15: 监管人： | C15: 宇信通创新技术（河北）有限公司

Sheet 202402出库表
A1: 质物解除质押出库申请/批准单
A2: 制单日期：2024年2月29日
A3: 序号 | B3: 产品名称 | C3: 数量 | D3: 单价/元 | E3: 金额/元 | F3: 产品厂家 | G3: 仓库地点 | H3: 到达地点 | I3: 时间
A4: 1 | B4: 东方日升600 | C4: 5 | D4: 1108.8 | E4: =D4*C4 -> 5544 | F4: 东方日升 | G4: 庄河荣名库 | H4: 报废库 | I4: 2024-02-05
A5: 2 | B5: 逆变器-40 | C5: 1 | D5: 8690 | E5: 8690 | F5: 山海新能-锦浪 | G5: 庄河荣名库 | H5: 大连竣泰通信工程有限公司 | I5: 2024-02-27
A6: 3 | B6: 晶科475 | C6: 217 | D6: 904 | E6: 196168 | F6: 山海智慧-天合 | G6: 庄河荣名库 | H6: 大连市甘井子区惠联冷冻加工厂 | I6: 2024-02-27
A7: 4 | B7: 逆变器-50 | C7: 1 | D7: 11990 | E7: 11990 | F7: 锦浪 | G7: 庄河荣名库 | H7: 大连市甘井子区惠联冷冻加工厂 | I7: 2024-02-27
A8: 5 | B8: 逆变器-33 | C8: 1 | D8: 8195 | E8: 8195 | F8: 锦浪 | G8: 庄河荣名库 | H8: 大连市甘井子区惠联冷冻加工厂 | I8: 2024-02-27
A9: 6 | B9: 合计 | C9: =SUM(C4:C8) -> 225 | E9: =SUM(E4:E8) -> 230587
A12: 出质人： | C12: 山海新能（北京）能源科技有限公司河北分公司
A17: 监管人： | C17: 宇信通创新技术（河北）有限公司

Sheet 20240131库存表
A1: 质物库存表
A2: 出质人： | C2: 山海新能（北京）能源科技有限公司河北分公司
A3: 质权人： | C3: 石家庄汇融农村合作银行
A4: 序号 | B4: 仓库名称 | C4: 物料组 | D4: 物料编号 | E4: 物料名称 | F4: 物料品牌 | G4: 物料单价 | H4: 库存数量 | I4: 货值
A5: 1 | B5: 江西余干库 | C5: 组件 | D5: 1004000067 | E5: 东方日升660双玻 | F5: 山海新能-东方日升 | G5: 1082.4 | H5: 1408 | I5: =G5*H5 -> 1524019.2
A6: 2 | B6: 江西余干库 | C6: 逆变器 | D6: 2001000015 | E6: 逆变器-15 | F6: 山海新能-锦浪 | G6: 3905 | H6: 9 | I6: 35145
A7: 3 | B7: 江西余干库 | C7: 逆变器 | D7: 2001000020 | E7: 逆变器-20 | F7: 山海新能-锦浪 | G7: 4510 | H7: 64 | I7: 288640
A8: 4 | B8: 江西余干库 | C8: 逆变器 | D8: 2001000025 | E8: 逆变器-25 | F8: 山海新能-锦浪 | G8: 5170 | H8: 107 | I8: 553190
A9: 5 | B9: 江西余干库 | C9: 逆变器 | D9: 2001000030 | E9: 逆变器-30 | F9: 山海新能-锦浪 | G9: 7700 | H9: 63 | I9: 485100
A10: 6 | B10: 江西余干库 | C10: 逆变器 | D10: 2001000036 | E10: 逆变器-36 | F10: 山海新能-锦浪 | G10: 8525 | H10: 8 | I10: 68200
A11: 7 | B11: 江西余干库 | C11: 逆变器 | D11: 2001000040 | E11: 逆变器-40 | F11: 山海新能-锦浪 | G11: 8690 | H11: 9 | I11: 78210
A12: 8 | B12: 江西余干库 | C12: 逆变器 | D12: 2001000050 | E12: 逆变器-50 | F12: 山海新能-锦浪 | G12: 11990 | H12: 0 | I12: 0
A13: 9 | B13: 庄河荣名库 | C13: 组件 | D13: 1004000060 | E13: 东方日升600 | F13: 山海新能-东方日升 | G13: 1108.8 | H13: 0 | I13: 0
A14: 10 | B14: 庄河荣名库 | C14: 组件 | D14: 1001000054 | E14: 天合600 | F14: 山海智慧-天合 | G14: 1267 | H14: 0 | I14: 0
A15: 11 | B15: 庄河荣名库 | C15: 组件 | D15: 1004000047 | E15: 晶科475 | F15: 山海智慧-天合 | G15: 904 | H15: 620 | I15: 560480
A16: 12 | B16: 庄河荣名库 | C16: 逆变器 | D16: 2001000010 | E16: 逆变器-10 | F16: 山海新能-锦浪 | G16: 2560 | H16: 0 | I16: 0
A17: 13 | B17: 庄河荣名库 | C17: 逆变器 | D17: 2003000060 | E17: 逆变器-60 | F17: 山海新能-锦浪 | G17: 11300 | H17: 7 | I17: 79100
A18: 14 | B18: 庄河荣名库 | C18: 逆变器 | D18: 2003000040 | E18: 逆变器-40 | F18: 山海新能-固德威 | G18: 8171 | H18: 31 | I18: 253301
A19: 15 | B19: 庄河荣名库 | C19: 逆变器 | D19: 2003000036 | E19: 逆变器-36 | F19: 山海新能-固德威 | G19: 7660 | H19: 5 | I19: 38300
A20: 16 | B20: 庄河荣名库 | C20: 逆变器 | D20: 2003000030 | E20: 逆变器-30 | F20: 山海新能-固德威 | G20: 7100 | H20: 18 | I20: 127800
A21: 17 | B21: 庄河荣名库 | C21: 逆变器 | D21: 20010000110 | E21: 逆变器-110 | F21: 山海新能-锦浪 | G21: 19800 | H21: 6 | I21: 118800
A22: 18 | B22: 庄河荣名库 | C22: 逆变器 | D22: 2001000080 | E22: 逆变器-80 | F22: 山海新能-锦浪 | G22: 17300 | H22: 19 | I22: 328700
A23: 19 | B23: 庄河荣名库 | C23: 逆变器 | D23: 2001000008 | E23: 逆变器-8 | F23: 山海新能-锦浪 | G23: 2830 | H23: 50 | I23: 141500
A24: 20 | B24: 庄河荣名库 | C24: 逆变器 | D24: 2001000050 | E24: 逆变器-50 | F24: 山海新能-锦浪 | G24: 11990 | H24: 17 | I24: 203830
A25: 21 | B25: 庄河荣名库 | C25: 逆变器 | D25: 2001000013 | E25: 逆变器-13 | F25: 山海新能-锦浪 | G25: 3520 | H25: 20 | I25: 70400
A26: 22 | B26: 庄河荣名库 | C26: 逆变器 | D26: 2001000015 | E26: 逆变器-15 | F26: 山海新能-锦浪 | G26: 3905 | H26: 43 | I26: 167915
A27: 23 | B27: 庄河荣名库 | C27: 逆变器 | D27: 2001000036 | E27: 逆变器-36 | F27: 山海新能-锦浪 | G27: 8525 | H27: 21 | I27: 179025
A28: 24 | B28: 庄河荣名库 | C28: 逆变器 | D28: 2001000030 | E28: 逆变器-30 | F28: 山海新能-锦浪 | G28: 7700 | H28: 45 | I28: 346500
A29: 25 | B29: 庄河荣名库 | C29: 逆变器 | D29: 2001000040 | E29: 逆变器-40 | F29: 山海新能-锦浪 | G29: 8690 | H29: 1 | I29: 8690
A30: 26 | B30: 庄河荣名库 | C30: 逆变器 | D30: 2001000033 | E30: 逆变器-33 | F30: 山海新能-锦浪 | G30: 8195 | H30: 35 | I30: 286825
A31: 27 | B31: 庄河荣名库 | C31: 逆变器 | D31: 2001000025 | E31: 逆变器-25 | F31: 山海新能-锦浪 | G31: 5170 | H31: 40 | I31: 206800
A32: 28 | B32: 庄河荣名库 | C32: 逆变器 | D32: 2001000020 | E32: 逆变器-20 | F32: 山海新能-锦浪 | G32: 4510 | H32: 66 | I32: 297660
A33: 29 | B33: 安阳荣名库 | C33: 组件 | D33: 1004000048 | E33: 晶科470 | F33: 山海新能 | G33: 904 | H33: 11036 | I33: 9976544
A34: 30 | B34: 安阳荣名库 | C34: 组件 | D34: 1004000067 | E34: 东方日升660双玻 | F34: 山海新能-东方日升 | G34: 1082.4 | H34: 13 | I34: 14071.2
A35: 31 | B35: 安阳荣名库 | C35: 组件 | D35: 1004000066 | E35: 东方日升660 | F35: 山海新能-东方日升 | G35: 1014 | H35: 834 | I35: 845676
A36: 32 | B36: 安阳荣名库 | C36: 组件 | D36: 1004000047 | E36: 晶科475 | F36: 山海智慧-天合 | G36: 904 | H36: 18580 | I36: 16796320
A37: 33 | B37: 安阳荣名库 | C37: 逆变器 | D37: 2006000025 | E37: 逆变器-25 | F37: 山海新能-易嘉 | G37: 3170 | H37: 6 | I37: 19020
A38: 34 | B38: 安阳荣名库 | C38: 逆变器 | D38: 2002000040 | E38: 逆变器-40 | F38: 山海新能-古瑞瓦特 | G38: 7600 | H38: 12 | I38: 91200
A39: 35 | B39: 安阳荣名库 | C39: 逆变器 | D39: 2002000050 | E39: 逆变器-50 | F39: 山海新能-古瑞瓦特 | G39: 9000 | H39: 36 | I39: 324000
A40: 36 | B40: 安阳荣名库 | C40: 逆变器 | D40: 20010000110 | E40: 逆变器-110 | F40: 山海新能-锦浪 | G40: 19800 | H40: 1 | I40: 19800
A41: 37 | B41: 安阳荣名库 | C41: 逆变器 | D41: 2001000030 | E41: 逆变器-30 | F41: 山海新能-锦浪 | G41: 7700 | H41: 42 | I41: 323400
A42: 38 | B42: 安阳荣名库 | C42: 逆变器 | D42: 2001000060 | E42: 逆变器-60 | F42: 山海新能-锦浪 | G42: 11300 | H42: 32 | I42: 361600
A43: 39 | B43: 安阳荣名库 | C43: 逆变器 | D43: 2001000080 | E43: 逆变器-80 | F43: 山海新能-锦浪 | G43: 17300 | H43: 32 | I43: 553600
A44: 40 | B44: 安阳荣名库 | C44: 逆变器 | D44: 2001000036 | E44: 逆变器-36 | F44: 山海新能-锦浪 | G44: 8525 | H44: 58 | I44: 494450
A45: 41 | B45: 安阳荣名库 | C45: 逆变器 | D45: 2001000050 | E45: 逆变器-50 | F45: 山海新能-锦浪 | G45: 11990 | H45: 32 | I45: 383680
A46: 42 | B46: 安阳荣名库 | C46: 逆变器 | D46: 2001000040 | E46: 逆变器-40 | F46: 山海新能-锦浪 | G46: 8690 | H46: 38 | I46: 330220
A47: 43 | B47: 安阳荣名库 | C47: 逆变器 | D47: 2001000013 | E47: 逆变器-13 | F47: 山海新能-锦浪 | G47: 3520 | H47: 2 | I47: 7040
A48: 44 | B48: 安阳荣名库 | C48: 逆变器 | D48: 2001000015 | E48: 逆变器-15 | F48: 山海新能-锦浪 | G48: 3905 | H48: 12 | I48: 46860
A49: 45 | B49: 安阳荣名库 | C49: 逆变器 | D49: 2004000133 | E49: 逆变器-33 | F49: 禾望 | G49: 7260 | H49: 34 | I49: 246840
A50: 46 | B50: 安阳荣名库 | C50: 逆变器 | D50: 2001000020 | E50: 逆变器-20 | F50: 山海新能-锦浪 | G50: 4510 | H50: 37 | I50: 166870
A51: 47 | B51: 安阳荣名库 | C51: 逆变器 | D51: 2001000025 | E51: 逆变器-25 | F51: 山海新能-锦浪 | G51: 5170 | H51: 25 | I51: 129250
A52: 48 | B52: 安阳荣名库 | C52: 逆变器 | D52: 2004000130 | E52: 逆变器-30 | F52: 禾望 | G52: 7040 | H52: 33 | I52: 232320
A53: 49 | B53: 安阳荣名库 | C53: 逆变器 | D53: 2004000136 | E53: 逆变器-36 | F53: 禾望 | G53: 7920 | H53: 17 | I53: 134640
A54: 50 | B54: 曲阜荣名库 | C54: 组件 | D54: 1004000060 | E54: 东方日升600 | F54: 山海新能-东方日升 | G54: 1108.8 | H54: 8216 | I54: 9109900.8
A55: 51 | B55: 曲阜荣名库 | C55: 组件 | D55: 1004000047 | E55: 晶科475 | F55: 山海智慧-天合 | G55: 904 | H55: 6448 | I55: 5828992
A56: 52 | B56: 曲阜荣名库 | C56: 组件 | D56: 1001000054 | E56: 天合600 | F56: 山海智慧-天合 | G56: 1267 | H56: 785 | I56: 994595
A57: 53 | B57: 曲阜荣名库 | C57: 组件 | D57: 1004000048 | E57: 晶科470 | F57: 山海新能 | G57: 904 | H57: 0 | I57: 0
A58: 54 | B58: 曲阜荣名库 | C58: 逆变器 | D58: 2001000013 | E58: 逆变器-13 | F58: 山海新能-锦浪 | G58: 3520 | H58: 7 | I58: 24640
A59: 55 | B59: 曲阜荣名库 | C59: 逆变器 | D59: 2001000050 | E59: 逆变器-50 | F59: 山海新能-锦浪 | G59: 11990 | H59: 19 | I59: 227810
A60: 56 | B60: 曲阜荣名库 | C60: 逆变器 | D60: 2001000080 | E60: 逆变器-80 | F60: 山海新能-锦浪 | G60: 17300 | H60: 4 | I60: 69200
A61: 57 | B61: 曲阜荣名库 | C61: 逆变器 | D61: 20010000110 | E61: 逆变器-110 | F61: 山海新能-锦浪 | G61: 19800 | H61: 5 | I61: 99000
A62: 58 | B62: 曲阜荣名库 | C62: 逆变器 | D62: 2001000060 | E62: 逆变器-60 | F62: 山海新能-锦浪 | G62: 11300 | H62: 6 | I62: 67800
A63: 59 | B63: 曲阜荣名库 | C63: 逆变器 | D63: 2002000050 | E63: 逆变器-50 | F63: 山海新能-古瑞瓦特 | G63: 9000 | H63: 10 | I63: 90000
A64: 60 | B64: 曲阜荣名库 | C64: 逆变器 | D64: 2002000040 | E64: 逆变器-40 | F64: 山海新能-古瑞瓦特 | G64: 7600 | H64: 14 | I64: 106400
A65: 61 | B65: 曲阜荣名库 | C65: 逆变器 | D65: 2003000050 | E65: 逆变器-50 | F65: 山海新能-固德威 | G65: 9900 | H65: 2 | I65: 19800
A66: 62 | B66: 曲阜荣名库 | C66: 逆变器 | D66: 2001000040 | E66: 逆变器-40 | F66: 山海新能-锦浪 | G66: 8690 | H66: 11 | I66: 95590
A67: 63 | B67: 曲阜荣名库 | C67: 逆变器 | D67: 2001000033 | E67: 逆变器-33 | F67: 山海新能-锦浪 | G67: 8195 | H67: 44 | I67: 360580
A68: 64 | B68: 曲阜荣名库 | C68: 逆变器 | D68: 2001000036 | E68: 逆变器-36 | F68: 山海新能-锦浪 | G68: 8525 | H68: 15 | I68: 127875
A69: 65 | B69: 曲阜荣名库 | C69: 逆变器 | D69: 2001000030 | E69: 逆变器-30 | F69: 山海新能-锦浪 | G69: 7700 | H69: 28 | I69: =G69*H69 -> 215600
A70: 66 | B70: 曲阜荣名库 | C70: 逆变器 | D70: 2001000015 | E70: 逆变器-15 | F70: 山海新能-锦浪 | G70: 3905 | H70: 11 | I70: 42955
A71: 67 | B71: 曲阜荣名库 | C71: 逆变器 | D71: 2001000025 | E71: 逆变器-25 | F71: 山海新能-锦浪 | G71: 5170 | H71: 12 | I71: 62040
A72: 68 | B72: 曲阜荣名库 | C72: 逆变器 | D72: 2001000020 | E72: 逆变器-20 | F72: 山海新能-锦浪 | G72: 4510 | H72: 27 | I72: 121770
A73: 69 | B73: 合计： | H73: =SUM(H5:H72) -> 49288 | I73: =SUM(I5:I72) -> 55610079.2
A75: 以上内容截止到2024年1月31日
A77: 出质人： | C77: 山海新能（北京）能源科技有限公司河北分公司
A81: 监管人： | C81: 宇信通创新技术（河北）有限公司
A84: 备注：1、以最近日期的库存表为准，自动覆盖前期库存表。
A85: 2、上表中“数量”、“重量”指标的计量单位按照实际质物品种填写。
A86: 3、表中格式可根据具体品种进行相应调整。

Sheet 202401入库表
A1: 货物入库质押申请/批准单
A2: 制单日期：2024年1月31日
A3: 序号 | B3: 产品名称 | C3: 数量 | D3: 单价/元 | E3: 金额/元 | F3: 产品厂家 | G3: 仓库地点 | H3: 入库车牌号 | I3: 时间
A4: 1 | B4: 逆变器-20 | C4: 1 | D4: 4510 | E4: =D4*C4 -> 4510 | F4: 锦浪 | G4: 曲阜荣名库 | I4: 2024-01-18
A5: 2 | B5: 逆变器-36 | C5: 5 | D5: 8525 | E5: =D5*C5 -> 42625 | F5: 锦浪 | G5: 曲阜荣名库 | I5: 2024-01-18
A6: 3 | B6: 逆变器-40 | C6: 1 | D6: 8690 | E6: =D6*C6 -> 8690 | F6: 山海新能-锦浪 | G6: 曲阜荣名库 | I6: 2024-01-18
A7: 4 | B7: 逆变器-50 | C7: 2 | D7: 11990 | E7: =C7*D7 -> 23980 | F7: 山海新能-锦浪 | G7: 江西余干库 | I7: 2024-01-23
A8: 5 | B8: 逆变器-20 | C8: 1 | D8: 4510 | E8: =D8*C8 -> 4510 | F8: 锦浪 | G8: 曲阜荣名库 | I8: 2024-01-25
A9: 6 | B9: 合计 | C9: =SUM(C4:C8) -> 10 | E9: =SUM(E4:E8) -> 84315
A14: 出质人： | C14: 山海新能（北京）能源科技有限公司河北分公司
A19: 监管人： | C19: 宇信通创新技术（河北）有限公司

Sheet 202401出库表
A1: 质物解除质押出库申请/批准单
A2: 制单日期：2024年1月31日
A3: 序号 | B3: 产品名称 | C3: 数量 | D3: 单价/元 | E3: 金额/元 | F3: 产品厂家 | G3: 仓库地点 | H3: 到达地点 | I3: 时间
A4: 1 | B4: 逆变器-25 | C4: 2 | D4: 5170 | E4: =C4*D4 -> 10340 | F4: 锦浪 | G4: 江西余干库 | H4: 江西大海光伏工程有限公司 | I4: 2024-01-05
A5: 2 | B5: 逆变器-30 | C5: 2 | D5: 7700 | E5: 15400 | F5: 锦浪 | G5: 江西余干库 | H5: 江西大海光伏工程有限公司 | I5: 2024-01-05
A6: 3 | B6: 逆变器-36 | C6: 4 | D6: 8525 | E6: 34100 | F6: 锦浪 | G6: 江西余干库 | H6: 江西大海光伏工程有限公司 | I6: 2024-01-05
A7: 4 | B7: 东方日升660双玻 | C7: 352 | D7: 1082.4 | E7: 381004.8 | F7: 锦浪 | G7: 江西余干库 | H7: 江西大海光伏工程有限公司 | I7: 2024-01-05
A8: 5 | B8: 逆变器-50 | C8: 1 | D8: 11990 | E8: =D8*C8 -> 11990 | F8: 锦浪 | G8: 庄河荣名库 | H8: 大连竣泰通信工程有限公司 | I8: 2024-01-05
A9: 6 | B9: 东方日升660 | C9: 96 | D9: 1014 | E9: 97344 | F9: 东方日升 | G9: 安阳荣名库 | H9: 唐县冉灏新能源开发有限责任公司 | I9: 2024-01-08
A10: 7 | B10: 逆变器-50 | C10: 2 | D10: 11990 | E10: 23980 | F10: 山海新能-锦浪 | G10: 安阳荣名库 | H10: 唐县冉灏新能源开发有限责任公司 | I10: 2024-01-08
A11: 8 | B11: 东方日升660双玻 | C11: 288 | D11: 1082.4 | E11: =C11*D11 -> 311731.2 | F11: 锦浪 | G11: 江西余干库 | H11: 江西大海光伏工程有限公司 | I11: 2024-01-11
A12: 9 | B12: 逆变器-25 | C12: 2 | D12: 5170 | E12: 10340 | F12: 锦浪 | G12: 江西余干库 | H12: 江西大海光伏工程有限公司 | I12: 2024-01-11
A13: 10 | B13: 逆变器-30 | C13: 2 | D13: 7700 | E13: 15400 | F13: 锦浪 | G13: 江西余干库 | H13: 江西大海光伏工程有限公司 | I13: 2024-01-11
A14: 11 | B14: 逆变器-36 | C14: 2 | D14: 8525 | E14: 17050 | F14: 锦浪 | G14: 江西余干库 | H14: 江西大海光伏工程有限公司 | I14: 2024-01-11
A15: 12 | B15: 逆变器-40 | C15: 1 | D15: 8690 | E15: =D15*C15 -> 8690 | F15: 山海新能-锦浪 | G15: 安阳荣名库 | H15: 启阳(安阳)新能源有限公司 | I15: 2024-01-12
A16: 13 | B16: 逆变器-36 | C16: 1 | D16: 8525 | E16: =D16*C16 -> 8525 | F16: 山海新能-锦浪 | G16: 安阳荣名库 | H16: 启阳(安阳)新能源有限公司 | I16: 2024-01-12
A17: 14 | B17: 东方日升660双玻 | C17: 384 | D17: 1082.4 | E17: =C17*D17 -> 415641.6 | F17: 锦浪 | G17: 江西余干库 | H17: 江西大海光伏工程有限公司 | I17: 2024-01-23
A18: 15 | B18: 逆变器-25 | C18: 2 | D18: 5170 | E18: 10340 | F18: 锦浪 | G18: 江西余干库 | H18: 江西大海光伏工程有限公司 | I18: 2024-01-23
A19: 16 | B19: 逆变器-30 | C19: 5 | D19: 7700 | E19: 38500 | F19: 锦浪 | G19: 江西余干库 | H19: 江西大海光伏工程有限公司 | I19: 2024-01-23
A20: 17 | B20: 逆变器-50 | C20: 3 | D20: 11990 | E20: 35970 | F20: 锦浪 | G20: 江西余干库 | H20: 江西大海光伏工程有限公司 | I20: 2024-01-23
A21: 18 | B21: 逆变器-50 | C21: 2 | D21: 11990 | E21: =D21*C21 -> 23980 | F21: 山海新能-锦浪 | G21: 安阳荣名库 | H21: 江西余干库 | I21: 2024-01-23
A22: 19 | B22: 逆变器-13 | C22: 1 | D22: 3520 | E22: 3520 | F22: 山海新能-锦浪 | G22: 曲阜荣名库 | H22: 曲阜项目直营 | I22: 2024-01-25
A23: 20 | B23: 逆变器-50 | C23: 2 | D23: 11990 | E23: 23980 | F23: 山海新能-锦浪 | G23: 安阳荣名库 | H23: 邯郸一铭新能源科技有限公司 | I23: 2024-01-29
A24: 21 | B24: 逆变器-60 | C24: 4 | D24: 11300 | E24: 45200 | F24: 山海新能-锦浪 | G24: 安阳荣名库 | H24: 邯郸一铭新能源科技有限公司 | I24: 2024-01-29
A25: 22 | B25: 东方日升660双玻 | C25: 32 | D25: 1082.4 | E25: =C25*D25 -> 34636.8 | F25: 锦浪 | G25: 江西余干库 | H25: 江西大海光伏工程有限公司 | I25: 2024-01-30
A26: 23 | B26: 合计 | C26: =SUM(C4:C25) -> 1190 | E26: =SUM(E4:E25) -> 1577663.4
A29: 出质人： | C29: 山海新能（北京）能源科技有限公司河北分公司
A34: 监管人： | C34: 宇信通创新技术（河北）有限公司

Sheet 20231231库存表
A1: 质物库存表
A2: 出质人： | C2: 山海新能（北京）能源科技有限公司河北分公司
A3: 质权人： | C3: 石家庄汇融农村合作银行
A4: 序号 | B4: 仓库名称 | C4: 物料组 | D4: 物料编号 | E4: 物料名称 | F4: 物料品牌 | G4: 物料单价 | H4: 库存数量 | I4: 货值
A5: 1 | B5: 江西余干库 | C5: 组件 | D5: 1004000067 | E5: 东方日升660双玻 | F5: 山海新能-东方日升 | G5: 1082.4 | H5: 2464 | I5: =H5*G5 -> 2667033.6
A6: 2 | B6: 江西余干库 | C6: 逆变器 | D6: 2001000015 | E6: 逆变器-15 | F6: 山海新能-锦浪 | G6: 3905 | H6: 9 | I6: =H6*G6 -> 35145
A7: 3 | B7: 江西余干库 | C7: 逆变器 | D7: 2001000020 | E7: 逆变器-20 | F7: 山海新能-锦浪 | G7: 4510 | H7: 64 | I7: 288640
A8: 4 | B8: 江西余干库 | C8: 逆变器 | D8: 2001000025 | E8: 逆变器-25 | F8: 山海新能-锦浪 | G8: 5170 | H8: 113 | I8: 584210
A9: 5 | B9: 江西余干库 | C9: 逆变器 | D9: 2001000030 | E9: 逆变器-30 | F9: 山海新能-锦浪 | G9: 7700 | H9: 72 | I9: 554400
A10: 6 | B10: 江西余干库 | C10: 逆变器 | D10: 2001000036 | E10: 逆变器-36 | F10: 山海新能-锦浪 | G10: 8525 | H10: 14 | I10: 119350
A11: 7 | B11: 江西余干库 | C11: 逆变器 | D11: 2001000040 | E11: 逆变器-40 | F11: 山海新能-锦浪 | G11: 8690 | H11: 9 | I11: 78210
A12: 8 | B12: 江西余干库 | C12: 逆变器 | D12: 2001000050 | E12: 逆变器-50 | F12: 山海新能-锦浪 | G12: 11990 | H12: 1 | I12: 11990
A13: 9 | B13: 庄河荣名库 | C13: 组件 | D13: 1004000060 | E13: 东方日升600 | F13: 山海新能-东方日升 | G13: 1108.8 | H13: 0 | I13: 0
A14: 10 | B14: 庄河荣名库 | C14: 组件 | D14: 1001000054 | E14: 天合600 | F14: 山海智慧-天合 | G14: 1267 | H14: 0 | I14: 0
A15: 11 | B15: 庄河荣名库 | C15: 组件 | D15: 1004000047 | E15: 晶科475 | F15: 山海智慧-天合 | G15: 904 | H15: 620 | I15: 560480
A16: 12 | B16: 庄河荣名库 | C16: 逆变器 | D16: 2003000060 | E16: 逆变器-60 | F16: 山海新能-锦浪 | G16: 11300 | H16: 7 | I16: 79100
A17: 13 | B17: 庄河荣名库 | C17: 逆变器 | D17: 2003000040 | E17: 逆变器-40 | F17: 山海新能-固德威 | G17: 8171 | H17: 31 | I17: 253301
A18: 14 | B18: 庄河荣名库 | C18: 逆变器 | D18: 2003000036 | E18: 逆变器-36 | F18: 山海新能-固德威 | G18: 7660 | H18: 5 | I18: 38300
A19: 15 | B19: 庄河荣名库 | C19: 逆变器 | D19: 2003000030 | E19: 逆变器-30 | F19: 山海新能-固德威 | G19: 7100 | H19: 18 | I19: 127800
A20: 16 | B20: 庄河荣名库 | C20: 逆变器 | D20: 20010000110 | E20: 逆变器-110 | F20: 山海新能-锦浪 | G20: 19800 | H20: 6 | I20: 118800
A21: 17 | B21: 庄河荣名库 | C21: 逆变器 | D21: 2001000080 | E21: 逆变器-80 | F21: 山海新能-锦浪 | G21: 17300 | H21: 19 | I21: 328700
A22: 18 | B22: 庄河荣名库 | C22: 逆变器 | D22: 2001000008 | E22: 逆变器-8 | F22: 山海新能-锦浪 | G22: 2830 | H22: 50 | I22: 141500
A23: 19 | B23: 庄河荣名库 | C23: 逆变器 | D23: 2001000050 | E23: 逆变器-50 | F23: 山海新能-锦浪 | G23: 11990 | H23: 18 | I23: 215820
A24: 20 | B24: 庄河荣名库 | C24: 逆变器 | D24: 2001000013 | E24: 逆变器-13 | F24: 山海新能-锦浪 | G24: 3520 | H24: 20 | I24: 70400
A25: 21 | B25: 庄河荣名库 | C25: 逆变器 | D25: 2001000015 | E25: 逆变器-15 | F25: 山海新能-锦浪 | G25: 3905 | H25: 43 | I25: 167915
A26: 22 | B26: 庄河荣名库 | C26: 逆变器 | D26: 2001000036 | E26: 逆变器-36 | F26: 山海新能-锦浪 | G26: 8525 | H26: 21 | I26: 179025
A27: 23 | B27: 庄河荣名库 | C27: 逆变器 | D27: 2001000030 | E27: 逆变器-30 | F27: 山海新能-锦浪 | G27: 7700 | H27: 45 | I27: 346500
A28: 24 | B28: 庄河荣名库 | C28: 逆变器 | D28: 2001000040 | E28: 逆变器-40 | F28: 山海新能-锦浪 | G28: 8690 | H28: 1 | I28: 8690
A29: 25 | B29: 庄河荣名库 | C29: 逆变器 | D29: 2001000033 | E29: 逆变器-33 | F29: 山海新能-锦浪 | G29: 8195 | H29: 35 | I29: 286825
A30: 26 | B30: 庄河荣名库 | C30: 逆变器 | D30: 2001000025 | E30: 逆变器-25 | F30: 山海新能-锦浪 | G30: 5170 | H30: 40 | I30: 206800
A31: 27 | B31: 庄河荣名库 | C31: 逆变器 | D31: 2001000020 | E31: 逆变器-20 | F31: 山海新能-锦浪 | G31: 4510 | H31: 66 | I31: 297660
A32: 28 | B32: 庄河荣名库 | C32: 逆变器 | D32: 2003000050 | E32: 逆变器-50 | F32: 山海新能-固德威 | G32: 9900 | H32: 0 | I32: 0
A33: 29 | B33: 安阳荣名库 | C33: 组件 | D33: 1004000048 | E33: 晶科470 | F33: 山海新能 | G33: 904 | H33: 11036 | I33: 9976544
A34: 30 | B34: 安阳荣名库 | C34: 组件 | D34: 1004000067 | E34: 东方日升660双玻 | F34: 山海新能-东方日升 | G34: 1082.4 | H34: 13 | I34: 14071.2
A35: 31 | B35: 安阳荣名库 | C35: 组件 | D35: 1004000066 | E35: 东方日升660 | F35: 山海新能-东方日升 | G35: 1014 | H35: 930 | I35: 943020
A36: 32 | B36: 安阳荣名库 | C36: 组件 | D36: 1004000047 | E36: 晶科475 | F36: 山海智慧-天合 | G36: 904 | H36: 18580 | I36: 16796320
A37: 33 | B37: 安阳荣名库 | C37: 逆变器 | D37: 2002000040 | E37: 逆变器-40 | F37: 山海新能-古瑞瓦特 | G37: 7600 | H37: 12 | I37: 91200
A38: 34 | B38: 安阳荣名库 | C38: 逆变器 | D38: 2002000050 | E38: 逆变器-50 | F38: 山海新能-古瑞瓦特 | G38: 9000 | H38: 36 | I38: =H38*G38 -> 324000
A39: 35 | B39: 安阳荣名库 | C39: 逆变器 | D39: 20010000110 | E39: 逆变器-110 | F39: 山海新能-锦浪 | G39: 19800 | H39: 1 | I39: 19800
A40: 36 | B40: 安阳荣名库 | C40: 逆变器 | D40: 2001000030 | E40: 逆变器-30 | F40: 山海新能-锦浪 | G40: 7700 | H40: 42 | I40: 323400
A41: 37 | B41: 安阳荣名库 | C41: 逆变器 | D41: 2001000060 | E41: 逆变器-60 | F41: 山海新能-锦浪 | G41: 11300 | H41: 36 | I41: 406800
A42: 38 | B42: 安阳荣名库 | C42: 逆变器 | D42: 2001000080 | E42: 逆变器-80 | F42: 山海新能-锦浪 | G42: 17300 | H42: 32 | I42: 553600
A43: 39 | B43: 安阳荣名库 | C43: 逆变器 | D43: 2001000036 | E43: 逆变器-36 | F43: 山海新能-锦浪 | G43: 8525 | H43: 59 | I43: 502975
A44: 40 | B44: 安阳荣名库 | C44: 逆变器 | D44: 2001000050 | E44: 逆变器-50 | F44: 山海新能-锦浪 | G44: 11990 | H44: 38 | I44: 455620
A45: 41 | B45: 安阳荣名库 | C45: 逆变器 | D45: 2001000040 | E45: 逆变器-40 | F45: 山海新能-锦浪 | G45: 8690 | H45: 39 | I45: 338910
A46: 42 | B46: 安阳荣名库 | C46: 逆变器 | D46: 2001000013 | E46: 逆变器-13 | F46: 山海新能-锦浪 | G46: 3520 | H46: 2 | I46: 7040
A47: 43 | B47: 安阳荣名库 | C47: 逆变器 | D47: 2001000015 | E47: 逆变器-15 | F47: 山海新能-锦浪 | G47: 3905 | H47: 12 | I47: 46860
A48: 44 | B48: 安阳荣名库 | C48: 逆变器 | D48: 2004000133 | E48: 逆变器-33 | F48: 禾望 | G48: 7260 | H48: 34 | I48: 246840
A49: 45 | B49: 安阳荣名库 | C49: 逆变器 | D49: 2001000020 | E49: 逆变器-20 | F49: 山海新能-锦浪 | G49: 4510 | H49: 37 | I49: 166870
A50: 46 | B50: 安阳荣名库 | C50: 逆变器 | D50: 2001000025 | E50: 逆变器-25 | F50: 山海新能-锦浪 | G50: 5170 | H50: 25 | I50: 129250
A51: 47 | B51: 安阳荣名库 | C51: 逆变器 | D51: 2004000130 | E51: 逆变器-30 | F51: 禾望 | G51: 7040 | H51: 33 | I51: 232320
A52: 48 | B52: 安阳荣名库 | C52: 逆变器 | D52: 2004000136 | E52: 逆变器-36 | F52: 禾望 | G52: 7920 | H52: 17 | I52: 134640
A53: 49 | B53: 安阳荣名库 | C53: 组件 | D53: 1005000066 | E53: 阿特斯660 | F53: 山海新能-阿特斯 | G53: 1075.8 | H53: 0 | I53: 0
A54: 50 | B54: 安阳荣名库 | C54: 逆变器 | D54: 2006000025 | E54: 逆变器-25 | F54: 山海新能-易嘉 | G54: 3170 | H54: 6 | I54: 19020
A55: 51 | B55: 安阳荣名库 | C55: 逆变器 | D55: 2003000030 | E55: 逆变器-30 | F55: 山海新能-固德威 | G55: 7100 | H55: 0 | I55: 0
A56: 52 | B56: 安阳荣名库 | C56: 逆变器 | D56: 2001000033 | E56: 逆变器-33 | F56: 山海新能-锦浪 | G56: 8195 | H56: 0 | I56: 0
A57: 53 | B57: 安阳荣名库 | C57: 逆变器 | D57: 2003000036 | E57: 逆变器-36 | F57: 山海新能-固德威 | G57: 7660 | H57: 0 | I57: 0
A58: 54 | B58: 安阳荣名库 | C58: 逆变器 | D58: 2003000040 | E58: 逆变器-40 | F58: 山海新能-固德威 | G58: 8171 | H58: 0 | I58: 0
A59: 55 | B59: 曲阜荣名库 | C59: 组件 | D59: 1004000060 | E59: 东方日升600 | F59: 山海新能-东方日升 | G59: 1108.8 | H59: 8216 | I59: 9109900.8
A60: 56 | B60: 曲阜荣名库 | C60: 组件 | D60: 1004000047 | E60: 晶科475 | F60: 山海智慧-天合 | G60: 904 | H60: 6448 | I60: 5828992
A61: 57 | B61: 曲阜荣名库 | C61: 组件 | D61: 1001000054 | E61: 天合600 | F61: 山海智慧-天合 | G61: 1267 | H61: 785 | I61: 994595
A62: 58 | B62: 曲阜荣名库 | C62: 组件 | D62: 1004000048 | E62: 晶科470 | F62: 山海新能 | G62: 904 | H62: 0 | I62: 0
A63: 59 | B63: 曲阜荣名库 | C63: 逆变器 | D63: 2001000013 | E63: 逆变器-13 | F63: 山海新能-锦浪 | G63: 3520 | H63: 8 | I63: 28160
A64: 60 | B64: 曲阜荣名库 | C64: 逆变器 | D64: 2001000050 | E64: 逆变器-50 | F64: 山海新能-锦浪 | G64: 11990 | H64: 19 | I64: 227810
A65: 61 | B65: 曲阜荣名库 | C65: 逆变器 | D65: 2001000080 | E65: 逆变器-80 | F65: 山海新能-锦浪 | G65: 17300 | H65: 4 | I65: 69200
A66: 62 | B66: 曲阜荣名库 | C66: 逆变器 | D66: 20010000110 | E66: 逆变器-110 | F66: 山海新能-锦浪 | G66: 19800 | H66: 5 | I66: 99000
A67: 63 | B67: 曲阜荣名库 | C67: 逆变器 | D67: 2001000060 | E67: 逆变器-60 | F67: 山海新能-锦浪 | G67: 11300 | H67: 6 | I67: 67800
A68: 64 | B68: 曲阜荣名库 | C68: 逆变器 | D68: 2002000050 | E68: 逆变器-50 | F68: 山海新能-古瑞瓦特 | G68: 9000 | H68: 10 | I68: 90000
A69: 65 | B69: 曲阜荣名库 | C69: 逆变器 | D69: 2002000040 | E69: 逆变器-40 | F69: 山海新能-古瑞瓦特 | G69: 7600 | H69: 14 | I69: 106400
A70: 66 | B70: 曲阜荣名库 | C70: 逆变器 | D70: 2003000050 | E70: 逆变器-50 | F70: 山海新能-固德威 | G70: 9900 | H70: 2 | I70: 19800
A71: 67 | B71: 曲阜荣名库 | C71: 逆变器 | D71: 2001000040 | E71: 逆变器-40 | F71: 山海新能-锦浪 | G71: 8690 | H71: 10 | I71: 86900
A72: 68 | B72: 曲阜荣名库 | C72: 逆变器 | D72: 2001000033 | E72: 逆变器-33 | F72: 山海新能-锦浪 | G72: 8195 | H72: 44 | I72: 360580
A73: 69 | B73: 曲阜荣名库 | C73: 逆变器 | D73: 2001000036 | E73: 逆变器-36 | F73: 山海新能-锦浪 | G73: 8525 | H73: 10 | I73: 85250
A74: 70 | B74: 曲阜荣名库 | C74: 逆变器 | D74: 2001000030 | E74: 逆变器-30 | F74: 山海新能-锦浪 | G74: 7700 | H74: 28 | I74: 215600
A75: 71 | B75: 曲阜荣名库 | C75: 逆变器 | D75: 2001000015 | E75: 逆变器-15 | F75: 山海新能-锦浪 | G75: 3905 | H75: 11 | I75: 42955
A76: 72 | B76: 曲阜荣名库 | C76: 逆变器 | D76: 2001000025 | E76: 逆变器-25 | F76: 山海新能-锦浪 | G76: 5170 | H76: 12 | I76: 62040
A77: 73 | B77: 曲阜荣名库 | C77: 逆变器 | D77: 2001000020 | E77: 逆变器-20 | F77: 山海新能-锦浪 | G77: 4510 | H77: 25 | I77: 112750
A78: 74 | B78: 合计： | H78: =SUM(H5:H77) -> 50468 | I78: =SUM(I5:I77) -> 57103427.6
A80: 以上内容截止到2023年12月31日
A82: 出质人： | C82: 山海新能（北京）能源科技有限公司河北分公司
A86: 监管人： | C86: 宇信通创新技术（河北）有限公司
A89: 备注：1、以最近日期的库存表为准，自动覆盖前期库存表。
A90: 2、上表中“数量”、“重量”指标的计量单位按照实际质物品种填写。
A91: 3、表中格式可根据具体品种进行相应调整。

Sheet 202312入库表
A1: 货物入库质押申请/批准单
A2: 制单日期：2023年12月31日
A3: 序号 | B3: 产品名称 | C3: 数量 | D3: 单价/元 | E3: 金额/元 | F3: 产品厂家 | G3: 仓库地点 | H3: 入库车牌号 | I3: 时间
A4: 1
A5: 2
A6: 3
A7: 4
A8: 5
A9: 6 | B9: 合计 | C9: =SUM(C4:C8) -> 0 | E9: =SUM(E4:E8) -> 0
A14: 出质人： | C14: 山海新能（北京）能源科技有限公司河北分公司
A19: 监管人： | C19: 宇信通创新技术（河北）有限公司

Sheet 202312出库表
A1: 质物解除质押出库申请/批准单
A2: 制单日期：2023年12月31日
A3: 序号 | B3: 产品名称 | C3: 数量 | D3: 单价/元 | E3: 金额/元 | F3: 产品厂家 | G3: 仓库地点 | H3: 到达地点 | I3: 时间
A4: 1 | B4: 逆变器-50 | C4: 1 | D4: 11990 | E4: =D4*C4 -> 11990 | F4: 锦浪 | G4: 庄河荣名库 | H4: 潍坊地球村能源有限公司 | I4: 2023-12-01
A5: 2 | B5: 东方日升660双玻 | C5: 256 | D5: 1082.4 | E5: =C5*D5 -> 277094.4 | F5: 锦浪 | G5: 江西余干库 | H5: 江西大海光伏工程有限公司 | I5: 2023-12-02
A6: 3 | B6: 逆变器-25 | C6: 1 | D6: 5170 | E6: =C6*D6 -> 5170 | F6: 锦浪 | G6: 江西余干库 | H6: 江西大海光伏工程有限公司 | I6: 2023-12-02
A7: 4 | B7: 逆变器-36 | C7: 3 | D7: 8525 | E7: =C7*D7 -> 25575 | F7: 锦浪 | G7: 江西余干库 | H7: 江西大海光伏工程有限公司 | I7: 2023-12-02
A8: 5 | B8: 逆变器-15 | C8: 1 | D8: 3905 | E8: =C8*D8 -> 3905 | F8: 山海新能-锦浪 | G8: 江西余干库 | H8: 江西大海光伏工程有限公司 | I8: 2023-12-02
A9: 6 | B9: 东方日升600 | C9: 224 | D9: 1108.8 | E9: =D9*C9 -> 248371.2 | F9: 东方日升 | G9: 曲阜荣名库 | H9: 曲阜项目直营 | I9: 2023-12-04
A10: 7 | B10: 逆变器-25 | C10: 1 | D10: 5170 | E10: 5170 | F10: 锦浪 | G10: 曲阜荣名库 | H10: 曲阜项目直营 | I10: 2023-12-04
A11: 8 | B11: 逆变器-25 | C11: 1 | D11: 5170 | E11: 5170 | F11: 锦浪 | G11: 曲阜荣名库 | H11: 曲阜项目直营 | I11: 2023-12-04
A12: 9 | B12: 逆变器-15 | C12: 2 | D12: 3905 | E12: 7810 | F12: 山海新能-锦浪 | G12: 曲阜荣名库 | H12: 曲阜项目直营 | I12: 2023-12-04
A13: 10 | B13: 逆变器-50 | C13: 1 | D13: 11990 | E13: 11990 | F13: 山海新能-锦浪 | G13: 曲阜荣名库 | H13: 曲阜项目直营 | I13: 2023-12-04
A14: 11 | B14: 逆变器-30 | C14: 1 | D14: 7700 | E14: 7700 | F14: 山海新能-锦浪 | G14: 曲阜荣名库 | H14: 曲阜项目直营 | I14: 2023-12-04
A15: 12 | B15: 逆变器-80 | C15: 2 | D15: 17300 | E15: 34600 | F15: 锦浪 | G15: 庄河荣名库 | H15: 大连竣泰通信工程有限公司 | I15: 2023-12-06
A16: 13 | B16: 东方日升660 | C16: 62 | D16: 1014 | E16: 62868 | F16: 东方日升 | G16: 安阳荣名库 | H16: 河北冀朋工程项目管理有限公司 | I16: 2023-12-06
A17: 14 | B17: 逆变器-80 | C17: 1 | D17: 17300 | E17: 17300 | F17: 锦浪 | G17: 庄河荣名库 | H17: 潍坊地球村能源有限公司 | I17: 2023-12-07
A18: 15 | B18: 东方日升660双玻 | C18: 320 | D18: 1082.4 | E18: =C18*D18 -> 346368 | F18: 锦浪 | G18: 江西余干库 | H18: 江西大海光伏工程有限公司 | I18: 2023-12-08
A19: 16 | B19: 逆变器-25 | C19: 1 | D19: 5170 | E19: =C19*D19 -> 5170 | F19: 锦浪 | G19: 江西余干库 | H19: 江西大海光伏工程有限公司 | I19: 2023-12-08
A20: 17 | B20: 逆变器-36 | C20: 2 | D20: 8525 | E20: =C20*D20 -> 17050 | F20: 锦浪 | G20: 江西余干库 | H20: 江西大海光伏工程有限公司 | I20: 2023-12-08
A21: 18 | B21: 逆变器-50 | C21: 2 | D21: 11990 | E21: =C21*D21 -> 23980 | F21: 锦浪 | G21: 江西余干库 | H21: 江西大海光伏工程有限公司 | I21: 2023-12-08
A22: 19 | B22: 逆变器-20 | C22: 2 | D22: 4510 | E22: =D22*C22 -> 9020 | F22: 山海新能-锦浪 | G22: 安阳荣名库 | H22: 唐县德闰新能源开发有限公司 | I22: 2023-12-12
A23: 20 | B23: 逆变器-30 | C23: 5 | D23: 7700 | E23: 38500 | F23: 山海新能-锦浪 | G23: 安阳荣名库 | H23: 唐县德闰新能源开发有限公司 | I23: 2023-12-12
A24: 21 | B24: 逆变器-36 | C24: 2 | D24: 8525 | E24: 17050 | F24: 山海新能-锦浪 | G24: 安阳荣名库 | H24: 唐县德闰新能源开发有限公司 | I24: 2023-12-12
A25: 22 | B25: 逆变器-50 | C25: 2 | D25: 11990 | E25: 23980 | F25: 山海新能-锦浪 | G25: 安阳荣名库 | H25: 唐县德闰新能源开发有限公司 | I25: 2023-12-12
A26: 23 | B26: 逆变器-60 | C26: 1 | D26: 11300 | E26: 11300 | F26: 山海新能-锦浪 | G26: 安阳荣名库 | H26: 唐县德闰新能源开发有限公司 | I26: 2023-12-12
A27: 24 | B27: 逆变器-80 | C27: 4 | D27: 17300 | E27: 69200 | F27: 山海新能-锦浪 | G27: 安阳荣名库 | H27: 唐县德闰新能源开发有限公司 | I27: 2023-12-12
A28: 25 | B28: 逆变器-20 | C28: 1 | D28: 4510 | E28: 4510 | F28: 山海新能-锦浪 | G28: 安阳荣名库 | H28: 启阳(安阳)新能源有限公司 | I28: 2023-12-12
A29: 26 | B29: 逆变器-50 | C29: 2 | D29: 11990 | E29: 23980 | F29: 山海新能-锦浪 | G29: 安阳荣名库 | H29: 启阳(安阳)新能源有限公司 | I29: 2023-12-12
A30: 27 | B30: 逆变器-15 | C30: 1 | D30: 3905 | E30: 3905 | F30: 山海新能-锦浪 | G30: 安阳荣名库 | H30: 河北冀朋工程项目管理有限公司 | I30: 2023-12-12
A31: 28 | B31: 逆变器-25 | C31: 1 | D31: 5170 | E31: 5170 | F31: 山海新能-锦浪 | G31: 安阳荣名库 | H31: 河北冀朋工程项目管理有限公司 | I31: 2023-12-12
A32: 29 | B32: 逆变器-36 | C32: 5 | D32: 8525 | E32: 42625 | F32: 山海新能-锦浪 | G32: 安阳荣名库 | H32: 河北冀朋工程项目管理有限公司 | I32: 2023-12-12
A33: 30 | B33: 逆变器-25 | C33: 5 | D33: 5170 | E33: 25850 | F33: 山海新能-锦浪 | G33: 安阳荣名库 | H33: 邯郸一铭新能源科技有限公司 | I33: 2023-12-12
A34: 31 | B34: 逆变器-50 | C34: 1 | D34: 11990 | E34: 11990 | F34: 山海新能-锦浪 | G34: 安阳荣名库 | H34: 邯郸一铭新能源科技有限公司 | I34: 2023-12-12
A35: 32 | B35: 逆变器-30 | C35: 1 | D35: 7700 | E35: 7700 | F35: 山海新能-锦浪 | G35: 安阳荣名库 | H35: 河北顺公建筑工程有限公司 | I35: 2023-12-12
A36: 33 | B36: 逆变器-60 | C36: 1 | D36: 11300 | E36: 11300 | F36: 山海新能-锦浪 | G36: 庄河荣名库 | H36: 辽宁圣东建筑工程有限公司 | I36: 2023-12-21
A37: 34 | B37: 逆变器-30 | C37: 1 | D37: 7700 | E37: 7700 | F37: 山海新能-锦浪 | G37: 安阳荣名库 | H37: 河北顺公建筑工程有限公司 | I37: 2023-12-21
A38: 35 | B38: 逆变器-30 | C38: 1 | D38: 7700 | E38: =C38*D38 -> 7700 | F38: 锦浪 | G38: 江西余干库 | H38: 江西大海光伏工程有限公司 | I38: 2023-12-25
A39: 36 | B39: 逆变器-50 | C39: 1 | D39: 11990 | E39: =D39*C39 -> 11990 | F39: 山海新能-锦浪 | G39: 安阳荣名库 | H39: 河北顺公建筑工程有限公司 | I39: 2023-12-25
A40: 37 | B40: 逆变器-30 | C40: 2 | D40: 7700 | E40: =D40*C40 -> 15400 | F40: 山海新能-锦浪 | G40: 安阳荣名库 | H40: 河北冀朋工程项目管理有限公司 | I40: 2023-12-25
A41: 38 | B41: 逆变器-30 | C41: 2 | D41: 7700 | E41: =C41*D41 -> 15400 | F41: 锦浪 | G41: 江西余干库 | H41: 江西大海光伏工程有限公司 | I41: 2023-12-26
A42: 39 | B42: 东方日升660双玻 | C42: 224 | D42: 1082.4 | E42: =C42*D42 -> 242457.6 | F42: 锦浪 | G42: 江西余干库 | H42: 江西大海光伏工程有限公司 | I42: 2023-12-26
A43: 40 | B43: 逆变器-50 | C43: 1 | D43: 11990 | E43: =D43*C43 -> 11990 | F43: 锦浪 | G43: 庄河荣名库 | H43: 大连竣泰通信工程有限公司 | I43: 2023-12-26
A44: 41 | B44: 逆变器-80 | C44: 1 | D44: 17300 | E44: 17300 | F44: 锦浪 | G44: 庄河荣名库 | H44: 大连竣泰通信工程有限公司 | I44: 2023-12-26
A45: 42 | B45: 逆变器-60 | C45: 2 | D45: 11300 | E45: 22600 | F45: 山海新能-锦浪 | G45: 庄河荣名库 | H45: 大连竣泰通信工程有限公司 | I45: 2023-12-26
A46: 43 | B46: 逆变器-40 | C46: 1 | D46: 8690 | E46: 8690 | F46: 山海新能-锦浪 | G46: 庄河荣名库 | H46: 大连竣泰通信工程有限公司 | I46: 2023-12-26
A47: 44 | B47: 逆变器-25 | C47: 1 | D47: 5170 | E47: 5170 | F47: 山海新能-锦浪 | G47: 安阳荣名库 | H47: 唐县德闰新能源开发有限公司 | I47: 2023-12-27
A48: 45 | B48: 东方日升660 | C48: 96 | D48: 1014 | E48: 97344 | F48: 东方日升 | G48: 安阳荣名库 | H48: 唐县德闰新能源开发有限公司 | I48: 2023-12-27
A49: 46 | B49: 合计 | C49: =SUM(C4:C48) -> 1249 | E49: =SUM(E4:E48) -> 1887103.2
A52: 出质人： | C52: 山海新能（北京）能源科技有限公司河北分公司
A57: 监管人： | C57: 宇信通创新技术（河北）有限公司

Sheet 20231130库存表
A1: 质物库存表
A2: 出质人： | C2: 山海新能（北京）能源科技有限公司河北分公司
A3: 质权人： | C3: 石家庄汇融农村合作银行
A4: 序号 | B4: 仓库名称 | C4: 物料组 | D4: 物料编号 | E4: 物料名称 | F4: 物料品牌 | G4: 物料单价 | H4: 库存数量 | I4: 货值
A5: 1 | B5: 江西余干库 | C5: 组件 | D5: 1004000067 | E5: 东方日升660双玻 | F5: 山海新能-东方日升 | G5: 1082.4 | H5: 3264 | I5: =H5*G5 -> 3532953.6
A6: 2 | B6: 江西余干库 | C6: 逆变器 | D6: 2001000015 | E6: 逆变器-15 | F6: 山海新能-锦浪 | G6: 3905 | H6: 10 | I6: =H6*G6 -> 39050
A7: 3 | B7: 江西余干库 | C7: 逆变器 | D7: 2001000020 | E7: 逆变器-20 | F7: 山海新能-锦浪 | G7: 4510 | H7: 64 | I7: 288640
A8: 4 | B8: 江西余干库 | C8: 逆变器 | D8: 2001000025 | E8: 逆变器-25 | F8: 山海新能-锦浪 | G8: 5170 | H8: 115 | I8: 594550
A9: 5 | B9: 江西余干库 | C9: 逆变器 | D9: 2001000030 | E9: 逆变器-30 | F9: 山海新能-锦浪 | G9: 7700 | H9: 75 | I9: 577500
A10: 6 | B10: 江西余干库 | C10: 逆变器 | D10: 2001000036 | E10: 逆变器-36 | F10: 山海新能-锦浪 | G10: 8525 | H10: 19 | I10: 161975
A11: 7 | B11: 江西余干库 | C11: 逆变器 | D11: 2001000040 | E11: 逆变器-40 | F11: 山海新能-锦浪 | G11: 8690 | H11: 9 | I11: 78210
A12: 8 | B12: 江西余干库 | C12: 逆变器 | D12: 2001000050 | E12: 逆变器-50 | F12: 山海新能-锦浪 | G12: 11990 | H12: 3 | I12: 35970
A13: 9 | B13: 庄河荣名库 | C13: 组件 | D13: 1004000060 | E13: 东方日升600 | F13: 山海新能-东方日升 | G13: 1108.8 | H13: 0 | I13: 0
A14: 10 | B14: 庄河荣名库 | C14: 组件 | D14: 1001000054 | E14: 天合600 | F14: 山海智慧-天合 | G14: 1267 | H14: 0 | I14: 0
A15: 11 | B15: 庄河荣名库 | C15: 组件 | D15: 1004000047 | E15: 晶科475 | F15: 山海智慧-天合 | G15: 904 | H15: 620 | I15: 560480
A16: 12 | B16: 庄河荣名库 | C16: 逆变器 | D16: 2003000060 | E16: 逆变器-60 | F16: 山海新能-锦浪 | G16: 11300 | H16: 10 | I16: 113000
A17: 13 | B17: 庄河荣名库 | C17: 逆变器 | D17: 2003000040 | E17: 逆变器-40 | F17: 山海新能-固德威 | G17: 8171 | H17: 31 | I17: 253301
A18: 14 | B18: 庄河荣名库 | C18: 逆变器 | D18: 2003000036 | E18: 逆变器-36 | F18: 山海新能-固德威 | G18: 7660 | H18: 5 | I18: 38300
A19: 15 | B19: 庄河荣名库 | C19: 逆变器 | D19: 2003000030 | E19: 逆变器-30 | F19: 山海新能-固德威 | G19: 7100 | H19: 18 | I19: 127800
A20: 16 | B20: 庄河荣名库 | C20: 逆变器 | D20: 20010000110 | E20: 逆变器-110 | F20: 山海新能-锦浪 | G20: 19800 | H20: 6 | I20: 118800
A21: 17 | B21: 庄河荣名库 | C21: 逆变器 | D21: 2001000080 | E21: 逆变器-80 | F21: 山海新能-锦浪 | G21: 17300 | H21: 23 | I21: 397900
A22: 18 | B22: 庄河荣名库 | C22: 逆变器 | D22: 2001000008 | E22: 逆变器-8 | F22: 山海新能-锦浪 | G22: 2830 | H22: 50 | I22: 141500
A23: 19 | B23: 庄河荣名库 | C23: 逆变器 | D23: 2001000050 | E23: 逆变器-50 | F23: 山海新能-锦浪 | G23: 11990 | H23: 20 | I23: 239800
A24: 20 | B24: 庄河荣名库 | C24: 逆变器 | D24: 2001000013 | E24: 逆变器-13 | F24: 山海新能-锦浪 | G24: 3520 | H24: 20 | I24: 70400
A25: 21 | B25: 庄河荣名库 | C25: 逆变器 | D25: 2001000015 | E25: 逆变器-15 | F25: 山海新能-锦浪 | G25: 3905 | H25: 43 | I25: 167915
A26: 22 | B26: 庄河荣名库 | C26: 逆变器 | D26: 2001000036 | E26: 逆变器-36 | F26: 山海新能-锦浪 | G26: 8525 | H26: 21 | I26: 179025
A27: 23 | B27: 庄河荣名库 | C27: 逆变器 | D27: 2001000030 | E27: 逆变器-30 | F27: 山海新能-锦浪 | G27: 7700 | H27: 45 | I27: 346500
A28: 24 | B28: 庄河荣名库 | C28: 逆变器 | D28: 2001000040 | E28: 逆变器-40 | F28: 山海新能-锦浪 | G28: 8690 | H28: 2 | I28: 17380
A29: 25 | B29: 庄河荣名库 | C29: 逆变器 | D29: 2001000033 | E29: 逆变器-33 | F29: 山海新能-锦浪 | G29: 8195 | H29: 35 | I29: 286825
A30: 26 | B30: 庄河荣名库 | C30: 逆变器 | D30: 2001000025 | E30: 逆变器-25 | F30: 山海新能-锦浪 | G30: 5170 | H30: 40 | I30: 206800
A31: 27 | B31: 庄河荣名库 | C31: 逆变器 | D31: 2001000020 | E31: 逆变器-20 | F31: 山海新能-锦浪 | G31: 4510 | H31: 66 | I31: 297660
A32: 28 | B32: 庄河荣名库 | C32: 逆变器 | D32: 2003000050 | E32: 逆变器-50 | F32: 山海新能-固德威 | G32: 9900 | H32: 0 | I32: 0
A33: 29 | B33: 安阳荣名库 | C33: 组件 | D33: 1004000048 | E33: 晶科470 | F33: 山海新能 | G33: 904 | H33: 11036 | I33: 9976544
A34: 30 | B34: 安阳荣名库 | C34: 组件 | D34: 1004000067 | E34: 东方日升660双玻 | F34: 山海新能-东方日升 | G34: 1082.4 | H34: 13 | I34: 14071.2
A35: 31 | B35: 安阳荣名库 | C35: 组件 | D35: 1004000066 | E35: 东方日升660 | F35: 山海新能-东方日升 | G35: 1014 | H35: 1088 | I35: 1103232
A36: 32 | B36: 安阳荣名库 | C36: 组件 | D36: 1004000047 | E36: 晶科475 | F36: 山海智慧-天合 | G36: 904 | H36: 18580 | I36: 16796320
A37: 33 | B37: 安阳荣名库 | C37: 逆变器 | D37: 2002000040 | E37: 逆变器-40 | F37: 山海新能-古瑞瓦特 | G37: 7600 | H37: 12 | I37: 91200
A38: 34 | B38: 安阳荣名库 | C38: 逆变器 | D38: 2002000050 | E38: 逆变器-50 | F38: 山海新能-古瑞瓦特 | G38: 9000 | H38: 36 | I38: =H38*G38 -> 324000
A39: 35 | B39: 安阳荣名库 | C39: 逆变器 | D39: 20010000110 | E39: 逆变器-110 | F39: 山海新能-锦浪 | G39: 19800 | H39: 1 | I39: 19800
A40: 36 | B40: 安阳荣名库 | C40: 逆变器 | D40: 2001000030 | E40: 逆变器-30 | F40: 山海新能-锦浪 | G40: 7700 | H40: 51 | I40: 392700
A41: 37 | B41: 安阳荣名库 | C41: 逆变器 | D41: 2001000060 | E41: 逆变器-60 | F41: 山海新能-锦浪 | G41: 11300 | H41: 37 | I41: 418100
A42: 38 | B42: 安阳荣名库 | C42: 逆变器 | D42: 2001000080 | E42: 逆变器-80 | F42: 山海新能-锦浪 | G42: 17300 | H42: 36 | I42: 622800
A43: 39 | B43: 安阳荣名库 | C43: 逆变器 | D43: 2001000036 | E43: 逆变器-36 | F43: 山海新能-锦浪 | G43: 8525 | H43: 66 | I43: 562650
A44: 40 | B44: 安阳荣名库 | C44: 逆变器 | D44: 2001000050 | E44: 逆变器-50 | F44: 山海新能-锦浪 | G44: 11990 | H44: 44 | I44: 527560
A45: 41 | B45: 安阳荣名库 | C45: 逆变器 | D45: 2001000040 | E45: 逆变器-40 | F45: 山海新能-锦浪 | G45: 8690 | H45: 39 | I45: 338910
A46: 42 | B46: 安阳荣名库 | C46: 逆变器 | D46: 2001000013 | E46: 逆变器-13 | F46: 山海新能-锦浪 | G46: 3520 | H46: 2 | I46: 7040
A47: 43 | B47: 安阳荣名库 | C47: 逆变器 | D47: 2001000015 | E47: 逆变器-15 | F47: 山海新能-锦浪 | G47: 3905 | H47: 13 | I47: 50765
A48: 44 | B48: 安阳荣名库 | C48: 逆变器 | D48: 2004000133 | E48: 逆变器-33 | F48: 禾望 | G48: 7260 | H48: 34 | I48: 246840
A49: 45 | B49: 安阳荣名库 | C49: 逆变器 | D49: 2001000020 | E49: 逆变器-20 | F49: 山海新能-锦浪 | G49: 4510 | H49: 40 | I49: 180400
A50: 46 | B50: 安阳荣名库 | C50: 逆变器 | D50: 2001000025 | E50: 逆变器-25 | F50: 山海新能-锦浪 | G50: 5170 | H50: 32 | I50: 165440
A51: 47 | B51: 安阳荣名库 | C51: 逆变器 | D51: 2004000130 | E51: 逆变器-30 | F51: 禾望 | G51: 7040 | H51: 33 | I51: 232320
A52: 48 | B52: 安阳荣名库 | C52: 逆变器 | D52: 2004000136 | E52: 逆变器-36 | F52: 禾望 | G52: 7920 | H52: 17 | I52: 134640
A53: 49 | B53: 安阳荣名库 | C53: 组件 | D53: 1005000066 | E53: 阿特斯660 | F53: 山海新能-阿特斯 | G53: 1075.8 | H53: 0 | I53: 0
A54: 50 | B54: 安阳荣名库 | C54: 逆变器 | D54: 2006000025 | E54: 逆变器-25 | F54: 山海新能-易嘉 | G54: 3170 | H54: 6 | I54: 19020
A55: 51 | B55: 安阳荣名库 | C55: 逆变器 | D55: 2003000030 | E55: 逆变器-30 | F55: 山海新能-固德威 | G55: 7100 | H55: 0 | I55: 0
A56: 52 | B56: 安阳荣名库 | C56: 逆变器 | D56: 2001000033 | E56: 逆变器-33 | F56: 山海新能-锦浪 | G56: 8195 | H56: 0 | I56: 0
A57: 53 | B57: 曲阜荣名库 | C57: 组件 | D57: 1004000060 | E57: 东方日升600 | F57: 山海新能-东方日升 | G57: 1108.8 | H57: 8440 | I57: 9358272
A58: 54 | B58: 曲阜荣名库 | C58: 组件 | D58: 1004000047 | E58: 晶科475 | F58: 山海智慧-天合 | G58: 904 | H58: 6448 | I58: 5828992
A59: 55 | B59: 曲阜荣名库 | C59: 组件 | D59: 1001000054 | E59: 天合600 | F59: 山海智慧-天合 | G59: 1267 | H59: 785 | I59: 994595
A60: 56 | B60: 曲阜荣名库 | C60: 组件 | D60: 1004000048 | E60: 晶科470 | F60: 山海新能 | G60: 904 | H60: 0 | I60: 0
A61: 57 | B61: 曲阜荣名库 | C61: 逆变器 | D61: 2001000013 | E61: 逆变器-13 | F61: 山海新能-锦浪 | G61: 3520 | H61: 8 | I61: 28160
A62: 58 | B62: 曲阜荣名库 | C62: 逆变器 | D62: 2001000050 | E62: 逆变器-50 | F62: 山海新能-锦浪 | G62: 11990 | H62: 20 | I62: 239800
A63: 59 | B63: 曲阜荣名库 | C63: 逆变器 | D63: 2001000080 | E63: 逆变器-80 | F63: 山海新能-锦浪 | G63: 17300 | H63: 4 | I63: 69200
A64: 60 | B64: 曲阜荣名库 | C64: 逆变器 | D64: 20010000110 | E64: 逆变器-110 | F64: 山海新能-锦浪 | G64: 19800 | H64: 5 | I64: 99000
A65: 61 | B65: 曲阜荣名库 | C65: 逆变器 | D65: 2001000060 | E65: 逆变器-60 | F65: 山海新能-锦浪 | G65: 11300 | H65: 6 | I65: 67800
A66: 62 | B66: 曲阜荣名库 | C66: 逆变器 | D66: 2002000050 | E66: 逆变器-50 | F66: 山海新能-古瑞瓦特 | G66: 9000 | H66: 10 | I66: 90000
A67: 63 | B67: 曲阜荣名库 | C67: 逆变器 | D67: 2002000040 | E67: 逆变器-40 | F67: 山海新能-古瑞瓦特 | G67: 7600 | H67: 14 | I67: 106400
A68: 64 | B68: 曲阜荣名库 | C68: 逆变器 | D68: 2003000050 | E68: 逆变器-50 | F68: 山海新能-固德威 | G68: 9900 | H68: 2 | I68: 19800
A69: 65 | B69: 曲阜荣名库 | C69: 逆变器 | D69: 2001000040 | E69: 逆变器-40 | F69: 山海新能-锦浪 | G69: 8690 | H69: 10 | I69: 86900
A70: 66 | B70: 曲阜荣名库 | C70: 逆变器 | D70: 2001000033 | E70: 逆变器-33 | F70: 山海新能-锦浪 | G70: 8195 | H70: 44 | I70: 360580
A71: 67 | B71: 曲阜荣名库 | C71: 逆变器 | D71: 2001000036 | E71: 逆变器-36 | F71: 山海新能-锦浪 | G71: 8525 | H71: 10 | I71: 85250
A72: 68 | B72: 曲阜荣名库 | C72: 逆变器 | D72: 2001000030 | E72: 逆变器-30 | F72: 山海新能-锦浪 | G72: 7700 | H72: 29 | I72: 223300
A73: 69 | B73: 曲阜荣名库 | C73: 逆变器 | D73: 2001000015 | E73: 逆变器-15 | F73: 山海新能-锦浪 | G73: 3905 | H73: 13 | I73: 50765
A74: 70 | B74: 曲阜荣名库 | C74: 逆变器 | D74: 2001000025 | E74: 逆变器-25 | F74: 山海新能-锦浪 | G74: 5170 | H74: 14 | I74: 72380
A75: 71 | B75: 曲阜荣名库 | C75: 逆变器 | D75: 2001000020 | E75: 逆变器-20 | F75: 山海新能-锦浪 | G75: 4510 | H75: 25 | I75: 112750
A76: 72 | B76: 合计： | H76: =SUM(H5:H75) -> 51717 | I76: =SUM(I5:I75) -> 58990530.8
A78: 以上内容截止到2023年11月30日
A80: 出质人： | C80: 山海新能（北京）能源科技有限公司河北分公司
A84: 监管人： | C84: 宇信通创新技术（河北）有限公司
A87: 备注：1、以最近日期的库存表为准，自动覆盖前期库存表。
A88: 2、上表中“数量”、“重量”指标的计量单位按照实际质物品种填写。
A89: 3、表中格式可根据具体品种进行相应调整。

Sheet 202311入库表
A1: 货物入库质押申请/批准单
A2: 制单日期：2023年11月30日
A3: 序号 | B3: 产品名称 | C3: 数量 | D3: 单价/元 | E3: 金额/元 | F3: 产品厂家 | G3: 仓库地点 | H3: 入库车牌号 | I3: 时间
A4: 1 | B4: 逆变器-13 | C4: 1 | D4: 3520 | E4: =D4*C4 -> 3520 | F4: 山海新能-锦浪 | G4: 庄河荣名库 | I4: 2023-11-09
A5: 2 | B5: 逆变器-13 | C5: 20 | D5: 3520 | E5: 70400 | F5: 山海新能-锦浪 | G5: 庄河荣名库 | I5: 2023-11-14
A6: 3 | B6: 逆变器-10 | C6: 1 | D6: 2560 | E6: 2560 | F6: 山海新能-锦浪 | G6: 庄河荣名库 | I6: 2023-11-14
A7: 4 | B7: 晶科475 | C7: 4650 | D7: 904 | E7: 4203600 | F7: 山海新能 | G7: 庄河荣名库 | I7: 2023-11-15
A8: 5 | B8: 东方日升660 | C8: 12272 | D8: 1014 | E8: 12443808 | F8: 东方日升 | G8: 安阳荣名库 | I8: 2023-11-15
A9: 6 | B9: 东方日升660 | C9: 16 | D9: 1014 | E9: 16224 | F9: 东方日升 | G9: 安阳荣名库 | I9: 2023-11-15
A10: 7 | B10: 逆变器-25 | C10: 6 | D10: 3170 | E10: 19020 | F10: 山海新能-易嘉 | G10: 安阳荣名库 | I10: 2023-11-20
A11: 8 | B11: 逆变器-36 | C11: 80 | D11: 8525 | E11: 682000 | F11: 锦浪 | G11: 安阳荣名库 | I11: 2023-11-20
A12: 9 | B12: 逆变器-25 | C12: 40 | D12: 5170 | E12: 206800 | F12: 锦浪 | G12: 安阳荣名库 | I12: 2023-11-20
A13: 10 | B13: 逆变器-80 | C13: 35 | D13: 17300 | E13: 605500 | F13: 锦浪 | G13: 安阳荣名库 | I13: 2023-11-20
A14: 11 | B14: 逆变器-60 | C14: 50 | D14: 11300 | E14: 565000 | F14: 锦浪 | G14: 安阳荣名库 | I14: 2023-11-20
A15: 12 | B15: 逆变器-50 | C15: 50 | D15: 11990 | E15: 599500 | F15: 锦浪 | G15: 安阳荣名库 | I15: 2023-11-20
A16: 13 | B16: 逆变器-40 | C16: 25 | D16: 8690 | E16: 217250 | F16: 锦浪 | G16: 安阳荣名库 | I16: 2023-11-20
A17: 14 | B17: 逆变器-30 | C17: 35 | D17: 7700 | E17: 269500 | F17: 锦浪 | G17: 安阳荣名库 | I17: 2023-11-20
A18: 15 | B18: 逆变器-15 | C18: 5 | D18: 3905 | E18: 19525 | F18: 锦浪 | G18: 安阳荣名库 | I18: 2023-11-20
A19: 16 | B19: 东方日升660双玻 | C19: 160 | D19: 1082.4 | E19: =C19*D19 -> 173184 | F19: 山海新能-东方日升 | G19: 江西余干库 | I19: 2023-11-23
A20: 17 | B20: 逆变器-36 | C20: 1 | D20: 8525 | E20: 8525 | F20: 山海新能-锦浪 | G20: 江西余干库 | I20: 2023-11-23
A21: 18 | B21: 逆变器-30 | C21: 1 | D21: 7700 | E21: 7700 | F21: 山海新能-锦浪 | G21: 江西余干库 | I21: 2023-11-23
A22: 19 | B22: 逆变器-25 | C22: 1 | D22: 5170 | E22: 5170 | F22: 山海新能-锦浪 | G22: 江西余干库 | I22: 2023-11-23
A23: 20 | B23: 东方日升660双玻 | C23: 32 | D23: 1082.4 | E23: 34636.8 | F23: 山海新能-东方日升 | G23: 江西余干库 | I23: 2023-11-23
A24: 21 | B24: 逆变器-30 | C24: 1 | D24: 7700 | E24: 7700 | F24: 山海新能-锦浪 | G24: 江西余干库 | I24: 2023-11-23
A25: 22 | B25: 通威660(单玻) | C25: 6454 | D25: 726 | E25: =D25*C25 -> 4685604 | G25: 安阳荣名库 | I25: 2023-11-28
A26: 23 | B26: 天合600 | C26: 62 | D26: 1267 | E26: =D26*C26 -> 78554 | G26: 庄河荣名库 | I26: 2023-11-29
A27: 24 | B27: 逆变器-36 | C27: 1 | D27: 7660 | E27: =D27*C27 -> 7660 | F27: 山海新能-固德威 | G27: 庄河荣名库 | I27: 2023-11-29
A28: 25 | B28: 合计 | C28: =SUM(C4:C27) -> 23999 | E28: =SUM(E4:E27) -> 24932940.8
A32: 出质人： | C32: 山海新能（北京）能源科技有限公司河北分公司
A37: 监管人： | C37: 宇信通创新技术（河北）有限公司

Sheet 202311出库表
A1: 质物解除质押出库申请/批准单
A2: 制单日期：2023年11月30日
A3: 序号 | B3: 产品名称 | C3: 数量 | D3: 单价/元 | E3: 金额/元 | F3: 产品厂家 | G3: 仓库地点 | H3: 到达地点 | I3: 时间
A4: 1 | B4: 逆变器-60 | C4: 1 | D4: 11300 | E4: =D4*C4 -> 11300 | F4: 山海新能-锦浪 | G4: 庄河荣名库 | H4: 大连竣泰通信工程有限公司 | I4: 2023-11-01
A5: 2 | B5: 逆变器-110 | C5: 17 | D5: 19800 | E5: 336600 | F5: 山海新能-锦浪 | G5: 安阳荣名库 | H5: 海南工商业专用 | I5: 2023-11-01
A6: 3 | B6: 逆变器-80 | C6: 1 | D6: 17300 | E6: 17300 | F6: 山海新能-锦浪 | G6: 安阳荣名库 | H6: 海南工商业专用 | I6: 2023-11-01
A7: 4 | B7: 逆变器-110 | C7: 22 | D7: 19800 | E7: 435600 | F7: 山海新能-锦浪 | G7: 安阳荣名库 | H7: 海南工商业专用 | I7: 2023-11-01
A8: 5 | B8: 逆变器-80 | C8: 1 | D8: 17300 | E8: 17300 | F8: 山海新能-锦浪 | G8: 安阳荣名库 | H8: 内黄工商业专用 | I8: 2023-11-01
A9: 6 | B9: 晶科475 | C9: 4712 | D9: 904 | E9: 4259648 | F9: 山海新能 | G9: 安阳荣名库 | H9: 内黄工商业专用 | I9: 2023-11-01
A10: 7 | B10: 逆变器-110 | C10: 17 | D10: 19800 | E10: 336600 | F10: 山海新能-锦浪 | G10: 安阳荣名库 | H10: 内黄工商业专用 | I10: 2023-11-01
A11: 8 | B11: 逆变器-50 | C11: 1 | D11: 11990 | E11: 11990 | F11: 山海新能-锦浪 | G11: 庄河荣名库 | H11: 辽宁圣东建筑工程有限公司 | I11: 2023-11-03
A12: 9 | B12: 逆变器-60 | C12: 1 | D12: 11300 | E12: 11300 | F12: 山海新能-锦浪 | G12: 庄河荣名库 | H12: 大连竣泰通信工程有限公司 | I12: 2023-11-03
A13: 10 | B13: 逆变器-40 | C13: 2 | D13: 8690 | E13: 17380 | F13: 山海新能-锦浪 | G13: 庄河荣名库 | H13: 河北洪平新能源科技有限公司 | I13: 2023-11-03
A14: 11 | B14: 逆变器-60 | C14: 1 | D14: 11300 | E14: 11300 | F14: 山海新能-锦浪 | G14: 庄河荣名库 | H14: 河北洪平新能源科技有限公司 | I14: 2023-11-03
A15: 12 | B15: 晶科475 | C15: 310 | D15: 904 | E15: 280240 | F15: 山海新能 | G15: 庄河荣名库 | H15: 河北洪平新能源科技有限公司 | I15: 2023-11-03
A16: 13 | B16: 东方日升600 | C16: 6240 | D16: 1108.8 | E16: 6918912 | F16: 东方日升 | G16: 曲阜荣名库 | H16: 曲阜项目直营 | I16: 2023-11-09
A17: 14 | B17: 逆变器-110 | C17: 30 | D17: 19800 | E17: 594000 | F17: 锦浪 | G17: 曲阜荣名库 | H17: 曲阜项目直营 | I17: 2023-11-09
A18: 15 | B18: 逆变器-13 | C18: 1 | D18: 3520 | E18: 3520 | F18: 山海新能-锦浪 | G18: 庄河荣名库 | H18: 潍坊地球村能源有限公司 | I18: 2023-11-10
A19: 16 | B19: 逆变器-50 | C19: 1 | D19: 11990 | E19: 11990 | F19: 山海新能-锦浪 | G19: 庄河荣名库 | H19: 潍坊地球村能源有限公司 | I19: 2023-11-10
A20: 17 | B20: 晶科475 | C20: 93 | D20: 904 | E20: 84072 | F20: 山海新能 | G20: 庄河荣名库 | H20: 潍坊地球村能源有限公司 | I20: 2023-11-10
A21: 18 | B21: 逆变器-60 | C21: 1 | D21: 11300 | E21: 11300 | F21: 山海新能-锦浪 | G21: 庄河荣名库 | H21: 大连竣泰通信工程有限公司 | I21: 2023-11-10
A22: 19 | B22: 晶科475 | C22: 434 | D22: 904 | E22: 392336 | F22: 山海新能 | G22: 庄河荣名库 | H22: 大连竣泰通信工程有限公司 | I22: 2023-11-10
A23: 20 | B23: 晶科475 | C23: 248 | D23: 904 | E23: 224192 | F23: 山海新能 | G23: 庄河荣名库 | H23: 大连竣泰通信工程有限公司 | I23: 2023-11-13
A24: 21 | B24: 逆变器-80 | C24: 2 | D24: 17300 | E24: 34600 | F24: 山海新能-锦浪 | G24: 庄河荣名库 | H24: 大连竣泰通信工程有限公司 | I24: 2023-11-13
A25: 22 | B25: 晶科475 | C25: 341 | D25: 904 | E25: 308264 | F25: 山海新能 | G25: 庄河荣名库 | H25: 潍坊地球村能源有限公司 | I25: 2023-11-13
A26: 23 | B26: 逆变器-10 | C26: 1 | D26: 2560 | E26: 2560 | F26: 山海新能-锦浪 | G26: 庄河荣名库 | H26: 辽宁圣东建筑工程有限公司 | I26: 2023-11-15
A27: 24 | B27: 晶科475 | C27: 4650 | D27: 904 | E27: 4203600 | F27: 山海新能 | G27: 安阳荣名库 | H27: 庄河荣名库 | I27: 2023-11-15
A28: 25 | B28: 东方日升660 | C28: 1609 | D28: 1014 | E28: 1631526 | F28: 山海新能-东方日升 | G28: 安阳荣名库 | H28: 河南晶特新能源有限公司 | I28: 2023-11-16
A29: 26 | B29: 东方日升660 | C29: 2528 | D29: 1014 | E29: 2563392 | F29: 山海新能-东方日升 | G29: 安阳荣名库 | H29: 邯郸一铭新能源科技有限公司 | I29: 2023-11-16
A30: 27 | B30: 东方日升660 | C30: 768 | D30: 1014 | E30: 778752 | F30: 山海新能-东方日升 | G30: 安阳荣名库 | H30: 唐县德闰新能源开发有限公司 | I30: 2023-11-16
A31: 28 | B31: 东方日升660 | C31: 1536 | D31: 1014 | E31: 1557504 | F31: 山海新能-东方日升 | G31: 安阳荣名库 | H31: 河北顺公建筑工程有限公司 | I31: 2023-11-16
A32: 29 | B32: 东方日升660双玻 | C32: 5 | D32: 1082.4 | E32: 5412 | F32: 山海新能-东方日升 | G32: 安阳荣名库 | H32: 河北冀朋工程项目管理有限公司 | I32: 2023-11-16
A33: 30 | B33: 东方日升660 | C33: 1856 | D33: 1014 | E33: 1881984 | F33: 山海新能-东方日升 | G33: 安阳荣名库 | H33: 河北冀朋工程项目管理有限公司 | I33: 2023-11-16
A34: 31 | B34: 东方日升660 | C34: 1536 | D34: 1014 | E34: 1557504 | F34: 山海新能-东方日升 | G34: 安阳荣名库 | H34: 启阳（安阳）新能源有限公司 | I34: 2023-11-16
A35: 32 | B35: 东方日升660 | C35: 768 | D35: 1014 | E35: 778752 | F35: 山海新能-东方日升 | G35: 安阳荣名库 | H35: 唐县冉灏新能源开发有限责任公司 | I35: 2023-11-16
A36: 33 | B36: 东方日升660 | C36: 151 | D36: 1014 | E36: 153114 | F36: 山海新能-东方日升 | G36: 安阳荣名库 | H36: 河南省茂凯莱新能源科技有限公司 | I36: 2023-11-16
A37: 34 | B37: 晶科475 | C37: 930 | D37: 904 | E37: 840720 | F37: 山海新能 | G37: 庄河荣名库 | H37: 潍坊地球村能源有限公司 | I37: 2023-11-18
A38: 35 | B38: 晶科475 | C38: 3131 | D38: 904 | E38: 2830424 | F38: 山海新能 | G38: 庄河荣名库 | H38: 大连竣泰通信工程有限公司 | I38: 2023-11-18
A39: 36 | B39: 逆变器-50 | C39: 1 | D39: 11990 | E39: 11990 | F39: 山海新能-锦浪 | G39: 庄河荣名库 | H39: 大连竣泰通信工程有限公司 | I39: 2023-11-20
A40: 37 | B40: 逆变器-60 | C40: 1 | D40: 11300 | E40: 11300 | F40: 山海新能-锦浪 | G40: 庄河荣名库 | H40: 大连竣泰通信工程有限公司 | I40: 2023-11-20
A41: 38 | B41: 晶科475 | C41: 837 | D41: 904 | E41: 756648 | F41: 山海新能 | G41: 庄河荣名库 | H41: 大连竣泰通信工程有限公司 | I41: 2023-11-20
A42: 39 | B42: 逆变器-50 | C42: 2 | D42: 11990 | E42: 23980 | F42: 山海新能-锦浪 | G42: 庄河荣名库 | H42: 潍坊地球村能源有限公司 | I42: 2023-11-21
A43: 40 | B43: 逆变器-60 | C43: 1 | D43: 11300 | E43: 11300 | F43: 山海新能-锦浪 | G43: 庄河荣名库 | H43: 潍坊地球村能源有限公司 | I43: 2023-11-21
A44: 41 | B44: 东方日升660 | C44: 448 | D44: 1014 | E44: 454272 | F44: 山海新能-东方日升 | G44: 安阳荣名库 | H44: 唐县德闰新能源开发有限公司 | I44: 2023-11-21
A45: 42 | B45: 逆变器-50 | C45: 1 | D45: 11990 | E45: 11990 | F45: 山海新能-锦浪 | G45: 庄河荣名库 | H45: 大连竣泰通信工程有限公司 | I45: 2023-11-24
A46: 43 | B46: 逆变器-50 | C46: 2 | D46: 11990 | E46: 23980 | F46: 山海新能-锦浪 | G46: 庄河荣名库 | H46: 大连竣泰通信工程有限公司 | I46: 2023-11-27
A47: 44 | B47: 逆变器-15 | C47: 1 | D47: 3905 | E47: 3905 | F47: 山海新能-锦浪 | G47: 安阳荣名库 | H47: 河北冀朋工程项目管理有限公司 | I47: 2023-11-27
A48: 45 | B48: 逆变器-60 | C48: 6 | D48: 11300 | E48: 67800 | F48: 山海新能-锦浪 | G48: 安阳荣名库 | H48: 河北冀朋工程项目管理有限公司 | I48: 2023-11-27
A49: 46 | B49: 逆变器-25 | C49: 4 | D49: 5170 | E49: 20680 | F49: 山海新能-锦浪 | G49: 安阳荣名库 | H49: 河北冀朋工程项目管理有限公司 | I49: 2023-11-27
A50: 47 | B50: 逆变器-36 | C50: 6 | D50: 8525 | E50: 51150 | F50: 山海新能-锦浪 | G50: 安阳荣名库 | H50: 河北冀朋工程项目管理有限公司 | I50: 2023-11-27
A51: 48 | B51: 逆变器-50 | C51: 4 | D51: 11990 | E51: 47960 | F51: 山海新能-锦浪 | G51: 安阳荣名库 | H51: 河北冀朋工程项目管理有限公司 | I51: 2023-11-27
A52: 49 | B52: 通威660(单玻) | C52: 3227 | D52: 726 | E52: 2342802 | F52: 山海新能-通威 | G52: 安阳荣名库 | H52: 河北冀朋工程项目管理有限公司 | I52: 2023-11-27
A53: 50 | B53: 通威660(单玻) | C53: 3227 | D53: 726 | E53: 2342802 | F53: 山海新能-通威 | G53: 安阳荣名库 | H53: 河南晶特新能源有限公司 | I53: 2023-11-27
A54: 51 | B54: 逆变器-80 | C54: 2 | D54: 17300 | E54: 34600 | F54: 山海新能-锦浪 | G54: 安阳荣名库 | H54: 邯郸一铭新能源科技有限公司 | I54: 2023-11-27
A55: 52 | B55: 逆变器-40 | C55: 1 | D55: 8690 | E55: 8690 | F55: 山海新能-锦浪 | G55: 安阳荣名库 | H55: 邯郸一铭新能源科技有限公司 | I55: 2023-11-27
A56: 53 | B56: 逆变器-60 | C56: 7 | D56: 11300 | E56: 79100 | F56: 山海新能-锦浪 | G56: 安阳荣名库 | H56: 邯郸一铭新能源科技有限公司 | I56: 2023-11-27
A57: 54 | B57: 逆变器-50 | C57: 1 | D57: 11990 | E57: 11990 | F57: 山海新能-锦浪 | G57: 安阳荣名库 | H57: 邯郸一铭新能源科技有限公司 | I57: 2023-11-27
A58: 55 | B58: 逆变器-36 | C58: 3 | D58: 8525 | E58: 25575 | F58: 山海新能-锦浪 | G58: 安阳荣名库 | H58: 邯郸一铭新能源科技有限公司 | I58: 2023-11-27
A59: 56 | B59: 逆变器-25 | C59: 2 | D59: 5170 | E59: 10340 | F59: 山海新能-锦浪 | G59: 安阳荣名库 | H59: 邯郸一铭新能源科技有限公司 | I59: 2023-11-27
A60: 57 | B60: 逆变器-20 | C60: 1 | D60: 4510 | E60: 4510 | F60: 山海新能-锦浪 | G60: 安阳荣名库 | H60: 邯郸一铭新能源科技有限公司 | I60: 2023-11-27
A61: 58 | B61: 逆变器-15 | C61: 1 | D61: 3905 | E61: 3905 | F61: 山海新能-锦浪 | G61: 安阳荣名库 | H61: 邯郸一铭新能源科技有限公司 | I61: 2023-11-27
A62: 59 | B62: 逆变器-60 | C62: 1 | D62: 11300 | E62: 11300 | F62: 山海新能-锦浪 | G62: 安阳荣名库 | H62: 启阳（安阳）新能源有限公司 | I62: 2023-11-27
A63: 60 | B63: 逆变器-50 | C63: 3 | D63: 11990 | E63: 35970 | F63: 山海新能-锦浪 | G63: 安阳荣名库 | H63: 启阳（安阳）新能源有限公司 | I63: 2023-11-27
A64: 61 | B64: 逆变器-36 | C64: 3 | D64: 8525 | E64: 25575 | F64: 山海新能-锦浪 | G64: 安阳荣名库 | H64: 启阳（安阳）新能源有限公司 | I64: 2023-11-27
A65: 62 | B65: 逆变器-30 | C65: 1 | D65: 7700 | E65: 7700 | F65: 山海新能-锦浪 | G65: 安阳荣名库 | H65: 启阳（安阳）新能源有限公司 | I65: 2023-11-27
A66: 63 | B66: 逆变器-25 | C66: 2 | D66: 5170 | E66: 10340 | F66: 山海新能-锦浪 | G66: 安阳荣名库 | H66: 启阳（安阳）新能源有限公司 | I66: 2023-11-27
A67: 64 | B67: 逆变器-30 | C67: 2 | D67: 7700 | E67: 15400 | F67: 山海新能-锦浪 | G67: 安阳荣名库 | H67: 河北顺公建筑工程有限公司 | I67: 2023-11-27
A68: 65 | B68: 逆变器-60 | C68: 1 | D68: 11300 | E68: =D68*C68 -> 11300 | F68: 山海新能-锦浪 | G68: 安阳荣名库 | H68: 河北顺公建筑工程有限公司 | I68: 2023-11-27
A69: 66 | B69: 逆变器-36 | C69: 2 | D69: 8525 | E69: 17050 | F69: 山海新能-锦浪 | G69: 安阳荣名库 | H69: 河北顺公建筑工程有限公司 | I69: 2023-11-27
A70: 67 | B70: 逆变器-80 | C70: 2 | D70: 17300 | E70: 34600 | F70: 山海新能-锦浪 | G70: 庄河荣名库 | H70: 大连竣泰通信工程有限公司 | I70: 2023-11-29
A71: 68 | B71: 天合600 | C71: 62 | D71: 1267 | E71: 78554 | F71: 山海智慧-天合 | G71: 庄河荣名库 | H71: 河北洪平新能源科技有限公司 | I71: 2023-11-29
A72: 69 | B72: 逆变器-36 | C72: 1 | D72: 7660 | E72: 7660 | F72: 山海新能-固德威 | G72: 庄河荣名库 | H72: 河北洪平新能源科技有限公司 | I72: 2023-11-29
A73: 70 | B73: 合计 | C73: =SUM(C4:C72) -> 39812 | E73: =SUM(E4:E72) -> 39731706
A76: 出质人： | C76: 山海新能（北京）能源科技有限公司河北分公司
A81: 监管人： | C81: 宇信通创新技术（河北）有限公司

Sheet 20231031库存表
A1: 质物库存表
A2: 出质人： | C2: 山海新能（北京）能源科技有限公司河北分公司
A3: 质权人： | C3: 石家庄汇融农村合作银行
A4: 序号 | B4: 仓库名称 | C4: 物料组 | D4: 物料编号 | E4: 物料名称 | F4: 物料品牌 | G4: 物料单价 | H4: 库存数量 | I4: 货值
A5: 1 | B5: 江西余干库 | C5: 组件 | D5: 1004000067 | E5: 东方日升660双玻 | F5: 山海新能-东方日升 | G5: 1082.4 | H5: 3072 | I5: =G5*H5 -> 3325132.8
A6: 2 | B6: 江西余干库 | C6: 逆变器 | D6: 2001000015 | E6: 逆变器-15 | F6: 山海新能-锦浪 | G6: 3905 | H6: 10 | I6: 39050
A7: 3 | B7: 江西余干库 | C7: 逆变器 | D7: 2001000020 | E7: 逆变器-20 | F7: 山海新能-锦浪 | G7: 4510 | H7: 64 | I7: 288640
A8: 4 | B8: 江西余干库 | C8: 逆变器 | D8: 2001000025 | E8: 逆变器-25 | F8: 山海新能-锦浪 | G8: 5170 | H8: 114 | I8: 589380
A9: 5 | B9: 江西余干库 | C9: 逆变器 | D9: 2001000030 | E9: 逆变器-30 | F9: 山海新能-锦浪 | G9: 7700 | H9: 73 | I9: 562100
A10: 6 | B10: 江西余干库 | C10: 逆变器 | D10: 2001000036 | E10: 逆变器-36 | F10: 山海新能-锦浪 | G10: 8525 | H10: 18 | I10: 153450
A11: 7 | B11: 江西余干库 | C11: 逆变器 | D11: 2001000040 | E11: 逆变器-40 | F11: 山海新能-锦浪 | G11: 8690 | H11: 9 | I11: 78210
A12: 8 | B12: 江西余干库 | C12: 逆变器 | D12: 2001000050 | E12: 逆变器-50 | F12: 山海新能-锦浪 | G12: 11990 | H12: 3 | I12: 35970
A13: 9 | B13: 庄河荣名库 | C13: 组件 | D13: 1004000060 | E13: 东方日升600 | F13: 山海新能-东方日升 | G13: 1108.8 | H13: 0 | I13: 0
A14: 10 | B14: 庄河荣名库 | C14: 组件 | D14: 1001000054 | E14: 天合600 | F14: 山海智慧-天合 | G14: 1267 | H14: 0 | I14: 0
A15: 11 | B15: 庄河荣名库 | C15: 组件 | D15: 1004000047 | E15: 晶科475 | F15: 山海智慧-天合 | G15: 904 | H15: 2294 | I15: 2073776
A16: 12 | B16: 庄河荣名库 | C16: 逆变器 | D16: 2003000060 | E16: 逆变器-60 | F16: 山海新能-锦浪 | G16: 11300 | H16: 16 | I16: 180800
A17: 13 | B17: 庄河荣名库 | C17: 逆变器 | D17: 2003000040 | E17: 逆变器-40 | F17: 山海新能-固德威 | G17: 8171 | H17: 31 | I17: 253301
A18: 14 | B18: 庄河荣名库 | C18: 逆变器 | D18: 2003000036 | E18: 逆变器-36 | F18: 山海新能-固德威 | G18: 7660 | H18: 5 | I18: 38300
A19: 15 | B19: 庄河荣名库 | C19: 逆变器 | D19: 2003000030 | E19: 逆变器-30 | F19: 山海新能-固德威 | G19: 7100 | H19: 18 | I19: 127800
A20: 16 | B20: 庄河荣名库 | C20: 逆变器 | D20: 20010000110 | E20: 逆变器-110 | F20: 山海新能-锦浪 | G20: 19800 | H20: 6 | I20: 118800
A21: 17 | B21: 庄河荣名库 | C21: 逆变器 | D21: 2001000080 | E21: 逆变器-80 | F21: 山海新能-锦浪 | G21: 17300 | H21: 27 | I21: 467100
A22: 18 | B22: 庄河荣名库 | C22: 逆变器 | D22: 2001000008 | E22: 逆变器-8 | F22: 山海新能-锦浪 | G22: 2830 | H22: 50 | I22: 141500
A23: 19 | B23: 庄河荣名库 | C23: 逆变器 | D23: 2001000050 | E23: 逆变器-50 | F23: 山海新能-锦浪 | G23: 11990 | H23: 28 | I23: 335720
A24: 20 | B24: 庄河荣名库 | C24: 逆变器 | D24: 2001000013 | E24: 逆变器-13 | F24: 山海新能-锦浪 | G24: 3520 | H24: 0 | I24: 0
A25: 21 | B25: 庄河荣名库 | C25: 逆变器 | D25: 2001000015 | E25: 逆变器-15 | F25: 山海新能-锦浪 | G25: 3905 | H25: 43 | I25: 167915
A26: 22 | B26: 庄河荣名库 | C26: 逆变器 | D26: 2001000036 | E26: 逆变器-36 | F26: 山海新能-锦浪 | G26: 8525 | H26: 21 | I26: 179025
A27: 23 | B27: 庄河荣名库 | C27: 逆变器 | D27: 2001000030 | E27: 逆变器-30 | F27: 山海新能-锦浪 | G27: 7700 | H27: 45 | I27: 346500
A28: 24 | B28: 庄河荣名库 | C28: 逆变器 | D28: 2001000040 | E28: 逆变器-40 | F28: 山海新能-锦浪 | G28: 8690 | H28: 4 | I28: 34760
A29: 25 | B29: 庄河荣名库 | C29: 逆变器 | D29: 2001000033 | E29: 逆变器-33 | F29: 山海新能-锦浪 | G29: 8195 | H29: 35 | I29: 286825
A30: 26 | B30: 庄河荣名库 | C30: 逆变器 | D30: 2001000025 | E30: 逆变器-25 | F30: 山海新能-锦浪 | G30: 5170 | H30: 40 | I30: 206800
A31: 27 | B31: 庄河荣名库 | C31: 逆变器 | D31: 2001000020 | E31: 逆变器-20 | F31: 山海新能-锦浪 | G31: 4510 | H31: 66 | I31: 297660
A32: 28 | B32: 安阳荣名库 | C32: 组件 | D32: 1004000048 | E32: 晶科470 | F32: 山海新能 | G32: 904 | H32: 11036 | I32: =G32*H32 -> 9976544
A33: 29 | B33: 安阳荣名库 | C33: 组件 | D33: 1004000067 | E33: 东方日升660双玻 | F33: 山海新能-东方日升 | G33: 1082.4 | H33: 18 | I33: 19483.2
A34: 30 | B34: 安阳荣名库 | C34: 组件 | D34: 1004000066 | E34: 东方日升660 | F34: 山海新能-东方日升 | G34: 1014 | H34: 0 | I34: 0
A35: 31 | B35: 安阳荣名库 | C35: 组件 | D35: 1004000047 | E35: 晶科475 | F35: 山海智慧-天合 | G35: 904 | H35: 27942 | I35: 25259568
A36: 32 | B36: 安阳荣名库 | C36: 逆变器 | D36: 2002000040 | E36: 逆变器-40 | F36: 山海新能-古瑞瓦特 | G36: 7600 | H36: 12 | I36: 91200
A37: 33 | B37: 安阳荣名库 | C37: 逆变器 | D37: 2002000050 | E37: 逆变器-50 | F37: 山海新能-古瑞瓦特 | G37: 9000 | H37: 36 | I37: 324000
A38: 34 | B38: 安阳荣名库 | C38: 逆变器 | D38: 20010000110 | E38: 逆变器-110 | F38: 山海新能-锦浪 | G38: 19800 | H38: 57 | I38: 1128600
A39: 35 | B39: 安阳荣名库 | C39: 逆变器 | D39: 2001000030 | E39: 逆变器-30 | F39: 山海新能-锦浪 | G39: 7700 | H39: 19 | I39: 146300
A40: 36 | B40: 安阳荣名库 | C40: 逆变器 | D40: 2001000060 | E40: 逆变器-60 | F40: 山海新能-锦浪 | G40: 11300 | H40: 2 | I40: 22600
A41: 37 | B41: 安阳荣名库 | C41: 逆变器 | D41: 2001000080 | E41: 逆变器-80 | F41: 山海新能-锦浪 | G41: 17300 | H41: 5 | I41: 86500
A42: 38 | B42: 安阳荣名库 | C42: 逆变器 | D42: 2001000036 | E42: 逆变器-36 | F42: 山海新能-锦浪 | G42: 8525 | H42: 0 | I42: 0
A43: 39 | B43: 安阳荣名库 | C43: 逆变器 | D43: 2001000050 | E43: 逆变器-50 | F43: 山海新能-锦浪 | G43: 11990 | H43: 2 | I43: 23980
A44: 40 | B44: 安阳荣名库 | C44: 逆变器 | D44: 2001000040 | E44: 逆变器-40 | F44: 山海新能-锦浪 | G44: 8690 | H44: 15 | I44: 130350
A45: 41 | B45: 安阳荣名库 | C45: 逆变器 | D45: 2001000013 | E45: 逆变器-13 | F45: 山海新能-锦浪 | G45: 3520 | H45: 2 | I45: 7040
A46: 42 | B46: 安阳荣名库 | C46: 逆变器 | D46: 2001000015 | E46: 逆变器-15 | F46: 山海新能-锦浪 | G46: 3905 | H46: 10 | I46: 39050
A47: 43 | B47: 安阳荣名库 | C47: 逆变器 | D47: 2004000133 | E47: 逆变器-33 | F47: 禾望 | G47: 7260 | H47: 34 | I47: 246840
A48: 44 | B48: 安阳荣名库 | C48: 逆变器 | D48: 2001000020 | E48: 逆变器-20 | F48: 山海新能-锦浪 | G48: 4510 | H48: 41 | I48: 184910
A49: 45 | B49: 安阳荣名库 | C49: 逆变器 | D49: 2001000025 | E49: 逆变器-25 | F49: 山海新能-锦浪 | G49: 5170 | H49: 0 | I49: 0
A50: 46 | B50: 安阳荣名库 | C50: 逆变器 | D50: 2004000130 | E50: 逆变器-30 | F50: 禾望 | G50: 7040 | H50: 33 | I50: 232320
A51: 47 | B51: 安阳荣名库 | C51: 逆变器 | D51: 2004000136 | E51: 逆变器-36 | F51: 禾望 | G51: 7920 | H51: 17 | I51: 134640
A52: 48 | B52: 曲阜荣名库 | C52: 组件 | D52: 1004000060 | E52: 东方日升600 | F52: 山海新能-东方日升 | G52: 1108.8 | H52: 14680 | I52: =G52*H52 -> 16277184
A53: 49 | B53: 曲阜荣名库 | C53: 组件 | D53: 1004000047 | E53: 晶科475 | F53: 山海智慧-天合 | G53: 904 | H53: 6448 | I53: 5828992
A54: 50 | B54: 曲阜荣名库 | C54: 组件 | D54: 1001000054 | E54: 天合600 | F54: 山海智慧-天合 | G54: 1267 | H54: 785 | I54: 994595
A55: 51 | B55: 曲阜荣名库 | C55: 组件 | D55: 1004000048 | E55: 晶科470 | F55: 山海新能 | G55: 904 | H55: 0 | I55: 0
A56: 52 | B56: 曲阜荣名库 | C56: 逆变器 | D56: 2001000013 | E56: 逆变器-13 | F56: 山海新能-锦浪 | G56: 3520 | H56: 8 | I56: 28160
A57: 53 | B57: 曲阜荣名库 | C57: 逆变器 | D57: 2001000050 | E57: 逆变器-50 | F57: 山海新能-锦浪 | G57: 11990 | H57: 20 | I57: 239800
A58: 54 | B58: 曲阜荣名库 | C58: 逆变器 | D58: 2001000080 | E58: 逆变器-80 | F58: 山海新能-锦浪 | G58: 17300 | H58: 4 | I58: 69200
A59: 55 | B59: 曲阜荣名库 | C59: 逆变器 | D59: 20010000110 | E59: 逆变器-110 | F59: 山海新能-锦浪 | G59: 19800 | H59: 35 | I59: 693000
A60: 56 | B60: 曲阜荣名库 | C60: 逆变器 | D60: 2001000060 | E60: 逆变器-60 | F60: 山海新能-锦浪 | G60: 11300 | H60: 6 | I60: 67800
A61: 57 | B61: 曲阜荣名库 | C61: 逆变器 | D61: 2002000050 | E61: 逆变器-50 | F61: 山海新能-古瑞瓦特 | G61: 9000 | H61: 10 | I61: 90000
A62: 58 | B62: 曲阜荣名库 | C62: 逆变器 | D62: 2002000040 | E62: 逆变器-40 | F62: 山海新能-古瑞瓦特 | G62: 7600 | H62: 14 | I62: 106400
A63: 59 | B63: 曲阜荣名库 | C63: 逆变器 | D63: 2003000050 | E63: 逆变器-50 | F63: 山海新能-固德威 | G63: 9900 | H63: 2 | I63: 19800
A64: 60 | B64: 曲阜荣名库 | C64: 逆变器 | D64: 2001000040 | E64: 逆变器-40 | F64: 山海新能-锦浪 | G64: 8690 | H64: 10 | I64: 86900
A65: 61 | B65: 曲阜荣名库 | C65: 逆变器 | D65: 2001000033 | E65: 逆变器-33 | F65: 山海新能-锦浪 | G65: 8195 | H65: 44 | I65: 360580
A66: 62 | B66: 曲阜荣名库 | C66: 逆变器 | D66: 2001000036 | E66: 逆变器-36 | F66: 山海新能-锦浪 | G66: 8525 | H66: 10 | I66: 85250
A67: 63 | B67: 曲阜荣名库 | C67: 逆变器 | D67: 2001000030 | E67: 逆变器-30 | F67: 山海新能-锦浪 | G67: 7700 | H67: 29 | I67: 223300
A68: 64 | B68: 曲阜荣名库 | C68: 逆变器 | D68: 2001000015 | E68: 逆变器-15 | F68: 山海新能-锦浪 | G68: 3905 | H68: 13 | I68: 50765
A69: 65 | B69: 曲阜荣名库 | C69: 逆变器 | D69: 2001000025 | E69: 逆变器-25 | F69: 山海新能-锦浪 | G69: 5170 | H69: 14 | I69: 72380
A70: 66 | B70: 曲阜荣名库 | C70: 逆变器 | D70: 2001000020 | E70: 逆变器-20 | F70: 山海新能-锦浪 | G70: 4510 | H70: 25 | I70: 112750
A71: 67 | B71: 合计： | H71: =SUM(H5:H70) -> 67530 | I71: =SUM(I5:I70) -> 73789296
A73: 以上内容截止到2023年10月31日
A75: 出质人： | C75: 山海新能（北京）能源科技有限公司河北分公司
A79: 监管人： | C79: 宇信通创新技术（河北）有限公司
A82: 备注：1、以最近日期的库存表为准，自动覆盖前期库存表。
A83: 2、上表中“数量”、“重量”指标的计量单位按照实际质物品种填写。
A84: 3、表中格式可根据具体品种进行相应调整。

Sheet 202310入库表
A1: 货物入库质押申请/批准单
A2: 制单日期：2023年10月31日
A3: 序号 | B3: 产品名称 | C3: 数量 | D3: 单价/元 | E3: 金额/元 | F3: 产品厂家 | G3: 仓库地点 | H3: 入库车牌号 | I3: 时间
A4: 1 | B4: 东方日升660 | C4: 768 | D4: 1014 | E4: =D4*C4 -> 778752 | F4: 东方日升 | G4: 安阳荣名库 | I4: 2023-10-17
A5: 2 | B5: 东方日升660双玻 | C5: 21 | D5: 1082.4 | E5: 22730.4 | F5: 东方日升 | G5: 安阳荣名库 | I5: 2023-10-19
A6: 3 | B6: 东方日升660双玻 | C6: 17 | D6: 1082.4 | E6: 18400.8 | F6: 东方日升 | G6: 安阳荣名库 | I6: 2023-10-19
A7: 4 | B7: 东方日升660 | C7: 192 | D7: 1014 | E7: 194688 | F7: 东方日升 | G7: 安阳荣名库 | I7: 2023-10-19
A8: 5 | B8: 逆变器-15 | C8: 5 | D8: 3905 | E8: 19525 | F8: 锦浪 | G8: 安阳荣名库 | I8: 2023-10-26
A9: 6 | B9: 逆变器-20 | C9: 15 | D9: 4510 | E9: 67650 | F9: 锦浪 | G9: 安阳荣名库 | I9: 2023-10-26
A10: 7 | B10: 逆变器-25 | C10: 25 | D10: 5170 | E10: 129250 | F10: 锦浪 | G10: 安阳荣名库 | I10: 2023-10-26
A11: 8 | B11: 逆变器-30 | C11: 30 | D11: 7700 | E11: 231000 | F11: 山海新能-锦浪 | G11: 安阳荣名库 | I11: 2023-10-26
A12: 9 | B12: 逆变器-36 | C12: 35 | D12: 8525 | E12: 298375 | F12: 锦浪 | G12: 安阳荣名库 | I12: 2023-10-26
A13: 10 | B13: 逆变器-40 | C13: 25 | D13: 8690 | E13: 217250 | F13: 锦浪 | G13: 安阳荣名库 | I13: 2023-10-26
A14: 11 | B14: 逆变器-50 | C14: 40 | D14: 11990 | E14: 479600 | F14: 锦浪 | G14: 安阳荣名库 | I14: 2023-10-26
A15: 12 | B15: 逆变器-60 | C15: 35 | D15: 11300 | E15: 395500 | F15: 锦浪 | G15: 安阳荣名库 | I15: 2023-10-26
A16: 13 | B16: 逆变器-80 | C16: 20 | D16: 17300 | E16: 346000 | F16: 锦浪 | G16: 安阳荣名库 | I16: 2023-10-26
A17: 14 | B17: 逆变器-110 | C17: 16 | D17: 19800 | E17: 316800 | F17: 锦浪 | G17: 曲阜荣名库 | I17: 2023-10-27
A18: 15 | B18: 逆变器-20 | C18: 1 | D18: 4510 | E18: 4510 | F18: 锦浪 | G18: 安阳荣名库 | I18: 2023-10-30
A19: 16 | B19: 逆变器-110 | C19: 14 | D19: 19800 | E19: 277200 | F19: 锦浪 | G19: 曲阜荣名库 | I19: 2023-10-31
A20: 17 | B20: 合计 | C20: =SUM(C4:C19) -> 1259 | E20: =SUM(E4:E19) -> 3797231.2
A24: 出质人： | C24: 山海新能（北京）能源科技有限公司河北分公司
A29: 监管人： | C29: 宇信通创新技术（河北）有限公司

Sheet 202310出库表
A1: 质物解除质押出库申请/批准单
A2: 制单日期：2023年10月31日
A3: 序号 | B3: 产品名称 | C3: 数量 | D3: 单价/元 | E3: 金额/元 | F3: 产品厂家 | G3: 仓库地点 | H3: 到达地点 | I3: 时间
A4: 1 | B4: 逆变器-50 | C4: 1 | D4: 11990 | E4: =D4*C4 -> 11990 | F4: 锦浪 | G4: 庄河荣名库 | H4: 潍坊地球村能源有限公司 | I4: 2023-10-04
A5: 2 | B5: 东方日升600 | C5: 96 | D5: 1108.8 | E5: 106444.8 | F5: 东方日升 | G5: 庄河荣名库 | H5: 大连竣泰通信工程有限公司 | I5: 2023-10-04
A6: 3 | B6: 逆变器-36 | C6: 1 | D6: 8525 | E6: 8525 | F6: 锦浪 | G6: 庄河荣名库 | H6: 大连竣泰通信工程有限公司 | I6: 2023-10-04
A7: 4 | B7: 东方日升600 | C7: 64 | D7: 1108.8 | E7: 70963.2 | F7: 东方日升 | G7: 庄河荣名库 | H7: 大连竣泰通信工程有限公司 | I7: 2023-10-04
A8: 5 | B8: 东方日升660 | C8: 768 | D8: 1014 | E8: 778752 | F8: 东方日升 | G8: 安阳荣名库 | H8: 唐县冉灏新能源开发有限责任公司 | I8: 2023-10-07
A9: 6 | B9: 东方日升660 | C9: 1536 | D9: 1014 | E9: 1557504 | F9: 东方日升 | G9: 安阳荣名库 | H9: 河南晶特新能源有限公司 | I9: 2023-10-07
A10: 7 | B10: 逆变器-25 | C10: 5 | D10: 5170 | E10: 25850 | F10: 山海新能-锦浪 | G10: 安阳荣名库 | H10: 启阳(安阳)新能源有限公司 | I10: 2023-10-07
A11: 8 | B11: 逆变器-30 | C11: 3 | D11: 7700 | E11: 23100 | F11: 山海新能-锦浪 | G11: 安阳荣名库 | H11: 启阳(安阳)新能源有限公司 | I11: 2023-10-07
A12: 9 | B12: 逆变器-36 | C12: 11 | D12: 8525 | E12: 93775 | F12: 山海新能-锦浪 | G12: 安阳荣名库 | H12: 启阳(安阳)新能源有限公司 | I12: 2023-10-07
A13: 10 | B13: 逆变器-40 | C13: 6 | D13: 8690 | E13: 52140 | F13: 山海新能-锦浪 | G13: 安阳荣名库 | H13: 启阳(安阳)新能源有限公司 | I13: 2023-10-07
A14: 11 | B14: 逆变器-50 | C14: 5 | D14: 11990 | E14: 59950 | F14: 山海新能-锦浪 | G14: 安阳荣名库 | H14: 启阳(安阳)新能源有限公司 | I14: 2023-10-07
A15: 12 | B15: 逆变器-60 | C15: 4 | D15: 11300 | E15: 45200 | F15: 山海新能-锦浪 | G15: 安阳荣名库 | H15: 启阳(安阳)新能源有限公司 | I15: 2023-10-07
A16: 13 | B16: 逆变器-80 | C16: 1 | D16: 17300 | E16: 17300 | F16: 山海新能-锦浪 | G16: 安阳荣名库 | H16: 启阳(安阳)新能源有限公司 | I16: 2023-10-07
A17: 14 | B17: 东方日升660 | C17: 768 | D17: 1014 | E17: 778752 | F17: 东方日升 | G17: 安阳荣名库 | H17: 河南晶特新能源有限公司 | I17: 2023-10-08
A18: 15 | B18: 东方日升600 | C18: 96 | D18: 1108.8 | E18: 106444.8 | F18: 东方日升 | G18: 庄河荣名库 | H18: 大连竣泰通信工程有限公司 | I18: 2023-10-08
A19: 16 | B19: 逆变器-36 | C19: 1 | D19: 8525 | E19: 8525 | F19: 锦浪 | G19: 庄河荣名库 | H19: 大连竣泰通信工程有限公司 | I19: 2023-10-08
A20: 17 | B20: 东方日升660双玻 | C20: 192 | D20: 1082.4 | E20: 207820.8 | F20: 锦浪 | G20: 江西余干库 | H20: 江西大海光伏工程有限公司 | I20: 2023-10-08
A21: 18 | B21: 逆变器-25 | C21: 1 | D21: 5170 | E21: =C21*D21 -> 5170 | F21: 锦浪 | G21: 江西余干库 | H21: 江西大海光伏工程有限公司 | I21: 2023-10-08
A22: 19 | B22: 逆变器-30 | C22: 3 | D22: 7700 | E22: =C22*D22 -> 23100 | F22: 锦浪 | G22: 江西余干库 | H22: 江西大海光伏工程有限公司 | I22: 2023-10-08
A23: 20 | B23: 东方日升600 | C23: 64 | D23: 1108.8 | E23: =D23*C23 -> 70963.2 | F23: 东方日升 | G23: 庄河荣名库 | H23: 大连竣泰通信工程有限公司 | I23: 2023-10-09
A24: 21 | B24: 逆变器-36 | C24: 1 | D24: 8525 | E24: 8525 | F24: 锦浪 | G24: 庄河荣名库 | H24: 大连竣泰通信工程有限公司 | I24: 2023-10-09
A25: 22 | B25: 东方日升660双玻 | C25: 6 | D25: 1082.4 | E25: 6494.4 | F25: 东方日升 | G25: 安阳荣名库 | H25: 报废库 | I25: 2023-10-10
A26: 23 | B26: 逆变器-15 | C26: 1 | D26: 3905 | E26: 3905 | F26: 山海新能-锦浪 | G26: 安阳荣名库 | H26: 邯郸一铭新能源科技有限公司 | I26: 2023-10-10
A27: 24 | B27: 逆变器-25 | C27: 6 | D27: 5170 | E27: 31020 | F27: 山海新能-锦浪 | G27: 安阳荣名库 | H27: 河北冀朋工程项目管理有限公司 | I27: 2023-10-10
A28: 25 | B28: 逆变器-30 | C28: 4 | D28: 7700 | E28: =D28*C28 -> 30800 | F28: 山海新能-锦浪 | G28: 安阳荣名库 | H28: 河北冀朋工程项目管理有限公司 | I28: 2023-10-10
A29: 26 | B29: 逆变器-36 | C29: 6 | D29: 8525 | E29: 51150 | F29: 山海新能-锦浪 | G29: 安阳荣名库 | H29: 河北冀朋工程项目管理有限公司 | I29: 2023-10-10
A30: 27 | B30: 逆变器-50 | C30: 4 | D30: 11990 | E30: 47960 | F30: 山海新能-锦浪 | G30: 安阳荣名库 | H30: 河北冀朋工程项目管理有限公司 | I30: 2023-10-10
A31: 28 | B31: 逆变器-60 | C31: 4 | D31: 11300 | E31: 45200 | F31: 山海新能-锦浪 | G31: 安阳荣名库 | H31: 河北冀朋工程项目管理有限公司 | I31: 2023-10-10
A32: 29 | B32: 逆变器-80 | C32: 4 | D32: 17300 | E32: 69200 | F32: 山海新能-锦浪 | G32: 安阳荣名库 | I32: 2023-10-10
A33: 30 | B33: 东方日升600 | C33: 96 | D33: 1108.8 | E33: 106444.8 | F33: 东方日升 | G33: 庄河荣名库 | H33: 大连竣泰通信工程有限公司 | I33: 2023-10-11
A34: 31 | B34: 东方日升600 | C34: 64 | D34: 1108.8 | E34: 70963.2 | F34: 东方日升 | G34: 庄河荣名库 | H34: 大连竣泰通信工程有限公司 | I34: 2023-10-11
A35: 32 | B35: 逆变器-33 | C35: 1 | D35: 8195 | E35: 8195 | F35: 锦浪 | G35: 庄河荣名库 | H35: 大连竣泰通信工程有限公司 | I35: 2023-10-11
A36: 33 | B36: 东方日升600 | C36: 160 | D36: 1108.8 | E36: 177408 | F36: 东方日升 | G36: 庄河荣名库 | H36: 大连竣泰通信工程有限公司 | I36: 2023-10-11
A37: 34 | B37: 东方日升600 | C37: 64 | D37: 1108.8 | E37: 70963.2 | F37: 东方日升 | G37: 庄河荣名库 | H37: 大连竣泰通信工程有限公司 | I37: 2023-10-11
A38: 35 | B38: 东方日升600 | C38: 64 | D38: 1108.8 | E38: 70963.2 | F38: 东方日升 | G38: 庄河荣名库 | H38: 大连竣泰通信工程有限公司 | I38: 2023-10-11
A39: 36 | B39: 逆变器-80 | C39: 1 | D39: 17300 | E39: 17300 | F39: 锦浪 | G39: 庄河荣名库 | H39: 大连竣泰通信工程有限公司 | I39: 2023-10-11
A40: 37 | B40: 逆变器-80 | C40: 1 | D40: 17300 | E40: 17300 | F40: 锦浪 | G40: 庄河荣名库 | H40: 大连竣泰通信工程有限公司 | I40: 2023-10-11
A41: 38 | B41: 东方日升660 | C41: 768 | D41: 1014 | E41: 778752 | F41: 东方日升 | G41: 安阳荣名库 | H41: 河南晶特新能源有限公司 | I41: 2023-10-13
A42: 39 | B42: 东方日升600 | C42: 256 | D42: 1108.8 | E42: 283852.8 | F42: 东方日升 | G42: 庄河荣名库 | H42: 辽宁圣东建筑工程有限公司 | I42: 2023-10-13
A43: 40 | B43: 逆变器-40 | C43: 1 | D43: 8690 | E43: 8690 | F43: 山海新能-锦浪 | G43: 庄河荣名库 | H43: 潍坊地球村能源有限公司 | I43: 2023-10-16
A44: 41 | B44: 晶科475 | C44: 124 | D44: 904 | E44: 112096 | F44: 山海新能 | G44: 庄河荣名库 | H44: 潍坊地球村能源有限公司 | I44: 2023-10-16
A45: 42 | B45: 东方日升660双玻 | C45: 803 | D45: 1082.4 | E45: 869167.2 | F45: 东方日升 | G45: 安阳荣名库 | H45: 启阳(安阳)新能源有限公司 | I45: 2023-10-17
A46: 43 | B46: 东方日升660双玻 | C46: 268 | D46: 1082.4 | E46: 290083.2 | F46: 东方日升 | G46: 安阳荣名库 | H46: 河北顺公建筑工程有限公司 | I46: 2023-10-17
A47: 44 | B47: 东方日升660双玻 | C47: 192 | D47: 1082.4 | E47: 207820.8 | F47: 东方日升 | G47: 安阳荣名库 | H47: 河北冀朋工程项目管理有限公司 | I47: 2023-10-17
A48: 45 | B48: 东方日升660 | C48: 348 | D48: 1014 | E48: 352872 | F48: 东方日升 | G48: 安阳荣名库 | H48: 邯郸一铭新能源科技有限公司 | I48: 2023-10-17
A49: 46 | B49: 东方日升660 | C49: 160 | D49: 1014 | E49: 162240 | F49: 东方日升 | G49: 安阳荣名库 | H49: 河南晶特新能源有限公司 | I49: 2023-10-17
A50: 47 | B50: 东方日升660 | C50: 30 | D50: 1014 | E50: 30420 | F50: 东方日升 | G50: 安阳荣名库 | H50: 河北顺公建筑工程有限公司 | I50: 2023-10-18
A51: 48 | B51: 东方日升600 | C51: 256 | D51: 1108.8 | E51: 283852.8 | F51: 东方日升 | G51: 庄河荣名库 | H51: 大连竣泰通信工程有限公司 | I51: 2023-10-18
A52: 49 | B52: 逆变器-36 | C52: 1 | D52: 8525 | E52: 8525 | F52: 锦浪 | G52: 庄河荣名库 | H52: 大连竣泰通信工程有限公司 | I52: 2023-10-18
A53: 50 | B53: 逆变器-30 | C53: 2 | D53: 7700 | E53: 15400 | F53: 山海新能-锦浪 | G53: 庄河荣名库 | H53: 大连竣泰通信工程有限公司 | I53: 2023-10-18
A54: 51 | B54: 逆变器-40 | C54: 1 | D54: 8690 | E54: 8690 | F54: 山海新能-锦浪 | G54: 庄河荣名库 | H54: 大连竣泰通信工程有限公司 | I54: 2023-10-18
A55: 52 | B55: 东方日升660 | C55: 768 | D55: 1014 | E55: 778752 | F55: 东方日升 | G55: 安阳荣名库 | H55: 河南晶特新能源有限公司 | I55: 2023-10-19
A56: 53 | B56: 东方日升660双玻 | C56: 38 | D56: 1082.4 | E56: 41131.2 | F56: 东方日升 | G56: 安阳荣名库 | H56: 河北冀朋工程项目管理有限公司 | I56: 2023-10-19
A57: 54 | B57: 东方日升600 | C57: 128 | D57: 1108.8 | E57: 141926.4 | F57: 东方日升 | G57: 庄河荣名库 | H57: 辽宁圣东建筑工程有限公司 | I57: 2023-10-19
A58: 55 | B58: 逆变器-30 | C58: 1 | D58: 7700 | E58: 7700 | F58: 山海新能-锦浪 | G58: 庄河荣名库 | H58: 大连竣泰通信工程有限公司 | I58: 2023-10-19
A59: 56 | B59: 东方日升660 | C59: 192 | D59: 1014 | E59: 194688 | F59: 东方日升 | G59: 安阳荣名库 | H59: 河南晶特新能源有限公司 | I59: 2023-10-23
A60: 57 | B60: 东方日升660 | C60: 3072 | D60: 1014 | E60: 3115008 | F60: 东方日升 | G60: 安阳荣名库 | H60: 河南晶特新能源有限公司 | I60: 2023-10-23
A61: 58 | B61: 东方日升660 | C61: 2660 | D61: 1014 | E61: 2697240 | F61: 东方日升 | G61: 安阳荣名库 | H61: 启阳(安阳)新能源有限公司 | I61: 2023-10-23
A62: 59 | B62: 逆变器-60 | C62: 1 | D62: 11300 | E62: 11300 | F62: 锦浪 | G62: 庄河荣名库 | H62: 大连竣泰通信工程有限公司 | I62: 2023-10-24
A63: 60 | B63: 逆变器-80 | C63: 4 | D63: 17300 | E63: 69200 | F63: 锦浪 | G63: 庄河荣名库 | H63: 大连竣泰通信工程有限公司 | I63: 2023-10-24
A64: 61 | B64: 逆变器-50 | C64: 1 | D64: 11990 | E64: 11990 | F64: 锦浪 | G64: 庄河荣名库 | H64: 辽宁圣东建筑工程有限公司 | I64: 2023-10-24
A65: 62 | B65: 逆变器-40 | C65: 1 | D65: 8690 | E65: 8690 | F65: 山海新能-锦浪 | G65: 庄河荣名库 | H65: 大连竣泰通信工程有限公司 | I65: 2023-10-25
A66: 63 | B66: 逆变器-25 | C66: 8 | D66: 5170 | E66: 41360 | F66: 山海新能-锦浪 | G66: 安阳荣名库 | H66: 河南晶特新能源有限公司 | I66: 2023-10-26
A67: 64 | B67: 逆变器-36 | C67: 6 | D67: 8525 | E67: 51150 | F67: 山海新能-锦浪 | G67: 安阳荣名库 | H67: 河南晶特新能源有限公司 | I67: 2023-10-26
A68: 65 | B68: 逆变器-50 | C68: 14 | D68: 11990 | E68: 167860 | F68: 山海新能-锦浪 | G68: 安阳荣名库 | H68: 河南晶特新能源有限公司 | I68: 2023-10-26
A69: 66 | B69: 逆变器-60 | C69: 12 | D69: 11300 | E69: 135600 | F69: 山海新能-锦浪 | G69: 安阳荣名库 | H69: 河南晶特新能源有限公司 | I69: 2023-10-26
A70: 67 | B70: 逆变器-80 | C70: 4 | D70: 17300 | E70: 69200 | F70: 山海新能-锦浪 | G70: 安阳荣名库 | H70: 河南晶特新能源有限公司 | I70: 2023-10-26
A71: 68 | B71: 逆变器-13 | C71: 1 | D71: 3520 | E71: 3520 | F71: 山海新能-锦浪 | G71: 安阳荣名库 | H71: 河南晶特新能源有限公司 | I71: 2023-10-26
A72: 69 | B72: 逆变器-30 | C72: 6 | D72: 7700 | E72: 46200 | F72: 山海新能-锦浪 | G72: 安阳荣名库 | H72: 河南晶特新能源有限公司 | I72: 2023-10-26
A73: 70 | B73: 逆变器-15 | C73: 1 | D73: 3905 | E73: 3905 | F73: 山海新能-锦浪 | G73: 安阳荣名库 | H73: 唐县冉灏新能源开发有限责任公司 | I73: 2023-10-26
A74: 71 | B74: 逆变器-20 | C74: 2 | D74: 4510 | E74: 9020 | F74: 山海新能-锦浪 | G74: 安阳荣名库 | H74: 唐县冉灏新能源开发有限责任公司 | I74: 2023-10-26
A75: 72 | B75: 逆变器-30 | C75: 2 | D75: 7700 | E75: 15400 | F75: 山海新能-锦浪 | G75: 安阳荣名库 | H75: 唐县冉灏新能源开发有限责任公司 | I75: 2023-10-26
A76: 73 | B76: 逆变器-40 | C76: 2 | D76: 8690 | E76: 17380 | F76: 山海新能-锦浪 | G76: 安阳荣名库 | H76: 唐县冉灏新能源开发有限责任公司 | I76: 2023-10-26
A77: 74 | B77: 逆变器-50 | C77: 3 | D77: 11990 | E77: 35970 | F77: 山海新能-锦浪 | G77: 安阳荣名库 | H77: 唐县冉灏新能源开发有限责任公司 | I77: 2023-10-26
A78: 75 | B78: 逆变器-36 | C78: 6 | D78: 8525 | E78: 51150 | F78: 山海新能-锦浪 | G78: 安阳荣名库 | H78: 唐县冉灏新能源开发有限责任公司 | I78: 2023-10-26
A79: 76 | B79: 逆变器-25 | C79: 5 | D79: 5170 | E79: 25850 | F79: 山海新能-锦浪 | G79: 安阳荣名库 | H79: 河北冀朋工程项目管理有限公司 | I79: 2023-10-26
A80: 77 | B80: 逆变器-36 | C80: 10 | D80: 8525 | E80: 85250 | F80: 山海新能-锦浪 | G80: 安阳荣名库 | H80: 河北冀朋工程项目管理有限公司 | I80: 2023-10-26
A81: 78 | B81: 逆变器-30 | C81: 3 | D81: 7700 | E81: 23100 | F81: 山海新能-锦浪 | G81: 安阳荣名库 | H81: 河北冀朋工程项目管理有限公司 | I81: 2023-10-26
A82: 79 | B82: 逆变器-50 | C82: 14 | D82: 11990 | E82: 167860 | F82: 山海新能-锦浪 | G82: 安阳荣名库 | H82: 河北冀朋工程项目管理有限公司 | I82: 2023-10-26
A83: 80 | B83: 逆变器-60 | C83: 4 | D83: 11300 | E83: 45200 | F83: 山海新能-锦浪 | G83: 安阳荣名库 | H83: 河北冀朋工程项目管理有限公司 | I83: 2023-10-26
A84: 81 | B84: 逆变器-80 | C84: 2 | D84: 17300 | E84: 34600 | F84: 山海新能-锦浪 | G84: 安阳荣名库 | H84: 河北冀朋工程项目管理有限公司 | I84: 2023-10-26
A85: 82 | B85: 逆变器-25 | C85: 1 | D85: 5170 | E85: 5170 | F85: 山海新能-锦浪 | G85: 安阳荣名库 | H85: 唐县德闰新能源开发有限公司 | I85: 2023-10-26
A86: 83 | B86: 逆变器-36 | C86: 2 | D86: 8525 | E86: 17050 | F86: 山海新能-锦浪 | G86: 安阳荣名库 | H86: 唐县德闰新能源开发有限公司 | I86: 2023-10-26
A87: 84 | B87: 逆变器-30 | C87: 4 | D87: 7700 | E87: 30800 | F87: 山海新能-锦浪 | G87: 安阳荣名库 | H87: 唐县德闰新能源开发有限公司 | I87: 2023-10-26
A88: 85 | B88: 逆变器-50 | C88: 4 | D88: 11990 | E88: 47960 | F88: 山海新能-锦浪 | G88: 安阳荣名库 | H88: 唐县德闰新能源开发有限公司 | I88: 2023-10-26
A89: 86 | B89: 逆变器-60 | C89: 3 | D89: 11300 | E89: 33900 | F89: 山海新能-锦浪 | G89: 安阳荣名库 | H89: 唐县德闰新能源开发有限公司 | I89: 2023-10-26
A90: 87 | B90: 逆变器-80 | C90: 3 | D90: 17300 | E90: 51900 | F90: 山海新能-锦浪 | G90: 安阳荣名库 | H90: 唐县德闰新能源开发有限公司 | I90: 2023-10-26
A91: 88 | B91: 逆变器-20 | C91: 1 | D91: 4510 | E91: 4510 | F91: 山海新能-锦浪 | G91: 安阳荣名库 | H91: 唐县德闰新能源开发有限公司 | I91: 2023-10-26
A92: 89 | B92: 逆变器-40 | C92: 2 | D92: 8690 | E92: =D92*C92 -> 17380 | F92: 山海新能-锦浪 | G92: 安阳荣名库 | H92: 唐县德闰新能源开发有限公司 | I92: 2023-10-26
A93: 90 | B93: 逆变器-25 | C93: 5 | D93: 5170 | E93: 25850 | F93: 山海新能-锦浪 | G93: 安阳荣名库 | H93: 启阳(安阳)新能源有限公司 | I93: 2023-10-26
A94: 91 | B94: 逆变器-36 | C94: 6 | D94: 8525 | E94: 51150 | F94: 山海新能-锦浪 | G94: 安阳荣名库 | H94: 启阳(安阳)新能源有限公司 | I94: 2023-10-26
A95: 92 | B95: 逆变器-50 | C95: 4 | D95: 11990 | E95: 47960 | F95: 山海新能-锦浪 | G95: 安阳荣名库 | H95: 启阳(安阳)新能源有限公司 | I95: 2023-10-26
A96: 93 | B96: 逆变器-60 | C96: 9 | D96: 11300 | E96: 101700 | F96: 山海新能-锦浪 | G96: 安阳荣名库 | H96: 启阳(安阳)新能源有限公司 | I96: 2023-10-26
A97: 94 | B97: 逆变器-80 | C97: 4 | D97: 17300 | E97: 69200 | F97: 山海新能-锦浪 | G97: 安阳荣名库 | H97: 启阳(安阳)新能源有限公司 | I97: 2023-10-26
A98: 95 | B98: 逆变器-40 | C98: 3 | D98: 8690 | E98: 26070 | F98: 山海新能-锦浪 | G98: 安阳荣名库 | H98: 启阳(安阳)新能源有限公司 | I98: 2023-10-26
A99: 96 | B99: 逆变器-25 | C99: 6 | D99: 5170 | E99: 31020 | F99: 山海新能-锦浪 | G99: 安阳荣名库 | H99: 邯郸一铭新能源科技有限公司 | I99: 2023-10-26
A100: 97 | B100: 逆变器-36 | C100: 6 | D100: 8525 | E100: 51150 | F100: 山海新能-锦浪 | G100: 安阳荣名库 | H100: 邯郸一铭新能源科技有限公司 | I100: 2023-10-26
A101: 98 | B101: 逆变器-50 | C101: 5 | D101: 11990 | E101: 59950 | F101: 山海新能-锦浪 | G101: 安阳荣名库 | H101: 邯郸一铭新能源科技有限公司 | I101: 2023-10-26
A102: 99 | B102: 逆变器-60 | C102: 2 | D102: 11300 | E102: 22600 | F102: 山海新能-锦浪 | G102: 安阳荣名库 | H102: 邯郸一铭新能源科技有限公司 | I102: 2023-10-26
A103: 100 | B103: 逆变器-80 | C103: 2 | D103: 17300 | E103: 34600 | F103: 山海新能-锦浪 | G103: 安阳荣名库 | H103: 邯郸一铭新能源科技有限公司 | I103: 2023-10-26
A104: 101 | B104: 逆变器-30 | C104: 1 | D104: 7700 | E104: 7700 | F104: 山海新能-锦浪 | G104: 安阳荣名库 | H104: 河北顺公建筑工程有限公司 | I104: 2023-10-26
A105: 102 | B105: 逆变器-50 | C105: 1 | D105: 11990 | E105: 11990 | F105: 山海新能-锦浪 | G105: 安阳荣名库 | H105: 河北顺公建筑工程有限公司 | I105: 2023-10-26
A106: 103 | B106: 逆变器-60 | C106: 2 | D106: 11300 | E106: 22600 | F106: 山海新能-锦浪 | G106: 安阳荣名库 | H106: 河北顺公建筑工程有限公司 | I106: 2023-10-26
A107: 104 | B107: 逆变器-80 | C107: 1 | D107: 17300 | E107: 17300 | F107: 山海新能-锦浪 | G107: 安阳荣名库 | H107: 河北顺公建筑工程有限公司 | I107: 2023-10-26
A108: 105 | B108: 逆变器-50 | C108: 1 | D108: 11990 | E108: 11990 | F108: 锦浪 | G108: 庄河荣名库 | H108: 辽宁圣东建筑工程有限公司 | I108: 2023-10-26
A109: 106 | B109: 逆变器-20 | C109: 5 | D109: 4510 | E109: 22550 | F109: 山海新能-锦浪 | G109: 安阳荣名库 | I109: 2023-10-26
A110: 107 | B110: 逆变器-60 | C110: 1 | D110: 11300 | E110: 11300 | F110: 锦浪 | G110: 庄河荣名库 | H110: 辽宁圣东建筑工程有限公司 | I110: 2023-10-27
A111: 108 | B111: 逆变器-60 | C111: 1 | D111: 11300 | E111: 11300 | F111: 锦浪 | G111: 庄河荣名库 | H111: 大连竣泰通信工程有限公司 | I111: 2023-10-27
A112: 109 | B112: 逆变器-110 | C112: 16 | D112: 19800 | E112: 316800 | F112: 山海新能-锦浪 | G112: 庄河荣名库 | H112: 曲阜荣名库 | I112: 2023-10-27
A113: 110 | B113: 逆变器-30 | C113: 6 | D113: 7700 | E113: 46200 | F113: 山海新能-锦浪 | G113: 安阳荣名库 | H113: 河南晶特新能源有限公司 | I113: 2023-10-30
A114: 111 | B114: 逆变器-40 | C114: 6 | D114: 8690 | E114: 52140 | F114: 山海新能-锦浪 | G114: 安阳荣名库 | H114: 河南晶特新能源有限公司 | I114: 2023-10-30
A115: 112 | B115: 逆变器-50 | C115: 4 | D115: 11990 | E115: 47960 | F115: 山海新能-锦浪 | G115: 安阳荣名库 | H115: 河南晶特新能源有限公司 | I115: 2023-10-30
A116: 113 | B116: 逆变器-30 | C116: 3 | D116: 7700 | E116: 23100 | F116: 山海新能-锦浪 | G116: 安阳荣名库 | H116: 邯郸一铭新能源科技有限公司 | I116: 2023-10-30
A117: 114 | B117: 逆变器-40 | C117: 3 | D117: 8690 | E117: 26070 | F117: 山海新能-锦浪 | G117: 安阳荣名库 | H117: 邯郸一铭新能源科技有限公司 | I117: 2023-10-30
A118: 115 | B118: 逆变器-50 | C118: 2 | D118: 11990 | E118: 23980 | F118: 山海新能-锦浪 | G118: 安阳荣名库 | H118: 邯郸一铭新能源科技有限公司 | I118: 2023-10-30
A119: 116 | B119: 逆变器-40 | C119: 1 | D119: 8690 | E119: 8690 | F119: 山海新能-锦浪 | G119: 安阳荣名库 | H119: 河北顺公建筑工程有限公司 | I119: 2023-10-30
A120: 117 | B120: 逆变器-60 | C120: 1 | D120: 11300 | E120: 11300 | F120: 山海新能-锦浪 | G120: 安阳荣名库 | H120: 河北顺公建筑工程有限公司 | I120: 2023-10-30
A121: 118 | B121: 逆变器-25 | C121: 6 | D121: 5170 | E121: 31020 | F121: 山海新能-锦浪 | G121: 安阳荣名库 | H121: 河南省茂凯莱新能源科技有限公司 | I121: 2023-10-30
A122: 119 | B122: 逆变器-15 | C122: 1 | D122: 3905 | E122: 3905 | F122: 山海新能-锦浪 | G122: 安阳荣名库 | H122: 河北冀朋工程项目管理有限公司 | I122: 2023-10-30
A123: 120 | B123: 逆变器-30 | C123: 3 | D123: 7700 | E123: 23100 | F123: 山海新能-锦浪 | G123: 安阳荣名库 | H123: 河北冀朋工程项目管理有限公司 | I123: 2023-10-30
A124: 121 | B124: 逆变器-40 | C124: 5 | D124: 8690 | E124: 43450 | F124: 山海新能-锦浪 | G124: 安阳荣名库 | H124: 河北冀朋工程项目管理有限公司 | I124: 2023-10-30
A125: 122 | B125: 逆变器-110 | C125: 14 | D125: 19800 | E125: 277200 | F125: 山海新能-锦浪 | G125: 安阳荣名库 | H125: 曲阜荣名库 | I125: 2023-10-31
A126: 123 | B126: 逆变器-60 | C126: 1 | D126: 11300 | E126: 11300 | F126: 山海新能-锦浪 | G126: 庄河荣名库 | H126: 潍坊地球村能源有限公司 | I126: 2023-10-31
A127: 124 | B127: 合计 | C127: =SUM(C4:C126) -> 14451 | E127: =SUM(E4:E126) -> 18198589
A130: 出质人： | C130: 山海新能（北京）能源科技有限公司河北分公司
A135: 监管人： | C135: 宇信通创新技术（河北）有限公司

Sheet 20230930库存表
A1: 质物库存表
A2: 出质人： | C2: 山海新能（北京）能源科技有限公司河北分公司
A3: 质权人： | C3: 石家庄汇融农村合作银行
A4: 序号 | B4: 仓库名称 | C4: 物料组 | D4: 物料编号 | E4: 物料名称 | F4: 物料品牌 | G4: 物料单价 | H4: 库存数量 | I4: 货值
A5: 1 | B5: 江西余干库 | C5: 组件 | D5: 1004000067 | E5: 东方日升660双玻 | F5: 山海新能-东方日升 | G5: 1082.4 | H5: 3264 | I5: =G5*H5 -> 3532953.6
A6: 2 | B6: 江西余干库 | C6: 逆变器 | D6: 2001000015 | E6: 逆变器-15 | F6: 山海新能-锦浪 | G6: 3905 | H6: 10 | I6: 39050
A7: 3 | B7: 江西余干库 | C7: 逆变器 | D7: 2001000020 | E7: 逆变器-20 | F7: 山海新能-锦浪 | G7: 4510 | H7: 64 | I7: 288640
A8: 4 | B8: 江西余干库 | C8: 逆变器 | D8: 2001000025 | E8: 逆变器-25 | F8: 山海新能-锦浪 | G8: 5170 | H8: 115 | I8: 594550
A9: 5 | B9: 江西余干库 | C9: 逆变器 | D9: 2001000030 | E9: 逆变器-30 | F9: 山海新能-锦浪 | G9: 7700 | H9: 76 | I9: 585200
A10: 6 | B10: 江西余干库 | C10: 逆变器 | D10: 2001000036 | E10: 逆变器-36 | F10: 山海新能-锦浪 | G10: 8525 | H10: 18 | I10: 153450
A11: 7 | B11: 江西余干库 | C11: 逆变器 | D11: 2001000040 | E11: 逆变器-40 | F11: 山海新能-锦浪 | G11: 8690 | H11: 9 | I11: 78210
A12: 8 | B12: 江西余干库 | C12: 逆变器 | D12: 2001000050 | E12: 逆变器-50 | F12: 山海新能-锦浪 | G12: 11990 | H12: 3 | I12: 35970
A13: 9 | B13: 庄河荣名库 | C13: 组件 | D13: 1004000060 | E13: 东方日升600 | F13: 山海新能-东方日升 | G13: 1108.8 | H13: 1408 | I13: 1561190.4
A14: 10 | B14: 庄河荣名库 | C14: 组件 | D14: 1001000054 | E14: 天合600 | F14: 山海智慧-天合 | G14: 1267 | H14: 0 | I14: 0
A15: 11 | B15: 庄河荣名库 | C15: 组件 | D15: 1004000047 | E15: 晶科475 | F15: 山海智慧-天合 | G15: 904 | H15: 2418 | I15: 2185872
A16: 12 | B16: 庄河荣名库 | C16: 逆变器 | D16: 2003000060 | E16: 逆变器-60 | F16: 山海新能-锦浪 | G16: 11300 | H16: 20 | I16: 226000
A17: 13 | B17: 庄河荣名库 | C17: 逆变器 | D17: 2003000040 | E17: 逆变器-40 | F17: 山海新能-固德威 | G17: 8171 | H17: 31 | I17: 253301
A18: 14 | B18: 庄河荣名库 | C18: 逆变器 | D18: 2003000036 | E18: 逆变器-36 | F18: 山海新能-固德威 | G18: 7660 | H18: 5 | I18: 38300
A19: 15 | B19: 庄河荣名库 | C19: 逆变器 | D19: 2003000030 | E19: 逆变器-30 | F19: 山海新能-固德威 | G19: 7100 | H19: 18 | I19: 127800
A20: 16 | B20: 庄河荣名库 | C20: 逆变器 | D20: 20010000110 | E20: 逆变器-110 | F20: 山海新能-锦浪 | G20: 19800 | H20: 22 | I20: 435600
A21: 17 | B21: 庄河荣名库 | C21: 逆变器 | D21: 2001000080 | E21: 逆变器-80 | F21: 山海新能-锦浪 | G21: 17300 | H21: 33 | I21: 570900
A22: 18 | B22: 庄河荣名库 | C22: 逆变器 | D22: 2001000008 | E22: 逆变器-8 | F22: 山海新能-锦浪 | G22: 2830 | H22: 50 | I22: 141500
A23: 19 | B23: 庄河荣名库 | C23: 逆变器 | D23: 2001000050 | E23: 逆变器-50 | F23: 山海新能-锦浪 | G23: 11990 | H23: 31 | I23: 371690
A24: 20 | B24: 庄河荣名库 | C24: 逆变器 | D24: 2001000013 | E24: 逆变器-13 | F24: 山海新能-锦浪 | G24: 3520 | H24: 0 | I24: 0
A25: 21 | B25: 庄河荣名库 | C25: 逆变器 | D25: 2001000015 | E25: 逆变器-15 | F25: 山海新能-锦浪 | G25: 3905 | H25: 43 | I25: 167915
A26: 22 | B26: 庄河荣名库 | C26: 逆变器 | D26: 2001000036 | E26: 逆变器-36 | F26: 山海新能-锦浪 | G26: 8525 | H26: 25 | I26: 213125
A27: 23 | B27: 庄河荣名库 | C27: 逆变器 | D27: 2001000030 | E27: 逆变器-30 | F27: 山海新能-锦浪 | G27: 7700 | H27: 48 | I27: 369600
A28: 24 | B28: 庄河荣名库 | C28: 逆变器 | D28: 2001000040 | E28: 逆变器-40 | F28: 山海新能-锦浪 | G28: 8690 | H28: 7 | I28: 60830
A29: 25 | B29: 庄河荣名库 | C29: 逆变器 | D29: 2001000033 | E29: 逆变器-33 | F29: 山海新能-锦浪 | G29: 8195 | H29: 36 | I29: 295020
A30: 26 | B30: 庄河荣名库 | C30: 逆变器 | D30: 2001000025 | E30: 逆变器-25 | F30: 山海新能-锦浪 | G30: 5170 | H30: 40 | I30: 206800
A31: 27 | B31: 庄河荣名库 | C31: 逆变器 | D31: 2001000020 | E31: 逆变器-20 | F31: 山海新能-锦浪 | G31: 4510 | H31: 66 | I31: 297660
A32: 28 | B32: 安阳荣名库 | C32: 组件 | D32: 1004000048 | E32: 晶科470 | F32: 山海新能 | G32: 904 | H32: 11036 | I32: 9976544
A33: 29 | B33: 安阳荣名库 | C33: 组件 | D33: 1004000067 | E33: 东方日升660双玻 | F33: 山海新能-东方日升 | G33: 1082.4 | H33: 1287 | I33: 1393048.8
A34: 30 | B34: 安阳荣名库 | C34: 组件 | D34: 1004000066 | E34: 东方日升660 | F34: 山海新能-东方日升 | G34: 1014 | H34: 10110 | I34: 10251540
A35: 31 | B35: 安阳荣名库 | C35: 组件 | D35: 1004000047 | E35: 晶科475 | F35: 山海智慧-天合 | G35: 904 | H35: 27942 | I35: 25259568
A36: 32 | B36: 安阳荣名库 | C36: 逆变器 | D36: 2002000040 | E36: 逆变器-40 | F36: 山海新能-古瑞瓦特 | G36: 7600 | H36: 12 | I36: 91200
A37: 33 | B37: 安阳荣名库 | C37: 逆变器 | D37: 2002000050 | E37: 逆变器-50 | F37: 山海新能-古瑞瓦特 | G37: 9000 | H37: 36 | I37: 324000
A38: 34 | B38: 安阳荣名库 | C38: 逆变器 | D38: 20010000110 | E38: 逆变器-110 | F38: 山海新能-锦浪 | G38: 19800 | H38: 71 | I38: 1405800
A39: 35 | B39: 安阳荣名库 | C39: 逆变器 | D39: 2001000030 | E39: 逆变器-30 | F39: 山海新能-锦浪 | G39: 7700 | H39: 24 | I39: 184800
A40: 36 | B40: 安阳荣名库 | C40: 逆变器 | D40: 2001000060 | E40: 逆变器-60 | F40: 山海新能-锦浪 | G40: 11300 | H40: 8 | I40: 90400
A41: 37 | B41: 安阳荣名库 | C41: 逆变器 | D41: 2001000080 | E41: 逆变器-80 | F41: 山海新能-锦浪 | G41: 17300 | H41: 6 | I41: 103800
A42: 38 | B42: 安阳荣名库 | C42: 逆变器 | D42: 2001000036 | E42: 逆变器-36 | F42: 山海新能-锦浪 | G42: 8525 | H42: 18 | I42: 153450
A43: 39 | B43: 安阳荣名库 | C43: 逆变器 | D43: 2001000050 | E43: 逆变器-50 | F43: 山海新能-锦浪 | G43: 11990 | H43: 22 | I43: 263780
A44: 40 | B44: 安阳荣名库 | C44: 逆变器 | D44: 2001000040 | E44: 逆变器-40 | F44: 山海新能-锦浪 | G44: 8690 | H44: 18 | I44: 156420
A45: 41 | B45: 安阳荣名库 | C45: 逆变器 | D45: 2001000013 | E45: 逆变器-13 | F45: 山海新能-锦浪 | G45: 3520 | H45: 3 | I45: 10560
A46: 42 | B46: 安阳荣名库 | C46: 逆变器 | D46: 2001000015 | E46: 逆变器-15 | F46: 山海新能-锦浪 | G46: 3905 | H46: 8 | I46: 31240
A47: 43 | B47: 安阳荣名库 | C47: 逆变器 | D47: 2004000133 | E47: 逆变器-33 | F47: 禾望 | G47: 7260 | H47: 34 | I47: 246840
A48: 44 | B48: 安阳荣名库 | C48: 逆变器 | D48: 2001000020 | E48: 逆变器-20 | F48: 山海新能-锦浪 | G48: 4510 | H48: 33 | I48: 148830
A49: 45 | B49: 安阳荣名库 | C49: 逆变器 | D49: 2001000025 | E49: 逆变器-25 | F49: 山海新能-锦浪 | G49: 5170 | H49: 17 | I49: 87890
A50: 46 | B50: 安阳荣名库 | C50: 逆变器 | D50: 2004000130 | E50: 逆变器-30 | F50: 禾望 | G50: 7040 | H50: 33 | I50: 232320
A51: 47 | B51: 安阳荣名库 | C51: 逆变器 | D51: 2004000136 | E51: 逆变器-36 | F51: 禾望 | G51: 7920 | H51: 17 | I51: 134640
A52: 48 | B52: 曲阜荣名库 | C52: 组件 | D52: 1004000060 | E52: 东方日升600 | F52: 山海新能-东方日升 | G52: 1108.8 | H52: 14680 | I52: 16277184
A53: 49 | B53: 曲阜荣名库 | C53: 组件 | D53: 1004000047 | E53: 晶科475 | F53: 山海智慧-天合 | G53: 904 | H53: 6448 | I53: 5828992
A54: 50 | B54: 曲阜荣名库 | C54: 组件 | D54: 1001000054 | E54: 天合600 | F54: 山海智慧-天合 | G54: 1267 | H54: 785 | I54: 994595
A55: 51 | B55: 曲阜荣名库 | C55: 组件 | D55: 1004000048 | E55: 晶科470 | F55: 山海新能 | G55: 904 | H55: 0 | I55: 0
A56: 52 | B56: 曲阜荣名库 | C56: 逆变器 | D56: 2001000013 | E56: 逆变器-13 | F56: 山海新能-锦浪 | G56: 3520 | H56: 8 | I56: 28160
A57: 53 | B57: 曲阜荣名库 | C57: 逆变器 | D57: 2001000050 | E57: 逆变器-50 | F57: 山海新能-锦浪 | G57: 11990 | H57: 20 | I57: 239800
A58: 54 | B58: 曲阜荣名库 | C58: 逆变器 | D58: 2001000080 | E58: 逆变器-80 | F58: 山海新能-锦浪 | G58: 17300 | H58: 4 | I58: 69200
A59: 55 | B59: 曲阜荣名库 | C59: 逆变器 | D59: 20010000110 | E59: 逆变器-110 | F59: 山海新能-锦浪 | G59: 19800 | H59: 5 | I59: 99000
A60: 56 | B60: 曲阜荣名库 | C60: 逆变器 | D60: 2001000060 | E60: 逆变器-60 | F60: 山海新能-锦浪 | G60: 11300 | H60: 6 | I60: 67800
A61: 57 | B61: 曲阜荣名库 | C61: 逆变器 | D61: 2002000050 | E61: 逆变器-50 | F61: 山海新能-古瑞瓦特 | G61: 9000 | H61: 10 | I61: 90000
A62: 58 | B62: 曲阜荣名库 | C62: 逆变器 | D62: 2002000040 | E62: 逆变器-40 | F62: 山海新能-古瑞瓦特 | G62: 7600 | H62: 14 | I62: 106400
A63: 59 | B63: 曲阜荣名库 | C63: 逆变器 | D63: 2003000050 | E63: 逆变器-50 | F63: 山海新能-固德威 | G63: 9900 | H63: 2 | I63: 19800
A64: 60 | B64: 曲阜荣名库 | C64: 逆变器 | D64: 2001000040 | E64: 逆变器-40 | F64: 山海新能-锦浪 | G64: 8690 | H64: 10 | I64: 86900
A65: 61 | B65: 曲阜荣名库 | C65: 逆变器 | D65: 2001000033 | E65: 逆变器-33 | F65: 山海新能-锦浪 | G65: 8195 | H65: 44 | I65: 360580
A66: 62 | B66: 曲阜荣名库 | C66: 逆变器 | D66: 2001000036 | E66: 逆变器-36 | F66: 山海新能-锦浪 | G66: 8525 | H66: 10 | I66: 85250
A67: 63 | B67: 曲阜荣名库 | C67: 逆变器 | D67: 2001000030 | E67: 逆变器-30 | F67: 山海新能-锦浪 | G67: 7700 | H67: 29 | I67: 223300
A68: 64 | B68: 曲阜荣名库 | C68: 逆变器 | D68: 2001000015 | E68: 逆变器-15 | F68: 山海新能-锦浪 | G68: 3905 | H68: 13 | I68: 50765
A69: 65 | B69: 曲阜荣名库 | C69: 逆变器 | D69: 2001000025 | E69: 逆变器-25 | F69: 山海新能-锦浪 | G69: 5170 | H69: 14 | I69: =G69*H69 -> 72380
A70: 66 | B70: 曲阜荣名库 | C70: 逆变器 | D70: 2001000020 | E70: 逆变器-20 | F70: 山海新能-锦浪 | G70: 4510 | H70: 25 | I70: 112750
A71: 67 | B71: 藁城荣名库 | C71: 组件 | D71: 1001000050 | E71: TSM-500DE18M(II） | F71: 山海智慧-天合 | G71: 900 | H71: 71 | I71: 63900
A72: 68 | B72: 藁城荣名库 | C72: 组件 | D72: 1001000053 | E72: TSM-535DE19 | F72: 山海智慧-天合 | G72: 963 | H72: 12 | I72: 11556
A73: 69 | B73: 藁城荣名库 | C73: 组件 | D73: 1002000053 | E73: 远显535 | F73: 山海智慧-远显 | G73: 996 | H73: 561 | I73: 558756
A74: 70 | B74: 藁城荣名库 | C74: 组件 | D74: 1003000053 | E74: 乐丰535 | F74: 山海智慧-乐丰 | G74: 996 | H74: 215 | I74: 214140
A75: 71 | B75: 藁城荣名库 | C75: 组件 | D75: 1003010053 | E75: 乐丰535（宽版） | F75: 山海智慧-乐丰（宽） | G75: 996 | H75: 1066 | I75: 1061736
A76: 72 | B76: 藁城荣名库 | C76: 组件 | D76: 1004000047 | E76: 晶科475 | F76: 山海智慧-天合 | G76: 904 | H76: 0 | I76: 0
A77: 73 | B77: 藁城荣名库 | C77: 组件 | D77: 1001000045 | E77: TSM-450DE17M(II） | F77: 山海智慧-天合 | G77: 810 | H77: 42 | I77: 34020
A78: 74 | B78: 藁城荣名库 | C78: 组件 | D78: 1004000048 | E78: 晶科470 | F78: 山海智慧-天合 | G78: 904 | H78: 10008 | I78: 9047232
A79: 75 | B79: 藁城荣名库 | C79: 逆变器 | D79: 2002000040 | E79: 逆变器-40 | F79: 山海新能-古瑞瓦特 | G79: 7600 | H79: 0 | I79: 0
A80: 76 | B80: 藁城荣名库 | C80: 逆变器 | D80: 2001000015 | E80: 逆变器-15 | F80: 山海新能-锦浪 | G80: 3905 | H80: 0 | I80: 0
A81: 77 | B81: 藁城荣名库 | C81: 逆变器 | D81: 2001000036 | E81: 逆变器-36 | F81: 山海新能-锦浪 | G81: 8525 | H81: 0 | I81: 0
A82: 78 | B82: 藁城荣名库 | C82: 逆变器 | D82: 2002000050 | E82: 逆变器-50 | F82: 山海新能-古瑞瓦特 | G82: 9000 | H82: 0 | I82: 0
A83: 79 | B83: 藁城荣名库 | C83: 逆变器 | D83: 2004000136 | E83: 逆变器-36 | F83: 禾望 | G83: 7920 | H83: 0 | I83: 0
A84: 80 | B84: 藁城荣名库 | C84: 逆变器 | D84: 2004000133 | E84: 逆变器-33 | F84: 禾望 | G84: 7260 | H84: 0 | I84: 0
A85: 81 | B85: 藁城荣名库 | C85: 逆变器 | D85: 2004000130 | E85: 逆变器-30 | F85: 禾望 | G85: 7040 | H85: 0 | I85: 0
A86: 82 | B86: 合计： | H86: =SUM(H5:H85) -> 92697 | I86: =SUM(I5:I85) -> 99181993.8
A88: 以上内容截止到2023年9月30日
A90: 出质人： | C90: 山海新能（北京）能源科技有限公司河北分公司
A94: 监管人： | C94: 宇信通创新技术（河北）有限公司
A97: 备注：1、以最近日期的库存表为准，自动覆盖前期库存表。
A98: 2、上表中“数量”、“重量”指标的计量单位按照实际质物品种填写。
A99: 3、表中格式可根据具体品种进行相应调整。

Sheet 202309入库表
A1: 货物入库质押申请/批准单
A2: 制单日期：2023年9月30日
A3: 序号 | B3: 产品名称 | C3: 数量 | D3: 单价/元 | E3: 金额/元 | F3: 产品厂家 | G3: 仓库地点 | H3: 入库车牌号 | I3: 时间
A4: 1 | B4: 逆变器-30 | C4: 26 | D4: 7700 | E4: =D4*C4 -> 200200 | F4: 山海新能-锦浪 | G4: 庄河荣名库 | I4: 2023-09-01
A5: 2 | B5: 逆变器-25 | C5: 17 | D5: 5170 | E5: 87890 | F5: 山海新能-锦浪 | G5: 庄河荣名库 | I5: 2023-09-01
A6: 3 | B6: 晶科475 | C6: 930 | D6: 904 | E6: 840720 | F6: 山海新能 | G6: 庄河荣名库 | I6: 2023-09-01
A7: 4 | B7: 晶科470 | C7: 682 | D7: 904 | E7: 616528 | F7: 山海新能 | G7: 安阳荣名库 | I7: 2023-09-01
A8: 5 | B8: 晶科470 | C8: 682 | D8: 904 | E8: 616528 | F8: 山海新能 | G8: 安阳荣名库 | I8: 2023-09-04
A9: 6 | B9: 晶科470 | C9: 682 | D9: 904 | E9: 616528 | F9: 山海新能 | G9: 安阳荣名库 | I9: 2023-09-04
A10: 7 | B10: 晶科470 | C10: 682 | D10: 904 | E10: 616528 | F10: 山海新能 | G10: 安阳荣名库 | I10: 2023-09-04
A11: 8 | B11: 晶科470 | C11: 682 | D11: 904 | E11: 616528 | F11: 山海新能 | G11: 安阳荣名库 | I11: 2023-09-05
A12: 9 | B12: 晶科470 | C12: 682 | D12: 904 | E12: 616528 | F12: 山海新能 | G12: 安阳荣名库 | I12: 2023-09-06
A13: 10 | B13: 晶科470 | C13: 930 | D13: 904 | E13: 840720 | F13: 山海新能 | G13: 安阳荣名库 | I13: 2023-09-06
A14: 11 | B14: 晶科470 | C14: 682 | D14: 904 | E14: 616528 | F14: 山海新能 | G14: 安阳荣名库 | I14: 2023-09-06
A15: 12 | B15: 晶科470 | C15: 682 | D15: 904 | E15: 616528 | F15: 山海新能 | G15: 安阳荣名库 | I15: 2023-09-09
A16: 13 | B16: 晶科470 | C16: 930 | D16: 904 | E16: 840720 | F16: 山海新能 | G16: 安阳荣名库 | I16: 2023-09-09
A17: 14 | B17: 晶科470 | C17: 682 | D17: 904 | E17: 616528 | F17: 山海新能 | G17: 安阳荣名库 | I17: 2023-09-09
A18: 15 | B18: 晶科470 | C18: 744 | D18: 904 | E18: 672576 | F18: 山海新能 | G18: 安阳荣名库 | I18: 2023-09-10
A19: 16 | B19: 逆变器-36 | C19: 1 | D19: 8525 | E19: =C19*D19 -> 8525 | F19: 山海新能-锦浪 | G19: 江西余干库 | I19: 2023-09-11
A20: 17 | B20: 逆变器-50 | C20: 1 | D20: 11990 | E20: =C20*D20 -> 11990 | F20: 山海新能-锦浪 | G20: 江西余干库 | I20: 2023-09-11
A21: 18 | B21: 逆变器-60 | C21: 30 | D21: 11300 | E21: =D21*C21 -> 339000 | F21: 山海新能-锦浪 | G21: 庄河荣名库 | I21: 2023-09-11
A22: 19 | B22: 东方日升600 | C22: 1728 | D22: 1108.8 | E22: 1916006.4 | F22: 东方日升 | G22: 庄河荣名库 | I22: 2023-09-11
A23: 20 | B23: 晶科475 | C23: 868 | D23: 904 | E23: 784672 | F23: 山海新能 | G23: 安阳荣名库 | I23: 2023-09-11
A24: 21 | B24: 晶科475 | C24: 3162 | D24: 904 | E24: 2858448 | F24: 山海新能 | G24: 安阳荣名库 | I24: 2023-09-11
A25: 22 | B25: 晶科475 | C25: 682 | D25: 904 | E25: 616528 | F25: 山海新能 | G25: 安阳荣名库 | I25: 2023-09-11
A26: 23 | B26: 晶科475 | C26: 930 | D26: 904 | E26: 840720 | F26: 山海新能 | G26: 安阳荣名库 | I26: 2023-09-11
A27: 24 | B27: 晶科475 | C27: 930 | D27: 904 | E27: 840720 | F27: 山海新能 | G27: 安阳荣名库 | I27: 2023-09-12
A28: 25 | B28: 东方日升600 | C28: 436 | D28: 1108.8 | E28: 483436.8 | F28: 东方日升 | G28: 曲阜荣名库 | I28: 2023-09-13
A29: 26 | B29: 逆变器-36 | C29: 5 | D29: 8525 | E29: 42625 | F29: 锦浪 | G29: 曲阜荣名库 | I29: 2023-09-13
A30: 27 | B30: 逆变器-25 | C30: 2 | D30: 5170 | E30: 10340 | F30: 锦浪 | G30: 曲阜荣名库 | I30: 2023-09-13
A31: 28 | B31: 逆变器-20 | C31: 1 | D31: 4510 | E31: 4510 | F31: 锦浪 | G31: 曲阜荣名库 | I31: 2023-09-13
A32: 29 | B32: 晶科475 | C32: 930 | D32: 904 | E32: 840720 | F32: 山海新能 | G32: 安阳荣名库 | I32: 2023-09-13
A33: 30 | B33: 晶科475 | C33: 930 | D33: 904 | E33: 840720 | F33: 山海新能 | G33: 安阳荣名库 | I33: 2023-09-13
A34: 31 | B34: 晶科475 | C34: 682 | D34: 904 | E34: 616528 | F34: 山海新能 | G34: 安阳荣名库 | I34: 2023-09-13
A35: 32 | B35: 晶科475 | C35: 682 | D35: 904 | E35: 616528 | F35: 山海新能 | G35: 安阳荣名库 | I35: 2023-09-14
A36: 33 | B36: 晶科475 | C36: 940 | D36: 904 | E36: 849760 | F36: 山海新能 | G36: 安阳荣名库 | I36: 2023-09-14
A37: 34 | B37: 晶科475 | C37: 682 | D37: 904 | E37: 616528 | F37: 山海新能 | G37: 安阳荣名库 | I37: 2023-09-14
A38: 35 | B38: 晶科475 | C38: 682 | D38: 904 | E38: 616528 | F38: 山海新能 | G38: 安阳荣名库 | I38: 2023-09-14
A39: 36 | B39: 晶科475 | C39: 682 | D39: 904 | E39: 616528 | F39: 山海新能 | G39: 安阳荣名库 | I39: 2023-09-14
A40: 37 | B40: 晶科475 | C40: 682 | D40: 904 | E40: 616528 | F40: 山海新能 | G40: 安阳荣名库 | I40: 2023-09-14
A41: 38 | B41: 晶科475 | C41: 682 | D41: 904 | E41: 616528 | F41: 山海新能 | G41: 安阳荣名库 | I41: 2023-09-14
A42: 39 | B42: 晶科475 | C42: 930 | D42: 904 | E42: 840720 | F42: 山海新能 | G42: 安阳荣名库 | I42: 2023-09-14
A43: 40 | B43: 晶科475 | C43: 682 | D43: 904 | E43: 616528 | F43: 山海新能 | G43: 安阳荣名库 | I43: 2023-09-14
A44: 41 | B44: 逆变器-60 | C44: 2 | D44: 11300 | E44: 22600 | F44: 山海新能-锦浪 | G44: 庄河荣名库 | I44: 2023-09-18
A45: 42 | B45: 晶科475 | C45: 314 | D45: 904 | E45: 283856 | F45: 山海新能 | G45: 安阳荣名库 | I45: 2023-09-19
A46: 43 | B46: 东方日升600 | C46: 1728 | D46: 1108.8 | E46: 1916006.4 | F46: 东方日升 | G46: 曲阜荣名库 | I46: 2023-09-20
A47: 44 | B47: 东方日升600 | C47: 1728 | D47: 1108.8 | E47: 1916006.4 | F47: 东方日升 | G47: 曲阜荣名库 | I47: 2023-09-21
A48: 45 | B48: 晶科470 | C48: 108 | D48: 904 | E48: 97632 | F48: 山海新能 | G48: 曲阜荣名库 | I48: 2023-09-21
A49: 46 | B49: 逆变器-15 | C49: 1 | D49: 3905 | E49: 3905 | F49: 锦浪 | G49: 曲阜荣名库 | I49: 2023-09-21
A50: 47 | B50: 逆变器-20 | C50: 1 | D50: 4510 | E50: 4510 | F50: 锦浪 | G50: 曲阜荣名库 | I50: 2023-09-21
A51: 48 | B51: 逆变器-25 | C51: 1 | D51: 5170 | E51: 5170 | F51: 锦浪 | G51: 曲阜荣名库 | I51: 2023-09-21
A52: 49 | B52: 东方日升600 | C52: 2614 | D52: 1108.8 | E52: 2898403.2 | F52: 东方日升 | G52: 庄河荣名库 | I52: 2023-09-22
A53: 50 | B53: 东方日升600 | C53: 1728 | D53: 1108.8 | E53: 1916006.4 | F53: 东方日升 | G53: 曲阜荣名库 | I53: 2023-09-22
A54: 51 | B54: 东方日升660 | C54: 23070 | D54: 1014 | E54: 23392980 | F54: 东方日升 | G54: 安阳荣名库 | I54: 2023-09-25
A55: 52 | B55: 逆变器-20 | C55: 20 | D55: 4510 | E55: 90200 | F55: 山海新能-锦浪 | G55: 安阳荣名库 | I55: 2023-09-25
A56: 53 | B56: 逆变器-25 | C56: 40 | D56: 5170 | E56: 206800 | F56: 山海新能-锦浪 | G56: 安阳荣名库 | I56: 2023-09-25
A57: 54 | B57: 逆变器-30 | C57: 40 | D57: 7700 | E57: 308000 | F57: 山海新能-锦浪 | G57: 安阳荣名库 | I57: 2023-09-25
A58: 55 | B58: 逆变器-36 | C58: 50 | D58: 8525 | E58: 426250 | F58: 锦浪 | G58: 安阳荣名库 | I58: 2023-09-25
A59: 56 | B59: 逆变器-40 | C59: 30 | D59: 8690 | E59: 260700 | F59: 锦浪 | G59: 安阳荣名库 | I59: 2023-09-25
A60: 57 | B60: 逆变器-50 | C60: 50 | D60: 11990 | E60: 599500 | F60: 锦浪 | G60: 安阳荣名库 | I60: 2023-09-25
A61: 58 | B61: 逆变器-60 | C61: 35 | D61: 11300 | E61: 395500 | F61: 锦浪 | G61: 安阳荣名库 | I61: 2023-09-25
A62: 59 | B62: 逆变器-80 | C62: 15 | D62: 17300 | E62: 259500 | F62: 锦浪 | G62: 安阳荣名库 | I62: 2023-09-25
A63: 60 | B63: 逆变器-15 | C63: 5 | D63: 3905 | E63: 19525 | F63: 锦浪 | G63: 安阳荣名库 | I63: 2023-09-25
A64: 61 | B64: 东方日升600 | C64: 2592 | D64: 1108.8 | E64: 2874009.6 | F64: 东方日升 | G64: 曲阜荣名库 | I64: 2023-09-25
A65: 62 | B65: 合计 | C65: =SUM(C4:C64) -> 61849 | E65: =SUM(E4:E64) -> 63990303.2
A69: 出质人： | C69: 山海新能（北京）能源科技有限公司河北分公司
A74: 监管人： | C74: 宇信通创新技术（河北）有限公司

Sheet 202309出库表
A1: 质物解除质押出库申请/批准单
A2: 制单日期：2023年9月30日
A3: 序号 | B3: 产品名称 | C3: 数量 | D3: 单价/元 | E3: 金额/元 | F3: 产品厂家 | G3: 仓库地点 | H3: 到达地点 | I3: 时间
A4: 1 | B4: 晶科470 | C4: 682 | D4: 904 | E4: =D4*C4 -> 616528 | F4: 山海新能 | G4: 藁城荣名库 | H4: 安阳荣名库 | I4: 2023-09-01
A5: 2 | B5: 东方日升660双玻 | C5: 384 | D5: 1082.4 | E5: =C5*D5 -> 415641.6 | F5: 山海新能-东方日升 | G5: 江西余干库 | H5: 江西大海光伏工程有限公司 | I5: 2023-09-02
A6: 3 | B6: 逆变器-20 | C6: 2 | D6: 4510 | E6: =D6*C6 -> 9020 | F6: 山海新能-锦浪 | G6: 曲阜荣名库 | H6: 成都盛世中丰工程有限公司 | I6: 2023-09-04
A7: 4 | B7: 晶科470 | C7: 682 | D7: 904 | E7: 616528 | F7: 山海新能 | G7: 藁城荣名库 | H7: 安阳荣名库 | I7: 2023-09-04
A8: 5 | B8: 晶科470 | C8: 682 | D8: 904 | E8: 616528 | F8: 山海新能 | G8: 藁城荣名库 | H8: 安阳荣名库 | I8: 2023-09-04
A9: 6 | B9: 晶科470 | C9: 682 | D9: 904 | E9: 616528 | F9: 山海新能 | G9: 藁城荣名库 | H9: 安阳荣名库 | I9: 2023-09-04
A10: 7 | B10: 晶科475 | C10: 930 | D10: 904 | E10: 840720 | F10: 山海新能 | G10: 藁城荣名库 | H10: 庄河荣名库 | I10: 2023-09-04
A11: 8 | B11: 逆变器-15 | C11: 2 | D11: 3905 | E11: 7810 | F11: 锦浪 | G11: 曲阜荣名库 | H11: 成都盛世中丰工程有限公司 | I11: 2023-09-05
A12: 9 | B12: 逆变器-20 | C12: 7 | D12: 4510 | E12: 31570 | F12: 锦浪 | G12: 曲阜荣名库 | H12: 成都盛世中丰工程有限公司 | I12: 2023-09-05
A13: 10 | B13: 逆变器-25 | C13: 1 | D13: 5170 | E13: 5170 | F13: 锦浪 | G13: 曲阜荣名库 | H13: 成都盛世中丰工程有限公司 | I13: 2023-09-05
A14: 11 | B14: 逆变器-50 | C14: 1 | D14: 11990 | E14: =C14*D14 -> 11990 | F14: 锦浪 | G14: 江西余干库 | H14: 江西大海光伏工程有限公司 | I14: 2023-09-05
A15: 12 | B15: 晶科470 | C15: 682 | D15: 904 | E15: =D15*C15 -> 616528 | F15: 山海新能 | G15: 藁城荣名库 | H15: 安阳荣名库 | I15: 2023-09-05
A16: 13 | B16: 晶科470 | C16: 930 | D16: 904 | E16: 840720 | F16: 山海新能 | G16: 藁城荣名库 | H16: 安阳荣名库 | I16: 2023-09-06
A17: 14 | B17: 晶科470 | C17: 682 | D17: 904 | E17: 616528 | F17: 山海新能 | G17: 藁城荣名库 | H17: 安阳荣名库 | I17: 2023-09-06
A18: 15 | B18: 晶科470 | C18: 682 | D18: 904 | E18: 616528 | F18: 山海新能 | G18: 藁城荣名库 | H18: 安阳荣名库 | I18: 2023-09-06
A19: 16 | B19: 逆变器-80 | C19: 1 | D19: 17300 | E19: 17300 | F19: 山海新能-锦浪 | G19: 庄河荣名库 | H19: 大连竣泰通信工程有限公司 | I19: 2023-09-08
A20: 17 | B20: 逆变器-25 | C20: 9 | D20: 5170 | E20: 46530 | F20: 山海新能-锦浪 | G20: 庄河荣名库 | H20: 辽宁圣东建筑工程有限公司 | I20: 2023-09-08
A21: 18 | B21: 逆变器-36 | C21: 1 | D21: 8525 | E21: 8525 | F21: 山海新能-锦浪 | G21: 藁城荣名库 | H21: 保定市锦润新能源科技有限公司 | I21: 2023-09-08
A22: 19 | B22: 东方日升660双玻 | C22: 160 | D22: 1082.4 | E22: =C22*D22 -> 173184 | F22: 东方日升 | G22: 江西余干库 | H22: 江西大海光伏工程有限公司 | I22: 2023-09-09
A23: 20 | B23: 逆变器-25 | C23: 2 | D23: 5170 | E23: =C23*D23 -> 10340 | F23: 锦浪 | G23: 江西余干库 | H23: 江西大海光伏工程有限公司 | I23: 2023-09-09
A24: 21 | B24: 逆变器-30 | C24: 1 | D24: 7700 | E24: =C24*D24 -> 7700 | F24: 锦浪 | G24: 江西余干库 | H24: 江西大海光伏工程有限公司 | I24: 2023-09-09
A25: 22 | B25: 逆变器-36 | C25: 1 | D25: 8525 | E25: =C25*D25 -> 8525 | F25: 锦浪 | G25: 江西余干库 | H25: 江西大海光伏工程有限公司 | I25: 2023-09-09
A26: 23 | B26: 逆变器-50 | C26: 1 | D26: 11990 | E26: =C26*D26 -> 11990 | F26: 锦浪 | G26: 江西余干库 | H26: 江西大海光伏工程有限公司 | I26: 2023-09-09
A27: 24 | B27: 晶科470 | C27: 682 | D27: 904 | E27: =D27*C27 -> 616528 | F27: 山海新能 | G27: 藁城荣名库 | H27: 安阳荣名库 | I27: 2023-09-09
A28: 25 | B28: 晶科470 | C28: 682 | D28: 904 | E28: 616528 | F28: 山海新能 | G28: 藁城荣名库 | H28: 安阳荣名库 | I28: 2023-09-09
A29: 26 | B29: 晶科475 | C29: 3162 | D29: 904 | E29: 2858448 | F29: 山海新能 | G29: 藁城荣名库 | H29: 安阳荣名库 | I29: 2023-09-10
A30: 27 | B30: 晶科470 | C30: 744 | D30: 904 | E30: 672576 | F30: 山海新能 | G30: 藁城荣名库 | H30: 安阳荣名库 | I30: 2023-09-10
A31: 28 | B31: 晶科475 | C31: 868 | D31: 904 | E31: 784672 | F31: 山海新能 | G31: 藁城荣名库 | H31: 安阳荣名库 | I31: 2023-09-10
A32: 29 | B32: 晶科475 | C32: 155 | D32: 904 | E32: 140120 | F32: 山海智慧-天合 | G32: 庄河荣名库 | H32: 潍坊地球村能源有限公司 | I32: 2023-09-11
A33: 30 | B33: 逆变器-60 | C33: 1 | D33: 11300 | E33: 11300 | F33: 山海新能-锦浪 | G33: 庄河荣名库 | H33: 潍坊地球村能源有限公司 | I33: 2023-09-11
A34: 31 | B34: 逆变器-60 | C34: 1 | D34: 11300 | E34: 11300 | F34: 山海新能-锦浪 | G34: 庄河荣名库 | H34: 大连竣泰通信工程有限公司 | I34: 2023-09-11
A35: 32 | B35: 晶科470 | C35: 930 | D35: 904 | E35: 840720 | F35: 山海新能 | G35: 藁城荣名库 | H35: 安阳荣名库 | I35: 2023-09-11
A36: 33 | B36: 晶科475 | C36: 930 | D36: 904 | E36: 840720 | F36: 山海新能 | G36: 藁城荣名库 | H36: 安阳荣名库 | I36: 2023-09-11
A37: 34 | B37: 晶科475 | C37: 682 | D37: 904 | E37: 616528 | F37: 山海新能 | G37: 藁城荣名库 | H37: 安阳荣名库 | I37: 2023-09-11
A38: 35 | B38: 东方日升600 | C38: 640 | D38: 1108.8 | E38: 709632 | F38: 东方日升 | G38: 庄河荣名库 | H38: 大连竣泰通信工程有限公司 | I38: 2023-09-12
A39: 36 | B39: 逆变器-33 | C39: 1 | D39: 8195 | E39: 8195 | F39: 山海新能-锦浪 | G39: 庄河荣名库 | H39: 大连竣泰通信工程有限公司 | I39: 2023-09-12
A40: 37 | B40: 逆变器-60 | C40: 1 | D40: 11300 | E40: 11300 | F40: 山海新能-锦浪 | G40: 庄河荣名库 | H40: 大连竣泰通信工程有限公司 | I40: 2023-09-12
A41: 38 | B41: 逆变器-40 | C41: 1 | D41: 8690 | E41: 8690 | F41: 山海新能-锦浪 | G41: 庄河荣名库 | H41: 大连竣泰通信工程有限公司 | I41: 2023-09-12
A42: 39 | B42: 晶科475 | C42: 930 | D42: 904 | E42: 840720 | F42: 山海新能 | G42: 藁城荣名库 | H42: 安阳荣名库 | I42: 2023-09-12
A43: 40 | B43: 晶科475 | C43: 682 | D43: 904 | E43: 616528 | F43: 山海新能 | G43: 藁城荣名库 | H43: 安阳荣名库 | I43: 2023-09-12
A44: 41 | B44: 晶科475 | C44: 930 | D44: 904 | E44: 840720 | F44: 山海新能 | G44: 藁城荣名库 | H44: 安阳荣名库 | I44: 2023-09-12
A45: 42 | B45: 逆变器-36 | C45: 5 | D45: 8525 | E45: 42625 | F45: 锦浪 | G45: 曲阜荣名库 | H45: 成都盛世中丰工程有限公司 | I45: 2023-09-13
A46: 43 | B46: 逆变器-25 | C46: 2 | D46: 5170 | E46: 10340 | F46: 锦浪 | G46: 曲阜荣名库 | H46: 成都盛世中丰工程有限公司 | I46: 2023-09-13
A47: 44 | B47: 逆变器-20 | C47: 1 | D47: 4510 | E47: 4510 | F47: 锦浪 | G47: 曲阜荣名库 | H47: 成都盛世中丰工程有限公司 | I47: 2023-09-13
A48: 45 | B48: 东方日升600 | C48: 436 | D48: 1108.8 | E48: 483436.8 | F48: 东方日升 | G48: 曲阜荣名库 | H48: 成都盛世中丰工程有限公司 | I48: 2023-09-13
A49: 46 | B49: 晶科475 | C49: 930 | D49: 904 | E49: 840720 | F49: 山海新能 | G49: 藁城荣名库 | H49: 安阳荣名库 | I49: 2023-09-13
A50: 47 | B50: 晶科475 | C50: 682 | D50: 904 | E50: 616528 | F50: 山海新能 | G50: 藁城荣名库 | H50: 安阳荣名库 | I50: 2023-09-13
A51: 48 | B51: 晶科475 | C51: 682 | D51: 904 | E51: 616528 | F51: 山海新能 | G51: 藁城荣名库 | H51: 安阳荣名库 | I51: 2023-09-13
A52: 49 | B52: 晶科475 | C52: 682 | D52: 904 | E52: 616528 | F52: 山海新能 | G52: 藁城荣名库 | H52: 安阳荣名库 | I52: 2023-09-13
A53: 50 | B53: 晶科475 | C53: 682 | D53: 904 | E53: 616528 | F53: 山海新能 | G53: 藁城荣名库 | H53: 安阳荣名库 | I53: 2023-09-13
A54: 51 | B54: 晶科475 | C54: 930 | D54: 904 | E54: 840720 | F54: 山海新能 | G54: 藁城荣名库 | H54: 安阳荣名库 | I54: 2023-09-13
A55: 52 | B55: 逆变器-60 | C55: 5 | D55: 11300 | E55: 56500 | F55: 锦浪 | G55: 庄河荣名库 | H55: 辽宁圣东建筑工程有限公司 | I55: 2023-09-14
A56: 53 | B56: 东方日升660双玻 | C56: 544 | D56: 1082.4 | E56: =C56*D56 -> 588825.6 | F56: 东方日升 | G56: 江西余干库 | H56: 江西大海光伏工程有限公司 | I56: 2023-09-14
A57: 54 | B57: 逆变器-25 | C57: 5 | D57: 5170 | E57: 25850 | F57: 锦浪 | G57: 江西余干库 | H57: 江西大海光伏工程有限公司 | I57: 2023-09-14
A58: 55 | B58: 逆变器-30 | C58: 4 | D58: 7700 | E58: 30800 | F58: 锦浪 | G58: 江西余干库 | H58: 江西大海光伏工程有限公司 | I58: 2023-09-14
A59: 56 | B59: 逆变器-50 | C59: 1 | D59: 11990 | E59: 11990 | F59: 锦浪 | G59: 江西余干库 | H59: 江西大海光伏工程有限公司 | I59: 2023-09-14
A60: 57 | B60: 东方日升660双玻 | C60: 160 | D60: 1082.4 | E60: 173184 | F60: 东方日升 | G60: 江西余干库 | H60: 江西大海光伏工程有限公司 | I60: 2023-09-14
A61: 58 | B61: 逆变器-30 | C61: 1 | D61: 7700 | E61: 7700 | F61: 锦浪 | G61: 江西余干库 | H61: 江西大海光伏工程有限公司 | I61: 2023-09-14
A62: 59 | B62: 逆变器-40 | C62: 1 | D62: 8690 | E62: =D62*C62 -> 8690 | F62: 山海新能-锦浪 | G62: 庄河荣名库 | H62: 大连竣泰通信工程有限公司 | I62: 2023-09-14
A63: 60 | B63: 逆变器-60 | C63: 1 | D63: 11300 | E63: 11300 | F63: 锦浪 | G63: 庄河荣名库 | H63: 大连竣泰通信工程有限公司 | I63: 2023-09-14
A64: 61 | B64: 逆变器-60 | C64: 1 | D64: 11300 | E64: 11300 | F64: 锦浪 | G64: 庄河荣名库 | H64: 潍坊地球村能源有限公司 | I64: 2023-09-14
A65: 62 | B65: 晶科475 | C65: 682 | D65: 904 | E65: 616528 | F65: 山海新能 | G65: 藁城荣名库 | H65: 安阳荣名库 | I65: 2023-09-14
A66: 63 | B66: 晶科475 | C66: 940 | D66: 904 | E66: 849760 | F66: 山海新能 | G66: 藁城荣名库 | H66: 安阳荣名库 | I66: 2023-09-14
A67: 64 | B67: 晶科475 | C67: 682 | D67: 904 | E67: 616528 | F67: 山海新能 | G67: 藁城荣名库 | H67: 安阳荣名库 | I67: 2023-09-14
A68: 65 | B68: 晶科475 | C68: 682 | D68: 904 | E68: 616528 | F68: 山海新能 | G68: 藁城荣名库 | H68: 安阳荣名库 | I68: 2023-09-14
A69: 66 | B69: 东方日升600 | C69: 32 | D69: 1108.8 | E69: 35481.6 | F69: 东方日升 | G69: 曲阜荣名库 | H69: 成都盛世中丰工程有限公司 | I69: 2023-09-15
A70: 67 | B70: 东方日升600 | C70: 32 | D70: 1108.8 | E70: 35481.6 | F70: 东方日升 | G70: 曲阜荣名库 | H70: 成都盛世中丰工程有限公司 | I70: 2023-09-15
A71: 68 | B71: 东方日升600 | C71: 32 | D71: 1108.8 | E71: 35481.6 | F71: 东方日升 | G71: 曲阜荣名库 | H71: 成都盛世中丰工程有限公司 | I71: 2023-09-15
A72: 69 | B72: 逆变器-60 | C72: 3 | D72: 11300 | E72: 33900 | F72: 锦浪 | G72: 庄河荣名库 | H72: 大连竣泰通信工程有限公司 | I72: 2023-09-15
A73: 70 | B73: 东方日升600 | C73: 640 | D73: 1108.8 | E73: 709632 | F73: 东方日升 | G73: 庄河荣名库 | H73: 大连竣泰通信工程有限公司 | I73: 2023-09-15
A74: 71 | B74: 逆变器-50 | C74: 3 | D74: 11990 | E74: 35970 | F74: 锦浪 | G74: 庄河荣名库 | H74: 大连竣泰通信工程有限公司 | I74: 2023-09-15
A75: 72 | B75: 晶科475 | C75: 217 | D75: 904 | E75: 196168 | F75: 山海智慧-天合 | G75: 庄河荣名库 | H75: 大连竣泰通信工程有限公司 | I75: 2023-09-15
A76: 73 | B76: 逆变器-40 | C76: 1 | D76: 8690 | E76: 8690 | F76: 山海新能-锦浪 | G76: 庄河荣名库 | H76: 大连竣泰通信工程有限公司 | I76: 2023-09-16
A77: 74 | B77: 东方日升600 | C77: 288 | D77: 1108.8 | E77: 319334.4 | F77: 东方日升 | G77: 庄河荣名库 | H77: 辽宁圣东建筑工程有限公司 | I77: 2023-09-18
A78: 75 | B78: 东方日升660双玻 | C78: 160 | D78: 1082.4 | E78: =C78*D78 -> 173184 | F78: 东方日升 | G78: 江西余干库 | H78: 江西大海光伏工程有限公司 | I78: 2023-09-18
A79: 76 | B79: 逆变器-25 | C79: 1 | D79: 5170 | E79: =C79*D79 -> 5170 | F79: 锦浪 | G79: 江西余干库 | H79: 江西大海光伏工程有限公司 | I79: 2023-09-18
A80: 77 | B80: 逆变器-30 | C80: 1 | D80: 7700 | E80: =C80*D80 -> 7700 | F80: 锦浪 | G80: 江西余干库 | H80: 江西大海光伏工程有限公司 | I80: 2023-09-18
A81: 78 | B81: 逆变器-36 | C81: 1 | D81: 8525 | E81: =C81*D81 -> 8525 | F81: 锦浪 | G81: 江西余干库 | H81: 江西大海光伏工程有限公司 | I81: 2023-09-18
A82: 79 | B82: 晶科475 | C82: 314 | D82: 904 | E82: =D82*C82 -> 283856 | F82: 山海新能 | G82: 藁城荣名库 | H82: 安阳荣名库 | I82: 2023-09-18
A83: 80 | B83: 逆变器-80 | C83: 1 | D83: 17300 | E83: =D83*C83 -> 17300 | F83: 锦浪 | G83: 庄河荣名库 | H83: 大连竣泰通信工程有限公司 | I83: 2023-09-20
A84: 81 | B84: 东方日升600 | C84: 32 | D84: 1108.8 | E84: =D84*C84 -> 35481.6 | F84: 东方日升 | G84: 曲阜荣名库 | H84: 成都盛世中丰工程有限公司 | I84: 2023-09-21
A85: 82 | B85: 东方日升600 | C85: 32 | D85: 1108.8 | E85: =D85*C85 -> 35481.6 | F85: 东方日升 | G85: 曲阜荣名库 | H85: 成都盛世中丰工程有限公司 | I85: 2023-09-21
A86: 83 | B86: 东方日升600 | C86: 32 | D86: 1108.8 | E86: =D86*C86 -> 35481.6 | F86: 东方日升 | G86: 曲阜荣名库 | H86: 成都盛世中丰工程有限公司 | I86: 2023-09-21
A87: 84 | B87: 逆变器-30 | C87: 1 | D87: 7700 | E87: =C87*D87 -> 7700 | F87: 锦浪 | G87: 江西余干库 | H87: 江西大海光伏工程有限公司 | I87: 2023-09-22
A88: 85 | B88: 东方日升600 | C88: 704 | D88: 1108.8 | E88: =D88*C88 -> 780595.2 | F88: 东方日升 | G88: 庄河荣名库 | H88: 大连竣泰通信工程有限公司 | I88: 2023-09-23
A89: 86 | B89: 逆变器-50 | C89: 2 | D89: 11990 | E89: 23980 | F89: 锦浪 | G89: 庄河荣名库 | H89: 大连竣泰通信工程有限公司 | I89: 2023-09-23
A90: 87 | B90: 逆变器-25 | C90: 1 | D90: 5170 | E90: 5170 | F90: 锦浪 | G90: 庄河荣名库 | H90: 大连竣泰通信工程有限公司 | I90: 2023-09-23
A91: 88 | B91: 逆变器-15 | C91: 2 | D91: 3905 | E91: 7810 | F91: 锦浪 | G91: 庄河荣名库 | H91: 大连竣泰通信工程有限公司 | I91: 2023-09-23
A92: 89 | B92: 逆变器-33 | C92: 2 | D92: 8195 | E92: 16390 | F92: 锦浪 | G92: 庄河荣名库 | H92: 大连竣泰通信工程有限公司 | I92: 2023-09-23
A93: 90 | B93: 逆变器-30 | C93: 1 | D93: 7700 | E93: 7700 | F93: 山海新能-锦浪 | G93: 庄河荣名库 | H93: 大连竣泰通信工程有限公司 | I93: 2023-09-23
A94: 91 | B94: 逆变器-15 | C94: 1 | D94: 3905 | E94: 3905 | F94: 锦浪 | G94: 曲阜荣名库 | H94: 山东顶创电力工程有限公司 | I94: 2023-09-24
A95: 92 | B95: 逆变器-20 | C95: 1 | D95: 4510 | E95: 4510 | F95: 锦浪 | G95: 曲阜荣名库 | H95: 山东顶创电力工程有限公司 | I95: 2023-09-24
A96: 93 | B96: 逆变器-25 | C96: 1 | D96: 5170 | E96: 5170 | F96: 锦浪 | G96: 曲阜荣名库 | H96: 山东顶创电力工程有限公司 | I96: 2023-09-24
A97: 94 | B97: 晶科470 | C97: =39+36+33 -> 108 | D97: 904 | E97: 97632 | F97: 山海新能 | G97: 曲阜荣名库 | H97: 山东顶创电力工程有限公司 | I97: 2023-09-24
A98: 95 | B98: 逆变器-30 | C98: 1 | D98: 7700 | E98: 7700 | F98: 锦浪 | G98: 曲阜荣名库 | H98: 成都盛世中丰工程有限公司 | I98: 2023-09-25
A99: 96 | B99: 东方日升660双玻 | C99: 1472 | D99: 1082.4 | E99: 1593292.8 | F99: 东方日升 | G99: 安阳荣名库 | H99: 河北顺公建筑工程有限公司 | I99: 2023-09-25
A100: 97 | B100: 逆变器-13 | C100: 1 | D100: 3520 | E100: 3520 | F100: 山海新能-锦浪 | G100: 安阳荣名库 | H100: 邯郸一铭新能源科技有限公司 | I100: 2023-09-25
A101: 98 | B101: 逆变器-20 | C101: 2 | D101: 4510 | E101: 9020 | F101: 山海新能-锦浪 | G101: 安阳荣名库 | H101: 邯郸一铭新能源科技有限公司 | I101: 2023-09-25
A102: 99 | B102: 逆变器-25 | C102: 4 | D102: 5170 | E102: 20680 | F102: 山海新能-锦浪 | G102: 安阳荣名库 | H102: 邯郸一铭新能源科技有限公司 | I102: 2023-09-25
A103: 100 | B103: 逆变器-30 | C103: 5 | D103: 7700 | E103: 38500 | F103: 山海新能-锦浪 | G103: 安阳荣名库 | H103: 邯郸一铭新能源科技有限公司 | I103: 2023-09-25
A104: 101 | B104: 逆变器-36 | C104: 5 | D104: 8525 | E104: 42625 | F104: 山海新能-锦浪 | G104: 安阳荣名库 | H104: 邯郸一铭新能源科技有限公司 | I104: 2023-09-25
A105: 102 | B105: 逆变器-40 | C105: 5 | D105: 8690 | E105: 43450 | F105: 山海新能-锦浪 | G105: 安阳荣名库 | H105: 邯郸一铭新能源科技有限公司 | I105: 2023-09-25
A106: 103 | B106: 逆变器-50 | C106: 2 | D106: 11990 | E106: 23980 | F106: 山海新能-锦浪 | G106: 安阳荣名库 | H106: 邯郸一铭新能源科技有限公司 | I106: 2023-09-25
A107: 104 | B107: 逆变器-60 | C107: 3 | D107: 11300 | E107: 33900 | F107: 山海新能-锦浪 | G107: 安阳荣名库 | H107: 邯郸一铭新能源科技有限公司 | I107: 2023-09-25
A108: 105 | B108: 东方日升660 | C108: 3072 | D108: 1014 | E108: 3115008 | F108: 东方日升 | G108: 安阳荣名库 | H108: 邯郸一铭新能源科技有限公司 | I108: 2023-09-25
A109: 106 | B109: 东方日升660 | C109: 3840 | D109: 1014 | E109: 3893760 | F109: 东方日升 | G109: 安阳荣名库 | H109: 河北冀朋工程项目管理有限公司 | I109: 2023-09-25
A110: 107 | B110: 逆变器-15 | C110: 1 | D110: 3905 | E110: 3905 | F110: 山海新能-锦浪 | G110: 安阳荣名库 | H110: 唐县冉灏新能源开发有限责任公司 | I110: 2023-09-25
A111: 108 | B111: 逆变器-20 | C111: 1 | D111: 4510 | E111: 4510 | F111: 山海新能-锦浪 | G111: 安阳荣名库 | H111: 唐县冉灏新能源开发有限责任公司 | I111: 2023-09-25
A112: 109 | B112: 逆变器-30 | C112: 3 | D112: 7700 | E112: 23100 | F112: 山海新能-锦浪 | G112: 安阳荣名库 | H112: 唐县冉灏新能源开发有限责任公司 | I112: 2023-09-25
A113: 110 | B113: 逆变器-36 | C113: 9 | D113: 8525 | E113: 76725 | F113: 山海新能-锦浪 | G113: 安阳荣名库 | H113: 唐县冉灏新能源开发有限责任公司 | I113: 2023-09-25
A114: 111 | B114: 逆变器-40 | C114: 2 | D114: 8690 | E114: 17380 | F114: 山海新能-锦浪 | G114: 安阳荣名库 | H114: 唐县冉灏新能源开发有限责任公司 | I114: 2023-09-25
A115: 112 | B115: 逆变器-60 | C115: 6 | D115: 11300 | E115: 67800 | F115: 山海新能-锦浪 | G115: 安阳荣名库 | H115: 唐县冉灏新能源开发有限责任公司 | I115: 2023-09-25
A116: 113 | B116: 逆变器-25 | C116: 10 | D116: 5170 | E116: 51700 | F116: 山海新能-锦浪 | G116: 安阳荣名库 | H116: 唐县冉灏新能源开发有限责任公司 | I116: 2023-09-25
A117: 114 | B117: 东方日升660 | C117: 1536 | D117: 1014 | E117: 1557504 | F117: 东方日升 | G117: 安阳荣名库 | H117: 唐县冉灏新能源开发有限责任公司 | I117: 2023-09-25
A118: 115 | B118: 阿特斯660 | C118: 1133 | D118: 1075.8 | E118: 1218881.4 | F118: 山海新能-阿特斯 | G118: 安阳荣名库 | H118: 启阳（安阳）新能源有限公司 | I118: 2023-09-25
A119: 116 | B119: 逆变器-20 | C119: 4 | D119: 4510 | E119: 18040 | F119: 山海新能-锦浪 | G119: 安阳荣名库 | H119: 河南省茂凯莱新能源科技有限公司 | I119: 2023-09-25
A120: 117 | B120: 逆变器-36 | C120: 2 | D120: 8525 | E120: 17050 | F120: 山海新能-锦浪 | G120: 安阳荣名库 | H120: 河南省茂凯莱新能源科技有限公司 | I120: 2023-09-25
A121: 118 | B121: 逆变器-40 | C121: 1 | D121: 8690 | E121: 8690 | F121: 山海新能-锦浪 | G121: 安阳荣名库 | H121: 河南省茂凯莱新能源科技有限公司 | I121: 2023-09-25
A122: 119 | B122: 逆变器-50 | C122: 3 | D122: 11990 | E122: 35970 | F122: 山海新能-锦浪 | G122: 安阳荣名库 | H122: 河南省茂凯莱新能源科技有限公司 | I122: 2023-09-25
A123: 120 | B123: 逆变器-60 | C123: 1 | D123: 11300 | E123: 11300 | F123: 山海新能-锦浪 | G123: 安阳荣名库 | H123: 河南省茂凯莱新能源科技有限公司 | I123: 2023-09-25
A124: 121 | B124: 逆变器-80 | C124: 4 | D124: 17300 | E124: 69200 | F124: 山海新能-锦浪 | G124: 安阳荣名库 | H124: 河南省茂凯莱新能源科技有限公司 | I124: 2023-09-25
A125: 122 | B125: 东方日升660 | C125: 1536 | D125: 1014 | E125: 1557504 | F125: 东方日升 | G125: 安阳荣名库 | H125: 河南省茂凯莱新能源科技有限公司 | I125: 2023-09-25
A126: 123 | B126: 逆变器-30 | C126: 1 | D126: 7700 | E126: 7700 | F126: 山海新能-锦浪 | G126: 安阳荣名库 | H126: 唐县德闰新能源开发有限公司 | I126: 2023-09-25
A127: 124 | B127: 逆变器-40 | C127: 2 | D127: 8690 | E127: 17380 | F127: 山海新能-锦浪 | G127: 安阳荣名库 | H127: 唐县德闰新能源开发有限公司 | I127: 2023-09-25
A128: 125 | B128: 逆变器-50 | C128: 4 | D128: 11990 | E128: 47960 | F128: 山海新能-锦浪 | G128: 安阳荣名库 | H128: 唐县德闰新能源开发有限公司 | I128: 2023-09-25
A129: 126 | B129: 逆变器-80 | C129: 2 | D129: 17300 | E129: 34600 | F129: 山海新能-锦浪 | G129: 安阳荣名库 | H129: 唐县德闰新能源开发有限公司 | I129: 2023-09-25
A130: 127 | B130: 东方日升660 | C130: 1536 | D130: 1014 | E130: 1557504 | F130: 东方日升 | G130: 安阳荣名库 | H130: 唐县德闰新能源开发有限公司 | I130: 2023-09-25
A131: 128 | B131: 逆变器-20 | C131: 4 | D131: 4510 | E131: 18040 | F131: 山海新能-锦浪 | G131: 安阳荣名库 | H131: 河南晶特新能源有限公司 | I131: 2023-09-25
A132: 129 | B132: 逆变器-25 | C132: 6 | D132: 5170 | E132: 31020 | F132: 山海新能-锦浪 | G132: 安阳荣名库 | H132: 河南晶特新能源有限公司 | I132: 2023-09-25
A133: 130 | B133: 逆变器-30 | C133: 6 | D133: 7700 | E133: 46200 | F133: 山海新能-锦浪 | G133: 安阳荣名库 | H133: 河南晶特新能源有限公司 | I133: 2023-09-25
A134: 131 | B134: 逆变器-36 | C134: 12 | D134: 8525 | E134: 102300 | F134: 山海新能-锦浪 | G134: 安阳荣名库 | H134: 河南晶特新能源有限公司 | I134: 2023-09-25
A135: 132 | B135: 逆变器-40 | C135: 12 | D135: 8690 | E135: 104280 | F135: 山海新能-锦浪 | G135: 安阳荣名库 | H135: 河南晶特新能源有限公司 | I135: 2023-09-25
A136: 133 | B136: 逆变器-50 | C136: 20 | D136: 11990 | E136: 239800 | F136: 山海新能-锦浪 | G136: 安阳荣名库 | H136: 河南晶特新能源有限公司 | I136: 2023-09-25
A137: 134 | B137: 逆变器-60 | C137: 15 | D137: 11300 | E137: 169500 | F137: 山海新能-锦浪 | G137: 安阳荣名库 | H137: 河南晶特新能源有限公司 | I137: 2023-09-25
A138: 135 | B138: 逆变器-80 | C138: 4 | D138: 17300 | E138: 69200 | F138: 山海新能-锦浪 | G138: 安阳荣名库 | H138: 河南晶特新能源有限公司 | I138: 2023-09-25
A139: 136 | B139: 逆变器-13 | C139: 1 | D139: 3520 | E139: 3520 | F139: 山海新能-锦浪 | G139: 安阳荣名库 | H139: 河北顺公建筑工程有限公司 | I139: 2023-09-25
A140: 137 | B140: 逆变器-15 | C140: 1 | D140: 3905 | E140: 3905 | F140: 山海新能-锦浪 | G140: 安阳荣名库 | H140: 河北顺公建筑工程有限公司 | I140: 2023-09-25
A141: 138 | B141: 逆变器-20 | C141: 3 | D141: 4510 | E141: 13530 | F141: 山海新能-锦浪 | G141: 安阳荣名库 | H141: 河北顺公建筑工程有限公司 | I141: 2023-09-25
A142: 139 | B142: 逆变器-25 | C142: 3 | D142: 5170 | E142: 15510 | F142: 山海新能-锦浪 | G142: 安阳荣名库 | H142: 河北顺公建筑工程有限公司 | I142: 2023-09-25
A143: 140 | B143: 逆变器-30 | C143: 5 | D143: 7700 | E143: 38500 | F143: 山海新能-锦浪 | G143: 安阳荣名库 | H143: 河北顺公建筑工程有限公司 | I143: 2023-09-25
A144: 141 | B144: 逆变器-36 | C144: 5 | D144: 8525 | E144: 42625 | F144: 山海新能-锦浪 | G144: 安阳荣名库 | H144: 河北顺公建筑工程有限公司 | I144: 2023-09-25
A145: 142 | B145: 逆变器-40 | C145: 3 | D145: 8690 | E145: 26070 | F145: 山海新能-锦浪 | G145: 安阳荣名库 | H145: 河北顺公建筑工程有限公司 | I145: 2023-09-25
A146: 143 | B146: 逆变器-50 | C146: 3 | D146: 11990 | E146: 35970 | F146: 山海新能-锦浪 | G146: 安阳荣名库 | H146: 河北顺公建筑工程有限公司 | I146: 2023-09-25
A147: 144 | B147: 逆变器-60 | C147: 2 | D147: 11300 | E147: 22600 | F147: 山海新能-锦浪 | G147: 安阳荣名库 | H147: 河北顺公建筑工程有限公司 | I147: 2023-09-25
A148: 145 | B148: 东方日升660 | C148: 1440 | D148: 1014 | E148: 1460160 | F148: 东方日升 | G148: 安阳荣名库 | H148: 河北顺公建筑工程有限公司 | I148: 2023-09-25
A149: 146 | B149: 东方日升600 | C149: 118 | D149: 1108.8 | E149: 130838.4 | F149: 东方日升 | G149: 庄河荣名库 | H149: 河北洪平新能源科技有限公司 | I149: 2023-09-25
A150: 147 | B150: 逆变器-60 | C150: 1 | D150: 11300 | E150: 11300 | F150: 锦浪 | G150: 庄河荣名库 | H150: 河北洪平新能源科技有限公司 | I150: 2023-09-25
A151: 148 | B151: 东方日升660双玻 | C151: 128 | D151: 1082.4 | E151: =C151*D151 -> 138547.2 | F151: 东方日升 | G151: 江西余干库 | H151: 南昌恩悦新能源有限公司 | I151: 2023-09-25
A152: 149 | B152: 逆变器-25 | C152: 1 | D152: 5170 | E152: =C152*D152 -> 5170 | F152: 锦浪 | G152: 江西余干库 | H152: 南昌恩悦新能源有限公司 | I152: 2023-09-25
A153: 150 | B153: 逆变器-30 | C153: 2 | D153: 7700 | E153: =C153*D153 -> 15400 | F153: 锦浪 | G153: 江西余干库 | H153: 南昌恩悦新能源有限公司 | I153: 2023-09-25
A154: 151 | B154: 东方日升600 | C154: 192 | D154: 1108.8 | E154: =D154*C154 -> 212889.6 | F154: 东方日升 | G154: 曲阜荣名库 | H154: 曲阜项目直营 | I154: 2023-09-26
A155: 152 | B155: 逆变器-30 | C155: 1 | D155: 7700 | E155: 7700 | F155: 锦浪 | G155: 曲阜荣名库 | H155: 曲阜项目直营 | I155: 2023-09-26
A156: 153 | B156: 逆变器-20 | C156: 2 | D156: 4510 | E156: 9020 | F156: 锦浪 | G156: 曲阜荣名库 | H156: 曲阜项目直营 | I156: 2023-09-26
A157: 154 | B157: 逆变器-25 | C157: 2 | D157: 5170 | E157: 10340 | F157: 锦浪 | G157: 曲阜荣名库 | H157: 曲阜项目直营 | I157: 2023-09-26
A158: 155 | B158: 逆变器-13 | C158: 1 | D158: 3520 | E158: 3520 | F158: 锦浪 | G158: 曲阜荣名库 | H158: 成都盛世中丰工程有限公司 | I158: 2023-09-26
A159: 156 | B159: 逆变器-25 | C159: 3 | D159: 5170 | E159: 15510 | F159: 锦浪 | G159: 曲阜荣名库 | H159: 成都盛世中丰工程有限公司 | I159: 2023-09-26
A160: 157 | B160: 逆变器-50 | C160: 1 | D160: 11990 | E160: 11990 | F160: 锦浪 | G160: 庄河荣名库 | H160: 潍坊地球村能源有限公司 | I160: 2023-09-27
A161: 158 | B161: 东方日升600 | C161: 96 | D161: 1108.8 | E161: 106444.8 | F161: 东方日升 | G161: 庄河荣名库 | H161: 辽宁圣东建筑工程有限公司 | I161: 2023-09-27
A162: 159 | B162: 东方日升600 | C162: 160 | D162: 1108.8 | E162: 177408 | F162: 东方日升 | G162: 庄河荣名库 | H162: 辽宁圣东建筑工程有限公司 | I162: 2023-09-27
A163: 160 | B163: 东方日升600 | C163: 128 | D163: 1108.8 | E163: 141926.4 | F163: 东方日升 | G163: 庄河荣名库 | H163: 辽宁圣东建筑工程有限公司 | I163: 2023-09-27
A164: 161 | B164: 东方日升600 | C164: 64 | D164: 1108.8 | E164: 70963.2 | F164: 东方日升 | G164: 庄河荣名库 | H164: 辽宁圣东建筑工程有限公司 | I164: 2023-09-27
A165: 162 | B165: 东方日升600 | C165: 96 | D165: 1108.8 | E165: 106444.8 | F165: 东方日升 | G165: 庄河荣名库 | H165: 辽宁圣东建筑工程有限公司 | I165: 2023-09-27
A166: 163 | B166: 东方日升660双玻 | C166: 288 | D166: 1082.4 | E166: =C166*D166 -> 311731.2 | F166: 东方日升 | G166: 江西余干库 | H166: 江西大海光伏工程有限公司 | I166: 2023-09-27
A167: 164 | B167: 逆变器-25 | C167: 4 | D167: 5170 | E167: =C167*D167 -> 20680 | F167: 锦浪 | G167: 江西余干库 | H167: 江西大海光伏工程有限公司 | I167: 2023-09-27
A168: 165 | B168: 逆变器-30 | C168: 2 | D168: 7700 | E168: =C168*D168 -> 15400 | F168: 锦浪 | G168: 江西余干库 | H168: 江西大海光伏工程有限公司 | I168: 2023-09-27
A169: 166 | B169: 逆变器-50 | C169: 1 | D169: 11990 | E169: =C169*D169 -> 11990 | F169: 锦浪 | G169: 江西余干库 | H169: 江西大海光伏工程有限公司 | I169: 2023-09-27
A170: 167 | B170: 合计 | C170: =SUM(C4:C169) -> 47661 | E170: =SUM(E4:E169) -> 48302268
A173: 出质人： | C173: 山海新能（北京）能源科技有限公司河北分公司
A178: 监管人： | C178: 宇信通创新技术（河北）有限公司

Sheet 20230831库存表
A1: 质物库存表
A2: 出质人： | C2: 山海新能（北京）能源科技有限公司河北分公司
A3: 质权人： | C3: 石家庄汇融农村合作银行
A4: 序号 | B4: 仓库名称 | C4: 物料组 | D4: 物料编号 | E4: 物料名称 | F4: 物料品牌 | G4: 物料单价 | H4: 库存数量 | I4: 货值
A5: 1 | B5: 江西余干库 | C5: 组件 | D5: 1004000067 | E5: 东方日升660双玻 | F5: 山海新能-东方日升 | G5: 1082.4 | H5: 5088 | I5: =G5*H5 -> 5507251.2
A6: 2 | B6: 江西余干库 | C6: 逆变器 | D6: 2001000015 | E6: 逆变器-15 | F6: 山海新能-锦浪 | G6: 3905 | H6: 10 | I6: 39050
A7: 3 | B7: 江西余干库 | C7: 逆变器 | D7: 2001000020 | E7: 逆变器-20 | F7: 山海新能-锦浪 | G7: 4510 | H7: 64 | I7: 288640
A8: 4 | B8: 江西余干库 | C8: 逆变器 | D8: 2001000025 | E8: 逆变器-25 | F8: 山海新能-锦浪 | G8: 5170 | H8: 128 | I8: 661760
A9: 5 | B9: 江西余干库 | C9: 逆变器 | D9: 2001000030 | E9: 逆变器-30 | F9: 山海新能-锦浪 | G9: 7700 | H9: 88 | I9: 677600
A10: 6 | B10: 江西余干库 | C10: 逆变器 | D10: 2001000036 | E10: 逆变器-36 | F10: 山海新能-锦浪 | G10: 8525 | H10: 19 | I10: 161975
A11: 7 | B11: 江西余干库 | C11: 逆变器 | D11: 2001000040 | E11: 逆变器-40 | F11: 山海新能-锦浪 | G11: 8690 | H11: 9 | I11: 78210
A12: 8 | B12: 江西余干库 | C12: 逆变器 | D12: 2001000050 | E12: 逆变器-50 | F12: 山海新能-锦浪 | G12: 11990 | H12: 6 | I12: 71940
A13: 9 | B13: 庄河荣名库 | C13: 组件 | D13: 1004000060 | E13: 东方日升600 | F13: 山海新能-东方日升 | G13: 1108.8 | H13: 0 | I13: 0
A14: 10 | B14: 庄河荣名库 | C14: 组件 | D14: 1001000054 | E14: 天合600 | F14: 山海智慧-天合 | G14: 1267 | H14: 0 | I14: 0
A15: 11 | B15: 庄河荣名库 | C15: 组件 | D15: 1004000047 | E15: 晶科475 | F15: 山海智慧-天合 | G15: 904 | H15: 1860 | I15: 1681440
A16: 12 | B16: 庄河荣名库 | C16: 逆变器 | D16: 2003000060 | E16: 逆变器-60 | F16: 山海新能-锦浪 | G16: 11300 | H16: 2 | I16: 22600
A17: 13 | B17: 庄河荣名库 | C17: 逆变器 | D17: 2003000040 | E17: 逆变器-40 | F17: 山海新能-固德威 | G17: 8171 | H17: 31 | I17: 253301
A18: 14 | B18: 庄河荣名库 | C18: 逆变器 | D18: 2003000036 | E18: 逆变器-36 | F18: 山海新能-固德威 | G18: 7660 | H18: 5 | I18: 38300
A19: 15 | B19: 庄河荣名库 | C19: 逆变器 | D19: 2003000030 | E19: 逆变器-30 | F19: 山海新能-固德威 | G19: 7100 | H19: 18 | I19: 127800
A20: 16 | B20: 庄河荣名库 | C20: 逆变器 | D20: 20010000110 | E20: 逆变器-110 | F20: 山海新能-锦浪 | G20: 19800 | H20: 22 | I20: 435600
A21: 17 | B21: 庄河荣名库 | C21: 逆变器 | D21: 2001000080 | E21: 逆变器-80 | F21: 山海新能-锦浪 | G21: 17300 | H21: 35 | I21: 605500
A22: 18 | B22: 庄河荣名库 | C22: 逆变器 | D22: 2001000008 | E22: 逆变器-8 | F22: 山海新能-锦浪 | G22: 2830 | H22: 50 | I22: 141500
A23: 19 | B23: 庄河荣名库 | C23: 逆变器 | D23: 2001000050 | E23: 逆变器-50 | F23: 山海新能-锦浪 | G23: 11990 | H23: 37 | I23: 443630
A24: 20 | B24: 庄河荣名库 | C24: 逆变器 | D24: 2001000013 | E24: 逆变器-13 | F24: 山海新能-锦浪 | G24: 3520 | H24: 0 | I24: 0
A25: 21 | B25: 庄河荣名库 | C25: 逆变器 | D25: 2001000015 | E25: 逆变器-15 | F25: 山海新能-锦浪 | G25: 3905 | H25: 45 | I25: 175725
A26: 22 | B26: 庄河荣名库 | C26: 逆变器 | D26: 2001000036 | E26: 逆变器-36 | F26: 山海新能-锦浪 | G26: 8525 | H26: 25 | I26: 213125
A27: 23 | B27: 庄河荣名库 | C27: 逆变器 | D27: 2001000030 | E27: 逆变器-30 | F27: 山海新能-锦浪 | G27: 7700 | H27: 23 | I27: 177100
A28: 24 | B28: 庄河荣名库 | C28: 逆变器 | D28: 2001000040 | E28: 逆变器-40 | F28: 山海新能-锦浪 | G28: 8690 | H28: 10 | I28: 86900
A29: 25 | B29: 庄河荣名库 | C29: 逆变器 | D29: 2001000033 | E29: 逆变器-33 | F29: 山海新能-锦浪 | G29: 8195 | H29: 39 | I29: 319605
A30: 26 | B30: 庄河荣名库 | C30: 逆变器 | D30: 2001000025 | E30: 逆变器-25 | F30: 山海新能-锦浪 | G30: 5170 | H30: 33 | I30: 170610
A31: 27 | B31: 庄河荣名库 | C31: 逆变器 | D31: 2001000020 | E31: 逆变器-20 | F31: 山海新能-锦浪 | G31: 4510 | H31: 66 | I31: 297660
A32: 28 | B32: 安阳荣名库 | C32: 组件 | D32: 1004000048 | E32: 晶科470 | F32: 山海新能 | G32: 904 | H32: 2294 | I32: 2073776
A33: 29 | B33: 安阳荣名库 | C33: 组件 | D33: 1004000067 | E33: 东方日升660双玻 | F33: 山海新能-东方日升 | G33: 1082.4 | H33: 2759 | I33: 2986341.6
A34: 30 | B34: 安阳荣名库 | C34: 组件 | D34: 1005000066 | E34: 阿特斯660 | F34: 山海新能-阿特斯 | G34: 1075.8 | H34: 1133 | I34: 1218881.4
A35: 31 | B35: 安阳荣名库 | C35: 组件 | D35: 1004000047 | E35: 晶科475 | F35: 山海智慧-天合 | G35: 904 | H35: 11870 | I35: 10730480
A36: 32 | B36: 安阳荣名库 | C36: 逆变器 | D36: 2002000040 | E36: 逆变器-40 | F36: 山海新能-古瑞瓦特 | G36: 7600 | H36: 12 | I36: 91200
A37: 33 | B37: 安阳荣名库 | C37: 逆变器 | D37: 2002000050 | E37: 逆变器-50 | F37: 山海新能-古瑞瓦特 | G37: 9000 | H37: 36 | I37: 324000
A38: 34 | B38: 安阳荣名库 | C38: 逆变器 | D38: 20010000110 | E38: 逆变器-110 | F38: 山海新能-锦浪 | G38: 19800 | H38: 71 | I38: 1405800
A39: 35 | B39: 安阳荣名库 | C39: 逆变器 | D39: 2001000030 | E39: 逆变器-30 | F39: 山海新能-锦浪 | G39: 7700 | H39: 4 | I39: 30800
A40: 36 | B40: 安阳荣名库 | C40: 逆变器 | D40: 2001000060 | E40: 逆变器-60 | F40: 山海新能-锦浪 | G40: 11300 | H40: 0 | I40: 0
A41: 37 | B41: 安阳荣名库 | C41: 逆变器 | D41: 2001000080 | E41: 逆变器-80 | F41: 山海新能-锦浪 | G41: 17300 | H41: 1 | I41: 17300
A42: 38 | B42: 安阳荣名库 | C42: 逆变器 | D42: 2001000036 | E42: 逆变器-36 | F42: 山海新能-锦浪 | G42: 8525 | H42: 1 | I42: 8525
A43: 39 | B43: 安阳荣名库 | C43: 逆变器 | D43: 2001000050 | E43: 逆变器-50 | F43: 山海新能-锦浪 | G43: 11990 | H43: 4 | I43: 47960
A44: 40 | B44: 安阳荣名库 | C44: 逆变器 | D44: 2001000040 | E44: 逆变器-40 | F44: 山海新能-锦浪 | G44: 8690 | H44: 13 | I44: 112970
A45: 41 | B45: 安阳荣名库 | C45: 逆变器 | D45: 2001000013 | E45: 逆变器-13 | F45: 山海新能-锦浪 | G45: 3520 | H45: 5 | I45: 17600
A46: 42 | B46: 安阳荣名库 | C46: 逆变器 | D46: 2001000015 | E46: 逆变器-15 | F46: 山海新能-锦浪 | G46: 3905 | H46: 5 | I46: 19525
A47: 43 | B47: 安阳荣名库 | C47: 逆变器 | D47: 2004000133 | E47: 逆变器-33 | F47: 禾望 | G47: 7260 | H47: 34 | I47: 246840
A48: 44 | B48: 安阳荣名库 | C48: 逆变器 | D48: 2001000025 | E48: 逆变器-25 | F48: 山海新能-锦浪 | G48: 5170 | H48: 0 | I48: 0
A49: 45 | B49: 安阳荣名库 | C49: 逆变器 | D49: 2001000020 | E49: 逆变器-20 | F49: 山海新能-锦浪 | G49: 4510 | H49: 27 | I49: 121770
A50: 46 | B50: 安阳荣名库 | C50: 逆变器 | D50: 2004000130 | E50: 逆变器-30 | F50: 禾望 | G50: 7040 | H50: 33 | I50: 232320
A51: 47 | B51: 安阳荣名库 | C51: 逆变器 | D51: 2004000136 | E51: 逆变器-36 | F51: 禾望 | G51: 7920 | H51: 17 | I51: 134640
A52: 48 | B52: 曲阜荣名库 | C52: 组件 | D52: 1004000060 | E52: 东方日升600 | F52: 山海新能-东方日升 | G52: 1108.8 | H52: 7288 | I52: 8080934.4
A53: 49 | B53: 曲阜荣名库 | C53: 组件 | D53: 1004000047 | E53: 晶科475 | F53: 山海智慧-天合 | G53: 904 | H53: 6448 | I53: 5828992
A54: 50 | B54: 曲阜荣名库 | C54: 组件 | D54: 1001000054 | E54: 天合600 | F54: 山海智慧-天合 | G54: 1267 | H54: 785 | I54: =G54*H54 -> 994595
A55: 51 | B55: 曲阜荣名库 | C55: 逆变器 | D55: 2001000013 | E55: 逆变器-13 | F55: 山海新能-锦浪 | G55: 3520 | H55: 9 | I55: 31680
A56: 52 | B56: 曲阜荣名库 | C56: 逆变器 | D56: 2001000050 | E56: 逆变器-50 | F56: 山海新能-锦浪 | G56: 11990 | H56: 20 | I56: 239800
A57: 53 | B57: 曲阜荣名库 | C57: 逆变器 | D57: 2001000080 | E57: 逆变器-80 | F57: 山海新能-锦浪 | G57: 17300 | H57: 4 | I57: 69200
A58: 54 | B58: 曲阜荣名库 | C58: 逆变器 | D58: 20010000110 | E58: 逆变器-110 | F58: 山海新能-锦浪 | G58: 19800 | H58: 5 | I58: 99000
A59: 55 | B59: 曲阜荣名库 | C59: 逆变器 | D59: 2001000060 | E59: 逆变器-60 | F59: 山海新能-锦浪 | G59: 11300 | H59: 6 | I59: 67800
A60: 56 | B60: 曲阜荣名库 | C60: 逆变器 | D60: 2002000050 | E60: 逆变器-50 | F60: 山海新能-古瑞瓦特 | G60: 9000 | H60: 10 | I60: 90000
A61: 57 | B61: 曲阜荣名库 | C61: 逆变器 | D61: 2002000040 | E61: 逆变器-40 | F61: 山海新能-古瑞瓦特 | G61: 7600 | H61: 14 | I61: 106400
A62: 58 | B62: 曲阜荣名库 | C62: 逆变器 | D62: 2003000050 | E62: 逆变器-50 | F62: 山海新能-固德威 | G62: 9900 | H62: 2 | I62: 19800
A63: 59 | B63: 曲阜荣名库 | C63: 逆变器 | D63: 2001000040 | E63: 逆变器-40 | F63: 山海新能-锦浪 | G63: 8690 | H63: 10 | I63: 86900
A64: 60 | B64: 曲阜荣名库 | C64: 逆变器 | D64: 2001000033 | E64: 逆变器-33 | F64: 山海新能-锦浪 | G64: 8195 | H64: 44 | I64: 360580
A65: 61 | B65: 曲阜荣名库 | C65: 逆变器 | D65: 2001000036 | E65: 逆变器-36 | F65: 山海新能-锦浪 | G65: 8525 | H65: 10 | I65: 85250
A66: 62 | B66: 曲阜荣名库 | C66: 逆变器 | D66: 2001000030 | E66: 逆变器-30 | F66: 山海新能-锦浪 | G66: 7700 | H66: 31 | I66: 238700
A67: 63 | B67: 曲阜荣名库 | C67: 逆变器 | D67: 2001000015 | E67: 逆变器-15 | F67: 山海新能-锦浪 | G67: 3905 | H67: 15 | I67: 58575
A68: 64 | B68: 曲阜荣名库 | C68: 逆变器 | D68: 2001000025 | E68: 逆变器-25 | F68: 山海新能-锦浪 | G68: 5170 | H68: 20 | I68: 103400
A69: 65 | B69: 曲阜荣名库 | C69: 逆变器 | D69: 2001000020 | E69: 逆变器-20 | F69: 山海新能-锦浪 | G69: 4510 | H69: 36 | I69: 162360
A70: 66 | B70: 藁城荣名库 | C70: 组件 | D70: 1001000050 | E70: TSM-500DE18M(II） | F70: 山海智慧-天合 | G70: 900 | H70: 71 | I70: 63900
A71: 67 | B71: 藁城荣名库 | C71: 组件 | D71: 1001000053 | E71: TSM-535DE19 | F71: 山海智慧-天合 | G71: 963 | H71: 12 | I71: 11556
A72: 68 | B72: 藁城荣名库 | C72: 组件 | D72: 1002000053 | E72: 远显535 | F72: 山海智慧-远显 | G72: 996 | H72: 561 | I72: 558756
A73: 69 | B73: 藁城荣名库 | C73: 组件 | D73: 1003000053 | E73: 乐丰535 | F73: 山海智慧-乐丰 | G73: 996 | H73: 215 | I73: 214140
A74: 70 | B74: 藁城荣名库 | C74: 组件 | D74: 1003010053 | E74: 乐丰535（宽版） | F74: 山海智慧-乐丰（宽） | G74: 996 | H74: 1066 | I74: 1061736
A75: 71 | B75: 藁城荣名库 | C75: 组件 | D75: 1004000047 | E75: 晶科475 | F75: 山海智慧-天合 | G75: 904 | H75: 17002 | I75: 15369808
A76: 72 | B76: 藁城荣名库 | C76: 组件 | D76: 1001000045 | E76: TSM-450DE17M(II） | F76: 山海智慧-天合 | G76: 810 | H76: 42 | I76: 34020
A77: 73 | B77: 藁城荣名库 | C77: 组件 | D77: 1004000048 | E77: 晶科470 | F77: 山海智慧-天合 | G77: 904 | H77: 18750 | I77: 16950000
A78: 74 | B78: 藁城荣名库 | C78: 逆变器 | D78: 2002000040 | E78: 逆变器-40 | F78: 山海新能-古瑞瓦特 | G78: 7600 | H78: 0 | I78: 0
A79: 75 | B79: 藁城荣名库 | C79: 逆变器 | D79: 2001000015 | E79: 逆变器-15 | F79: 山海新能-锦浪 | G79: 3905 | H79: 0 | I79: 0
A80: 76 | B80: 藁城荣名库 | C80: 逆变器 | D80: 2001000036 | E80: 逆变器-36 | F80: 山海新能-锦浪 | G80: 8525 | H80: 1 | I80: 8525
A81: 77 | B81: 藁城荣名库 | C81: 逆变器 | D81: 2002000050 | E81: 逆变器-50 | F81: 山海新能-古瑞瓦特 | G81: 9000 | H81: 0 | I81: 0
A82: 78 | B82: 藁城荣名库 | C82: 逆变器 | D82: 2004000136 | E82: 逆变器-36 | F82: 禾望 | G82: 7920 | H82: 0 | I82: 0
A83: 79 | B83: 藁城荣名库 | C83: 逆变器 | D83: 2004000133 | E83: 逆变器-33 | F83: 禾望 | G83: 7260 | H83: 0 | I83: 0
A84: 80 | B84: 藁城荣名库 | C84: 逆变器 | D84: 2004000130 | E84: 逆变器-30 | F84: 禾望 | G84: 7040 | H84: 0 | I84: 0
A85: 81 | B85: 合计： | H85: =SUM(H5:H84) -> 78509 | I85: =SUM(I5:I84) -> 83493958.6
A87: 以上内容截止到2023年8月31日
A89: 出质人： | C89: 山海新能（北京）能源科技有限公司河北分公司
A93: 监管人： | C93: 宇信通创新技术（河北）有限公司
A96: 备注：1、以最近日期的库存表为准，自动覆盖前期库存表。
A97: 2、上表中“数量”、“重量”指标的计量单位按照实际质物品种填写。
A98: 3、表中格式可根据具体品种进行相应调整。

Sheet 202308入库表
A1: 货物入库质押申请/批准单
A2: 制单日期：2023年8月31日
A3: 序号 | B3: 产品名称 | C3: 数量 | D3: 单价/元 | E3: 金额/元 | F3: 产品厂家 | G3: 仓库地点 | H3: 入库车牌号 | I3: 时间
A4: 1 | B4: 东方日升660双玻 | C4: 736 | D4: 1082.4 | E4: =C4*D4 -> 796646.4 | F4: 山海新能-东方日升 | G4: 江西余干库 | I4: 2023-08-02
A5: 2 | B5: 逆变器-60 | C5: 10 | D5: 11300 | E5: 113000 | F5: 山海新能-锦浪 | G5: 安阳荣名库 | I5: 2023-08-03
A6: 3 | B6: 东方日升660双玻 | C6: 736 | D6: 1082.4 | E6: 796646.4 | F6: 山海新能-东方日升 | G6: 江西余干库 | I6: 2023-08-04
A7: 4 | B7: 东方日升660双玻 | C7: 736 | D7: 1082.4 | E7: 796646.4 | F7: 山海新能-东方日升 | G7: 江西余干库 | I7: 2023-08-04
A8: 5 | B8: 东方日升660双玻 | C8: 736 | D8: 1082.4 | E8: 796646.4 | F8: 山海新能-东方日升 | G8: 江西余干库 | I8: 2023-08-04
A9: 6 | B9: 东方日升660双玻 | C9: 736 | D9: 1082.4 | E9: 796646.4 | F9: 山海新能-东方日升 | G9: 江西余干库 | I9: 2023-08-05
A10: 7 | B10: 天合600 | C10: 67 | D10: 1267 | E10: 84889 | F10: 山海智慧-天合 | G10: 庄河荣名库 | I10: 2023-08-07
A11: 8 | B11: 逆变器-13 | C11: 2 | D11: 3520 | E11: 7040 | F11: 山海新能-锦浪 | G11: 庄河荣名库 | I11: 2023-08-07
A12: 9 | B12: 逆变器-30 | C12: 2 | D12: 7700 | E12: 15400 | F12: 山海新能-锦浪 | G12: 庄河荣名库 | I12: 2023-08-07
A13: 10 | B13: 东方日升600 | C13: 26 | D13: 1108.8 | E13: 28828.8 | F13: 山海新能-东方日升 | G13: 庄河荣名库 | I13: 2023-08-09
A14: 11 | B14: 晶科475 | C14: 930 | D14: 904 | E14: 840720 | F14: 山海新能 | G14: 庄河荣名库 | I14: 2023-08-14
A15: 12 | B15: 东方日升660双玻 | C15: 5888 | D15: 1082.4 | E15: 6373171.2 | F15: 山海新能-东方日升 | G15: 安阳荣名库 | I15: 2023-08-14
A16: 13 | B16: 逆变器-13 | C16: 2 | D16: 3520 | E16: 7040 | F16: 山海新能-锦浪 | G16: 庄河荣名库 | I16: 2023-08-17
A17: 14 | B17: 逆变器-13 | C17: 2 | D17: 3520 | E17: 7040 | F17: 山海新能-锦浪 | G17: 庄河荣名库 | I17: 2023-08-18
A18: 15 | B18: 晶科475 | C18: 930 | D18: 904 | E18: 840720 | F18: 山海新能 | G18: 安阳荣名库 | I18: 2023-08-18
A19: 16 | B19: 东方日升660双玻 | C19: 3752 | D19: 1082.4 | E19: 4061164.8 | F19: 山海新能-东方日升 | G19: 安阳荣名库 | I19: 2023-08-21
A20: 17 | B20: 逆变器-36 | C20: 17 | D20: 7920 | E20: 134640 | F20: 禾望 | G20: 安阳荣名库 | I20: 2023-08-21
A21: 18 | B21: 逆变器-33 | C21: 34 | D21: 7260 | E21: 246840 | F21: 禾望 | G21: 安阳荣名库 | I21: 2023-08-21
A22: 19 | B22: 逆变器-30 | C22: 33 | D22: 7040 | E22: 232320 | F22: 禾望 | G22: 安阳荣名库 | I22: 2023-08-21
A23: 20 | B23: 逆变器-50 | C23: 36 | D23: 9000 | E23: 324000 | F23: 山海新能-古瑞瓦特 | G23: 安阳荣名库 | I23: 2023-08-21
A24: 21 | B24: 逆变器-40 | C24: 12 | D24: 7600 | E24: 91200 | F24: 山海新能-古瑞瓦特 | G24: 安阳荣名库 | I24: 2023-08-21
A25: 22 | B25: 逆变器-15 | C25: 3 | D25: 3905 | E25: 11715 | F25: 山海新能-锦浪 | G25: 安阳荣名库 | I25: 2023-08-21
A26: 23 | B26: 晶科475 | C26: 930 | D26: 904 | E26: 840720 | F26: 山海新能 | G26: 安阳荣名库 | I26: 2023-08-21
A27: 24 | B27: 晶科475 | C27: 682 | D27: 904 | E27: 616528 | F27: 山海新能 | G27: 安阳荣名库 | I27: 2023-08-22
A28: 25 | B28: 天合600 | C28: 22 | D28: 1267 | E28: 27874 | F28: 山海智慧-天合 | G28: 曲阜荣名库 | I28: 2023-08-23
A29: 26 | B29: 晶科475 | C29: 930 | D29: 904 | E29: 840720 | F29: 山海新能 | G29: 安阳荣名库 | I29: 2023-08-23
A30: 27 | B30: 晶科475 | C30: 682 | D30: 904 | E30: 616528 | F30: 山海新能 | G30: 安阳荣名库 | I30: 2023-08-23
A31: 28 | B31: 逆变器-20 | C31: 50 | D31: 4510 | E31: 225500 | F31: 山海新能-锦浪 | G31: 庄河荣名库 | I31: 2023-08-24
A32: 29 | B32: 逆变器-25 | C32: 33 | D32: 5170 | E32: 170610 | F32: 山海新能-锦浪 | G32: 庄河荣名库 | I32: 2023-08-24
A33: 30 | B33: 逆变器-40 | C33: 10 | D33: 8690 | E33: 86900 | F33: 山海新能-锦浪 | G33: 庄河荣名库 | I33: 2023-08-24
A34: 31 | B34: 逆变器-80 | C34: 30 | D34: 17300 | E34: 519000 | F34: 山海新能-锦浪 | G34: 庄河荣名库 | I34: 2023-08-24
A35: 32 | B35: 逆变器-50 | C35: 30 | D35: 11990 | E35: 359700 | F35: 山海新能-锦浪 | G35: 庄河荣名库 | I35: 2023-08-24
A36: 33 | B36: 晶科475 | C36: 682 | D36: 904 | E36: 616528 | F36: 山海新能 | G36: 安阳荣名库 | I36: 2023-08-24
A37: 34 | B37: 晶科475 | C37: 930 | D37: 904 | E37: 840720 | F37: 山海新能 | G37: 安阳荣名库 | I37: 2023-08-24
A38: 35 | B38: 晶科475 | C38: 682 | D38: 904 | E38: 616528 | F38: 山海新能 | G38: 安阳荣名库 | I38: 2023-08-24
A39: 36 | B39: 东方日升600 | C39: 2592 | D39: 1108.8 | E39: 2874009.6 | F39: 山海新能-东方日升 | G39: 曲阜荣名库 | I39: 2023-08-25
A40: 37 | B40: 晶科475 | C40: 682 | D40: 904 | E40: 616528 | F40: 山海新能 | G40: 安阳荣名库 | I40: 2023-08-25
A41: 38 | B41: 晶科470 | C41: 682 | D41: 904 | E41: 616528 | F41: 山海新能 | G41: 安阳荣名库 | I41: 2023-08-25
A42: 39 | B42: 晶科470 | C42: 930 | D42: 904 | E42: 840720 | F42: 山海新能 | G42: 安阳荣名库 | I42: 2023-08-25
A43: 40 | B43: 晶科470 | C43: 682 | D43: 904 | E43: 616528 | F43: 山海新能 | G43: 安阳荣名库 | I43: 2023-08-25
A44: 41 | B44: 东方日升600 | C44: 1728 | D44: 1108.8 | E44: 1916006.4 | F44: 山海新能-东方日升 | G44: 曲阜荣名库 | I44: 2023-08-26
A45: 42 | B45: 东方日升600 | C45: 864 | D45: 1108.8 | E45: 958003.2 | F45: 山海新能-东方日升 | G45: 曲阜荣名库 | I45: 2023-08-28
A46: 43 | B46: 逆变器-30 | C46: 24 | D46: 7700 | E46: 184800 | F46: 山海新能-锦浪 | G46: 庄河荣名库 | I46: 2023-08-29
A47: 44 | B47: 晶科475 | C47: 930 | D47: 904 | E47: 840720 | F47: 山海新能 | G47: 庄河荣名库 | I47: 2023-08-31
A48: 45 | B48: 逆变器-60 | C48: 6 | D48: 11300 | E48: 67800 | F48: 山海新能-锦浪 | G48: 曲阜荣名库 | I48: 2023-08-31
A49: 46 | B49: 合计 | C49: =SUM(C4:C48) -> 30239 | E49: =SUM(E4:E48) -> 33312460
A53: 出质人： | C53: 山海新能（北京）能源科技有限公司河北分公司
A58: 监管人： | C58: 宇信通创新技术（河北）有限公司

Sheet 202308出库表
A1: 质物解除质押出库申请/批准单
A2: 制单日期：2023年8月31日
A3: 序号 | B3: 产品名称 | C3: 数量 | D3: 单价/元 | E3: 金额/元 | F3: 产品厂家 | G3: 仓库地点 | H3: 到达地点 | I3: 时间
A4: 1 | B4: 逆变器-13 | C4: 1 | D4: 3520 | E4: =C4*D4 -> 3520 | F4: 山海新能-锦浪 | G4: 庄河荣名库 | H4: 大连竣泰通信工程有限公司 | I4: 2023-08-01
A5: 2 | B5: 逆变器-33 | C5: 1 | D5: 8195 | E5: =C5*D5 -> 8195 | F5: 山海新能-锦浪 | G5: 庄河荣名库 | H5: 大连竣泰通信工程有限公司 | I5: 2023-08-01
A6: 3 | B6: 晶科470 | C6: 2 | D6: 904 | E6: =D6*C6 -> 1808 | F6: 山海智慧-天合 | G6: 藁城荣名库 | H6: 运维库 | I6: 2023-08-01
A7: 4 | B7: 东方日升660 | C7: 768 | D7: 1014 | E7: =C7*D7 -> 778752 | F7: 山海新能-东方日升 | G7: 安阳荣名库 | H7: 河南省茂凯莱新能源科技有限公司 | I7: 2023-08-01
A8: 5 | B8: 东方日升660 | C8: 768 | D8: 1014 | E8: 778752 | F8: 山海新能-东方日升 | G8: 安阳荣名库 | H8: 河南晶特新能源有限公司 | I8: 2023-08-01
A9: 6 | B9: 东方日升660 | C9: 768 | D9: 1014 | E9: 778752 | F9: 山海新能-东方日升 | G9: 安阳荣名库 | H9: 唐县冉灏新能源开发有限责任公司 | I9: 2023-08-01
A10: 7 | B10: 逆变器-25 | C10: 4 | D10: 5170 | E10: 20680 | F10: 山海新能-锦浪 | G10: 曲阜荣名库 | H10: 成都盛世中丰工程有限公司 | I10: 2023-08-03
A11: 8 | B11: 逆变器-30 | C11: 1 | D11: 7700 | E11: 7700 | F11: 山海新能-锦浪 | G11: 曲阜荣名库 | H11: 成都盛世中丰工程有限公司 | I11: 2023-08-03
A12: 9 | B12: 逆变器-20 | C12: 2 | D12: 4510 | E12: 9020 | F12: 山海新能-锦浪 | G12: 曲阜荣名库 | H12: 成都盛世中丰工程有限公司 | I12: 2023-08-03
A13: 10 | B13: 逆变器-30 | C13: 4 | D13: 7700 | E13: 30800 | F13: 山海新能-锦浪 | G13: 江西余干库 | H13: 江西大海光伏工程有限公司 | I13: 2023-08-04
A14: 11 | B14: 逆变器-20 | C14: 1 | D14: 4510 | E14: 4510 | F14: 山海新能-锦浪 | G14: 江西余干库 | H14: 江西大海光伏工程有限公司 | I14: 2023-08-04
A15: 12 | B15: 逆变器-36 | C15: 1 | D15: 8525 | E15: 8525 | F15: 山海新能-锦浪 | G15: 江西余干库 | H15: 江西大海光伏工程有限公司 | I15: 2023-08-04
A16: 13 | B16: 逆变器-25 | C16: 3 | D16: 5170 | E16: 15510 | F16: 山海新能-锦浪 | G16: 江西余干库 | H16: 江西大海光伏工程有限公司 | I16: 2023-08-04
A17: 14 | B17: 东方日升660双玻 | C17: 372 | D17: 1082.4 | E17: 402652.8 | F17: 山海新能-东方日升 | G17: 江西余干库 | H17: 江西大海光伏工程有限公司 | I17: 2023-08-04
A18: 15 | B18: 逆变器-13 | C18: 1 | D18: 3520 | E18: 3520 | F18: 山海新能-锦浪 | G18: 庄河荣名库 | H18: 潍坊地球村能源有限公司 | I18: 2023-08-04
A19: 16 | B19: 逆变器-13 | C19: 1 | D19: 3520 | E19: 3520 | F19: 山海新能-锦浪 | G19: 庄河荣名库 | H19: 大连竣泰通信工程有限公司 | I19: 2023-08-04
A20: 17 | B20: 逆变器-15 | C20: 1 | D20: 3905 | E20: 3905 | F20: 山海新能-锦浪 | G20: 庄河荣名库 | H20: 大连竣泰通信工程有限公司 | I20: 2023-08-04
A21: 18 | B21: 逆变器-80 | C21: 1 | D21: 17300 | E21: 17300 | F21: 山海新能-锦浪 | G21: 庄河荣名库 | H21: 潍坊地球村能源有限公司 | I21: 2023-08-04
A22: 19 | B22: 东方日升660双玻 | C22: 12 | D22: 1082.4 | E22: 12988.8 | F22: 山海新能-东方日升 | G22: 江西余干库 | H22: 江西大海光伏工程有限公司 | I22: 2023-08-04
A23: 20 | B23: 逆变器-60 | C23: 8 | D23: 11300 | E23: 90400 | F23: 山海新能-锦浪 | G23: 安阳荣名库 | H23: 邯郸一铭新能源科技有限公司 | I23: 2023-08-04
A24: 21 | B24: 逆变器-80 | C24: 5 | D24: 17300 | E24: 86500 | F24: 山海新能-锦浪 | G24: 安阳荣名库 | H24: 邯郸一铭新能源科技有限公司 | I24: 2023-08-04
A25: 22 | B25: 逆变器-80 | C25: 2 | D25: 17300 | E25: 34600 | F25: 山海新能-锦浪 | G25: 安阳荣名库 | H25: 河北冀朋工程项目管理有限公司 | I25: 2023-08-04
A26: 23 | B26: 逆变器-60 | C26: 6 | D26: 11300 | E26: 67800 | F26: 山海新能-锦浪 | G26: 安阳荣名库 | H26: 河北冀朋工程项目管理有限公司 | I26: 2023-08-04
A27: 24 | B27: 逆变器-13 | C27: 16 | D27: 3520 | E27: 56320 | F27: 山海新能-锦浪 | G27: 庄河荣名库 | H27: 大连竣泰通信工程有限公司 | I27: 2023-08-07
A28: 25 | B28: 逆变器-33 | C28: 10 | D28: 8195 | E28: 81950 | F28: 山海新能-锦浪 | G28: 庄河荣名库 | H28: 大连竣泰通信工程有限公司 | I28: 2023-08-07
A29: 26 | B29: 逆变器-36 | C29: 4 | D29: 8525 | E29: 34100 | F29: 山海新能-锦浪 | G29: 庄河荣名库 | H29: 大连竣泰通信工程有限公司 | I29: 2023-08-07
A30: 27 | B30: 逆变器-60 | C30: 1 | D30: 11300 | E30: 11300 | F30: 山海新能-锦浪 | G30: 庄河荣名库 | H30: 大连竣泰通信工程有限公司 | I30: 2023-08-07
A31: 28 | B31: 逆变器-80 | C31: 1 | D31: 17300 | E31: 17300 | F31: 山海新能-锦浪 | G31: 庄河荣名库 | H31: 大连竣泰通信工程有限公司 | I31: 2023-08-07
A32: 29 | B32: 逆变器-25 | C32: 3 | D32: 5170 | E32: 15510 | F32: 山海新能-锦浪 | G32: 安阳荣名库 | H32: 启阳（安阳）新能源有限公司 | I32: 2023-08-07
A33: 30 | B33: 逆变器-30 | C33: 1 | D33: 7700 | E33: 7700 | F33: 山海新能-锦浪 | G33: 安阳荣名库 | H33: 启阳（安阳）新能源有限公司 | I33: 2023-08-07
A34: 31 | B34: 逆变器-60 | C34: 1 | D34: 11300 | E34: 11300 | F34: 山海新能-锦浪 | G34: 安阳荣名库 | H34: 启阳（安阳）新能源有限公司 | I34: 2023-08-07
A35: 32 | B35: 东方日升660 | C35: 768 | D35: 1014 | E35: 778752 | F35: 山海新能-东方日升 | G35: 安阳荣名库 | H35: 河南晶特新能源有限公司 | I35: 2023-08-07
A36: 33 | B36: 逆变器-15 | C36: 1 | D36: 3905 | E36: 3905 | F36: 山海新能-锦浪 | G36: 庄河荣名库 | H36: 大连竣泰通信工程有限公司 | I36: 2023-08-08
A37: 34 | B37: 逆变器-50 | C37: 1 | D37: 11990 | E37: 11990 | F37: 山海新能-锦浪 | G37: 庄河荣名库 | H37: 大连竣泰通信工程有限公司 | I37: 2023-08-08
A38: 35 | B38: 逆变器-25 | C38: 2 | D38: 5170 | E38: 10340 | F38: 山海新能-锦浪 | G38: 曲阜荣名库 | H38: 成都盛世中丰工程有限公司 | I38: 2023-08-08
A39: 36 | B39: 逆变器-20 | C39: 3 | D39: 4510 | E39: 13530 | F39: 山海新能-锦浪 | G39: 曲阜荣名库 | H39: 成都盛世中丰工程有限公司 | I39: 2023-08-08
A40: 37 | B40: 逆变器-13 | C40: 1 | D40: 3520 | E40: 3520 | F40: 山海新能-锦浪 | G40: 曲阜荣名库 | H40: 成都盛世中丰工程有限公司 | I40: 2023-08-08
A41: 38 | B41: 逆变器-80 | C41: 1 | D41: 17300 | E41: 17300 | F41: 山海新能-锦浪 | G41: 安阳荣名库 | H41: 启阳（安阳）新能源有限公司 | I41: 2023-08-09
A42: 39 | B42: 东方日升600 | C42: 26 | D42: 1108.8 | E42: 28828.8 | F42: 山海新能-东方日升 | G42: 庄河荣名库 | H42: 大连竣泰通信工程有限公司 | I42: 2023-08-09
A43: 40 | B43: 逆变器-60 | C43: 2 | D43: 11300 | E43: 22600 | F43: 山海新能-锦浪 | G43: 安阳荣名库 | H43: 唐县德闰新能源开发有限公司 | I43: 2023-08-09
A44: 41 | B44: 逆变器-50 | C44: 2 | D44: 11990 | E44: 23980 | F44: 山海新能-锦浪 | G44: 安阳荣名库 | H44: 唐县德闰新能源开发有限公司 | I44: 2023-08-09
A45: 42 | B45: 逆变器-40 | C45: 4 | D45: 8690 | E45: 34760 | F45: 山海新能-锦浪 | G45: 安阳荣名库 | H45: 唐县德闰新能源开发有限公司 | I45: 2023-08-09
A46: 43 | B46: 逆变器-80 | C46: 1 | D46: 17300 | E46: 17300 | F46: 山海新能-锦浪 | G46: 安阳荣名库 | H46: 启阳（安阳）新能源有限公司 | I46: 2023-08-10
A47: 44 | B47: 逆变器-40 | C47: 1 | D47: 8690 | E47: 8690 | F47: 山海新能-锦浪 | G47: 安阳荣名库 | H47: 启阳（安阳）新能源有限公司 | I47: 2023-08-10
A48: 45 | B48: 逆变器-13 | C48: 2 | D48: 3520 | E48: 7040 | F48: 山海新能-锦浪 | G48: 庄河荣名库 | H48: 辽宁圣东建筑工程有限公司 | I48: 2023-08-10
A49: 46 | B49: 逆变器-30 | C49: 2 | D49: 7700 | E49: 15400 | F49: 山海新能-锦浪 | G49: 庄河荣名库 | H49: 辽宁圣东建筑工程有限公司 | I49: 2023-08-10
A50: 47 | B50: 天合600 | C50: 67 | D50: 1267 | E50: 84889 | F50: 山海智慧-天合 | G50: 庄河荣名库 | H50: 辽宁圣东建筑工程有限公司 | I50: 2023-08-10
A51: 48 | B51: 逆变器-60 | C51: 1 | D51: 11300 | E51: 11300 | F51: 山海新能-锦浪 | G51: 庄河荣名库 | H51: 大连竣泰通信工程有限公司 | I51: 2023-08-10
A52: 49 | B52: 逆变器-36 | C52: 5 | D52: 8525 | E52: 42625 | F52: 山海新能-锦浪 | G52: 江西余干库 | H52: 江西大海光伏工程有限公司 | I52: 2023-08-11
A53: 50 | B53: 东方日升660双玻 | C53: 448 | D53: 1082.4 | E53: 484915.2 | F53: 山海新能-东方日升 | G53: 江西余干库 | H53: 江西大海光伏工程有限公司 | I53: 2023-08-11
A54: 51 | B54: 逆变器-25 | C54: 3 | D54: 5170 | E54: 15510 | F54: 山海新能-锦浪 | G54: 江西余干库 | H54: 江西大海光伏工程有限公司 | I54: 2023-08-11
A55: 52 | B55: 逆变器-30 | C55: 1 | D55: 7700 | E55: 7700 | F55: 山海新能-锦浪 | G55: 江西余干库 | H55: 江西大海光伏工程有限公司 | I55: 2023-08-11
A56: 53 | B56: 逆变器-40 | C56: 1 | D56: 8690 | E56: 8690 | F56: 山海新能-锦浪 | G56: 安阳荣名库 | H56: 河南省茂凯莱新能源科技有限公司 | I56: 2023-08-11
A57: 54 | B57: 逆变器-36 | C57: 3 | D57: 8525 | E57: 25575 | F57: 山海新能-锦浪 | G57: 安阳荣名库 | H57: 河南省茂凯莱新能源科技有限公司 | I57: 2023-08-11
A58: 55 | B58: 逆变器-30 | C58: 1 | D58: 7700 | E58: 7700 | F58: 山海新能-锦浪 | G58: 安阳荣名库 | H58: 河南省茂凯莱新能源科技有限公司 | I58: 2023-08-11
A59: 56 | B59: 逆变器-25 | C59: 4 | D59: 5170 | E59: 20680 | F59: 山海新能-锦浪 | G59: 安阳荣名库 | H59: 河南省茂凯莱新能源科技有限公司 | I59: 2023-08-11
A60: 57 | B60: 逆变器-60 | C60: 1 | D60: 11300 | E60: 11300 | F60: 山海新能-锦浪 | G60: 庄河荣名库 | H60: 大连竣泰通信工程有限公司 | I60: 2023-08-12
A61: 58 | B61: 逆变器-30 | C61: 2 | D61: 7700 | E61: 15400 | F61: 山海新能-锦浪 | G61: 曲阜荣名库 | H61: 成都盛世中丰工程有限公司 | I61: 2023-08-12
A62: 59 | B62: 逆变器-25 | C62: 1 | D62: 5170 | E62: 5170 | F62: 山海新能-锦浪 | G62: 曲阜荣名库 | H62: 成都盛世中丰工程有限公司 | I62: 2023-08-12
A63: 60 | B63: 逆变器-20 | C63: 6 | D63: 4510 | E63: 27060 | F63: 山海新能-锦浪 | G63: 曲阜荣名库 | H63: 成都盛世中丰工程有限公司 | I63: 2023-08-12
A64: 61 | B64: 逆变器-25 | C64: 1 | D64: 5170 | E64: 5170 | F64: 山海新能-锦浪 | G64: 江西余干库 | H64: 南昌恩悦新能源有限公司 | I64: 2023-08-12
A65: 62 | B65: 晶科475 | C65: 930 | D65: 904 | E65: =D65*C65 -> 840720 | F65: 山海智慧-天合 | G65: 藁城荣名库 | H65: 庄河荣名库 | I65: 2023-08-14
A66: 63 | B66: 逆变器-25 | C66: 2 | D66: 5170 | E66: =C66*D66 -> 10340 | F66: 山海新能-锦浪 | G66: 曲阜荣名库 | H66: 成都盛世中丰工程有限公司 | I66: 2023-08-14
A67: 64 | B67: 逆变器-15 | C67: 1 | D67: 3905 | E67: 3905 | F67: 山海新能-锦浪 | G67: 曲阜荣名库 | H67: 成都盛世中丰工程有限公司 | I67: 2023-08-14
A68: 65 | B68: 逆变器-20 | C68: 2 | D68: 4510 | E68: 9020 | F68: 山海新能-锦浪 | G68: 曲阜荣名库 | H68: 成都盛世中丰工程有限公司 | I68: 2023-08-14
A69: 66 | B69: 东方日升660双玻 | C69: 2208 | D69: 1082.4 | E69: 2389939.2 | F69: 山海新能-东方日升 | G69: 安阳荣名库 | H69: 河北冀朋工程项目管理有限公司 | I69: 2023-08-14
A70: 67 | B70: 东方日升660双玻 | C70: 736 | D70: 1082.4 | E70: 796646.4 | F70: 山海新能-东方日升 | G70: 安阳荣名库 | H70: 邯郸一铭新能源科技有限公司 | I70: 2023-08-14
A71: 68 | B71: 东方日升660双玻 | C71: 736 | D71: 1082.4 | E71: 796646.4 | F71: 山海新能-东方日升 | G71: 安阳荣名库 | H71: 唐县德闰新能源开发有限公司 | I71: 2023-08-14
A72: 69 | B72: 东方日升660双玻 | C72: 448 | D72: 1082.4 | E72: 484915.2 | F72: 山海新能-东方日升 | G72: 江西余干库 | H72: 南昌恩悦新能源有限公司 | I72: 2023-08-14
A73: 70 | B73: 逆变器-36 | C73: 4 | D73: 8525 | E73: 34100 | F73: 山海新能-锦浪 | G73: 江西余干库 | H73: 南昌恩悦新能源有限公司 | I73: 2023-08-14
A74: 71 | B74: 逆变器-30 | C74: 3 | D74: 7700 | E74: 23100 | F74: 山海新能-锦浪 | G74: 江西余干库 | H74: 南昌恩悦新能源有限公司 | I74: 2023-08-14
A75: 72 | B75: 逆变器-25 | C75: 1 | D75: 5170 | E75: 5170 | F75: 山海新能-锦浪 | G75: 江西余干库 | H75: 南昌恩悦新能源有限公司 | I75: 2023-08-14
A76: 73 | B76: 逆变器-50 | C76: 1 | D76: 11990 | E76: 11990 | F76: 山海新能-锦浪 | G76: 庄河荣名库 | H76: 辽宁圣东建筑工程有限公司 | I76: 2023-08-15
A77: 74 | B77: TSM-450DE17M(II） | C77: 3 | D77: 810 | E77: =D77*C77 -> 2430 | F77: 山海智慧-天合 | G77: 藁城荣名库 | H77: 运维库 | I77: 2023-08-16
A78: 75 | B78: 逆变器-15 | C78: 1 | D78: 3905 | E78: =C78*D78 -> 3905 | F78: 山海新能-锦浪 | G78: 安阳荣名库 | H78: 启阳（安阳）新能源有限公司 | I78: 2023-08-16
A79: 76 | B79: 东方日升660 | C79: 270 | D79: 1014 | E79: 273780 | F79: 山海新能-东方日升 | G79: 安阳荣名库 | H79: 启阳（安阳）新能源有限公司 | I79: 2023-08-16
A80: 77 | B80: 东方日升660 | C80: 160 | D80: 1014 | E80: 162240 | F80: 山海新能-东方日升 | G80: 安阳荣名库 | H80: 唐县冉灏新能源开发有限责任公司 | I80: 2023-08-16
A81: 78 | B81: 东方日升660 | C81: 338 | D81: 1014 | E81: 342732 | F81: 山海新能-东方日升 | G81: 安阳荣名库 | H81: 邯郸一铭新能源科技有限公司 | I81: 2023-08-16
A82: 79 | B82: 逆变器-13 | C82: 2 | D82: 3520 | E82: 7040 | F82: 山海新能-锦浪 | G82: 庄河荣名库 | H82: 潍坊地球村能源有限公司 | I82: 2023-08-17
A83: 80 | B83: 逆变器-30 | C83: 1 | D83: 7700 | E83: 7700 | F83: 山海新能-锦浪 | G83: 曲阜荣名库 | H83: 成都盛世中丰工程有限公司 | I83: 2023-08-17
A84: 81 | B84: 逆变器-25 | C84: 6 | D84: 5170 | E84: 31020 | F84: 山海新能-锦浪 | G84: 曲阜荣名库 | H84: 成都盛世中丰工程有限公司 | I84: 2023-08-17
A85: 82 | B85: 逆变器-20 | C85: 5 | D85: 4510 | E85: 22550 | F85: 山海新能-锦浪 | G85: 曲阜荣名库 | H85: 成都盛世中丰工程有限公司 | I85: 2023-08-17
A86: 83 | B86: 逆变器-15 | C86: 2 | D86: 3905 | E86: 7810 | F86: 山海新能-锦浪 | G86: 曲阜荣名库 | H86: 成都盛世中丰工程有限公司 | I86: 2023-08-17
A87: 84 | B87: 晶科475 | C87: 930 | D87: 904 | E87: =D87*C87 -> 840720 | F87: 山海智慧-天合 | G87: 藁城荣名库 | H87: 安阳荣名库 | I87: 2023-08-17
A88: 85 | B88: 逆变器-13 | C88: 2 | D88: 3520 | E88: =C88*D88 -> 7040 | F88: 山海新能-锦浪 | G88: 安阳荣名库 | H88: 河北冀朋工程项目管理有限公司 | I88: 2023-08-17
A89: 86 | B89: 逆变器-20 | C89: 2 | D89: 4510 | E89: 9020 | F89: 山海新能-锦浪 | G89: 安阳荣名库 | H89: 河北冀朋工程项目管理有限公司 | I89: 2023-08-17
A90: 87 | B90: 逆变器-25 | C90: 4 | D90: 5170 | E90: 20680 | F90: 山海新能-锦浪 | G90: 安阳荣名库 | H90: 河北冀朋工程项目管理有限公司 | I90: 2023-08-17
A91: 88 | B91: 逆变器-30 | C91: 6 | D91: 7700 | E91: 46200 | F91: 山海新能-锦浪 | G91: 安阳荣名库 | H91: 河北冀朋工程项目管理有限公司 | I91: 2023-08-17
A92: 89 | B92: 逆变器-36 | C92: 4 | D92: 8525 | E92: 34100 | F92: 山海新能-锦浪 | G92: 安阳荣名库 | H92: 河北冀朋工程项目管理有限公司 | I92: 2023-08-17
A93: 90 | B93: 逆变器-40 | C93: 2 | D93: 8690 | E93: 17380 | F93: 山海新能-锦浪 | G93: 安阳荣名库 | H93: 河北冀朋工程项目管理有限公司 | I93: 2023-08-17
A94: 91 | B94: 逆变器-50 | C94: 4 | D94: 11990 | E94: 47960 | F94: 山海新能-锦浪 | G94: 安阳荣名库 | H94: 河北冀朋工程项目管理有限公司 | I94: 2023-08-17
A95: 92 | B95: 逆变器-60 | C95: 2 | D95: 11300 | E95: 22600 | F95: 山海新能-锦浪 | G95: 安阳荣名库 | H95: 河南晶特新能源有限公司 | I95: 2023-08-17
A96: 93 | B96: 逆变器-20 | C96: 1 | D96: 4510 | E96: 4510 | F96: 山海新能-锦浪 | G96: 安阳荣名库 | H96: 启阳（安阳）新能源有限公司 | I96: 2023-08-17
A97: 94 | B97: 逆变器-25 | C97: 2 | D97: 5170 | E97: 10340 | F97: 山海新能-锦浪 | G97: 安阳荣名库 | H97: 启阳（安阳）新能源有限公司 | I97: 2023-08-17
A98: 95 | B98: 逆变器-30 | C98: 1 | D98: 7700 | E98: 7700 | F98: 山海新能-锦浪 | G98: 安阳荣名库 | H98: 启阳（安阳）新能源有限公司 | I98: 2023-08-17
A99: 96 | B99: 逆变器-36 | C99: 1 | D99: 8525 | E99: 8525 | F99: 山海新能-锦浪 | G99: 安阳荣名库 | H99: 启阳（安阳）新能源有限公司 | I99: 2023-08-17
A100: 97 | B100: 逆变器-60 | C100: 1 | D100: 11300 | E100: 11300 | F100: 山海新能-锦浪 | G100: 安阳荣名库 | H100: 启阳（安阳）新能源有限公司 | I100: 2023-08-17
A101: 98 | B101: 逆变器-13 | C101: 1 | D101: 3520 | E101: 3520 | F101: 山海新能-锦浪 | G101: 庄河荣名库 | H101: 潍坊地球村能源有限公司 | I101: 2023-08-18
A102: 99 | B102: 逆变器-13 | C102: 1 | D102: 3520 | E102: 3520 | F102: 山海新能-锦浪 | G102: 庄河荣名库 | H102: 潍坊地球村能源有限公司 | I102: 2023-08-18
A103: 100 | B103: 逆变器-60 | C103: 1 | D103: 11300 | E103: 11300 | F103: 山海新能-锦浪 | G103: 庄河荣名库 | H103: 大连竣泰通信工程有限公司 | I103: 2023-08-18
A104: 101 | B104: 逆变器-36 | C104: 1 | D104: 8525 | E104: 8525 | F104: 山海新能-锦浪 | G104: 江西余干库 | H104: 江西大海光伏工程有限公司 | I104: 2023-08-21
A105: 102 | B105: 逆变器-36 | C105: 17 | D105: 7920 | E105: =D105*C105 -> 134640 | F105: 禾望 | G105: 藁城荣名库 | H105: 安阳荣名库 | I105: 2023-08-21
A106: 103 | B106: 逆变器-33 | C106: 34 | D106: 7260 | E106: 246840 | F106: 禾望 | G106: 藁城荣名库 | H106: 安阳荣名库 | I106: 2023-08-21
A107: 104 | B107: 逆变器-30 | C107: 33 | D107: 7040 | E107: 232320 | F107: 禾望 | G107: 藁城荣名库 | H107: 安阳荣名库 | I107: 2023-08-21
A108: 105 | B108: 逆变器-50 | C108: 36 | D108: 9000 | E108: 324000 | F108: 山海新能-古瑞瓦特 | G108: 藁城荣名库 | H108: 安阳荣名库 | I108: 2023-08-21
A109: 106 | B109: 逆变器-40 | C109: 12 | D109: 7600 | E109: 91200 | F109: 山海新能-古瑞瓦特 | G109: 藁城荣名库 | H109: 安阳荣名库 | I109: 2023-08-21
A110: 107 | B110: 逆变器-15 | C110: 3 | D110: 3905 | E110: 11715 | F110: 山海新能-锦浪 | G110: 藁城荣名库 | H110: 安阳荣名库 | I110: 2023-08-21
A111: 108 | B111: 晶科475 | C111: 930 | D111: 904 | E111: 840720 | F111: 山海智慧-天合 | G111: 藁城荣名库 | H111: 安阳荣名库 | I111: 2023-08-21
A112: 109 | B112: 逆变器-110 | C112: 18 | D112: 19800 | E112: =C112*D112 -> 356400 | F112: 山海新能-锦浪 | G112: 庄河荣名库 | H112: 大连竣泰通信工程有限公司 | I112: 2023-08-21
A113: 110 | B113: 东方日升660双玻 | C113: 736 | D113: 1082.4 | E113: 796646.4 | F113: 山海新能-东方日升 | G113: 安阳荣名库 | H113: 唐县冉灏新能源开发有限责任公司 | I113: 2023-08-21
A114: 111 | B114: 东方日升660双玻 | C114: 853 | D114: 1082.4 | E114: 923287.2 | F114: 山海新能-东方日升 | G114: 安阳荣名库 | H114: 邯郸一铭新能源科技有限公司 | I114: 2023-08-21
A115: 112 | B115: 东方日升660双玻 | C115: 736 | D115: 1082.4 | E115: 796646.4 | F115: 山海新能-东方日升 | G115: 安阳荣名库 | H115: 河南省茂凯莱新能源科技有限公司 | I115: 2023-08-21
A116: 113 | B116: 东方日升660双玻 | C116: 140 | D116: 1082.4 | E116: 151536 | F116: 山海新能-东方日升 | G116: 安阳荣名库 | H116: 河南晶特新能源有限公司 | I116: 2023-08-21
A117: 114 | B117: 东方日升660双玻 | C117: 352 | D117: 1082.4 | E117: 381004.8 | F117: 山海新能-东方日升 | G117: 江西余干库 | H117: 江西大海光伏工程有限公司 | I117: 2023-08-21
A118: 115 | B118: 逆变器-20 | C118: 1 | D118: 4510 | E118: 4510 | F118: 山海新能-锦浪 | G118: 江西余干库 | H118: 江西大海光伏工程有限公司 | I118: 2023-08-21
A119: 116 | B119: 逆变器-30 | C119: 3 | D119: 7700 | E119: 23100 | F119: 山海新能-锦浪 | G119: 江西余干库 | H119: 江西大海光伏工程有限公司 | I119: 2023-08-21
A120: 117 | B120: 逆变器-36 | C120: 2 | D120: 8525 | E120: 17050 | F120: 山海新能-锦浪 | G120: 江西余干库 | H120: 江西大海光伏工程有限公司 | I120: 2023-08-21
A121: 118 | B121: 逆变器-40 | C121: 1 | D121: 8690 | E121: 8690 | F121: 山海新能-锦浪 | G121: 江西余干库 | H121: 江西大海光伏工程有限公司 | I121: 2023-08-21
A122: 119 | B122: 晶科475 | C122: 682 | D122: 904 | E122: =D122*C122 -> 616528 | F122: 山海智慧-天合 | G122: 藁城荣名库 | H122: 安阳荣名库 | I122: 2023-08-22
A123: 120 | B123: 逆变器-20 | C123: 1 | D123: 4510 | E123: =C123*D123 -> 4510 | F123: 山海新能-锦浪 | G123: 安阳荣名库 | H123: 河北顺公建筑工程有限公司 | I123: 2023-08-22
A124: 121 | B124: 逆变器-25 | C124: 2 | D124: 5170 | E124: 10340 | F124: 山海新能-锦浪 | G124: 安阳荣名库 | H124: 河北顺公建筑工程有限公司 | I124: 2023-08-22
A125: 122 | B125: 逆变器-36 | C125: 1 | D125: 8525 | E125: 8525 | F125: 山海新能-锦浪 | G125: 安阳荣名库 | H125: 河北顺公建筑工程有限公司 | I125: 2023-08-22
A126: 123 | B126: 逆变器-80 | C126: 1 | D126: 17300 | E126: 17300 | F126: 山海新能-锦浪 | G126: 安阳荣名库 | H126: 河北顺公建筑工程有限公司 | I126: 2023-08-22
A127: 124 | B127: 东方日升660双玻 | C127: 736 | D127: 1082.4 | E127: 796646.4 | F127: 山海新能-东方日升 | G127: 安阳荣名库 | H127: 河北顺公建筑工程有限公司 | I127: 2023-08-22
A128: 125 | B128: 逆变器-25 | C128: 2 | D128: 5170 | E128: 10340 | F128: 山海新能-锦浪 | G128: 江西余干库 | H128: 江西大海光伏工程有限公司 | I128: 2023-08-22
A129: 126 | B129: 逆变器-30 | C129: 7 | D129: 7700 | E129: 53900 | F129: 山海新能-锦浪 | G129: 江西余干库 | H129: 江西大海光伏工程有限公司 | I129: 2023-08-22
A130: 127 | B130: 逆变器-36 | C130: 2 | D130: 8525 | E130: 17050 | F130: 山海新能-锦浪 | G130: 江西余干库 | H130: 江西大海光伏工程有限公司 | I130: 2023-08-22
A131: 128 | B131: 逆变器-40 | C131: 2 | D131: 8690 | E131: 17380 | F131: 山海新能-锦浪 | G131: 江西余干库 | H131: 江西大海光伏工程有限公司 | I131: 2023-08-22
A132: 129 | B132: 晶科475 | C132: 930 | D132: 904 | E132: =D132*C132 -> 840720 | F132: 山海智慧-天合 | G132: 藁城荣名库 | H132: 安阳荣名库 | I132: 2023-08-23
A133: 130 | B133: 东方日升660双玻 | C133: 96 | D133: 1082.4 | E133: =C133*D133 -> 103910.4 | F133: 山海新能-东方日升 | G133: 江西余干库 | H133: 余干县鑫维新能源有限公司 | I133: 2023-08-23
A134: 131 | B134: 逆变器-50 | C134: 1 | D134: 11990 | E134: =C134*D134 -> 11990 | F134: 山海新能-锦浪 | G134: 江西余干库 | H134: 余干县鑫维新能源有限公司 | I134: 2023-08-23
A135: 132 | B135: 逆变器-25 | C135: 7 | D135: 5170 | E135: =C135*D135 -> 36190 | F135: 山海新能-锦浪 | G135: 安阳荣名库 | H135: 唐县冉灏新能源开发有限责任公司 | I135: 2023-08-23
A136: 133 | B136: 逆变器-15 | C136: 3 | D136: 3905 | E136: =C136*D136 -> 11715 | F136: 山海新能-锦浪 | G136: 安阳荣名库 | H136: 唐县冉灏新能源开发有限责任公司 | I136: 2023-08-23
A137: 134 | B137: 晶科475 | C137: 682 | D137: 904 | E137: =D137*C137 -> 616528 | F137: 山海智慧-天合 | G137: 藁城荣名库 | H137: 安阳荣名库 | I137: 2023-08-23
A138: 135 | B138: 逆变器-25 | C138: 4 | D138: 5170 | E138: =C138*D138 -> 20680 | F138: 山海新能-锦浪 | G138: 曲阜荣名库 | H138: 成都盛世中丰工程有限公司 | I138: 2023-08-23
A139: 136 | B139: 逆变器-20 | C139: 3 | D139: 4510 | E139: =C139*D139 -> 13530 | F139: 山海新能-锦浪 | G139: 曲阜荣名库 | H139: 成都盛世中丰工程有限公司 | I139: 2023-08-23
A140: 137 | B140: 天合600 | C140: 2 | D140: 1267 | E140: =C140*D140 -> 2534 | F140: 山海智慧-天合 | G140: 曲阜荣名库 | H140: 报废库 | I140: 2023-08-23
A141: 138 | B141: 晶科475 | C141: 682 | D141: 904 | E141: =D141*C141 -> 616528 | F141: 山海新能 | G141: 藁城荣名库 | H141: 安阳荣名库 | I141: 2023-08-24
A142: 139 | B142: 晶科475 | C142: 682 | D142: 904 | E142: =D142*C142 -> 616528 | F142: 山海新能 | G142: 藁城荣名库 | H142: 安阳荣名库 | I142: 2023-08-24
A143: 140 | B143: 晶科475 | C143: 930 | D143: 904 | E143: =D143*C143 -> 840720 | F143: 山海新能 | G143: 藁城荣名库 | H143: 安阳荣名库 | I143: 2023-08-24
A144: 141 | B144: 逆变器-36 | C144: 1 | D144: 8525 | E144: =C144*D144 -> 8525 | F144: 山海新能-锦浪 | G144: 庄河荣名库 | H144: 辽宁圣东建筑工程有限公司 | I144: 2023-08-25
A145: 142 | B145: 逆变器-60 | C145: 1 | D145: 11300 | E145: =C145*D145 -> 11300 | F145: 山海新能-锦浪 | G145: 庄河荣名库 | H145: 大连竣泰通信工程有限公司 | I145: 2023-08-25
A146: 143 | B146: 晶科470 | C146: 682 | D146: 904 | E146: =D146*C146 -> 616528 | F146: 山海新能 | G146: 藁城荣名库 | H146: 安阳荣名库 | I146: 2023-08-25
A147: 144 | B147: 晶科470 | C147: 930 | D147: 904 | E147: =D147*C147 -> 840720 | F147: 山海新能 | G147: 藁城荣名库 | H147: 安阳荣名库 | I147: 2023-08-25
A148: 145 | B148: 晶科470 | C148: 682 | D148: 904 | E148: =D148*C148 -> 616528 | F148: 山海新能 | G148: 藁城荣名库 | H148: 安阳荣名库 | I148: 2023-08-25
A149: 146 | B149: 晶科475 | C149: 682 | D149: 904 | E149: =D149*C149 -> 616528 | F149: 山海新能 | G149: 藁城荣名库 | H149: 安阳荣名库 | I149: 2023-08-25
A150: 147 | B150: 逆变器-60 | C150: 1 | D150: 11300 | E150: =C150*D150 -> 11300 | F150: 山海新能-锦浪 | G150: 庄河荣名库 | H150: 大连竣泰通信工程有限公司 | I150: 2023-08-28
A151: 148 | B151: 逆变器-25 | C151: 1 | D151: 5170 | E151: =C151*D151 -> 5170 | F151: 山海新能-锦浪 | G151: 曲阜荣名库 | H151: 成都盛世中丰工程有限公司 | I151: 2023-08-28
A152: 149 | B152: 逆变器-20 | C152: 2 | D152: 4510 | E152: =C152*D152 -> 9020 | F152: 山海新能-锦浪 | G152: 曲阜荣名库 | H152: 成都盛世中丰工程有限公司 | I152: 2023-08-28
A153: 150 | B153: 逆变器-30 | C153: 1 | D153: 7700 | E153: =C153*D153 -> 7700 | F153: 山海新能-锦浪 | G153: 庄河荣名库 | H153: 大连竣泰通信工程有限公司 | I153: 2023-08-29
A154: 151 | B154: 逆变器-25 | C154: 3 | D154: 5170 | E154: =C154*D154 -> 15510 | F154: 山海新能-锦浪 | G154: 曲阜荣名库 | H154: 成都盛世中丰工程有限公司 | I154: 2023-08-29
A155: 152 | B155: 晶科475 | C155: 930 | D155: 904 | E155: =D155*C155 -> 840720 | F155: 山海新能 | G155: 藁城荣名库 | H155: 庄河荣名库 | I155: 2023-08-31
A156: 153 | B156: 逆变器-25 | C156: 1 | D156: 5170 | E156: =C156*D156 -> 5170 | F156: 山海新能-锦浪 | G156: 曲阜荣名库 | H156: 成都盛世中丰工程有限公司 | I156: 2023-08-31
A157: 154 | B157: 逆变器-20 | C157: 3 | D157: 4510 | E157: =C157*D157 -> 13530 | F157: 山海新能-锦浪 | G157: 曲阜荣名库 | H157: 成都盛世中丰工程有限公司 | I157: 2023-08-31
A158: 155 | B158: 逆变器-15 | C158: 2 | D158: 3905 | E158: =C158*D158 -> 7810 | F158: 山海新能-锦浪 | G158: 曲阜荣名库 | H158: 成都盛世中丰工程有限公司 | I158: 2023-08-31
A159: 156 | B159: 合计 | C159: =SUM(C4:C158) -> 24245 | E159: =SUM(E4:E158) -> 26809907.4
A162: 出质人： | C162: 山海新能（北京）能源科技有限公司河北分公司
A167: 监管人： | C167: 宇信通创新技术（河北）有限公司

Sheet 20230731库存表
A1: 质物库存表
A2: 出质人： | C2: 山海新能（北京）能源科技有限公司河北分公司
A3: 质权人： | C3: 石家庄汇融农村合作银行
A4: 序号 | B4: 仓库名称 | C4: 物料组 | D4: 物料编号 | E4: 物料名称 | F4: 物料品牌 | G4: 物料单价 | H4: 库存数量 | I4: 货值
A5: 1 | B5: 江西余干库 | C5: 组件 | D5: 1004000067 | E5: 东方日升660双玻 | F5: 山海新能-东方日升 | G5: 1082.4 | H5: 3136 | I5: =H5*G5 -> 3394406.4
A6: 2 | B6: 江西余干库 | C6: 逆变器 | D6: 2001000015 | E6: 逆变器-15 | F6: 山海新能-锦浪 | G6: 3905 | H6: 10 | I6: =H6*G6 -> 39050
A7: 3 | B7: 江西余干库 | C7: 逆变器 | D7: 2001000020 | E7: 逆变器-20 | F7: 山海新能-锦浪 | G7: 4510 | H7: 66 | I7: 297660
A8: 4 | B8: 江西余干库 | C8: 逆变器 | D8: 2001000025 | E8: 逆变器-25 | F8: 山海新能-锦浪 | G8: 5170 | H8: 138 | I8: 713460
A9: 5 | B9: 江西余干库 | C9: 逆变器 | D9: 2001000030 | E9: 逆变器-30 | F9: 山海新能-锦浪 | G9: 7700 | H9: 106 | I9: 816200
A10: 6 | B10: 江西余干库 | C10: 逆变器 | D10: 2001000036 | E10: 逆变器-36 | F10: 山海新能-锦浪 | G10: 8525 | H10: 34 | I10: 289850
A11: 7 | B11: 江西余干库 | C11: 逆变器 | D11: 2001000040 | E11: 逆变器-40 | F11: 山海新能-锦浪 | G11: 8690 | H11: 12 | I11: 104280
A12: 8 | B12: 江西余干库 | C12: 逆变器 | D12: 2001000050 | E12: 逆变器-50 | F12: 山海新能-锦浪 | G12: 11990 | H12: 7 | I12: 83930
A13: 9 | B13: 庄河荣名库 | C13: 组件 | D13: 1004000060 | E13: 东方日升600 | F13: 山海新能-东方日升 | G13: 1108.8 | H13: 0 | I13: 0
A14: 10 | B14: 庄河荣名库 | C14: 组件 | D14: 1001000054 | E14: 天合600 | F14: 山海智慧-天合 | G14: 1267 | H14: 0 | I14: 0
A15: 11 | B15: 庄河荣名库 | C15: 组件 | D15: 1004000047 | E15: 晶科475 | F15: 山海智慧-天合 | G15: 904 | H15: 0 | I15: 0
A16: 12 | B16: 庄河荣名库 | C16: 逆变器 | D16: 2003000060 | E16: 逆变器-60 | F16: 山海新能-锦浪 | G16: 11300 | H16: 8 | I16: 90400
A17: 13 | B17: 庄河荣名库 | C17: 逆变器 | D17: 2003000040 | E17: 逆变器-40 | F17: 山海新能-固德威 | G17: 8171 | H17: 31 | I17: 253301
A18: 14 | B18: 庄河荣名库 | C18: 逆变器 | D18: 2003000036 | E18: 逆变器-36 | F18: 山海新能-固德威 | G18: 7660 | H18: 5 | I18: 38300
A19: 15 | B19: 庄河荣名库 | C19: 逆变器 | D19: 2003000030 | E19: 逆变器-30 | F19: 山海新能-固德威 | G19: 7100 | H19: 18 | I19: 127800
A20: 16 | B20: 庄河荣名库 | C20: 逆变器 | D20: 20010000110 | E20: 逆变器-110 | F20: 山海新能-锦浪 | G20: 19800 | H20: 40 | I20: 792000
A21: 17 | B21: 庄河荣名库 | C21: 逆变器 | D21: 2001000080 | E21: 逆变器-80 | F21: 山海新能-锦浪 | G21: 17300 | H21: 7 | I21: 121100
A22: 18 | B22: 庄河荣名库 | C22: 逆变器 | D22: 2001000008 | E22: 逆变器-8 | F22: 山海新能-锦浪 | G22: 2830 | H22: 50 | I22: 141500
A23: 19 | B23: 庄河荣名库 | C23: 逆变器 | D23: 2001000050 | E23: 逆变器-50 | F23: 山海新能-锦浪 | G23: 11990 | H23: 9 | I23: 107910
A24: 20 | B24: 庄河荣名库 | C24: 逆变器 | D24: 2001000013 | E24: 逆变器-13 | F24: 山海新能-锦浪 | G24: 3520 | H24: 19 | I24: 66880
A25: 21 | B25: 庄河荣名库 | C25: 逆变器 | D25: 2001000015 | E25: 逆变器-15 | F25: 山海新能-锦浪 | G25: 3905 | H25: 47 | I25: 183535
A26: 22 | B26: 庄河荣名库 | C26: 逆变器 | D26: 2001000036 | E26: 逆变器-36 | F26: 山海新能-锦浪 | G26: 8525 | H26: 30 | I26: 255750
A27: 23 | B27: 庄河荣名库 | C27: 逆变器 | D27: 2001000030 | E27: 逆变器-30 | F27: 山海新能-锦浪 | G27: 7700 | H27: 0 | I27: 0
A28: 24 | B28: 庄河荣名库 | C28: 逆变器 | D28: 2001000040 | E28: 逆变器-40 | F28: 山海新能-锦浪 | G28: 8690 | H28: 0 | I28: 0
A29: 25 | B29: 庄河荣名库 | C29: 逆变器 | D29: 2001000033 | E29: 逆变器-33 | F29: 山海新能-锦浪 | G29: 8195 | H29: 50 | I29: 409750
A30: 26 | B30: 庄河荣名库 | C30: 逆变器 | D30: 2001000025 | E30: 逆变器-25 | F30: 山海新能-锦浪 | G30: 5170 | H30: 0 | I30: 0
A31: 27 | B31: 庄河荣名库 | C31: 逆变器 | D31: 2001000020 | E31: 逆变器-20 | F31: 山海新能-锦浪 | G31: 4510 | H31: 16 | I31: 72160
A32: 28 | B32: 安阳荣名库 | C32: 组件 | D32: 1004000048 | E32: 晶科470 | F32: 山海新能 | G32: 904 | H32: 0 | I32: 0
A33: 29 | B33: 安阳荣名库 | C33: 组件 | D33: 1004000067 | E33: 东方日升660双玻 | F33: 山海新能-东方日升 | G33: 1082.4 | H33: 0 | I33: 0
A34: 30 | B34: 安阳荣名库 | C34: 组件 | D34: 1004000066 | E34: 东方日升660 | F34: 山海新能-东方日升 | G34: 1014 | H34: 3840 | I34: 3893760
A35: 31 | B35: 安阳荣名库 | C35: 组件 | D35: 1004000047 | E35: 晶科475 | F35: 山海智慧-天合 | G35: 904 | H35: 4740 | I35: 4284960
A36: 32 | B36: 安阳荣名库 | C36: 逆变器 | D36: 2002000040 | E36: 逆变器-40 | F36: 山海新能-古瑞瓦特 | G36: 7600 | H36: 0 | I36: 0
A37: 33 | B37: 安阳荣名库 | C37: 逆变器 | D37: 2002000050 | E37: 逆变器-50 | F37: 山海新能-古瑞瓦特 | G37: 9000 | H37: 0 | I37: 0
A38: 34 | B38: 安阳荣名库 | C38: 逆变器 | D38: 20010000110 | E38: 逆变器-110 | F38: 山海新能-锦浪 | G38: 19800 | H38: 71 | I38: =H38*G38 -> 1405800
A39: 35 | B39: 安阳荣名库 | C39: 逆变器 | D39: 2001000030 | E39: 逆变器-30 | F39: 山海新能-锦浪 | G39: 7700 | H39: 13 | I39: 100100
A40: 36 | B40: 安阳荣名库 | C40: 逆变器 | D40: 2001000060 | E40: 逆变器-60 | F40: 山海新能-锦浪 | G40: 11300 | H40: 10 | I40: 113000
A41: 37 | B41: 安阳荣名库 | C41: 逆变器 | D41: 2001000080 | E41: 逆变器-80 | F41: 山海新能-锦浪 | G41: 17300 | H41: 11 | I41: 190300
A42: 38 | B42: 安阳荣名库 | C42: 逆变器 | D42: 2001000036 | E42: 逆变器-36 | F42: 山海新能-锦浪 | G42: 8525 | H42: 10 | I42: 85250
A43: 39 | B43: 安阳荣名库 | C43: 逆变器 | D43: 2001000050 | E43: 逆变器-50 | F43: 山海新能-锦浪 | G43: 11990 | H43: 10 | I43: 119900
A44: 40 | B44: 安阳荣名库 | C44: 逆变器 | D44: 2001000040 | E44: 逆变器-40 | F44: 山海新能-锦浪 | G44: 8690 | H44: 21 | I44: 182490
A45: 41 | B45: 安阳荣名库 | C45: 逆变器 | D45: 2001000013 | E45: 逆变器-13 | F45: 山海新能-锦浪 | G45: 3520 | H45: 7 | I45: 24640
A46: 42 | B46: 安阳荣名库 | C46: 逆变器 | D46: 2001000015 | E46: 逆变器-15 | F46: 山海新能-锦浪 | G46: 3905 | H46: 6 | I46: 23430
A47: 43 | B47: 安阳荣名库 | C47: 逆变器 | D47: 2004000133 | E47: 逆变器-33 | F47: 禾望 | G47: 7260 | H47: 0 | I47: 0
A48: 44 | B48: 安阳荣名库 | C48: 逆变器 | D48: 2001000020 | E48: 逆变器-20 | F48: 山海新能-锦浪 | G48: 4510 | H48: 31 | I48: 139810
A49: 45 | B49: 安阳荣名库 | C49: 逆变器 | D49: 2001000025 | E49: 逆变器-25 | F49: 山海新能-锦浪 | G49: 5170 | H49: 22 | I49: 113740
A50: 46 | B50: 安阳荣名库 | C50: 逆变器 | D50: 2004000130 | E50: 逆变器-30 | F50: 禾望 | G50: 7040 | H50: 0 | I50: 0
A51: 47 | B51: 安阳荣名库 | C51: 逆变器 | D51: 2004000136 | E51: 逆变器-36 | F51: 禾望 | G51: 7920 | H51: 0 | I51: 0
A52: 48 | B52: 安阳荣名库 | C52: 组件 | D52: 1005000066 | E52: 阿特斯660 | F52: 山海新能-阿特斯 | G52: 1075.8 | H52: 1133 | I52: 1218881.4
A53: 49 | B53: 安阳荣名库 | C53: 逆变器 | D53: 2003000030 | E53: 逆变器-30 | F53: 山海新能-固德威 | G53: 7100 | H53: 0 | I53: 0
A54: 50 | B54: 安阳荣名库 | C54: 逆变器 | D54: 2001000033 | E54: 逆变器-33 | F54: 山海新能-锦浪 | G54: 8195 | H54: 0 | I54: 0
A55: 51 | B55: 曲阜荣名库 | C55: 组件 | D55: 1004000060 | E55: 东方日升600 | F55: 山海新能-东方日升 | G55: 1108.8 | H55: 2104 | I55: 2332915.2
A56: 52 | B56: 曲阜荣名库 | C56: 组件 | D56: 1004000047 | E56: 晶科475 | F56: 山海智慧-天合 | G56: 904 | H56: 6448 | I56: =G56*H56 -> 5828992
A57: 53 | B57: 曲阜荣名库 | C57: 组件 | D57: 1001000054 | E57: 天合600 | F57: 山海智慧-天合 | G57: 1267 | H57: 765 | I57: =H57*G57 -> 969255
A58: 54 | B58: 曲阜荣名库 | C58: 逆变器 | D58: 2001000013 | E58: 逆变器-13 | F58: 山海新能-锦浪 | G58: 3520 | H58: 10 | I58: 35200
A59: 55 | B59: 曲阜荣名库 | C59: 逆变器 | D59: 2001000050 | E59: 逆变器-50 | F59: 山海新能-锦浪 | G59: 11990 | H59: 20 | I59: 239800
A60: 56 | B60: 曲阜荣名库 | C60: 逆变器 | D60: 2001000080 | E60: 逆变器-80 | F60: 山海新能-锦浪 | G60: 17300 | H60: 4 | I60: 69200
A61: 57 | B61: 曲阜荣名库 | C61: 逆变器 | D61: 20010000110 | E61: 逆变器-110 | F61: 山海新能-锦浪 | G61: 19800 | H61: 5 | I61: 99000
A62: 58 | B62: 曲阜荣名库 | C62: 逆变器 | D62: 2001000060 | E62: 逆变器-60 | F62: 山海新能-锦浪 | G62: 11300 | H62: 0 | I62: 0
A63: 59 | B63: 曲阜荣名库 | C63: 逆变器 | D63: 2002000050 | E63: 逆变器-50 | F63: 山海新能-古瑞瓦特 | G63: 9000 | H63: 10 | I63: 90000
A64: 60 | B64: 曲阜荣名库 | C64: 逆变器 | D64: 2002000040 | E64: 逆变器-40 | F64: 山海新能-古瑞瓦特 | G64: 7600 | H64: 14 | I64: =G64*H64 -> 106400
A65: 61 | B65: 曲阜荣名库 | C65: 逆变器 | D65: 2003000050 | E65: 逆变器-50 | F65: 山海新能-固德威 | G65: 9900 | H65: 2 | I65: =H65*G65 -> 19800
A66: 62 | B66: 曲阜荣名库 | C66: 逆变器 | D66: 2001000040 | E66: 逆变器-40 | F66: 山海新能-锦浪 | G66: 8690 | H66: 10 | I66: 86900
A67: 63 | B67: 曲阜荣名库 | C67: 逆变器 | D67: 2001000033 | E67: 逆变器-33 | F67: 山海新能-锦浪 | G67: 8195 | H67: 44 | I67: 360580
A68: 64 | B68: 曲阜荣名库 | C68: 逆变器 | D68: 2001000036 | E68: 逆变器-36 | F68: 山海新能-锦浪 | G68: 8525 | H68: 10 | I68: 85250
A69: 65 | B69: 曲阜荣名库 | C69: 逆变器 | D69: 2001000030 | E69: 逆变器-30 | F69: 山海新能-锦浪 | G69: 7700 | H69: 35 | I69: 269500
A70: 66 | B70: 曲阜荣名库 | C70: 逆变器 | D70: 2001000015 | E70: 逆变器-15 | F70: 山海新能-锦浪 | G70: 3905 | H70: 20 | I70: 78100
A71: 67 | B71: 曲阜荣名库 | C71: 逆变器 | D71: 2001000025 | E71: 逆变器-25 | F71: 山海新能-锦浪 | G71: 5170 | H71: 44 | I71: 227480
A72: 68 | B72: 曲阜荣名库 | C72: 逆变器 | D72: 2001000020 | E72: 逆变器-20 | F72: 山海新能-锦浪 | G72: 4510 | H72: 62 | I72: 279620
A73: 69 | B73: 藁城荣名库 | C73: 组件 | D73: 1001000050 | E73: TSM-500DE18M(II） | F73: 山海智慧-天合 | G73: 900 | H73: 71 | I73: =G73*H73 -> 63900
A74: 70 | B74: 藁城荣名库 | C74: 组件 | D74: 1001000053 | E74: TSM-535DE19 | F74: 山海智慧-天合 | G74: 963 | H74: 12 | I74: 11556
A75: 71 | B75: 藁城荣名库 | C75: 组件 | D75: 1002000053 | E75: 远显535 | F75: 山海智慧-远显 | G75: 996 | H75: 561 | I75: 558756
A76: 72 | B76: 藁城荣名库 | C76: 组件 | D76: 1003000053 | E76: 乐丰535 | F76: 山海智慧-乐丰 | G76: 996 | H76: 215 | I76: 214140
A77: 73 | B77: 藁城荣名库 | C77: 组件 | D77: 1003010053 | E77: 乐丰535（宽版） | F77: 山海智慧-乐丰（宽） | G77: 996 | H77: 1066 | I77: 1061736
A78: 74 | B78: 藁城荣名库 | C78: 组件 | D78: 1004000047 | E78: 晶科475 | F78: 山海智慧-天合 | G78: 904 | H78: 25992 | I78: 23496768
A79: 75 | B79: 藁城荣名库 | C79: 组件 | D79: 1001000045 | E79: TSM-450DE17M(II） | F79: 山海智慧-天合 | G79: 810 | H79: 45 | I79: 36450
A80: 76 | B80: 藁城荣名库 | C80: 组件 | D80: 1004000048 | E80: 晶科470 | F80: 山海智慧-天合 | G80: 904 | H80: 21046 | I80: 19025584
A81: 77 | B81: 藁城荣名库 | C81: 逆变器 | D81: 2002000040 | E81: 逆变器-40 | F81: 山海新能-古瑞瓦特 | G81: 7600 | H81: 12 | I81: 91200
A82: 78 | B82: 藁城荣名库 | C82: 逆变器 | D82: 2001000015 | E82: 逆变器-15 | F82: 山海新能-锦浪 | G82: 3905 | H82: 3 | I82: 11715
A83: 79 | B83: 藁城荣名库 | C83: 逆变器 | D83: 2001000036 | E83: 逆变器-36 | F83: 山海新能-锦浪 | G83: 8525 | H83: 1 | I83: 8525
A84: 80 | B84: 藁城荣名库 | C84: 逆变器 | D84: 2002000050 | E84: 逆变器-50 | F84: 山海新能-古瑞瓦特 | G84: 9000 | H84: 36 | I84: 324000
A85: 81 | B85: 藁城荣名库 | C85: 逆变器 | D85: 2004000136 | E85: 逆变器-36 | F85: 禾望 | G85: 7920 | H85: 17 | I85: 134640
A86: 82 | B86: 藁城荣名库 | C86: 逆变器 | D86: 2004000133 | E86: 逆变器-33 | F86: 禾望 | G86: 7260 | H86: 34 | I86: 246840
A87: 83 | B87: 藁城荣名库 | C87: 逆变器 | D87: 2004000130 | E87: 逆变器-30 | F87: 禾望 | G87: 7040 | H87: 33 | I87: 232320
A88: 84 | B88: 合计： | H88: =SUM(H5:H87) -> 72515 | I88: =SUM(I5:I87) -> 76991406
A90: 以上内容截止到2023年7月31日
A92: 出质人： | C92: 山海新能（北京）能源科技有限公司河北分公司
A96: 监管人： | C96: 宇信通创新技术（河北）有限公司
A99: 备注：1、以最近日期的库存表为准，自动覆盖前期库存表。
A100: 2、上表中“数量”、“重量”指标的计量单位按照实际质物品种填写。
A101: 3、表中格式可根据具体品种进行相应调整。

Sheet 202307入库表
A1: 货物入库质押申请/批准单
A2: 制单日期：2023年7月31日
A3: 序号 | B3: 产品名称 | C3: 数量 | D3: 单价/元 | E3: 金额/元 | F3: 产品厂家 | G3: 仓库地点 | H3: 入库车牌号 | I3: 时间
A4: 1 | B4: 逆变器-25 | C4: 30 | D4: 5170 | E4: =D4*C4 -> 155100 | F4: 山海新能-锦浪 | G4: 庄河荣名库 | I4: 2023-07-07
A5: 2 | B5: 逆变器-20 | C5: 40 | D5: 4510 | E5: 180400 | F5: 山海新能-锦浪 | G5: 庄河荣名库 | I5: 2023-07-07
A6: 3 | B6: 逆变器-15 | C6: 10 | D6: 3905 | E6: 39050 | F6: 山海新能-锦浪 | G6: 安阳荣名库 | I6: 2023-07-07
A7: 4 | B7: 逆变器-50 | C7: 50 | D7: 11990 | E7: 599500 | F7: 山海新能-锦浪 | G7: 安阳荣名库 | I7: 2023-07-07
A8: 5 | B8: 逆变器-36 | C8: 10 | D8: 8525 | E8: 85250 | F8: 山海新能-锦浪 | G8: 安阳荣名库 | I8: 2023-07-07
A9: 6 | B9: 逆变器-30 | C9: 20 | D9: 7700 | E9: 154000 | F9: 山海新能-锦浪 | G9: 安阳荣名库 | I9: 2023-07-07
A10: 7 | B10: 逆变器-25 | C10: 50 | D10: 5170 | E10: 258500 | F10: 山海新能-锦浪 | G10: 安阳荣名库 | I10: 2023-07-07
A11: 8 | B11: 逆变器-20 | C11: 50 | D11: 4510 | E11: 225500 | F11: 山海新能-锦浪 | G11: 安阳荣名库 | I11: 2023-07-07
A12: 9 | B12: 东方日升660 | C12: 4608 | D12: 1014 | E12: 4672512 | F12: 山海新能-东方日升 | G12: 安阳荣名库 | I12: 2023-07-07
A13: 10 | B13: 东方日升660 | C13: 2304 | D13: 1014 | E13: 2336256 | F13: 山海新能-东方日升 | G13: 安阳荣名库 | I13: 2023-07-08
A14: 11 | B14: 逆变器-50 | C14: 7 | D14: 11990 | E14: 83930 | F14: 山海新能-锦浪 | G14: 江西余干库 | I14: 2023-07-10
A15: 12 | B15: 逆变器-40 | C15: 13 | D15: 8690 | E15: 112970 | F15: 山海新能-锦浪 | G15: 江西余干库 | I15: 2023-07-10
A16: 13 | B16: 逆变器-36 | C16: 45 | D16: 8525 | E16: 383625 | F16: 山海新能-锦浪 | G16: 江西余干库 | I16: 2023-07-10
A17: 14 | B17: 逆变器-30 | C17: 120 | D17: 7700 | E17: 924000 | F17: 山海新能-锦浪 | G17: 江西余干库 | I17: 2023-07-10
A18: 15 | B18: 逆变器-25 | C18: 150 | D18: 5170 | E18: 775500 | F18: 山海新能-锦浪 | G18: 江西余干库 | I18: 2023-07-10
A19: 16 | B19: 逆变器-20 | C19: 70 | D19: 4510 | E19: 315700 | F19: 山海新能-锦浪 | G19: 江西余干库 | I19: 2023-07-10
A20: 17 | B20: 逆变器-15 | C20: 11 | D20: 3905 | E20: 42955 | F20: 山海新能-锦浪 | G20: 江西余干库 | I20: 2023-07-10
A21: 18 | B21: 东方日升660 | C21: 8448 | D21: 1014 | E21: 8566272 | F21: 山海新能-东方日升 | G21: 安阳荣名库 | I21: 2023-07-10
A22: 19 | B22: 逆变器-50 | C22: 4 | D22: 9000 | E22: 36000 | F22: 山海新能-古瑞瓦特 | G22: 庄河荣名库 | I22: 2023-07-10
A23: 20 | B23: 逆变器-40 | C23: 32 | D23: 8171 | E23: 261472 | F23: 山海新能-固德威 | G23: 庄河荣名库 | I23: 2023-07-10
A24: 21 | B24: 逆变器-36 | C24: 15 | D24: 7660 | E24: 114900 | F24: 山海新能-固德威 | G24: 庄河荣名库 | I24: 2023-07-10
A25: 22 | B25: 逆变器-30 | C25: 26 | D25: 7100 | E25: 184600 | F25: 山海新能-固德威 | G25: 庄河荣名库 | I25: 2023-07-10
A26: 23 | B26: 逆变器-33 | C26: 22 | D26: 8195 | E26: 180290 | F26: 山海新能-锦浪 | G26: 庄河荣名库 | I26: 2023-07-10
A27: 24 | B27: 逆变器-20 | C27: 12 | D27: 4510 | E27: 54120 | F27: 山海新能-锦浪 | G27: 庄河荣名库 | I27: 2023-07-10
A28: 25 | B28: 逆变器-15 | C28: 21 | D28: 3905 | E28: 82005 | F28: 山海新能-锦浪 | G28: 庄河荣名库 | I28: 2023-07-10
A29: 26 | B29: 逆变器-20 | C29: 1 | D29: 4510 | E29: 4510 | F29: 山海新能-锦浪 | G29: 藁城荣名库 | I29: 2023-07-10
A30: 27 | B30: 逆变器-33 | C30: 30 | D30: 7260 | E30: 217800 | F30: 禾望 | G30: 庄河荣名库 | I30: 2023-07-11
A31: 28 | B31: 逆变器-33 | C31: 30 | D31: 8195 | E31: 245850 | F31: 山海新能-锦浪 | G31: 庄河荣名库 | I31: 2023-07-12
A32: 29 | B32: 逆变器-15 | C32: 2 | D32: 3905 | E32: 7810 | F32: 山海新能-锦浪 | G32: 安阳荣名库 | I32: 2023-07-12
A33: 30 | B33: 逆变器-25 | C33: 2 | D33: 5170 | E33: 10340 | F33: 山海新能-锦浪 | G33: 庄河荣名库 | I33: 2023-07-12
A34: 31 | B34: 东方日升660双玻 | C34: 1472 | D34: 1082.4 | E34: 1593292.8 | F34: 山海新能-东方日升 | G34: 江西余干库 | I34: 2023-07-13
A35: 32 | B35: 东方日升660双玻 | C35: 1472 | D35: 1082.4 | E35: 1593292.8 | F35: 山海新能-东方日升 | G35: 江西余干库 | I35: 2023-07-16
A36: 33 | B36: 东方日升660双玻 | C36: 1472 | D36: 1082.4 | E36: 1593292.8 | F36: 山海新能-东方日升 | G36: 江西余干库 | I36: 2023-07-16
A37: 34 | B37: 东方日升600 | C37: 2560 | D37: 1108.8 | E37: 2838528 | F37: 山海新能-东方日升 | G37: 庄河荣名库 | I37: 2023-07-17
A38: 35 | B38: 东方日升600 | C38: 32 | D38: 1108.8 | E38: 35481.6 | F38: 山海新能-东方日升 | G38: 庄河荣名库 | I38: 2023-07-17
A39: 36 | B39: 逆变器-13 | C39: 1 | D39: 3520 | E39: 3520 | F39: 山海新能-锦浪 | G39: 庄河荣名库 | I39: 2023-07-17
A40: 37 | B40: 东方日升600 | C40: 658 | D40: 1108.8 | E40: 729590.4 | F40: 山海新能-东方日升 | G40: 庄河荣名库 | I40: 2023-07-18
A41: 38 | B41: 东方日升600 | C41: 1728 | D41: 1108.8 | E41: 1916006.4 | F41: 山海新能-东方日升 | G41: 曲阜荣名库 | I41: 2023-07-19
A42: 39 | B42: 逆变器-60 | C42: 3 | D42: 11300 | E42: 33900 | F42: 山海新能-锦浪 | G42: 安阳荣名库 | I42: 2023-07-19
A43: 40 | B43: 逆变器-80 | C43: 2 | D43: 17300 | E43: 34600 | F43: 山海新能-锦浪 | G43: 安阳荣名库 | I43: 2023-07-19
A44: 41 | B44: 晶科475 | C44: 111 | D44: 904 | E44: 100344 | F44: 山海智慧-天合 | G44: 安阳荣名库 | I44: 2023-07-19
A45: 42 | B45: 逆变器-20 | C45: 5 | D45: 4510 | E45: 22550 | F45: 山海新能-锦浪 | G45: 安阳荣名库 | I45: 2023-07-19
A46: 43 | B46: 逆变器-15 | C46: 1 | D46: 3905 | E46: 3905 | F46: 山海新能-锦浪 | G46: 安阳荣名库 | I46: 2023-07-19
A47: 44 | B47: 逆变器-50 | C47: 2 | D47: 11990 | E47: 23980 | F47: 山海新能-锦浪 | G47: 安阳荣名库 | I47: 2023-07-19
A48: 45 | B48: 天合660 | C48: 23 | D48: 1267 | E48: 29141 | F48: 山海智慧-天合 | G48: 安阳荣名库 | I48: 2023-07-19
A49: 46 | B49: 阿特斯660 | C49: 63 | D49: 1075.8 | E49: 67775.4 | F49: 山海新能-阿特斯 | G49: 安阳荣名库 | I49: 2023-07-19
A50: 47 | B50: 东方日升660 | C50: 1130 | D50: 1014 | E50: 1145820 | F50: 山海新能-东方日升 | G50: 安阳荣名库 | I50: 2023-07-19
A51: 48 | B51: 逆变器-25 | C51: 1 | D51: 4750 | E51: 4750 | F51: 山海新能-固德威 | G51: 安阳荣名库 | I51: 2023-07-19
A52: 49 | B52: 逆变器-33 | C52: 1 | D52: 8195 | E52: 8195 | F52: 山海新能-锦浪 | G52: 安阳荣名库 | I52: 2023-07-19
A53: 50 | B53: 逆变器-13 | C53: 1 | D53: 3520 | E53: 3520 | F53: 山海新能-锦浪 | G53: 安阳荣名库 | I53: 2023-07-19
A54: 51 | B54: 逆变器-30 | C54: 6 | D54: 7700 | E54: 46200 | F54: 山海新能-锦浪 | G54: 安阳荣名库 | I54: 2023-07-19
A55: 52 | B55: 逆变器-25 | C55: 2 | D55: 5170 | E55: 10340 | F55: 山海新能-锦浪 | G55: 安阳荣名库 | I55: 2023-07-19
A56: 53 | B56: 东方日升600 | C56: 864 | D56: 1108.8 | E56: 958003.2 | F56: 山海新能-东方日升 | G56: 曲阜荣名库 | I56: 2023-07-20
A57: 54 | B57: 逆变器-25 | C57: 15 | D57: 5170 | E57: 77550 | F57: 山海新能-锦浪 | G57: 庄河荣名库 | I57: 2023-07-21
A58: 55 | B58: 逆变器-20 | C58: 13 | D58: 4510 | E58: 58630 | F58: 山海新能-锦浪 | G58: 庄河荣名库 | I58: 2023-07-21
A59: 56 | B59: 逆变器-20 | C59: 5 | D59: 4510 | E59: 22550 | F59: 山海新能-锦浪 | G59: 庄河荣名库 | I59: 2023-07-21
A60: 57 | B60: 逆变器-25 | C60: 2 | D60: 5170 | E60: 10340 | F60: 山海新能-锦浪 | G60: 庄河荣名库 | I60: 2023-07-21
A61: 58 | B61: 逆变器-33 | C61: 5 | D61: 8195 | E61: 40975 | F61: 山海新能-锦浪 | G61: 庄河荣名库 | I61: 2023-07-21
A62: 59 | B62: 逆变器-30 | C62: 12 | D62: 7100 | E62: 85200 | F62: 山海新能-固德威 | G62: 庄河荣名库 | I62: 2023-07-21
A63: 60 | B63: 逆变器-36 | C63: 5 | D63: 7660 | E63: 38300 | F63: 山海新能-固德威 | G63: 庄河荣名库 | I63: 2023-07-21
A64: 61 | B64: 逆变器-40 | C64: 3 | D64: 8171 | E64: 24513 | F64: 山海新能-固德威 | G64: 庄河荣名库 | I64: 2023-07-21
A65: 62 | B65: 逆变器-15 | C65: 5 | D65: 3905 | E65: 19525 | F65: 山海新能-锦浪 | G65: 庄河荣名库 | I65: 2023-07-21
A66: 63 | B66: 东方日升600 | C66: 960 | D66: 1108.8 | E66: 1064448 | F66: 山海新能-东方日升 | G66: 庄河荣名库 | I66: 2023-07-21
A67: 64 | B67: 东方日升600 | C67: 864 | D67: 1108.8 | E67: 958003.2 | F67: 山海新能-东方日升 | G67: 曲阜荣名库 | I67: 2023-07-21
A68: 65 | B68: 逆变器-25 | C68: 15 | D68: 5170 | E68: =D68*C68 -> 77550 | F68: 山海新能-锦浪 | G68: 庄河荣名库 | I68: 2023-07-21
A69: 66 | B69: 逆变器-20 | C69: 13 | D69: 4510 | E69: 58630 | F69: 山海新能-锦浪 | G69: 庄河荣名库 | I69: 2023-07-21
A70: 67 | B70: 东方日升600 | C70: 1668 | D70: 1108.8 | E70: 1849478.4 | F70: 山海新能-东方日升 | G70: 庄河荣名库 | I70: 2023-07-24
A71: 68 | B71: 逆变器-50 | C71: 4 | D71: 11990 | E71: 47960 | F71: 山海新能-锦浪 | G71: 曲阜荣名库 | I71: 2023-07-24
A72: 69 | B72: 逆变器-40 | C72: 2 | D72: 8690 | E72: 17380 | F72: 山海新能-锦浪 | G72: 曲阜荣名库 | I72: 2023-07-24
A73: 70 | B73: 逆变器-36 | C73: 10 | D73: 8525 | E73: 85250 | F73: 山海新能-锦浪 | G73: 曲阜荣名库 | I73: 2023-07-24
A74: 71 | B74: 逆变器-25 | C74: 65 | D74: 5170 | E74: 336050 | F74: 山海新能-锦浪 | G74: 曲阜荣名库 | I74: 2023-07-24
A75: 72 | B75: 逆变器-20 | C75: 80 | D75: 4510 | E75: 360800 | F75: 山海新能-锦浪 | G75: 曲阜荣名库 | I75: 2023-07-24
A76: 73 | B76: 逆变器-15 | C76: 20 | D76: 3905 | E76: 78100 | F76: 山海新能-锦浪 | G76: 曲阜荣名库 | I76: 2023-07-24
A77: 74 | B77: 逆变器-13 | C77: 10 | D77: 3520 | E77: 35200 | F77: 山海新能-锦浪 | G77: 曲阜荣名库 | I77: 2023-07-24
A78: 75 | B78: 逆变器-50 | C78: 50 | D78: 11990 | E78: 599500 | F78: 山海新能-锦浪 | G78: 安阳荣名库 | I78: 2023-07-24
A79: 76 | B79: 逆变器-15 | C79: 5 | D79: 3905 | E79: 19525 | F79: 山海新能-锦浪 | G79: 安阳荣名库 | I79: 2023-07-24
A80: 77 | B80: 逆变器-20 | C80: 15 | D80: 4510 | E80: 67650 | F80: 山海新能-锦浪 | G80: 安阳荣名库 | I80: 2023-07-24
A81: 78 | B81: 逆变器-25 | C81: 35 | D81: 5170 | E81: 180950 | F81: 山海新能-锦浪 | G81: 安阳荣名库 | I81: 2023-07-24
A82: 79 | B82: 逆变器-30 | C82: 25 | D82: 7700 | E82: 192500 | F82: 山海新能-锦浪 | G82: 安阳荣名库 | I82: 2023-07-24
A83: 80 | B83: 逆变器-36 | C83: 50 | D83: 8525 | E83: 426250 | F83: 山海新能-锦浪 | G83: 安阳荣名库 | I83: 2023-07-24
A84: 81 | B84: 逆变器-40 | C84: 30 | D84: 8690 | E84: 260700 | F84: 山海新能-锦浪 | G84: 安阳荣名库 | I84: 2023-07-24
A85: 82 | B85: 逆变器-60 | C85: 10 | D85: 11300 | E85: 113000 | F85: 山海新能-锦浪 | G85: 安阳荣名库 | I85: 2023-07-24
A86: 83 | B86: 逆变器-80 | C86: 10 | D86: 17300 | E86: 173000 | F86: 山海新能-锦浪 | G86: 安阳荣名库 | I86: 2023-07-24
A87: 84 | B87: 逆变器-80 | C87: 10 | D87: 17300 | E87: 173000 | F87: 山海新能-锦浪 | G87: 庄河荣名库 | I87: 2023-07-24
A88: 85 | B88: 逆变器-50 | C88: 20 | D88: 11990 | E88: 239800 | F88: 山海新能-锦浪 | G88: 庄河荣名库 | I88: 2023-07-24
A89: 86 | B89: 逆变器-25 | C89: 10 | D89: 5170 | E89: 51700 | F89: 山海新能-锦浪 | G89: 庄河荣名库 | I89: 2023-07-26
A90: 87 | B90: 逆变器-80 | C90: 2 | D90: 17300 | E90: 34600 | F90: 山海新能-锦浪 | G90: 庄河荣名库 | I90: 2023-07-28
A91: 88 | B91: 逆变器-110 | C91: 50 | D91: 19800 | E91: 990000 | F91: 山海新能-锦浪 | G91: 安阳荣名库 | I91: 2023-07-28
A92: 89 | B92: 逆变器-80 | C92: 1 | D92: 17300 | E92: 17300 | F92: 山海新能-锦浪 | G92: 安阳荣名库 | I92: 2023-07-28
A93: 90 | B93: 逆变器-60 | C93: 4 | D93: 11300 | E93: 45200 | F93: 山海新能-锦浪 | G93: 庄河荣名库 | I93: 2023-07-28
A94: 91 | B94: 逆变器-36 | C94: 34 | D94: 8525 | E94: 289850 | F94: 山海新能-锦浪 | G94: 庄河荣名库 | I94: 2023-07-28
A95: 92 | B95: 逆变器-80 | C95: 7 | D95: 17300 | E95: 121100 | F95: 山海新能-锦浪 | G95: 庄河荣名库 | I95: 2023-07-28
A96: 93 | B96: 逆变器-15 | C96: 30 | D96: 3905 | E96: 117150 | F96: 山海新能-锦浪 | G96: 庄河荣名库 | I96: 2023-07-28
A97: 94 | B97: 逆变器-13 | C97: 21 | D97: 3520 | E97: 73920 | F97: 山海新能-锦浪 | G97: 庄河荣名库 | I97: 2023-07-28
A98: 95 | B98: 逆变器-33 | C98: 12 | D98: 8195 | E98: 98340 | F98: 山海新能-锦浪 | G98: 庄河荣名库 | I98: 2023-07-28
A99: 96 | B99: 逆变器-110 | C99: 40 | D99: 19800 | E99: 792000 | F99: 山海新能-锦浪 | G99: 庄河荣名库 | I99: 2023-07-28
A100: 97 | B100: 逆变器-8 | C100: 50 | D100: 2830 | E100: 141500 | F100: 山海新能-锦浪 | G100: 庄河荣名库 | I100: 2023-07-28
A101: 98 | B101: 东方日升660双玻 | C101: 736 | D101: 1082.4 | E101: 796646.4 | F101: 山海新能-东方日升 | G101: 江西余干库 | I101: 2023-07-29
A102: 99 | B102: 逆变器-60 | C102: 10 | D102: 11300 | E102: 113000 | F102: 山海新能-锦浪 | G102: 庄河荣名库 | I102: 2023-07-31
A103: 100 | B103: 合计 | C103: =SUM(C4:C102) -> 32886 | E103: =SUM(E4:E102) -> 45581359.4
A105: 出质人： | C105: 山海新能（北京）能源科技有限公司河北分公司
A110: 监管人： | C110: 宇信通创新技术（河北）有限公司

Sheet 202307出库表
A1: 质物解除质押出库申请/批准单
A2: 制单日期：2023年7月31日
A3: 序号 | B3: 产品名称 | C3: 数量 | D3: 单价/元 | E3: 金额/元 | F3: 产品厂家 | G3: 仓库地点 | H3: 到达地点 | I3: 时间
A4: 1 | B4: 逆变器-13 | C4: 1 | D4: 3520 | E4: =D4*C4 -> 3520 | F4: 山海新能-锦浪 | G4: 安阳荣名库 | H4: 河北冀朋工程项目管理有限公司 | I4: 2023-07-02
A5: 2 | B5: 逆变器-33 | C5: 1 | D5: 8195 | E5: 8195 | F5: 山海新能-锦浪 | G5: 安阳荣名库 | H5: 安阳营销中心 | I5: 2023-07-02
A6: 3 | B6: 逆变器-40 | C6: 1 | D6: 8690 | E6: 8690 | F6: 山海新能-锦浪 | G6: 安阳荣名库 | H6: 启阳（安阳）新能源有限公司 | I6: 2023-07-02
A7: 4 | B7: 逆变器-80 | C7: 1 | D7: 17300 | E7: 17300 | F7: 山海新能-锦浪 | G7: 安阳荣名库 | H7: 启阳（安阳）新能源有限公司 | I7: 2023-07-02
A8: 5 | B8: 逆变器-15 | C8: 1 | D8: 3905 | E8: 3905 | F8: 山海新能-锦浪 | G8: 安阳荣名库 | H8: 安阳营销中心 | I8: 2023-07-03
A9: 6 | B9: 逆变器-33 | C9: 1 | D9: 8195 | E9: 8195 | F9: 山海新能-锦浪 | G9: 安阳荣名库 | H9: 安阳营销中心 | I9: 2023-07-03
A10: 7 | B10: 逆变器-40 | C10: 1 | D10: 8690 | E10: 8690 | F10: 山海新能-锦浪 | G10: 安阳荣名库 | H10: 安阳营销中心 | I10: 2023-07-03
A11: 8 | B11: 逆变器-50 | C11: 1 | D11: 9000 | E11: 9000 | F11: 山海新能-古瑞瓦特 | G11: 安阳荣名库 | H11: 安阳营销中心 | I11: 2023-07-03
A12: 9 | B12: 晶科475 | C12: 620 | D12: 904 | E12: 560480 | F12: 山海智慧-天合 | G12: 安阳荣名库 | H12: 安阳营销中心 | I12: 2023-07-03
A13: 10 | B13: 阿特斯660 | C13: 775 | D13: 1075.8 | E13: 833745 | F13: 山海新能-阿特斯 | G13: 安阳荣名库 | H13: 唐县冉灏新能源开发有限责任公司 | I13: 2023-07-03
A14: 11 | B14: 逆变器-60 | C14: 2 | D14: 11300 | E14: 22600 | F14: 山海新能-锦浪 | G14: 安阳荣名库 | H14: 唐县冉灏新能源开发有限责任公司 | I14: 2023-07-04
A15: 12 | B15: 逆变器-60 | C15: 1 | D15: 11300 | E15: 11300 | F15: 山海新能-锦浪 | G15: 安阳荣名库 | H15: 唐县冉灏新能源开发有限责任公司 | I15: 2023-07-04
A16: 13 | B16: 逆变器-36 | C16: 4 | D16: 8525 | E16: 34100 | F16: 山海新能-锦浪 | G16: 安阳荣名库 | H16: 唐县冉灏新能源开发有限责任公司 | I16: 2023-07-04
A17: 14 | B17: 逆变器-20 | C17: 1 | D17: 4510 | E17: 4510 | F17: 山海新能-锦浪 | G17: 安阳荣名库 | H17: 唐县冉灏新能源开发有限责任公司 | I17: 2023-07-04
A18: 15 | B18: 晶科475 | C18: 34 | D18: 904 | E18: 30736 | F18: 山海智慧-天合 | G18: 安阳荣名库 | H18: 唐县冉灏新能源开发有限责任公司 | I18: 2023-07-04
A19: 16 | B19: 逆变器-80 | C19: 1 | D19: 17300 | E19: 17300 | F19: 山海新能-锦浪 | G19: 安阳荣名库 | H19: 唐县冉灏新能源开发有限责任公司 | I19: 2023-07-04
A20: 17 | B20: 逆变器-60 | C20: 1 | D20: 11300 | E20: 11300 | F20: 山海新能-锦浪 | G20: 安阳荣名库 | H20: 唐县冉灏新能源开发有限责任公司 | I20: 2023-07-04
A21: 18 | B21: 逆变器-33 | C21: 1 | D21: 8195 | E21: 8195 | F21: 山海新能-锦浪 | G21: 安阳荣名库 | H21: 安阳营销中心 | I21: 2023-07-05
A22: 19 | B22: 逆变器-40 | C22: 1 | D22: 8690 | E22: 8690 | F22: 山海新能-锦浪 | G22: 安阳荣名库 | H22: 安阳营销中心 | I22: 2023-07-05
A23: 20 | B23: 逆变器-25 | C23: 1 | D23: 5170 | E23: 5170 | F23: 山海新能-锦浪 | G23: 曲阜荣名库 | H23: 成都盛世中丰工程有限公司 | I23: 2023-07-06
A24: 21 | B24: 逆变器-25 | C24: 1 | D24: 5170 | E24: 5170 | F24: 山海新能-锦浪 | G24: 曲阜荣名库 | H24: 成都盛世中丰工程有限公司 | I24: 2023-07-06
A25: 22 | B25: 逆变器-20 | C25: 1 | D25: 4510 | E25: 4510 | F25: 山海新能-锦浪 | G25: 曲阜荣名库 | H25: 成都盛世中丰工程有限公司 | I25: 2023-07-06
A26: 23 | B26: 东方日升600 | C26: 128 | D26: 1108.8 | E26: 141926.4 | F26: 山海新能-东方日升 | G26: 曲阜荣名库 | H26: 成都盛世中丰工程有限公司 | I26: 2023-07-06
A27: 24 | B27: 逆变器-25 | C27: 1 | D27: 5170 | E27: 5170 | F27: 山海新能-锦浪 | G27: 曲阜荣名库 | H27: 成都盛世中丰工程有限公司 | I27: 2023-07-06
A28: 25 | B28: 逆变器-30 | C28: 1 | D28: 7700 | E28: 7700 | F28: 山海新能-锦浪 | G28: 庄河荣名库 | H28: 大连竣泰通信工程有限公司 | I28: 2023-07-06
A29: 26 | B29: 逆变器-30 | C29: 1 | D29: 7700 | E29: 7700 | F29: 山海新能-锦浪 | G29: 庄河荣名库 | H29: 大连竣泰通信工程有限公司 | I29: 2023-07-06
A30: 27 | B30: 逆变器-25 | C30: 30 | D30: 5170 | E30: 155100 | F30: 山海新能-锦浪 | G30: 庄河荣名库 | H30: 大连竣泰通信工程有限公司 | I30: 2023-07-07
A31: 28 | B31: 逆变器-20 | C31: 40 | D31: 4510 | E31: 180400 | F31: 山海新能-锦浪 | G31: 庄河荣名库 | H31: 大连竣泰通信工程有限公司 | I31: 2023-07-07
A32: 29 | B32: 东方日升600 | C32: 320 | D32: 1108.8 | E32: 354816 | F32: 山海新能-东方日升 | G32: 庄河荣名库 | H32: 潍坊地球村能源有限公司 | I32: 2023-07-07
A33: 30 | B33: 逆变器-50 | C33: 1 | D33: 11990 | E33: 11990 | F33: 山海新能-锦浪 | G33: 庄河荣名库 | H33: 潍坊地球村能源有限公司 | I33: 2023-07-07
A34: 31 | B34: 逆变器-36 | C34: 1 | D34: 8525 | E34: 8525 | F34: 山海新能-锦浪 | G34: 庄河荣名库 | H34: 潍坊地球村能源有限公司 | I34: 2023-07-07
A35: 32 | B35: 逆变器-30 | C35: 2 | D35: 7700 | E35: 15400 | F35: 山海新能-锦浪 | G35: 庄河荣名库 | H35: 潍坊地球村能源有限公司 | I35: 2023-07-07
A36: 33 | B36: 逆变器-25 | C36: 8 | D36: 5170 | E36: 41360 | F36: 山海新能-锦浪 | G36: 庄河荣名库 | H36: 潍坊地球村能源有限公司 | I36: 2023-07-07
A37: 34 | B37: 逆变器-20 | C37: 1 | D37: 4510 | E37: 4510 | F37: 山海新能-锦浪 | G37: 庄河荣名库 | H37: 潍坊地球村能源有限公司 | I37: 2023-07-07
A38: 35 | B38: 逆变器-15 | C38: 2 | D38: 3905 | E38: 7810 | F38: 山海新能-锦浪 | G38: 庄河荣名库 | H38: 潍坊地球村能源有限公司 | I38: 2023-07-07
A39: 36 | B39: 逆变器-30 | C39: 1 | D39: 7700 | E39: 7700 | F39: 山海新能-锦浪 | G39: 庄河荣名库 | H39: 大连竣泰通信工程有限公司 | I39: 2023-07-07
A40: 37 | B40: 逆变器-13 | C40: 24 | D40: 3520 | E40: 84480 | F40: 山海新能-锦浪 | G40: 庄河荣名库 | H40: 大连竣泰通信工程有限公司 | I40: 2023-07-07
A41: 38 | B41: 逆变器-60 | C41: 6 | D41: 11300 | E41: 67800 | F41: 山海新能-锦浪 | G41: 安阳荣名库 | H41: 河南晶特新能源有限公司 | I41: 2023-07-07
A42: 39 | B42: 逆变器-50 | C42: 17 | D42: 11990 | E42: 203830 | F42: 山海新能-锦浪 | G42: 安阳荣名库 | H42: 河南晶特新能源有限公司 | I42: 2023-07-07
A43: 40 | B43: 逆变器-40 | C43: 16 | D43: 8690 | E43: 139040 | F43: 山海新能-锦浪 | G43: 安阳荣名库 | H43: 河南晶特新能源有限公司 | I43: 2023-07-07
A44: 41 | B44: 逆变器-36 | C44: 8 | D44: 8525 | E44: 68200 | F44: 山海新能-锦浪 | G44: 安阳荣名库 | H44: 河南晶特新能源有限公司 | I44: 2023-07-07
A45: 42 | B45: 逆变器-30 | C45: 14 | D45: 7700 | E45: 107800 | F45: 山海新能-锦浪 | G45: 安阳荣名库 | H45: 河南晶特新能源有限公司 | I45: 2023-07-07
A46: 43 | B46: 逆变器-25 | C46: 12 | D46: 5170 | E46: 62040 | F46: 山海新能-锦浪 | G46: 安阳荣名库 | H46: 河南晶特新能源有限公司 | I46: 2023-07-07
A47: 44 | B47: 逆变器-20 | C47: 7 | D47: 4510 | E47: 31570 | F47: 山海新能-锦浪 | G47: 安阳荣名库 | H47: 河南晶特新能源有限公司 | I47: 2023-07-07
A48: 45 | B48: 逆变器-80 | C48: 2 | D48: 17300 | E48: 34600 | F48: 山海新能-锦浪 | G48: 安阳荣名库 | H48: 安阳营销中心 | I48: 2023-07-07
A49: 46 | B49: 逆变器-60 | C49: 1 | D49: 11300 | E49: 11300 | F49: 山海新能-锦浪 | G49: 安阳荣名库 | H49: 安阳营销中心 | I49: 2023-07-07
A50: 47 | B50: 逆变器-50 | C50: 4 | D50: 11990 | E50: 47960 | F50: 山海新能-锦浪 | G50: 安阳荣名库 | H50: 安阳营销中心 | I50: 2023-07-07
A51: 48 | B51: 逆变器-40 | C51: 1 | D51: 8690 | E51: 8690 | F51: 山海新能-锦浪 | G51: 安阳荣名库 | H51: 安阳营销中心 | I51: 2023-07-07
A52: 49 | B52: 逆变器-36 | C52: 1 | D52: 8525 | E52: 8525 | F52: 山海新能-锦浪 | G52: 安阳荣名库 | H52: 安阳营销中心 | I52: 2023-07-07
A53: 50 | B53: 逆变器-30 | C53: 4 | D53: 7700 | E53: 30800 | F53: 山海新能-锦浪 | G53: 安阳荣名库 | H53: 安阳营销中心 | I53: 2023-07-07
A54: 51 | B54: 逆变器-25 | C54: 2 | D54: 5170 | E54: 10340 | F54: 山海新能-锦浪 | G54: 安阳荣名库 | H54: 安阳营销中心 | I54: 2023-07-07
A55: 52 | B55: 逆变器-20 | C55: 2 | D55: 4510 | E55: 9020 | F55: 山海新能-锦浪 | G55: 安阳荣名库 | H55: 安阳营销中心 | I55: 2023-07-07
A56: 53 | B56: 逆变器-80 | C56: 2 | D56: 17300 | E56: 34600 | F56: 山海新能-锦浪 | G56: 安阳荣名库 | H56: 河北冀朋工程项目管理有限公司 | I56: 2023-07-07
A57: 54 | B57: 逆变器-60 | C57: 3 | D57: 11300 | E57: 33900 | F57: 山海新能-锦浪 | G57: 安阳荣名库 | H57: 河北冀朋工程项目管理有限公司 | I57: 2023-07-07
A58: 55 | B58: 逆变器-50 | C58: 11 | D58: 11990 | E58: 131890 | F58: 山海新能-锦浪 | G58: 安阳荣名库 | H58: 河北冀朋工程项目管理有限公司 | I58: 2023-07-07
A59: 56 | B59: 逆变器-36 | C59: 2 | D59: 8525 | E59: 17050 | F59: 山海新能-锦浪 | G59: 安阳荣名库 | H59: 河北冀朋工程项目管理有限公司 | I59: 2023-07-07
A60: 57 | B60: 逆变器-30 | C60: 3 | D60: 7700 | E60: 23100 | F60: 山海新能-锦浪 | G60: 安阳荣名库 | H60: 河北冀朋工程项目管理有限公司 | I60: 2023-07-07
A61: 58 | B61: 逆变器-25 | C61: 1 | D61: 5170 | E61: 5170 | F61: 山海新能-锦浪 | G61: 安阳荣名库 | H61: 河北冀朋工程项目管理有限公司 | I61: 2023-07-07
A62: 59 | B62: 逆变器-20 | C62: 3 | D62: 4510 | E62: 13530 | F62: 山海新能-锦浪 | G62: 安阳荣名库 | H62: 河北冀朋工程项目管理有限公司 | I62: 2023-07-07
A63: 60 | B63: 东方日升660 | C63: 1536 | D63: 1014 | E63: 1557504 | F63: 山海新能-东方日升 | G63: 安阳荣名库 | H63: 河南晶特新能源有限公司 | I63: 2023-07-07
A64: 61 | B64: 东方日升660 | C64: 1536 | D64: 1014 | E64: 1557504 | F64: 山海新能-东方日升 | G64: 安阳荣名库 | H64: 安阳营销中心 | I64: 2023-07-07
A65: 62 | B65: 东方日升660 | C65: 1536 | D65: 1014 | E65: 1557504 | F65: 山海新能-东方日升 | G65: 安阳荣名库 | H65: 河北冀朋工程项目管理有限公司 | I65: 2023-07-07
A66: 63 | B66: 逆变器-40 | C66: 2 | D66: 8690 | E66: 17380 | F66: 山海新能-锦浪 | G66: 安阳荣名库 | H66: 唐县冉灏新能源开发有限责任公司 | I66: 2023-07-07
A67: 64 | B67: 逆变器-80 | C67: 4 | D67: 17300 | E67: 69200 | F67: 山海新能-锦浪 | G67: 安阳荣名库 | H67: 唐县冉灏新能源开发有限责任公司 | I67: 2023-07-07
A68: 65 | B68: 逆变器-60 | C68: 3 | D68: 11300 | E68: =D68*C68 -> 33900 | F68: 山海新能-锦浪 | G68: 安阳荣名库 | H68: 唐县冉灏新能源开发有限责任公司 | I68: 2023-07-07
A69: 66 | B69: 逆变器-50 | C69: 13 | D69: 11990 | E69: 155870 | F69: 山海新能-锦浪 | G69: 安阳荣名库 | H69: 唐县冉灏新能源开发有限责任公司 | I69: 2023-07-07
A70: 67 | B70: 逆变器-36 | C70: 5 | D70: 8525 | E70: 42625 | F70: 山海新能-锦浪 | G70: 安阳荣名库 | H70: 唐县冉灏新能源开发有限责任公司 | I70: 2023-07-07
A71: 68 | B71: 逆变器-30 | C71: 8 | D71: 7700 | E71: 61600 | F71: 山海新能-锦浪 | G71: 安阳荣名库 | H71: 唐县冉灏新能源开发有限责任公司 | I71: 2023-07-07
A72: 69 | B72: 逆变器-25 | C72: 9 | D72: 5170 | E72: 46530 | F72: 山海新能-锦浪 | G72: 安阳荣名库 | H72: 唐县冉灏新能源开发有限责任公司 | I72: 2023-07-07
A73: 70 | B73: 逆变器-20 | C73: 1 | D73: 4510 | E73: 4510 | F73: 山海新能-锦浪 | G73: 安阳荣名库 | H73: 唐县冉灏新能源开发有限责任公司 | I73: 2023-07-07
A74: 71 | B74: 逆变器-15 | C74: 1 | D74: 3905 | E74: 3905 | F74: 山海新能-锦浪 | G74: 安阳荣名库 | H74: 唐县冉灏新能源开发有限责任公司 | I74: 2023-07-07
A75: 72 | B75: 逆变器-30 | C75: 1 | D75: 7700 | E75: 7700 | F75: 山海新能-锦浪 | G75: 庄河荣名库 | H75: 大连竣泰通信工程有限公司 | I75: 2023-07-08
A76: 73 | B76: 东方日升600 | C76: 32 | D76: 1108.8 | E76: 35481.6 | F76: 山海新能-东方日升 | G76: 庄河荣名库 | H76: 潍坊地球村能源有限公司 | I76: 2023-07-08
A77: 74 | B77: 东方日升660 | C77: 768 | D77: 1014 | E77: 778752 | F77: 山海新能-东方日升 | G77: 安阳荣名库 | H77: 河南晶特新能源有限公司 | I77: 2023-07-08
A78: 75 | B78: 东方日升660 | C78: 768 | D78: 1014 | E78: 778752 | F78: 山海新能-东方日升 | G78: 安阳荣名库 | H78: 河北冀朋工程项目管理有限公司 | I78: 2023-07-08
A79: 76 | B79: 逆变器-33 | C79: 10 | D79: 8195 | E79: 81950 | F79: 山海新能-锦浪 | G79: 庄河荣名库 | H79: 辽宁圣东建筑工程有限公司 | I79: 2023-07-10
A80: 77 | B80: 逆变器-40 | C80: 10 | D80: 8690 | E80: 86900 | F80: 山海新能-锦浪 | G80: 庄河荣名库 | H80: 辽宁圣东建筑工程有限公司 | I80: 2023-07-10
A81: 78 | B81: 逆变器-30 | C81: 10 | D81: 7700 | E81: 77000 | F81: 山海新能-锦浪 | G81: 庄河荣名库 | H81: 辽宁圣东建筑工程有限公司 | I81: 2023-07-10
A82: 79 | B82: 逆变器-20 | C82: 10 | D82: 4510 | E82: 45100 | F82: 山海新能-锦浪 | G82: 庄河荣名库 | H82: 辽宁圣东建筑工程有限公司 | I82: 2023-07-10
A83: 80 | B83: 逆变器-15 | C83: 20 | D83: 3905 | E83: 78100 | F83: 山海新能-锦浪 | G83: 庄河荣名库 | H83: 辽宁圣东建筑工程有限公司 | I83: 2023-07-10
A84: 81 | B84: 逆变器-13 | C84: 6 | D84: 3520 | E84: 21120 | F84: 山海新能-锦浪 | G84: 庄河荣名库 | H84: 辽宁圣东建筑工程有限公司 | I84: 2023-07-10
A85: 82 | B85: 东方日升600 | C85: 3040 | D85: 1108.8 | E85: 3370752 | F85: 山海新能-东方日升 | G85: 庄河荣名库 | H85: 辽宁圣东建筑工程有限公司 | I85: 2023-07-10
A86: 83 | B86: 逆变器-20 | C86: 1 | D86: 4510 | E86: 4510 | F86: 山海新能-锦浪 | G86: 藁城荣名库 | H86: 保定市锦润新能源科技有限公司 | I86: 2023-07-10
A87: 84 | B87: 东方日升660 | C87: 768 | D87: 1014 | E87: 778752 | F87: 山海新能-东方日升 | G87: 安阳荣名库 | H87: 河南晶特新能源有限公司 | I87: 2023-07-10
A88: 85 | B88: 逆变器-33 | C88: 1 | D88: 8195 | E88: 8195 | F88: 山海新能-锦浪 | G88: 安阳荣名库 | H88: 安阳营销中心 | I88: 2023-07-10
A89: 86 | B89: 逆变器-30 | C89: 2 | D89: 7700 | E89: 15400 | F89: 山海新能-锦浪 | G89: 安阳荣名库 | H89: 安阳营销中心 | I89: 2023-07-10
A90: 87 | B90: 逆变器-50 | C90: 4 | D90: 9000 | E90: 36000 | F90: 山海新能-古瑞瓦特 | G90: 安阳荣名库 | H90: 庄河荣名库 | I90: 2023-07-10
A91: 88 | B91: 逆变器-40 | C91: 32 | D91: 8171 | E91: 261472 | F91: 山海新能-固德威 | G91: 安阳荣名库 | H91: 庄河荣名库 | I91: 2023-07-10
A92: 89 | B92: 逆变器-36 | C92: 15 | D92: 7660 | E92: 114900 | F92: 山海新能-固德威 | G92: 安阳荣名库 | H92: 庄河荣名库 | I92: 2023-07-10
A93: 90 | B93: 逆变器-30 | C93: 26 | D93: 7100 | E93: 184600 | F93: 山海新能-固德威 | G93: 安阳荣名库 | H93: 庄河荣名库 | I93: 2023-07-10
A94: 91 | B94: 逆变器-33 | C94: 22 | D94: 8195 | E94: 180290 | F94: 山海新能-锦浪 | G94: 安阳荣名库 | H94: 庄河荣名库 | I94: 2023-07-10
A95: 92 | B95: 逆变器-20 | C95: 12 | D95: 4510 | E95: 54120 | F95: 山海新能-锦浪 | G95: 安阳荣名库 | H95: 庄河荣名库 | I95: 2023-07-10
A96: 93 | B96: 逆变器-15 | C96: 21 | D96: 3905 | E96: 82005 | F96: 山海新能-锦浪 | G96: 安阳荣名库 | H96: 庄河荣名库 | I96: 2023-07-10
A97: 94 | B97: 逆变器-20 | C97: 1 | D97: 4510 | E97: 4510 | F97: 山海新能-锦浪 | G97: 安阳荣名库 | H97: 藁城荣名库 | I97: 2023-07-10
A98: 95 | B98: 东方日升600 | C98: 32 | D98: 1108.8 | E98: 35481.6 | F98: 山海新能-东方日升 | G98: 庄河荣名库 | H98: 大连竣泰通信工程有限公司 | I98: 2023-07-11
A99: 96 | B99: 东方日升600 | C99: 32 | D99: 1108.8 | E99: 35481.6 | F99: 山海新能-东方日升 | G99: 庄河荣名库 | H99: 大连竣泰通信工程有限公司 | I99: 2023-07-11
A100: 97 | B100: 东方日升600 | C100: 32 | D100: 1108.8 | E100: 35481.6 | F100: 山海新能-东方日升 | G100: 庄河荣名库 | H100: 大连竣泰通信工程有限公司 | I100: 2023-07-11
A101: 98 | B101: 东方日升600 | C101: 32 | D101: 1108.8 | E101: 35481.6 | F101: 山海新能-东方日升 | G101: 庄河荣名库 | H101: 大连竣泰通信工程有限公司 | I101: 2023-07-11
A102: 99 | B102: 东方日升600 | C102: 64 | D102: 1108.8 | E102: 70963.2 | F102: 山海新能-东方日升 | G102: 庄河荣名库 | H102: 大连竣泰通信工程有限公司 | I102: 2023-07-11
A103: 100 | B103: 逆变器-20 | C103: 1 | D103: 4510 | E103: 4510 | F103: 山海新能-锦浪 | G103: 庄河荣名库 | H103: 大连竣泰通信工程有限公司 | I103: 2023-07-11
A104: 101 | B104: 逆变器-25 | C104: 1 | D104: 5170 | E104: 5170 | F104: 山海新能-锦浪 | G104: 安阳荣名库 | H104: 安阳营销中心 | I104: 2023-07-12
A105: 102 | B105: 逆变器-33 | C105: 30 | D105: 7260 | E105: 217800 | F105: 禾望 | G105: 庄河荣名库 | H105: 锦浪科技股份有限公司 | I105: 2023-07-12
A106: 103 | B106: 逆变器-15 | C106: 2 | D106: 3905 | E106: 7810 | F106: 山海新能-锦浪 | G106: 庄河荣名库 | H106: 安阳荣名库 | I106: 2023-07-12
A107: 104 | B107: 逆变器-13 | C107: 1 | D107: 3520 | E107: 3520 | F107: 山海新能-锦浪 | G107: 庄河荣名库 | H107: 潍坊地球村能源有限公司 | I107: 2023-07-12
A108: 105 | B108: 东方日升600 | C108: 32 | D108: 1108.8 | E108: 35481.6 | F108: 山海新能-东方日升 | G108: 庄河荣名库 | H108: 潍坊地球村能源有限公司 | I108: 2023-07-12
A109: 106 | B109: 逆变器-25 | C109: 2 | D109: 5170 | E109: 10340 | F109: 山海新能-锦浪 | G109: 安阳荣名库 | H109: 庄河荣名库 | I109: 2023-07-12
A110: 107 | B110: 逆变器-36 | C110: 5 | D110: 8525 | E110: 42625 | F110: 山海新能-锦浪 | G110: 江西余干库 | H110: 海南万物生长新能源科技有限公司 | I110: 2023-07-13
A111: 108 | B111: 逆变器-20 | C111: 1 | D111: 4510 | E111: 4510 | F111: 山海新能-锦浪 | G111: 江西余干库 | H111: 海南万物生长新能源科技有限公司 | I111: 2023-07-13
A112: 109 | B112: 逆变器-25 | C112: 5 | D112: 5170 | E112: 25850 | F112: 山海新能-锦浪 | G112: 江西余干库 | H112: 海南万物生长新能源科技有限公司 | I112: 2023-07-13
A113: 110 | B113: 逆变器-30 | C113: 4 | D113: 7700 | E113: 30800 | F113: 山海新能-锦浪 | G113: 江西余干库 | H113: 海南万物生长新能源科技有限公司 | I113: 2023-07-13
A114: 111 | B114: 东方日升660双玻 | C114: 736 | D114: 1082.4 | E114: 796646.4 | F114: 山海新能-东方日升 | G114: 江西余干库 | H114: 海南万物生长新能源科技有限公司 | I114: 2023-07-13
A115: 112 | B115: 逆变器-30 | C115: 1 | D115: 7700 | E115: 7700 | F115: 山海新能-锦浪 | G115: 庄河荣名库 | H115: 大连竣泰通信工程有限公司 | I115: 2023-07-13
A116: 113 | B116: 东方日升600 | C116: 32 | D116: 1108.8 | E116: 35481.6 | F116: 山海新能-东方日升 | G116: 庄河荣名库 | H116: 大连竣泰通信工程有限公司 | I116: 2023-07-13
A117: 114 | B117: 东方日升600 | C117: 32 | D117: 1108.8 | E117: 35481.6 | F117: 山海新能-东方日升 | G117: 庄河荣名库 | H117: 大连竣泰通信工程有限公司 | I117: 2023-07-13
A118: 115 | B118: 逆变器-40 | C118: 1 | D118: 8690 | E118: 8690 | F118: 山海新能-锦浪 | G118: 安阳荣名库 | H118: 河北冀朋工程项目管理有限公司 | I118: 2023-07-13
A119: 116 | B119: 逆变器-20 | C119: 2 | D119: 4510 | E119: 9020 | F119: 山海新能-锦浪 | G119: 安阳荣名库 | H119: 河北冀朋工程项目管理有限公司 | I119: 2023-07-13
A120: 117 | B120: 逆变器-15 | C120: 1 | D120: 3905 | E120: 3905 | F120: 山海新能-锦浪 | G120: 曲阜荣名库 | H120: 成都盛世中丰工程有限公司 | I120: 2023-07-14
A121: 118 | B121: 逆变器-30 | C121: 1 | D121: 7700 | E121: 7700 | F121: 山海新能-锦浪 | G121: 曲阜荣名库 | H121: 成都盛世中丰工程有限公司 | I121: 2023-07-14
A122: 119 | B122: 逆变器-15 | C122: 1 | D122: 3905 | E122: 3905 | F122: 山海新能-锦浪 | G122: 曲阜荣名库 | H122: 成都盛世中丰工程有限公司 | I122: 2023-07-14
A123: 120 | B123: 逆变器-15 | C123: 1 | D123: 3905 | E123: 3905 | F123: 山海新能-锦浪 | G123: 曲阜荣名库 | H123: 成都盛世中丰工程有限公司 | I123: 2023-07-14
A124: 121 | B124: 逆变器-30 | C124: 1 | D124: 7700 | E124: 7700 | F124: 山海新能-锦浪 | G124: 曲阜荣名库 | H124: 成都盛世中丰工程有限公司 | I124: 2023-07-14
A125: 122 | B125: 逆变器-15 | C125: 1 | D125: 3905 | E125: 3905 | F125: 山海新能-锦浪 | G125: 曲阜荣名库 | H125: 成都盛世中丰工程有限公司 | I125: 2023-07-14
A126: 123 | B126: 逆变器-30 | C126: 1 | D126: 7700 | E126: 7700 | F126: 山海新能-锦浪 | G126: 曲阜荣名库 | H126: 成都盛世中丰工程有限公司 | I126: 2023-07-14
A127: 124 | B127: 逆变器-20 | C127: 1 | D127: 4510 | E127: 4510 | F127: 山海新能-锦浪 | G127: 曲阜荣名库 | H127: 成都盛世中丰工程有限公司 | I127: 2023-07-14
A128: 125 | B128: 逆变器-20 | C128: 1 | D128: 4510 | E128: 4510 | F128: 山海新能-锦浪 | G128: 曲阜荣名库 | H128: 成都盛世中丰工程有限公司 | I128: 2023-07-14
A129: 126 | B129: 逆变器-20 | C129: 1 | D129: 4510 | E129: 4510 | F129: 山海新能-锦浪 | G129: 曲阜荣名库 | H129: 成都盛世中丰工程有限公司 | I129: 2023-07-14
A130: 127 | B130: 逆变器-20 | C130: 1 | D130: 4510 | E130: 4510 | F130: 山海新能-锦浪 | G130: 曲阜荣名库 | H130: 成都盛世中丰工程有限公司 | I130: 2023-07-14
A131: 128 | B131: 逆变器-15 | C131: 1 | D131: 3905 | E131: 3905 | F131: 山海新能-锦浪 | G131: 曲阜荣名库 | H131: 成都盛世中丰工程有限公司 | I131: 2023-07-14
A132: 129 | B132: 逆变器-20 | C132: 1 | D132: 4510 | E132: =D132*C132 -> 4510 | F132: 山海新能-锦浪 | G132: 曲阜荣名库 | H132: 成都盛世中丰工程有限公司 | I132: 2023-07-14
A133: 130 | B133: 逆变器-15 | C133: 1 | D133: 3905 | E133: 3905 | F133: 山海新能-锦浪 | G133: 曲阜荣名库 | H133: 成都盛世中丰工程有限公司 | I133: 2023-07-14
A134: 131 | B134: 逆变器-15 | C134: 1 | D134: 3905 | E134: 3905 | F134: 山海新能-锦浪 | G134: 曲阜荣名库 | H134: 成都盛世中丰工程有限公司 | I134: 2023-07-14
A135: 132 | B135: 东方日升600 | C135: 1536 | D135: 1108.8 | E135: 1703116.8 | F135: 山海新能-东方日升 | G135: 曲阜荣名库 | H135: 成都盛世中丰工程有限公司 | I135: 2023-07-14
A136: 133 | B136: 逆变器-25 | C136: 1 | D136: 5170 | E136: 5170 | F136: 山海新能-锦浪 | G136: 曲阜荣名库 | H136: 成都盛世中丰工程有限公司 | I136: 2023-07-14
A137: 134 | B137: 逆变器-20 | C137: 1 | D137: 4510 | E137: 4510 | F137: 山海新能-锦浪 | G137: 曲阜荣名库 | H137: 成都盛世中丰工程有限公司 | I137: 2023-07-14
A138: 135 | B138: 逆变器-15 | C138: 1 | D138: 3905 | E138: 3905 | F138: 山海新能-锦浪 | G138: 曲阜荣名库 | H138: 成都盛世中丰工程有限公司 | I138: 2023-07-14
A139: 136 | B139: 逆变器-15 | C139: 1 | D139: 3905 | E139: 3905 | F139: 山海新能-锦浪 | G139: 曲阜荣名库 | H139: 成都盛世中丰工程有限公司 | I139: 2023-07-14
A140: 137 | B140: 逆变器-20 | C140: 1 | D140: 4510 | E140: 4510 | F140: 山海新能-锦浪 | G140: 曲阜荣名库 | H140: 成都盛世中丰工程有限公司 | I140: 2023-07-14
A141: 138 | B141: 逆变器-25 | C141: 1 | D141: 5170 | E141: 5170 | F141: 山海新能-锦浪 | G141: 曲阜荣名库 | H141: 成都盛世中丰工程有限公司 | I141: 2023-07-14
A142: 139 | B142: 逆变器-20 | C142: 1 | D142: 4510 | E142: 4510 | F142: 山海新能-锦浪 | G142: 曲阜荣名库 | H142: 成都盛世中丰工程有限公司 | I142: 2023-07-14
A143: 140 | B143: 逆变器-25 | C143: 1 | D143: 5170 | E143: 5170 | F143: 山海新能-锦浪 | G143: 曲阜荣名库 | H143: 成都盛世中丰工程有限公司 | I143: 2023-07-14
A144: 141 | B144: 逆变器-30 | C144: 1 | D144: 7700 | E144: 7700 | F144: 山海新能-锦浪 | G144: 曲阜荣名库 | H144: 成都盛世中丰工程有限公司 | I144: 2023-07-14
A145: 142 | B145: 逆变器-25 | C145: 1 | D145: 5170 | E145: 5170 | F145: 山海新能-锦浪 | G145: 曲阜荣名库 | H145: 成都盛世中丰工程有限公司 | I145: 2023-07-14
A146: 143 | B146: 逆变器-20 | C146: 1 | D146: 4510 | E146: 4510 | F146: 山海新能-锦浪 | G146: 曲阜荣名库 | H146: 成都盛世中丰工程有限公司 | I146: 2023-07-14
A147: 144 | B147: 逆变器-20 | C147: 1 | D147: 4510 | E147: 4510 | F147: 山海新能-锦浪 | G147: 曲阜荣名库 | H147: 成都盛世中丰工程有限公司 | I147: 2023-07-14
A148: 145 | B148: 逆变器-25 | C148: 1 | D148: 5170 | E148: 5170 | F148: 山海新能-锦浪 | G148: 曲阜荣名库 | H148: 成都盛世中丰工程有限公司 | I148: 2023-07-14
A149: 146 | B149: 逆变器-25 | C149: 1 | D149: 5170 | E149: 5170 | F149: 山海新能-锦浪 | G149: 曲阜荣名库 | H149: 成都盛世中丰工程有限公司 | I149: 2023-07-14
A150: 147 | B150: 逆变器-15 | C150: 1 | D150: 3905 | E150: 3905 | F150: 山海新能-锦浪 | G150: 曲阜荣名库 | H150: 成都盛世中丰工程有限公司 | I150: 2023-07-14
A151: 148 | B151: 逆变器-25 | C151: 1 | D151: 5170 | E151: 5170 | F151: 山海新能-锦浪 | G151: 曲阜荣名库 | H151: 成都盛世中丰工程有限公司 | I151: 2023-07-14
A152: 149 | B152: 东方日升600 | C152: 640 | D152: 1108.8 | E152: 709632 | F152: 山海新能-东方日升 | G152: 曲阜荣名库 | H152: 成都盛世中丰工程有限公司 | I152: 2023-07-14
A153: 150 | B153: 逆变器-15 | C153: 1 | D153: 3905 | E153: 3905 | F153: 山海新能-锦浪 | G153: 曲阜荣名库 | H153: 成都盛世中丰工程有限公司 | I153: 2023-07-14
A154: 151 | B154: 逆变器-20 | C154: 1 | D154: 4510 | E154: 4510 | F154: 山海新能-锦浪 | G154: 曲阜荣名库 | H154: 成都盛世中丰工程有限公司 | I154: 2023-07-14
A155: 152 | B155: 逆变器-25 | C155: 1 | D155: 5170 | E155: 5170 | F155: 山海新能-锦浪 | G155: 曲阜荣名库 | H155: 成都盛世中丰工程有限公司 | I155: 2023-07-14
A156: 153 | B156: 逆变器-20 | C156: 1 | D156: 4510 | E156: 4510 | F156: 山海新能-锦浪 | G156: 曲阜荣名库 | H156: 成都盛世中丰工程有限公司 | I156: 2023-07-14
A157: 154 | B157: 逆变器-20 | C157: 1 | D157: 4510 | E157: 4510 | F157: 山海新能-锦浪 | G157: 曲阜荣名库 | H157: 成都盛世中丰工程有限公司 | I157: 2023-07-14
A158: 155 | B158: 逆变器-20 | C158: 1 | D158: 4510 | E158: 4510 | F158: 山海新能-锦浪 | G158: 曲阜荣名库 | H158: 成都盛世中丰工程有限公司 | I158: 2023-07-14
A159: 156 | B159: 逆变器-20 | C159: 1 | D159: 4510 | E159: 4510 | F159: 山海新能-锦浪 | G159: 曲阜荣名库 | H159: 成都盛世中丰工程有限公司 | I159: 2023-07-14
A160: 157 | B160: 逆变器-20 | C160: 1 | D160: 4510 | E160: 4510 | F160: 山海新能-锦浪 | G160: 曲阜荣名库 | H160: 成都盛世中丰工程有限公司 | I160: 2023-07-14
A161: 158 | B161: 逆变器-20 | C161: 1 | D161: 4510 | E161: 4510 | F161: 山海新能-锦浪 | G161: 曲阜荣名库 | H161: 成都盛世中丰工程有限公司 | I161: 2023-07-14
A162: 159 | B162: 逆变器-20 | C162: 1 | D162: 4510 | E162: 4510 | F162: 山海新能-锦浪 | G162: 曲阜荣名库 | H162: 成都盛世中丰工程有限公司 | I162: 2023-07-14
A163: 160 | B163: 逆变器-20 | C163: 1 | D163: 4510 | E163: 4510 | F163: 山海新能-锦浪 | G163: 曲阜荣名库 | H163: 成都盛世中丰工程有限公司 | I163: 2023-07-14
A164: 161 | B164: 逆变器-20 | C164: 1 | D164: 4510 | E164: 4510 | F164: 山海新能-锦浪 | G164: 曲阜荣名库 | H164: 成都盛世中丰工程有限公司 | I164: 2023-07-14
A165: 162 | B165: 逆变器-20 | C165: 1 | D165: 4510 | E165: 4510 | F165: 山海新能-锦浪 | G165: 曲阜荣名库 | H165: 成都盛世中丰工程有限公司 | I165: 2023-07-14
A166: 163 | B166: 逆变器-20 | C166: 1 | D166: 4510 | E166: 4510 | F166: 山海新能-锦浪 | G166: 曲阜荣名库 | H166: 成都盛世中丰工程有限公司 | I166: 2023-07-14
A167: 164 | B167: 逆变器-25 | C167: 1 | D167: 5170 | E167: 5170 | F167: 山海新能-锦浪 | G167: 曲阜荣名库 | H167: 成都盛世中丰工程有限公司 | I167: 2023-07-14
A168: 165 | B168: 逆变器-25 | C168: 1 | D168: 5170 | E168: 5170 | F168: 山海新能-锦浪 | G168: 曲阜荣名库 | H168: 成都盛世中丰工程有限公司 | I168: 2023-07-14
A169: 166 | B169: 逆变器-13 | C169: 1 | D169: 3520 | E169: 3520 | F169: 山海新能-锦浪 | G169: 曲阜荣名库 | H169: 成都盛世中丰工程有限公司 | I169: 2023-07-14
A170: 167 | B170: 逆变器-25 | C170: 1 | D170: 5170 | E170: 5170 | F170: 山海新能-锦浪 | G170: 曲阜荣名库 | H170: 成都盛世中丰工程有限公司 | I170: 2023-07-14
A171: 168 | B171: 逆变器-20 | C171: 1 | D171: 4510 | E171: 4510 | F171: 山海新能-锦浪 | G171: 曲阜荣名库 | H171: 成都盛世中丰工程有限公司 | I171: 2023-07-14
A172: 169 | B172: 东方日升600 | C172: 640 | D172: 1108.8 | E172: 709632 | F172: 山海新能-东方日升 | G172: 曲阜荣名库 | H172: 成都盛世中丰工程有限公司 | I172: 2023-07-14
A173: 170 | B173: 逆变器-20 | C173: 1 | D173: 4510 | E173: 4510 | F173: 山海新能-锦浪 | G173: 曲阜荣名库 | H173: 成都盛世中丰工程有限公司 | I173: 2023-07-14
A174: 171 | B174: 东方日升600 | C174: 32 | D174: 1108.8 | E174: 35481.6 | F174: 山海新能-东方日升 | G174: 曲阜荣名库 | H174: 成都盛世中丰工程有限公司 | I174: 2023-07-14
A175: 172 | B175: 逆变器-20 | C175: 1 | D175: 4510 | E175: 4510 | F175: 山海新能-锦浪 | G175: 曲阜荣名库 | H175: 成都盛世中丰工程有限公司 | I175: 2023-07-14
A176: 173 | B176: 东方日升600 | C176: 32 | D176: 1108.8 | E176: 35481.6 | F176: 山海新能-东方日升 | G176: 曲阜荣名库 | H176: 成都盛世中丰工程有限公司 | I176: 2023-07-14
A177: 174 | B177: 逆变器-20 | C177: 1 | D177: 4510 | E177: 4510 | F177: 山海新能-锦浪 | G177: 曲阜荣名库 | H177: 成都盛世中丰工程有限公司 | I177: 2023-07-14
A178: 175 | B178: 东方日升600 | C178: 96 | D178: 1108.8 | E178: 106444.8 | F178: 山海新能-东方日升 | G178: 庄河荣名库 | H178: 大连竣泰通信工程有限公司 | I178: 2023-07-14
A179: 176 | B179: 东方日升600 | C179: 32 | D179: 1108.8 | E179: 35481.6 | F179: 山海新能-东方日升 | G179: 庄河荣名库 | H179: 大连竣泰通信工程有限公司 | I179: 2023-07-14
A180: 177 | B180: 逆变器-15 | C180: 2 | D180: 3905 | E180: 7810 | F180: 山海新能-锦浪 | G180: 安阳荣名库 | H180: 河南晶特新能源有限公司 | I180: 2023-07-14
A181: 178 | B181: 逆变器-13 | C181: 2 | D181: 3520 | E181: 7040 | F181: 山海新能-锦浪 | G181: 安阳荣名库 | H181: 河南晶特新能源有限公司 | I181: 2023-07-14
A182: 179 | B182: 逆变器-20 | C182: 1 | D182: 4510 | E182: 4510 | F182: 山海新能-锦浪 | G182: 曲阜荣名库 | H182: 成都盛世中丰工程有限公司 | I182: 2023-07-15
A183: 180 | B183: 东方日升600 | C183: 376 | D183: 1108.8 | E183: 416908.8 | F183: 山海新能-东方日升 | G183: 庄河荣名库 | H183: 大连竣泰通信工程有限公司 | I183: 2023-07-15
A184: 181 | B184: 逆变器-30 | C184: 1 | D184: 7700 | E184: 7700 | F184: 山海新能-锦浪 | G184: 曲阜荣名库 | H184: 成都盛世中丰工程有限公司 | I184: 2023-07-17
A185: 182 | B185: 逆变器-40 | C185: 1 | D185: 8690 | E185: 8690 | F185: 山海新能-锦浪 | G185: 曲阜荣名库 | H185: 成都盛世中丰工程有限公司 | I185: 2023-07-17
A186: 183 | B186: 逆变器-36 | C186: 1 | D186: 8525 | E186: 8525 | F186: 山海新能-锦浪 | G186: 曲阜荣名库 | H186: 成都盛世中丰工程有限公司 | I186: 2023-07-17
A187: 184 | B187: 逆变器-36 | C187: 1 | D187: 8525 | E187: 8525 | F187: 山海新能-锦浪 | G187: 曲阜荣名库 | H187: 成都盛世中丰工程有限公司 | I187: 2023-07-17
A188: 185 | B188: 逆变器-36 | C188: 1 | D188: 8525 | E188: 8525 | F188: 山海新能-锦浪 | G188: 曲阜荣名库 | H188: 成都盛世中丰工程有限公司 | I188: 2023-07-17
A189: 186 | B189: 逆变器-36 | C189: 1 | D189: 8525 | E189: 8525 | F189: 山海新能-锦浪 | G189: 曲阜荣名库 | H189: 成都盛世中丰工程有限公司 | I189: 2023-07-17
A190: 187 | B190: 逆变器-36 | C190: 1 | D190: 8525 | E190: 8525 | F190: 山海新能-锦浪 | G190: 曲阜荣名库 | H190: 成都盛世中丰工程有限公司 | I190: 2023-07-17
A191: 188 | B191: 逆变器-30 | C191: 1 | D191: 7700 | E191: 7700 | F191: 山海新能-锦浪 | G191: 曲阜荣名库 | H191: 成都盛世中丰工程有限公司 | I191: 2023-07-17
A192: 189 | B192: 逆变器-36 | C192: 1 | D192: 8525 | E192: 8525 | F192: 山海新能-锦浪 | G192: 曲阜荣名库 | H192: 成都盛世中丰工程有限公司 | I192: 2023-07-17
A193: 190 | B193: 逆变器-36 | C193: 1 | D193: 8525 | E193: 8525 | F193: 山海新能-锦浪 | G193: 曲阜荣名库 | H193: 成都盛世中丰工程有限公司 | I193: 2023-07-17
A194: 191 | B194: 东方日升600 | C194: 928 | D194: 1108.8 | E194: 1028966.4 | F194: 山海新能-东方日升 | G194: 曲阜荣名库 | H194: 成都盛世中丰工程有限公司 | I194: 2023-07-17
A195: 192 | B195: 逆变器-36 | C195: 1 | D195: 8525 | E195: 8525 | F195: 山海新能-锦浪 | G195: 曲阜荣名库 | H195: 成都盛世中丰工程有限公司 | I195: 2023-07-17
A196: 193 | B196: TSM-450DE17M(II） | C196: 1 | D196: 810 | E196: =D196*C196 -> 810 | F196: 山海智慧-天合 | G196: 藁城荣名库 | H196: 运维库 | I196: 2023-07-17
A197: 194 | B197: TSM-535DE19 | C197: 1 | D197: 996 | E197: 996 | F197: 山海智慧-乐丰 | G197: 藁城荣名库 | H197: 运维库 | I197: 2023-07-17
A198: 195 | B198: TSM-535DE19 | C198: 5 | D198: 963 | E198: 4815 | F198: 山海智慧-天合 | G198: 藁城荣名库 | H198: 运维库 | I198: 2023-07-17
A199: 196 | B199: 逆变器-50 | C199: 4 | D199: 11990 | E199: 47960 | F199: 山海新能-锦浪 | G199: 安阳荣名库 | H199: 河北冀朋工程项目管理有限公司 | I199: 2023-07-17
A200: 197 | B200: 逆变器-40 | C200: 5 | D200: 8690 | E200: 43450 | F200: 山海新能-锦浪 | G200: 安阳荣名库 | H200: 河北冀朋工程项目管理有限公司 | I200: 2023-07-17
... 221 more rows

Sheet 20230630库存表
A1: 质物库存表
A2: 出质人： | C2: 山海新能（北京）能源科技有限公司河北分公司
A3: 质权人： | C3: 石家庄汇融农村合作银行
A4: 序号 | B4: 仓库名称 | C4: 物料组 | D4: 物料编号 | E4: 物料名称 | F4: 物料品牌 | G4: 物料单价 | H4: 库存数量 | I4: 货值
A5: 1 | B5: 江西余干库 | C5: 组件 | D5: 1004000067 | E5: 东方日升660双玻 | F5: 山海新能-东方日升 | G5: 1082.4 | H5: 0 | I5: =H5*G5 -> 0
A6: 2 | B6: 江西余干库 | C6: 逆变器 | D6: 2001000015 | E6: 逆变器-15 | F6: 山海新能-锦浪 | G6: 3905 | H6: 0 | I6: =H6*G6 -> 0
A7: 3 | B7: 江西余干库 | C7: 逆变器 | D7: 2001000020 | E7: 逆变器-20 | F7: 山海新能-锦浪 | G7: 4510 | H7: 0 | I7: 0
A8: 4 | B8: 江西余干库 | C8: 逆变器 | D8: 2001000025 | E8: 逆变器-25 | F8: 山海新能-锦浪 | G8: 5170 | H8: 0 | I8: 0
A9: 5 | B9: 江西余干库 | C9: 逆变器 | D9: 2001000030 | E9: 逆变器-30 | F9: 山海新能-锦浪 | G9: 7700 | H9: 0 | I9: 0
A10: 6 | B10: 江西余干库 | C10: 逆变器 | D10: 2001000036 | E10: 逆变器-36 | F10: 山海新能-锦浪 | G10: 8525 | H10: 0 | I10: 0
A11: 7 | B11: 江西余干库 | C11: 逆变器 | D11: 2001000040 | E11: 逆变器-40 | F11: 山海新能-锦浪 | G11: 8690 | H11: 0 | I11: 0
A12: 8 | B12: 江西余干库 | C12: 逆变器 | D12: 2001000050 | E12: 逆变器-50 | F12: 山海新能-锦浪 | G12: 11990 | H12: 0 | I12: 0
A13: 9 | B13: 庄河荣名库 | C13: 组件 | D13: 1004000060 | E13: 东方日升600 | F13: 山海新能-东方日升 | G13: 1108.8 | H13: 4184 | I13: 4639219.2
A14: 10 | B14: 庄河荣名库 | C14: 组件 | D14: 1001000054 | E14: 天合600 | F14: 山海智慧-天合 | G14: 1267 | H14: 0 | I14: 0
A15: 11 | B15: 庄河荣名库 | C15: 组件 | D15: 1004000047 | E15: 晶科475 | F15: 山海智慧-天合 | G15: 904 | H15: 0 | I15: 0
A16: 12 | B16: 庄河荣名库 | C16: 逆变器 | D16: 2003000060 | E16: 逆变器-60 | F16: 山海新能-固德威 | G16: 9900 | H16: 6 | I16: 59400
A17: 13 | B17: 庄河荣名库 | C17: 逆变器 | D17: 2003000040 | E17: 逆变器-40 | F17: 山海新能-固德威 | G17: 8171 | H17: 0 | I17: 0
A18: 14 | B18: 庄河荣名库 | C18: 逆变器 | D18: 2003000036 | E18: 逆变器-36 | F18: 山海新能-固德威 | G18: 7660 | H18: 0 | I18: 0
A19: 15 | B19: 庄河荣名库 | C19: 逆变器 | D19: 2003000030 | E19: 逆变器-30 | F19: 山海新能-固德威 | G19: 7100 | H19: 0 | I19: 0
A20: 16 | B20: 庄河荣名库 | C20: 逆变器 | D20: 20010000110 | E20: 逆变器-110 | F20: 山海新能-锦浪 | G20: 19800 | H20: 22 | I20: 435600
A21: 17 | B21: 庄河荣名库 | C21: 逆变器 | D21: 2001000080 | E21: 逆变器-80 | F21: 山海新能-锦浪 | G21: 17300 | H21: 5 | I21: 86500
A22: 18 | B22: 庄河荣名库 | C22: 逆变器 | D22: 2001000008 | E22: 逆变器-8 | F22: 山海新能-锦浪 | G22: 2830 | H22: 50 | I22: 141500
A23: 19 | B23: 庄河荣名库 | C23: 逆变器 | D23: 2001000050 | E23: 逆变器-50 | F23: 山海新能-锦浪 | G23: 11990 | H23: 4 | I23: 47960
A24: 20 | B24: 庄河荣名库 | C24: 逆变器 | D24: 2001000013 | E24: 逆变器-13 | F24: 山海新能-锦浪 | G24: 3520 | H24: 31 | I24: 109120
A25: 21 | B25: 庄河荣名库 | C25: 逆变器 | D25: 2001000015 | E25: 逆变器-15 | F25: 山海新能-锦浪 | G25: 3905 | H25: 51 | I25: 199155
A26: 22 | B26: 庄河荣名库 | C26: 逆变器 | D26: 2001000036 | E26: 逆变器-36 | F26: 山海新能-锦浪 | G26: 8525 | H26: 31 | I26: 264275
A27: 23 | B27: 庄河荣名库 | C27: 逆变器 | D27: 2001000030 | E27: 逆变器-30 | F27: 山海新能-锦浪 | G27: 7700 | H27: 29 | I27: 223300
A28: 24 | B28: 庄河荣名库 | C28: 逆变器 | D28: 2001000040 | E28: 逆变器-40 | F28: 山海新能-锦浪 | G28: 8690 | H28: 10 | I28: 86900
A29: 25 | B29: 庄河荣名库 | C29: 逆变器 | D29: 2001000033 | E29: 逆变器-33 | F29: 山海新能-锦浪 | G29: 8195 | H29: 0 | I29: 0
A30: 26 | B30: 庄河荣名库 | C30: 逆变器 | D30: 2001000025 | E30: 逆变器-25 | F30: 山海新能-锦浪 | G30: 5170 | H30: 8 | I30: 41360
A31: 27 | B31: 庄河荣名库 | C31: 逆变器 | D31: 2001000020 | E31: 逆变器-20 | F31: 山海新能-锦浪 | G31: 4510 | H31: 16 | I31: 72160
A32: 28 | B32: 庄河荣名库 | C32: 逆变器 | D32: 2002000033 | E32: 逆变器-33 | F32: 山海新能-古瑞瓦特 | G32: 7100 | H32: 9 | I32: 63900
A33: 29 | B33: 安阳荣名库 | C33: 组件 | D33: 1004000048 | E33: 晶科470 | F33: 山海新能 | G33: 904 | H33: 0 | I33: 0
A34: 30 | B34: 安阳荣名库 | C34: 组件 | D34: 1004000067 | E34: 东方日升660双玻 | F34: 山海新能-东方日升 | G34: 1082.4 | H34: 0 | I34: 0
A35: 31 | B35: 安阳荣名库 | C35: 组件 | D35: 1004000066 | E35: 东方日升660 | F35: 山海新能-东方日升 | G35: 1014 | H35: 0 | I35: 0
A36: 32 | B36: 安阳荣名库 | C36: 组件 | D36: 1004000047 | E36: 晶科475 | F36: 山海智慧-天合 | G36: 904 | H36: 5394 | I36: 4876176
A37: 33 | B37: 安阳荣名库 | C37: 逆变器 | D37: 2002000040 | E37: 逆变器-40 | F37: 山海新能-古瑞瓦特 | G37: 7600 | H37: 0 | I37: 0
A38: 34 | B38: 安阳荣名库 | C38: 逆变器 | D38: 2002000050 | E38: 逆变器-50 | F38: 山海新能-古瑞瓦特 | G38: 9000 | H38: 5 | I38: =H38*G38 -> 45000
A39: 35 | B39: 安阳荣名库 | C39: 逆变器 | D39: 20010000110 | E39: 逆变器-110 | F39: 山海新能-锦浪 | G39: 19800 | H39: 21 | I39: 415800
A40: 36 | B40: 安阳荣名库 | C40: 逆变器 | D40: 2001000030 | E40: 逆变器-30 | F40: 山海新能-锦浪 | G40: 7700 | H40: 26 | I40: 200200
A41: 37 | B41: 安阳荣名库 | C41: 逆变器 | D41: 2001000060 | E41: 逆变器-60 | F41: 山海新能-锦浪 | G41: 11300 | H41: 17 | I41: 192100
A42: 38 | B42: 安阳荣名库 | C42: 逆变器 | D42: 2001000080 | E42: 逆变器-80 | F42: 山海新能-锦浪 | G42: 17300 | H42: 10 | I42: 173000
A43: 39 | B43: 安阳荣名库 | C43: 逆变器 | D43: 2001000036 | E43: 逆变器-36 | F43: 山海新能-锦浪 | G43: 8525 | H43: 10 | I43: 85250
A44: 40 | B44: 安阳荣名库 | C44: 逆变器 | D44: 2001000050 | E44: 逆变器-50 | F44: 山海新能-锦浪 | G44: 11990 | H44: 0 | I44: 0
A45: 41 | B45: 安阳荣名库 | C45: 逆变器 | D45: 2001000040 | E45: 逆变器-40 | F45: 山海新能-锦浪 | G45: 8690 | H45: 52 | I45: 451880
A46: 42 | B46: 安阳荣名库 | C46: 逆变器 | D46: 2001000013 | E46: 逆变器-13 | F46: 山海新能-锦浪 | G46: 3520 | H46: 10 | I46: 35200
A47: 43 | B47: 安阳荣名库 | C47: 逆变器 | D47: 2001000015 | E47: 逆变器-15 | F47: 山海新能-锦浪 | G47: 3905 | H47: 16 | I47: 62480
A48: 44 | B48: 安阳荣名库 | C48: 逆变器 | D48: 2004000133 | E48: 逆变器-33 | F48: 禾望 | G48: 7260 | H48: 0 | I48: 0
A49: 45 | B49: 安阳荣名库 | C49: 逆变器 | D49: 2001000020 | E49: 逆变器-20 | F49: 山海新能-锦浪 | G49: 4510 | H49: 10 | I49: 45100
A50: 46 | B50: 安阳荣名库 | C50: 逆变器 | D50: 2001000025 | E50: 逆变器-25 | F50: 山海新能-锦浪 | G50: 5170 | H50: 0 | I50: 0
A51: 47 | B51: 安阳荣名库 | C51: 逆变器 | D51: 2004000130 | E51: 逆变器-30 | F51: 禾望 | G51: 7040 | H51: 0 | I51: 0
A52: 48 | B52: 安阳荣名库 | C52: 逆变器 | D52: 2004000136 | E52: 逆变器-36 | F52: 禾望 | G52: 7920 | H52: 0 | I52: 0
A53: 49 | B53: 安阳荣名库 | C53: 组件 | D53: 1005000066 | E53: 阿特斯660 | F53: 山海新能-阿特斯 | G53: 1075.8 | H53: 1908 | I53: 2052626.4
A54: 50 | B54: 安阳荣名库 | C54: 逆变器 | D54: 2003000030 | E54: 逆变器-30 | F54: 山海新能-固德威 | G54: 7100 | H54: 26 | I54: 184600
A55: 51 | B55: 安阳荣名库 | C55: 逆变器 | D55: 2001000033 | E55: 逆变器-33 | F55: 山海新能-锦浪 | G55: 8195 | H55: 26 | I55: 213070
A56: 52 | B56: 安阳荣名库 | C56: 逆变器 | D56: 2003000036 | E56: 逆变器-36 | F56: 山海新能-固德威 | G56: 7660 | H56: 15 | I56: 114900
A57: 53 | B57: 安阳荣名库 | C57: 逆变器 | D57: 2003000040 | E57: 逆变器-40 | F57: 山海新能-固德威 | G57: 8171 | H57: 32 | I57: 261472
A58: 54 | B58: 曲阜荣名库 | C58: 组件 | D58: 1004000060 | E58: 东方日升600 | F58: 山海新能-东方日升 | G58: 1108.8 | H58: 5560 | I58: 6164928
A59: 55 | B59: 曲阜荣名库 | C59: 组件 | D59: 1004000047 | E59: 晶科475 | F59: 山海智慧-天合 | G59: 904 | H59: 6448 | I59: 5828992
A60: 56 | B60: 曲阜荣名库 | C60: 组件 | D60: 1001000054 | E60: 天合600 | F60: 山海智慧-天合 | G60: 1267 | H60: 765 | I60: 969255
A61: 57 | B61: 曲阜荣名库 | C61: 组件 | D61: 1004000048 | E61: 晶科470 | F61: 山海新能 | G61: 904 | H61: 158 | I61: 142832
A62: 58 | B62: 曲阜荣名库 | C62: 逆变器 | D62: 2001000013 | E62: 逆变器-13 | F62: 山海新能-锦浪 | G62: 3520 | H62: 1 | I62: 3520
A63: 59 | B63: 曲阜荣名库 | C63: 逆变器 | D63: 2001000050 | E63: 逆变器-50 | F63: 山海新能-锦浪 | G63: 11990 | H63: 20 | I63: 239800
A64: 60 | B64: 曲阜荣名库 | C64: 逆变器 | D64: 2001000080 | E64: 逆变器-80 | F64: 山海新能-锦浪 | G64: 17300 | H64: 4 | I64: 69200
A65: 61 | B65: 曲阜荣名库 | C65: 逆变器 | D65: 20010000110 | E65: 逆变器-110 | F65: 山海新能-锦浪 | G65: 19800 | H65: 5 | I65: 99000
A66: 62 | B66: 曲阜荣名库 | C66: 逆变器 | D66: 2001000060 | E66: 逆变器-60 | F66: 山海新能-锦浪 | G66: 11300 | H66: 0 | I66: 0
A67: 63 | B67: 曲阜荣名库 | C67: 逆变器 | D67: 2002000050 | E67: 逆变器-50 | F67: 山海新能-古瑞瓦特 | G67: 9000 | H67: 10 | I67: 90000
A68: 64 | B68: 曲阜荣名库 | C68: 逆变器 | D68: 2002000040 | E68: 逆变器-40 | F68: 山海新能-古瑞瓦特 | G68: 7600 | H68: 14 | I68: 106400
A69: 65 | B69: 曲阜荣名库 | C69: 逆变器 | D69: 2003000050 | E69: 逆变器-50 | F69: 山海新能-固德威 | G69: 9900 | H69: 2 | I69: 19800
A70: 66 | B70: 曲阜荣名库 | C70: 逆变器 | D70: 2001000040 | E70: 逆变器-40 | F70: 山海新能-锦浪 | G70: 8690 | H70: 10 | I70: 86900
A71: 67 | B71: 曲阜荣名库 | C71: 逆变器 | D71: 2001000033 | E71: 逆变器-33 | F71: 山海新能-锦浪 | G71: 8195 | H71: 44 | I71: 360580
A72: 68 | B72: 曲阜荣名库 | C72: 逆变器 | D72: 2001000036 | E72: 逆变器-36 | F72: 山海新能-锦浪 | G72: 8525 | H72: 9 | I72: 76725
A73: 69 | B73: 曲阜荣名库 | C73: 逆变器 | D73: 2001000030 | E73: 逆变器-30 | F73: 山海新能-锦浪 | G73: 7700 | H73: 45 | I73: 346500
A74: 70 | B74: 曲阜荣名库 | C74: 逆变器 | D74: 2001000015 | E74: 逆变器-15 | F74: 山海新能-锦浪 | G74: 3905 | H74: 11 | I74: 42955
A75: 71 | B75: 曲阜荣名库 | C75: 逆变器 | D75: 2001000025 | E75: 逆变器-25 | F75: 山海新能-锦浪 | G75: 5170 | H75: 14 | I75: 72380
A76: 72 | B76: 曲阜荣名库 | C76: 逆变器 | D76: 2001000020 | E76: 逆变器-20 | F76: 山海新能-锦浪 | G76: 4510 | H76: 28 | I76: 126280
A77: 73 | B77: 藁城荣名库 | C77: 组件 | D77: 1001000050 | E77: TSM-500DE18M(II） | F77: 山海智慧-天合 | G77: 900 | H77: 71 | I77: =G77*H77 -> 63900
A78: 74 | B78: 藁城荣名库 | C78: 组件 | D78: 1001000053 | E78: TSM-535DE19 | F78: 山海智慧-天合 | G78: 963 | H78: 17 | I78: 16371
A79: 75 | B79: 藁城荣名库 | C79: 组件 | D79: 1002000053 | E79: 远显535 | F79: 山海智慧-远显 | G79: 996 | H79: 561 | I79: 558756
A80: 76 | B80: 藁城荣名库 | C80: 组件 | D80: 1003000053 | E80: 乐丰535 | F80: 山海智慧-乐丰 | G80: 996 | H80: 216 | I80: 215136
A81: 77 | B81: 藁城荣名库 | C81: 组件 | D81: 1003010053 | E81: 乐丰535（宽版） | F81: 山海智慧-乐丰（宽） | G81: 996 | H81: 1066 | I81: 1061736
A82: 78 | B82: 藁城荣名库 | C82: 组件 | D82: 1004000047 | E82: 晶科475 | F82: 山海智慧-天合 | G82: 904 | H82: 25992 | I82: 23496768
A83: 79 | B83: 藁城荣名库 | C83: 组件 | D83: 1001000045 | E83: TSM-450DE17M(II） | F83: 山海智慧-天合 | G83: 810 | H83: 46 | I83: 37260
A84: 80 | B84: 藁城荣名库 | C84: 组件 | D84: 1004000048 | E84: 晶科470 | F84: 山海智慧-天合 | G84: 904 | H84: 21046 | I84: 19025584
A85: 81 | B85: 藁城荣名库 | C85: 逆变器 | D85: 2002000040 | E85: 逆变器-40 | F85: 山海新能-古瑞瓦特 | G85: 7600 | H85: 12 | I85: 91200
A86: 82 | B86: 藁城荣名库 | C86: 逆变器 | D86: 2001000015 | E86: 逆变器-15 | F86: 山海新能-锦浪 | G86: 3905 | H86: 3 | I86: 11715
A87: 83 | B87: 藁城荣名库 | C87: 逆变器 | D87: 2001000036 | E87: 逆变器-36 | F87: 山海新能-锦浪 | G87: 8525 | H87: 1 | I87: 8525
A88: 84 | B88: 藁城荣名库 | C88: 逆变器 | D88: 2002000050 | E88: 逆变器-50 | F88: 山海新能-古瑞瓦特 | G88: 9000 | H88: 36 | I88: 324000
A89: 85 | B89: 藁城荣名库 | C89: 逆变器 | D89: 2004000136 | E89: 逆变器-36 | F89: 禾望 | G89: 7920 | H89: 17 | I89: 134640
A90: 86 | B90: 藁城荣名库 | C90: 逆变器 | D90: 2004000133 | E90: 逆变器-33 | F90: 禾望 | G90: 7260 | H90: 34 | I90: 246840
A91: 87 | B91: 藁城荣名库 | C91: 逆变器 | D91: 2004000130 | E91: 逆变器-30 | F91: 禾望 | G91: 7040 | H91: 33 | I91: 232320
A92: 88 | B92: 合计： | H92: =SUM(H5:H91) -> 74333 | I92: =SUM(I5:I91) -> 76250001.6
A94: 以上内容截止到2023年6月30日
A96: 出质人： | C96: 山海新能（北京）能源科技有限公司河北分公司
A100: 监管人： | C100: 宇信通创新技术（河北）有限公司
A103: 备注：1、以最近日期的库存表为准，自动覆盖前期库存表。
A104: 2、上表中“数量”、“重量”指标的计量单位按照实际质物品种填写。
A105: 3、表中格式可根据具体品种进行相应调整。
